Workbook

Sheet HOME
B57: Changes from Toolkit Version 2021.1
B58: - Updated performance indicators
B59: - Updated denominators
B61: Changes from Toolkit Version 2019.3
B62: - Updated 2019-20 RO cost Dataset
B63: - Updated 2020-21 RA cost Dataset
B64: - Added 2018-19 ASCFR cost Dataset
B66: Changes from Toolkit Version 2019.1.1
B67: - Updated performance indicators
B68: - Updated 2019-20 RA cost Dataset
B70: Changes from Toolkit Version 2019.1
B71: - Updated performance indicators
B72: - Updated 2017-18 RO cost Dataset
B74: Changes from Toolkit Version 2018.3
B75: - Updated performance indicators
B77: Changes from Toolkit Version 2018.2
B78: - Added 2017-18 RO cost Dataset
B79: - Added 2017-18 ASCFR cost Dataset
B81: Changes from Toolkit Version 2018.1
B82: - Redesigned user interface
B83: - Added 2018-19 RA cost Dataset
B84: - Updated CS01 and CS18 throughout costs tabs
B85: - Updated all denominators
B87: Changes from Toolkit Version 2017.3
B88: - Updated performance indicators
B90: Changes from Toolkit Version 2017.2
B91: - Added 2016-17 RO cost Dataset
B92: - Added 2016-17 ASCFR cost Dataset

Sheet ANALYSIS
S1: Selenated naomparator Group for
S2: =Authority -> Adur
Y3: SETTINGS
Y4: Area cost Adjustment
S5: =Master_Calc!F81&" authorities selected" -> 16 authorities selected | Y5: Analysis Type
K7: =T5_Calc!B42 ->  | N7: =TEXT(T5_Calc!C42,T5_Calc!$C$43) ->  | P7: =T5_Calc!D42 -> 
O9: =T5_Calc!C44 -> Cost Score | P9: =T5_Calc!D44 -> PI Score | S9: =IF(Master_Calc!$E$34=2,"",IF(ROW()-8<=Master_Calc!$F$81,OFFSET(Master_Calc!$B$82,MATCH(ROW()-8,Master_Calc!$F$83:$F$422,FALSE),0),"")) -> Adur | Y9: Select Service
J10: =T5_Calc!A45 ->  | K10: =T5_Calc!B45 -> Council Tax and Housing Benefits | O10: =TEXT(T5_Calc!C45,T5_Calc!$C$43) -> 100.0% | P10: =TEXT(T5_Calc!D45,T5_Calc!$D$43) -> 60.0% | S10: =IF(Master_Calc!$E$34=2,"",IF(ROW()-8<=Master_Calc!$F$81,OFFSET(Master_Calc!$B$82,MATCH(ROW()-8,Master_Calc!$F$83:$F$422,FALSE),0),"")) -> Eastleigh
J11: =T5_Calc!A46 ->  | K11: =T5_Calc!B46 -> Council Tax and NNDR collection | O11: =TEXT(T5_Calc!C46,T5_Calc!$C$43) -> 94.8% | P11: =TEXT(T5_Calc!D46,T5_Calc!$D$43) -> 67.9% | S11: =IF(Master_Calc!$E$34=2,"",IF(ROW()-8<=Master_Calc!$F$81,OFFSET(Master_Calc!$B$82,MATCH(ROW()-8,Master_Calc!$F$83:$F$422,FALSE),0),"")) -> Fylde
J12: =T5_Calc!A47 ->  | K12: =T5_Calc!B47 -> Economic Development | O12: =TEXT(T5_Calc!C47,T5_Calc!$C$43) -> 40.1% | P12: =TEXT(T5_Calc!D47,T5_Calc!$D$43) -> 82.1% | S12: =IF(Master_Calc!$E$34=2,"",IF(ROW()-8<=Master_Calc!$F$81,OFFSET(Master_Calc!$B$82,MATCH(ROW()-8,Master_Calc!$F$83:$F$422,FALSE),0),"")) -> Gedling | Y12: Current denominator:
B13: Average | C13: =TEXT(T5_Calc!B41,T5_Calc!$C$43) ->  | E13: Upper Quartile | F13: =TEXT(T5_Calc!C41,T5_Calc!$C$43) ->  | H13: Lower Quartile | I13: =TEXT(T5_Calc!D41,T5_Calc!$C$43) ->  | J13: =T5_Calc!A48 ->  | K13: =T5_Calc!B48 -> Homelessness | O13: =TEXT(T5_Calc!C48,T5_Calc!$C$43) -> na | P13: =TEXT(T5_Calc!D48,T5_Calc!$D$43) -> 27.3% | S13: =IF(Master_Calc!$E$34=2,"",IF(ROW()-8<=Master_Calc!$F$81,OFFSET(Master_Calc!$B$82,MATCH(ROW()-8,Master_Calc!$F$83:$F$422,FALSE),0),"")) -> Gosport | Y13: =HLOOKUP(INDEX(DB_UC!C8:AK8,1,DropD_Calc!J7),DB_UC!C8:AK18,11,FALSE) -> Total Population
J14: =T5_Calc!A49 ->  | K14: =T5_Calc!B49 -> Planning | O14: =TEXT(T5_Calc!C49,T5_Calc!$C$43) -> 100.0% | P14: =TEXT(T5_Calc!D49,T5_Calc!$D$43) -> 37.7% | S14: =IF(Master_Calc!$E$34=2,"",IF(ROW()-8<=Master_Calc!$F$81,OFFSET(Master_Calc!$B$82,MATCH(ROW()-8,Master_Calc!$F$83:$F$422,FALSE),0),"")) -> Havant | Y14: Change denominator to:
J15: =T5_Calc!A50 ->  | K15: =T5_Calc!B50 -> Recycling | O15: =TEXT(T5_Calc!C50,T5_Calc!$C$43) -> 82.8% | P15: =TEXT(T5_Calc!D50,T5_Calc!$D$43) -> 28.6% | S15: =IF(Master_Calc!$E$34=2,"",IF(ROW()-8<=Master_Calc!$F$81,OFFSET(Master_Calc!$B$82,MATCH(ROW()-8,Master_Calc!$F$83:$F$422,FALSE),0),"")) -> Lewes
J16: =T5_Calc!A51 ->  | K16: =T5_Calc!B51 -> Sport | O16: =TEXT(T5_Calc!C51,T5_Calc!$C$43) -> 100.0% | P16: =TEXT(T5_Calc!D51,T5_Calc!$D$43) -> 88.1% | S16: =IF(Master_Calc!$E$34=2,"",IF(ROW()-8<=Master_Calc!$F$81,OFFSET(Master_Calc!$B$82,MATCH(ROW()-8,Master_Calc!$F$83:$F$422,FALSE),0),"")) -> North Devon
J17: =T5_Calc!A52 ->  | K17: =T5_Calc!B52 -> Street Cleansing | O17: =TEXT(T5_Calc!C52,T5_Calc!$C$43) -> 100.0% | P17: =TEXT(T5_Calc!D52,T5_Calc!$D$43) -> 80.0% | S17: =IF(Master_Calc!$E$34=2,"",IF(ROW()-8<=Master_Calc!$F$81,OFFSET(Master_Calc!$B$82,MATCH(ROW()-8,Master_Calc!$F$83:$F$422,FALSE),0),"")) -> Rochford
J18: =T5_Calc!A53 ->  | K18: =T5_Calc!B53 -> Waste Collection | O18: =TEXT(T5_Calc!C53,T5_Calc!$C$43) -> 100.0% | P18: =TEXT(T5_Calc!D53,T5_Calc!$D$43) -> 59.1% | S18: =IF(Master_Calc!$E$34=2,"",IF(ROW()-8<=Master_Calc!$F$81,OFFSET(Master_Calc!$B$82,MATCH(ROW()-8,Master_Calc!$F$83:$F$422,FALSE),0),"")) -> Scarborough
J19: =T5_Calc!A54 ->  | K19: =T5_Calc!B54 ->  | O19: =TEXT(T5_Calc!C54,T5_Calc!$C$43) ->  | P19: =TEXT(T5_Calc!D54,T5_Calc!$D$43) ->  | S19: =IF(Master_Calc!$E$34=2,"",IF(ROW()-8<=Master_Calc!$F$81,OFFSET(Master_Calc!$B$82,MATCH(ROW()-8,Master_Calc!$F$83:$F$422,FALSE),0),"")) -> Sedgemoor | Y19: Select Service:
J20: =T5_Calc!A55 ->  | K20: =T5_Calc!B55 ->  | O20: =TEXT(T5_Calc!C55,T5_Calc!$C$43) ->  | P20: =TEXT(T5_Calc!D55,T5_Calc!$D$43) ->  | S20: =IF(Master_Calc!$E$34=2,"",IF(ROW()-8<=Master_Calc!$F$81,OFFSET(Master_Calc!$B$82,MATCH(ROW()-8,Master_Calc!$F$83:$F$422,FALSE),0),"")) -> South Ribble
J21: =T5_Calc!A56 ->  | K21: =T5_Calc!B56 ->  | O21: =TEXT(T5_Calc!C56,T5_Calc!$C$43) ->  | P21: =TEXT(T5_Calc!D56,T5_Calc!$D$43) ->  | S21: =IF(Master_Calc!$E$34=2,"",IF(ROW()-8<=Master_Calc!$F$81,OFFSET(Master_Calc!$B$82,MATCH(ROW()-8,Master_Calc!$F$83:$F$422,FALSE),0),"")) -> Teignbridge
J22: =T5_Calc!A57 ->  | K22: =T5_Calc!B57 ->  | O22: =TEXT(T5_Calc!C57,T5_Calc!$C$43) ->  | P22: =TEXT(T5_Calc!D57,T5_Calc!$D$43) ->  | S22: =IF(Master_Calc!$E$34=2,"",IF(ROW()-8<=Master_Calc!$F$81,OFFSET(Master_Calc!$B$82,MATCH(ROW()-8,Master_Calc!$F$83:$F$422,FALSE),0),"")) -> Worthing
J23: =T5_Calc!A58 ->  | K23: =T5_Calc!B58 ->  | O23: =TEXT(T5_Calc!C58,T5_Calc!$C$43) ->  | P23: =TEXT(T5_Calc!D58,T5_Calc!$D$43) ->  | S23: =IF(Master_Calc!$E$34=2,"",IF(ROW()-8<=Master_Calc!$F$81,OFFSET(Master_Calc!$B$82,MATCH(ROW()-8,Master_Calc!$F$83:$F$422,FALSE),0),"")) -> Wyre
J24: =T5_Calc!A59 ->  | K24: =T5_Calc!B59 ->  | O24: =TEXT(T5_Calc!C59,T5_Calc!$C$43) ->  | P24: =TEXT(T5_Calc!D59,T5_Calc!$D$43) ->  | S24: =IF(Master_Calc!$E$34=2,"",IF(ROW()-8<=Master_Calc!$F$81,OFFSET(Master_Calc!$B$82,MATCH(ROW()-8,Master_Calc!$F$83:$F$422,FALSE),0),"")) -> Wyre Forest
J25: =T5_Calc!A60 ->  | K25: =T5_Calc!B60 ->  | O25: =TEXT(T5_Calc!C60,T5_Calc!$C$43) ->  | P25: =TEXT(T5_Calc!D60,T5_Calc!$D$43) ->  | S25: =IF(Master_Calc!$E$34=2,"",IF(ROW()-8<=Master_Calc!$F$81,OFFSET(Master_Calc!$B$82,MATCH(ROW()-8,Master_Calc!$F$83:$F$422,FALSE),0),"")) ->  | Y25: =OFFSET(T2_Calc!$MB$10,0,((DropD_Calc!$J$7-1)*37)+(ROW()-25)*2) -> NI 181 | Z25: =OFFSET(T2_Calc!$MB$5,0,((DropD_Calc!$J$7-1)*37)+(ROW()-25)*2) -> 0.3333333333 | AB25: =IF(OFFSET(T2_Calc!$MB$11,0,((DropD_Calc!$J$7-1)*37)+(ROW()-25)*2)="na","",IF(OFFSET(T2_Calc!$MB$11,0,((DropD_Calc!$J$7-1)*37)+(ROW()-25)*2)="Up","h","i")) -> i | AC25: =OFFSET(T2_Calc!$MB$15,0,((DropD_Calc!$J$7-1)*37)+(ROW()-25)*2) -> 2 | AD25: =OFFSET(T2_Calc!$MB$17,0,((DropD_Calc!$J$7-1)*37)+(ROW()-25)*2) -> 0.8
J26: =T5_Calc!A61 ->  | K26: =T5_Calc!B61 ->  | O26: =TEXT(T5_Calc!C61,T5_Calc!$C$43) ->  | P26: =TEXT(T5_Calc!D61,T5_Calc!$D$43) ->  | S26: =IF(Master_Calc!$E$34=2,"",IF(ROW()-8<=Master_Calc!$F$81,OFFSET(Master_Calc!$B$82,MATCH(ROW()-8,Master_Calc!$F$83:$F$422,FALSE),0),"")) ->  | Y26: =OFFSET(T2_Calc!$MB$10,0,((DropD_Calc!$J$7-1)*37)+(ROW()-25)*2) -> VfM 35 | Z26: =OFFSET(T2_Calc!$MB$5,0,((DropD_Calc!$J$7-1)*37)+(ROW()-25)*2) -> 0.3333333333 | AB26: =IF(OFFSET(T2_Calc!$MB$11,0,((DropD_Calc!$J$7-1)*37)+(ROW()-25)*2)="na","",IF(OFFSET(T2_Calc!$MB$11,0,((DropD_Calc!$J$7-1)*37)+(ROW()-25)*2)="Up","h","i")) -> h | AC26: =OFFSET(T2_Calc!$MB$15,0,((DropD_Calc!$J$7-1)*37)+(ROW()-25)*2) -> 70.92291372 | AD26: =OFFSET(T2_Calc!$MB$17,0,((DropD_Calc!$J$7-1)*37)+(ROW()-25)*2) -> 0.3333333333
J27: =T5_Calc!A62 ->  | K27: =T5_Calc!B62 ->  | O27: =TEXT(T5_Calc!C62,T5_Calc!$C$43) ->  | P27: =TEXT(T5_Calc!D62,T5_Calc!$D$43) ->  | S27: =IF(Master_Calc!$E$34=2,"",IF(ROW()-8<=Master_Calc!$F$81,OFFSET(Master_Calc!$B$82,MATCH(ROW()-8,Master_Calc!$F$83:$F$422,FALSE),0),"")) ->  | Y27: =OFFSET(T2_Calc!$MB$10,0,((DropD_Calc!$J$7-1)*37)+(ROW()-25)*2) -> VfM 36 | Z27: =OFFSET(T2_Calc!$MB$5,0,((DropD_Calc!$J$7-1)*37)+(ROW()-25)*2) -> 0.3333333333 | AB27: =IF(OFFSET(T2_Calc!$MB$11,0,((DropD_Calc!$J$7-1)*37)+(ROW()-25)*2)="na","",IF(OFFSET(T2_Calc!$MB$11,0,((DropD_Calc!$J$7-1)*37)+(ROW()-25)*2)="Up","h","i")) -> h | AC27: =OFFSET(T2_Calc!$MB$15,0,((DropD_Calc!$J$7-1)*37)+(ROW()-25)*2) -> 40.27470093 | AD27: =OFFSET(T2_Calc!$MB$17,0,((DropD_Calc!$J$7-1)*37)+(ROW()-25)*2) -> 0.6666666667
J28: =T5_Calc!A63 ->  | K28: =T5_Calc!B63 ->  | O28: =TEXT(T5_Calc!C63,T5_Calc!$C$43) ->  | P28: =TEXT(T5_Calc!D63,T5_Calc!$D$43) ->  | S28: =IF(Master_Calc!$E$34=2,"",IF(ROW()-8<=Master_Calc!$F$81,OFFSET(Master_Calc!$B$82,MATCH(ROW()-8,Master_Calc!$F$83:$F$422,FALSE),0),"")) ->  | Y28: =OFFSET(T2_Calc!$MB$10,0,((DropD_Calc!$J$7-1)*37)+(ROW()-25)*2) -> na | Z28: =OFFSET(T2_Calc!$MB$5,0,((DropD_Calc!$J$7-1)*37)+(ROW()-25)*2) -> na | AB28: =IF(OFFSET(T2_Calc!$MB$11,0,((DropD_Calc!$J$7-1)*37)+(ROW()-25)*2)="na","",IF(OFFSET(T2_Calc!$MB$11,0,((DropD_Calc!$J$7-1)*37)+(ROW()-25)*2)="Up","h","i")) ->  | AC28: =OFFSET(T2_Calc!$MB$15,0,((DropD_Calc!$J$7-1)*37)+(ROW()-25)*2) -> na | AD28: =OFFSET(T2_Calc!$MB$17,0,((DropD_Calc!$J$7-1)*37)+(ROW()-25)*2) -> na
J29: =T5_Calc!A64 ->  | K29: =T5_Calc!B64 ->  | O29: =TEXT(T5_Calc!C64,T5_Calc!$C$43) ->  | P29: =TEXT(T5_Calc!D64,T5_Calc!$D$43) ->  | S29: =IF(Master_Calc!$E$34=2,"",IF(ROW()-8<=Master_Calc!$F$81,OFFSET(Master_Calc!$B$82,MATCH(ROW()-8,Master_Calc!$F$83:$F$422,FALSE),0),"")) ->  | Y29: =OFFSET(T2_Calc!$MB$10,0,((DropD_Calc!$J$7-1)*37)+(ROW()-25)*2) -> na | Z29: =OFFSET(T2_Calc!$MB$5,0,((DropD_Calc!$J$7-1)*37)+(ROW()-25)*2) -> na | AB29: =IF(OFFSET(T2_Calc!$MB$11,0,((DropD_Calc!$J$7-1)*37)+(ROW()-25)*2)="na","",IF(OFFSET(T2_Calc!$MB$11,0,((DropD_Calc!$J$7-1)*37)+(ROW()-25)*2)="Up","h","i")) ->  | AC29: =OFFSET(T2_Calc!$MB$15,0,((DropD_Calc!$J$7-1)*37)+(ROW()-25)*2) -> na | AD29: =OFFSET(T2_Calc!$MB$17,0,((DropD_Calc!$J$7-1)*37)+(ROW()-25)*2) -> na
J30: =T5_Calc!A65 ->  | K30: =T5_Calc!B65 ->  | O30: =TEXT(T5_Calc!C65,T5_Calc!$C$43) ->  | P30: =TEXT(T5_Calc!D65,T5_Calc!$D$43) ->  | S30: =IF(Master_Calc!$E$34=2,"",IF(ROW()-8<=Master_Calc!$F$81,OFFSET(Master_Calc!$B$82,MATCH(ROW()-8,Master_Calc!$F$83:$F$422,FALSE),0),"")) ->  | Y30: =OFFSET(T2_Calc!$MB$10,0,((DropD_Calc!$J$7-1)*37)+(ROW()-25)*2) -> na | Z30: =OFFSET(T2_Calc!$MB$5,0,((DropD_Calc!$J$7-1)*37)+(ROW()-25)*2) -> na | AB30: =IF(OFFSET(T2_Calc!$MB$11,0,((DropD_Calc!$J$7-1)*37)+(ROW()-25)*2)="na","",IF(OFFSET(T2_Calc!$MB$11,0,((DropD_Calc!$J$7-1)*37)+(ROW()-25)*2)="Up","h","i")) ->  | AC30: =OFFSET(T2_Calc!$MB$15,0,((DropD_Calc!$J$7-1)*37)+(ROW()-25)*2) -> na | AD30: =OFFSET(T2_Calc!$MB$17,0,((DropD_Calc!$J$7-1)*37)+(ROW()-25)*2) -> na
J31: =T5_Calc!A66 ->  | K31: =T5_Calc!B66 ->  | O31: =TEXT(T5_Calc!C66,T5_Calc!$C$43) ->  | P31: =TEXT(T5_Calc!D66,T5_Calc!$D$43) ->  | S31: =IF(Master_Calc!$E$34=2,"",IF(ROW()-8<=Master_Calc!$F$81,OFFSET(Master_Calc!$B$82,MATCH(ROW()-8,Master_Calc!$F$83:$F$422,FALSE),0),"")) ->  | Y31: =OFFSET(T2_Calc!$MB$10,0,((DropD_Calc!$J$7-1)*37)+(ROW()-25)*2) -> na | Z31: =OFFSET(T2_Calc!$MB$5,0,((DropD_Calc!$J$7-1)*37)+(ROW()-25)*2) -> na | AB31: =IF(OFFSET(T2_Calc!$MB$11,0,((DropD_Calc!$J$7-1)*37)+(ROW()-25)*2)="na","",IF(OFFSET(T2_Calc!$MB$11,0,((DropD_Calc!$J$7-1)*37)+(ROW()-25)*2)="Up","h","i")) ->  | AC31: =OFFSET(T2_Calc!$MB$15,0,((DropD_Calc!$J$7-1)*37)+(ROW()-25)*2) -> na | AD31: =OFFSET(T2_Calc!$MB$17,0,((DropD_Calc!$J$7-1)*37)+(ROW()-25)*2) -> na
J32: =T5_Calc!A67 ->  | K32: =T5_Calc!B67 ->  | O32: =TEXT(T5_Calc!C67,T5_Calc!$C$43) ->  | P32: =TEXT(T5_Calc!D67,T5_Calc!$D$43) ->  | S32: =IF(Master_Calc!$E$34=2,"",IF(ROW()-8<=Master_Calc!$F$81,OFFSET(Master_Calc!$B$82,MATCH(ROW()-8,Master_Calc!$F$83:$F$422,FALSE),0),"")) ->  | Y32: =OFFSET(T2_Calc!$MB$10,0,((DropD_Calc!$J$7-1)*37)+(ROW()-25)*2) -> na | Z32: =OFFSET(T2_Calc!$MB$5,0,((DropD_Calc!$J$7-1)*37)+(ROW()-25)*2) -> na | AB32: =IF(OFFSET(T2_Calc!$MB$11,0,((DropD_Calc!$J$7-1)*37)+(ROW()-25)*2)="na","",IF(OFFSET(T2_Calc!$MB$11,0,((DropD_Calc!$J$7-1)*37)+(ROW()-25)*2)="Up","h","i")) ->  | AC32: =OFFSET(T2_Calc!$MB$15,0,((DropD_Calc!$J$7-1)*37)+(ROW()-25)*2) -> na | AD32: =OFFSET(T2_Calc!$MB$17,0,((DropD_Calc!$J$7-1)*37)+(ROW()-25)*2) -> na
J33: =T5_Calc!A68 ->  | K33: =T5_Calc!B68 ->  | O33: =TEXT(T5_Calc!C68,T5_Calc!$C$43) ->  | P33: =TEXT(T5_Calc!D68,T5_Calc!$D$43) ->  | S33: =IF(Master_Calc!$E$34=2,"",IF(ROW()-8<=Master_Calc!$F$81,OFFSET(Master_Calc!$B$82,MATCH(ROW()-8,Master_Calc!$F$83:$F$422,FALSE),0),"")) ->  | Y33: =OFFSET(T2_Calc!$MB$10,0,((DropD_Calc!$J$7-1)*37)+(ROW()-25)*2) -> na | Z33: =OFFSET(T2_Calc!$MB$5,0,((DropD_Calc!$J$7-1)*37)+(ROW()-25)*2) -> na | AB33: =IF(OFFSET(T2_Calc!$MB$11,0,((DropD_Calc!$J$7-1)*37)+(ROW()-25)*2)="na","",IF(OFFSET(T2_Calc!$MB$11,0,((DropD_Calc!$J$7-1)*37)+(ROW()-25)*2)="Up","h","i")) ->  | AC33: =OFFSET(T2_Calc!$MB$15,0,((DropD_Calc!$J$7-1)*37)+(ROW()-25)*2) -> na | AD33: =OFFSET(T2_Calc!$MB$17,0,((DropD_Calc!$J$7-1)*37)+(ROW()-25)*2) -> na
J34: =T5_Calc!A69 ->  | K34: =T5_Calc!B69 ->  | O34: =TEXT(T5_Calc!C69,T5_Calc!$C$43) ->  | P34: =TEXT(T5_Calc!D69,T5_Calc!$D$43) ->  | S34: =IF(Master_Calc!$E$34=2,"",IF(ROW()-8<=Master_Calc!$F$81,OFFSET(Master_Calc!$B$82,MATCH(ROW()-8,Master_Calc!$F$83:$F$422,FALSE),0),"")) ->  | Y34: =OFFSET(T2_Calc!$MB$10,0,((DropD_Calc!$J$7-1)*37)+(ROW()-25)*2) -> na | Z34: =OFFSET(T2_Calc!$MB$5,0,((DropD_Calc!$J$7-1)*37)+(ROW()-25)*2) -> na | AB34: =IF(OFFSET(T2_Calc!$MB$11,0,((DropD_Calc!$J$7-1)*37)+(ROW()-25)*2)="na","",IF(OFFSET(T2_Calc!$MB$11,0,((DropD_Calc!$J$7-1)*37)+(ROW()-25)*2)="Up","h","i")) ->  | AC34: =OFFSET(T2_Calc!$MB$15,0,((DropD_Calc!$J$7-1)*37)+(ROW()-25)*2) -> na | AD34: =OFFSET(T2_Calc!$MB$17,0,((DropD_Calc!$J$7-1)*37)+(ROW()-25)*2) -> na
J35: =T5_Calc!A70 ->  | K35: =T5_Calc!B70 ->  | O35: =TEXT(T5_Calc!C70,T5_Calc!$C$43) ->  | P35: =TEXT(T5_Calc!D70,T5_Calc!$D$43) ->  | S35: =IF(Master_Calc!$E$34=2,"",IF(ROW()-8<=Master_Calc!$F$81,OFFSET(Master_Calc!$B$82,MATCH(ROW()-8,Master_Calc!$F$83:$F$422,FALSE),0),"")) ->  | Y35: =OFFSET(T2_Calc!$MB$10,0,((DropD_Calc!$J$7-1)*37)+(ROW()-25)*2) -> na | Z35: =OFFSET(T2_Calc!$MB$5,0,((DropD_Calc!$J$7-1)*37)+(ROW()-25)*2) -> na | AB35: =IF(OFFSET(T2_Calc!$MB$11,0,((DropD_Calc!$J$7-1)*37)+(ROW()-25)*2)="na","",IF(OFFSET(T2_Calc!$MB$11,0,((DropD_Calc!$J$7-1)*37)+(ROW()-25)*2)="Up","h","i")) ->  | AC35: =OFFSET(T2_Calc!$MB$15,0,((DropD_Calc!$J$7-1)*37)+(ROW()-25)*2) -> na | AD35: =OFFSET(T2_Calc!$MB$17,0,((DropD_Calc!$J$7-1)*37)+(ROW()-25)*2) -> na
J36: =T5_Calc!A71 ->  | K36: =T5_Calc!B71 ->  | O36: =TEXT(T5_Calc!C71,T5_Calc!$C$43) ->  | P36: =TEXT(T5_Calc!D71,T5_Calc!$D$43) ->  | S36: =IF(Master_Calc!$E$34=2,"",IF(ROW()-8<=Master_Calc!$F$81,OFFSET(Master_Calc!$B$82,MATCH(ROW()-8,Master_Calc!$F$83:$F$422,FALSE),0),"")) ->  | Y36: =OFFSET(T2_Calc!$MB$10,0,((DropD_Calc!$J$7-1)*37)+(ROW()-25)*2) -> na | Z36: =OFFSET(T2_Calc!$MB$5,0,((DropD_Calc!$J$7-1)*37)+(ROW()-25)*2) -> na | AB36: =IF(OFFSET(T2_Calc!$MB$11,0,((DropD_Calc!$J$7-1)*37)+(ROW()-25)*2)="na","",IF(OFFSET(T2_Calc!$MB$11,0,((DropD_Calc!$J$7-1)*37)+(ROW()-25)*2)="Up","h","i")) ->  | AC36: =OFFSET(T2_Calc!$MB$15,0,((DropD_Calc!$J$7-1)*37)+(ROW()-25)*2) -> na | AD36: =OFFSET(T2_Calc!$MB$17,0,((DropD_Calc!$J$7-1)*37)+(ROW()-25)*2) -> na
J37: =T5_Calc!A72 ->  | K37: =T5_Calc!B72 ->  | O37: =TEXT(T5_Calc!C72,T5_Calc!$C$43) ->  | P37: =TEXT(T5_Calc!D72,T5_Calc!$D$43) ->  | S37: =IF(Master_Calc!$E$34=2,"",IF(ROW()-8<=Master_Calc!$F$81,OFFSET(Master_Calc!$B$82,MATCH(ROW()-8,Master_Calc!$F$83:$F$422,FALSE),0),"")) ->  | Y37: =OFFSET(T2_Calc!$MB$10,0,((DropD_Calc!$J$7-1)*37)+(ROW()-25)*2) -> na | Z37: =OFFSET(T2_Calc!$MB$5,0,((DropD_Calc!$J$7-1)*37)+(ROW()-25)*2) -> na | AB37: =IF(OFFSET(T2_Calc!$MB$11,0,((DropD_Calc!$J$7-1)*37)+(ROW()-25)*2)="na","",IF(OFFSET(T2_Calc!$MB$11,0,((DropD_Calc!$J$7-1)*37)+(ROW()-25)*2)="Up","h","i")) ->  | AC37: =OFFSET(T2_Calc!$MB$15,0,((DropD_Calc!$J$7-1)*37)+(ROW()-25)*2) -> na | AD37: =OFFSET(T2_Calc!$MB$17,0,((DropD_Calc!$J$7-1)*37)+(ROW()-25)*2) -> na
J38: =T5_Calc!A73 ->  | K38: =T5_Calc!B73 ->  | O38: =TEXT(T5_Calc!C73,T5_Calc!$C$43) ->  | P38: =TEXT(T5_Calc!D73,T5_Calc!$D$43) ->  | S38: =IF(Master_Calc!$E$34=2,"",IF(ROW()-8<=Master_Calc!$F$81,OFFSET(Master_Calc!$B$82,MATCH(ROW()-8,Master_Calc!$F$83:$F$422,FALSE),0),"")) -> 
J39: =T5_Calc!A74 ->  | K39: =T5_Calc!B74 ->  | O39: =TEXT(T5_Calc!C74,T5_Calc!$C$43) ->  | P39: =TEXT(T5_Calc!D74,T5_Calc!$D$43) ->  | S39: =IF(Master_Calc!$E$34=2,"",IF(ROW()-8<=Master_Calc!$F$81,OFFSET(Master_Calc!$B$82,MATCH(ROW()-8,Master_Calc!$F$83:$F$422,FALSE),0),"")) -> 
J40: =T5_Calc!A75 ->  | K40: =T5_Calc!B75 ->  | O40: =TEXT(T5_Calc!C75,T5_Calc!$C$43) ->  | P40: =TEXT(T5_Calc!D75,T5_Calc!$D$43) ->  | S40: =IF(Master_Calc!$E$34=2,"",IF(ROW()-8<=Master_Calc!$F$81,OFFSET(Master_Calc!$B$82,MATCH(ROW()-8,Master_Calc!$F$83:$F$422,FALSE),0),"")) -> 
J41: =T5_Calc!A76 ->  | K41: =T5_Calc!B76 ->  | O41: =TEXT(T5_Calc!C76,T5_Calc!$C$43) ->  | P41: =TEXT(T5_Calc!D76,T5_Calc!$D$43) ->  | S41: =IF(Master_Calc!$E$34=2,"",IF(ROW()-8<=Master_Calc!$F$81,OFFSET(Master_Calc!$B$82,MATCH(ROW()-8,Master_Calc!$F$83:$F$422,FALSE),0),"")) -> 
J42: =T5_Calc!A77 ->  | K42: =T5_Calc!B77 ->  | O42: =TEXT(T5_Calc!C77,T5_Calc!$C$43) ->  | P42: =TEXT(T5_Calc!D77,T5_Calc!$D$43) ->  | S42: =IF(Master_Calc!$E$34=2,"",IF(ROW()-8<=Master_Calc!$F$81,OFFSET(Master_Calc!$B$82,MATCH(ROW()-8,Master_Calc!$F$83:$F$422,FALSE),0),"")) -> 
J43: =T5_Calc!A78 ->  | K43: =T5_Calc!B78 ->  | O43: =TEXT(T5_Calc!C78,T5_Calc!$C$43) ->  | P43: =TEXT(T5_Calc!D78,T5_Calc!$D$43) ->  | S43: =IF(Master_Calc!$E$34=2,"",IF(ROW()-8<=Master_Calc!$F$81,OFFSET(Master_Calc!$B$82,MATCH(ROW()-8,Master_Calc!$F$83:$F$422,FALSE),0),"")) -> 
J44: =T5_Calc!A79 ->  | K44: =T5_Calc!B79 ->  | O44: =TEXT(T5_Calc!C79,T5_Calc!$C$43) ->  | P44: =TEXT(T5_Calc!D79,T5_Calc!$D$43) ->  | S44: =IF(Master_Calc!$E$34=2,"",IF(ROW()-8<=Master_Calc!$F$81,OFFSET(Master_Calc!$B$82,MATCH(ROW()-8,Master_Calc!$F$83:$F$422,FALSE),0),"")) -> 
S45: =IF(Master_Calc!$E$34=2,"",IF(ROW()-8<=Master_Calc!$F$81,OFFSET(Master_Calc!$B$82,MATCH(ROW()-8,Master_Calc!$F$83:$F$422,FALSE),0),"")) -> 
S46: =IF(Master_Calc!$E$34=2,"",IF(ROW()-8<=Master_Calc!$F$81,OFFSET(Master_Calc!$B$82,MATCH(ROW()-8,Master_Calc!$F$83:$F$422,FALSE),0),"")) -> 
S47: =IF(Master_Calc!$E$34=2,"",IF(ROW()-8<=Master_Calc!$F$81,OFFSET(Master_Calc!$B$82,MATCH(ROW()-8,Master_Calc!$F$83:$F$422,FALSE),0),"")) -> 
S48: =IF(Master_Calc!$E$34=2,"",IF(ROW()-8<=Master_Calc!$F$81,OFFSET(Master_Calc!$B$82,MATCH(ROW()-8,Master_Calc!$F$83:$F$422,FALSE),0),"")) -> 
S49: =IF(Master_Calc!$E$34=2,"",IF(ROW()-8<=Master_Calc!$F$81,OFFSET(Master_Calc!$B$82,MATCH(ROW()-8,Master_Calc!$F$83:$F$422,FALSE),0),"")) -> 
S50: =IF(Master_Calc!$E$34=2,"",IF(ROW()-8<=Master_Calc!$F$81,OFFSET(Master_Calc!$B$82,MATCH(ROW()-8,Master_Calc!$F$83:$F$422,FALSE),0),"")) -> 
S51: =IF(Master_Calc!$E$34=2,"",IF(ROW()-8<=Master_Calc!$F$81,OFFSET(Master_Calc!$B$82,MATCH(ROW()-8,Master_Calc!$F$83:$F$422,FALSE),0),"")) -> 
S52: =IF(Master_Calc!$E$34=2,"",IF(ROW()-8<=Master_Calc!$F$81,OFFSET(Master_Calc!$B$82,MATCH(ROW()-8,Master_Calc!$F$83:$F$422,FALSE),0),"")) -> 
S53: =IF(Master_Calc!$E$34=2,"",IF(ROW()-8<=Master_Calc!$F$81,OFFSET(Master_Calc!$B$82,MATCH(ROW()-8,Master_Calc!$F$83:$F$422,FALSE),0),"")) -> 
S54: =IF(Master_Calc!$E$34=2,"",IF(ROW()-8<=Master_Calc!$F$81,OFFSET(Master_Calc!$B$82,MATCH(ROW()-8,Master_Calc!$F$83:$F$422,FALSE),0),"")) -> 
S55: =IF(Master_Calc!$E$34=2,"",IF(ROW()-8<=Master_Calc!$F$81,OFFSET(Master_Calc!$B$82,MATCH(ROW()-8,Master_Calc!$F$83:$F$422,FALSE),0),"")) -> 
S56: =IF(Master_Calc!$E$34=2,"",IF(ROW()-8<=Master_Calc!$F$81,OFFSET(Master_Calc!$B$82,MATCH(ROW()-8,Master_Calc!$F$83:$F$422,FALSE),0),"")) -> 
S57: =IF(Master_Calc!$E$34=2,"",IF(ROW()-8<=Master_Calc!$F$81,OFFSET(Master_Calc!$B$82,MATCH(ROW()-8,Master_Calc!$F$83:$F$422,FALSE),0),"")) -> 
S58: =IF(Master_Calc!$E$34=2,"",IF(ROW()-8<=Master_Calc!$F$81,OFFSET(Master_Calc!$B$82,MATCH(ROW()-8,Master_Calc!$F$83:$F$422,FALSE),0),"")) -> 
S59: =IF(Master_Calc!$E$34=2,"",IF(ROW()-8<=Master_Calc!$F$81,OFFSET(Master_Calc!$B$82,MATCH(ROW()-8,Master_Calc!$F$83:$F$422,FALSE),0),"")) -> 
S60: =IF(Master_Calc!$E$34=2,"",IF(ROW()-8<=Master_Calc!$F$81,OFFSET(Master_Calc!$B$82,MATCH(ROW()-8,Master_Calc!$F$83:$F$422,FALSE),0),"")) -> 
S61: =IF(Master_Calc!$E$34=2,"",IF(ROW()-8<=Master_Calc!$F$81,OFFSET(Master_Calc!$B$82,MATCH(ROW()-8,Master_Calc!$F$83:$F$422,FALSE),0),"")) -> 
S62: =IF(Master_Calc!$E$34=2,"",IF(ROW()-8<=Master_Calc!$F$81,OFFSET(Master_Calc!$B$82,MATCH(ROW()-8,Master_Calc!$F$83:$F$422,FALSE),0),"")) -> 
S63: =IF(Master_Calc!$E$34=2,"",IF(ROW()-8<=Master_Calc!$F$81,OFFSET(Master_Calc!$B$82,MATCH(ROW()-8,Master_Calc!$F$83:$F$422,FALSE),0),"")) -> 
S64: =IF(Master_Calc!$E$34=2,"",IF(ROW()-8<=Master_Calc!$F$81,OFFSET(Master_Calc!$B$82,MATCH(ROW()-8,Master_Calc!$F$83:$F$422,FALSE),0),"")) -> 
S65: =IF(Master_Calc!$E$34=2,"",IF(ROW()-8<=Master_Calc!$F$81,OFFSET(Master_Calc!$B$82,MATCH(ROW()-8,Master_Calc!$F$83:$F$422,FALSE),0),"")) -> 
S66: =IF(Master_Calc!$E$34=2,"",IF(ROW()-8<=Master_Calc!$F$81,OFFSET(Master_Calc!$B$82,MATCH(ROW()-8,Master_Calc!$F$83:$F$422,FALSE),0),"")) -> 
S67: =IF(Master_Calc!$E$34=2,"",IF(ROW()-8<=Master_Calc!$F$81,OFFSET(Master_Calc!$B$82,MATCH(ROW()-8,Master_Calc!$F$83:$F$422,FALSE),0),"")) -> 
S68: =IF(Master_Calc!$E$34=2,"",IF(ROW()-8<=Master_Calc!$F$81,OFFSET(Master_Calc!$B$82,MATCH(ROW()-8,Master_Calc!$F$83:$F$422,FALSE),0),"")) -> 
S69: =IF(Master_Calc!$E$34=2,"",IF(ROW()-8<=Master_Calc!$F$81,OFFSET(Master_Calc!$B$82,MATCH(ROW()-8,Master_Calc!$F$83:$F$422,FALSE),0),"")) -> 
S70: =IF(Master_Calc!$E$34=2,"",IF(ROW()-8<=Master_Calc!$F$81,OFFSET(Master_Calc!$B$82,MATCH(ROW()-8,Master_Calc!$F$83:$F$422,FALSE),0),"")) -> 
S71: =IF(Master_Calc!$E$34=2,"",IF(ROW()-8<=Master_Calc!$F$81,OFFSET(Master_Calc!$B$82,MATCH(ROW()-8,Master_Calc!$F$83:$F$422,FALSE),0),"")) -> 
S72: =IF(Master_Calc!$E$34=2,"",IF(ROW()-8<=Master_Calc!$F$81,OFFSET(Master_Calc!$B$82,MATCH(ROW()-8,Master_Calc!$F$83:$F$422,FALSE),0),"")) -> 
S73: =IF(Master_Calc!$E$34=2,"",IF(ROW()-8<=Master_Calc!$F$81,OFFSET(Master_Calc!$B$82,MATCH(ROW()-8,Master_Calc!$F$83:$F$422,FALSE),0),"")) -> 
S74: =IF(Master_Calc!$E$34=2,"",IF(ROW()-8<=Master_Calc!$F$81,OFFSET(Master_Calc!$B$82,MATCH(ROW()-8,Master_Calc!$F$83:$F$422,FALSE),0),"")) -> 
S75: =IF(Master_Calc!$E$34=2,"",IF(ROW()-8<=Master_Calc!$F$81,OFFSET(Master_Calc!$B$82,MATCH(ROW()-8,Master_Calc!$F$83:$F$422,FALSE),0),"")) -> 
S76: =IF(Master_Calc!$E$34=2,"",IF(ROW()-8<=Master_Calc!$F$81,OFFSET(Master_Calc!$B$82,MATCH(ROW()-8,Master_Calc!$F$83:$F$422,FALSE),0),"")) -> 
S77: =IF(Master_Calc!$E$34=2,"",IF(ROW()-8<=Master_Calc!$F$81,OFFSET(Master_Calc!$B$82,MATCH(ROW()-8,Master_Calc!$F$83:$F$422,FALSE),0),"")) -> 
S78: =IF(Master_Calc!$E$34=2,"",IF(ROW()-8<=Master_Calc!$F$81,OFFSET(Master_Calc!$B$82,MATCH(ROW()-8,Master_Calc!$F$83:$F$422,FALSE),0),"")) -> 
S79: =IF(Master_Calc!$E$34=2,"",IF(ROW()-8<=Master_Calc!$F$81,OFFSET(Master_Calc!$B$82,MATCH(ROW()-8,Master_Calc!$F$83:$F$422,FALSE),0),"")) -> 
S80: =IF(Master_Calc!$E$34=2,"",IF(ROW()-8<=Master_Calc!$F$81,OFFSET(Master_Calc!$B$82,MATCH(ROW()-8,Master_Calc!$F$83:$F$422,FALSE),0),"")) -> 
S81: =IF(Master_Calc!$E$34=2,"",IF(ROW()-8<=Master_Calc!$F$81,OFFSET(Master_Calc!$B$82,MATCH(ROW()-8,Master_Calc!$F$83:$F$422,FALSE),0),"")) -> 
S82: =IF(Master_Calc!$E$34=2,"",IF(ROW()-8<=Master_Calc!$F$81,OFFSET(Master_Calc!$B$82,MATCH(ROW()-8,Master_Calc!$F$83:$F$422,FALSE),0),"")) -> 
S83: =IF(Master_Calc!$E$34=2,"",IF(ROW()-8<=Master_Calc!$F$81,OFFSET(Master_Calc!$B$82,MATCH(ROW()-8,Master_Calc!$F$83:$F$422,FALSE),0),"")) -> 
S84: =IF(Master_Calc!$E$34=2,"",IF(ROW()-8<=Master_Calc!$F$81,OFFSET(Master_Calc!$B$82,MATCH(ROW()-8,Master_Calc!$F$83:$F$422,FALSE),0),"")) -> 
S85: =IF(Master_Calc!$E$34=2,"",IF(ROW()-8<=Master_Calc!$F$81,OFFSET(Master_Calc!$B$82,MATCH(ROW()-8,Master_Calc!$F$83:$F$422,FALSE),0),"")) -> 
S86: =IF(Master_Calc!$E$34=2,"",IF(ROW()-8<=Master_Calc!$F$81,OFFSET(Master_Calc!$B$82,MATCH(ROW()-8,Master_Calc!$F$83:$F$422,FALSE),0),"")) -> 
S87: =IF(Master_Calc!$E$34=2,"",IF(ROW()-8<=Master_Calc!$F$81,OFFSET(Master_Calc!$B$82,MATCH(ROW()-8,Master_Calc!$F$83:$F$422,FALSE),0),"")) -> 
S88: =IF(Master_Calc!$E$34=2,"",IF(ROW()-8<=Master_Calc!$F$81,OFFSET(Master_Calc!$B$82,MATCH(ROW()-8,Master_Calc!$F$83:$F$422,FALSE),0),"")) -> 
S89: =IF(Master_Calc!$E$34=2,"",IF(ROW()-8<=Master_Calc!$F$81,OFFSET(Master_Calc!$B$82,MATCH(ROW()-8,Master_Calc!$F$83:$F$422,FALSE),0),"")) -> 
S90: =IF(Master_Calc!$E$34=2,"",IF(ROW()-8<=Master_Calc!$F$81,OFFSET(Master_Calc!$B$82,MATCH(ROW()-8,Master_Calc!$F$83:$F$422,FALSE),0),"")) -> 
S91: =IF(Master_Calc!$E$34=2,"",IF(ROW()-8<=Master_Calc!$F$81,OFFSET(Master_Calc!$B$82,MATCH(ROW()-8,Master_Calc!$F$83:$F$422,FALSE),0),"")) -> 
S92: =IF(Master_Calc!$E$34=2,"",IF(ROW()-8<=Master_Calc!$F$81,OFFSET(Master_Calc!$B$82,MATCH(ROW()-8,Master_Calc!$F$83:$F$422,FALSE),0),"")) -> 
S93: =IF(Master_Calc!$E$34=2,"",IF(ROW()-8<=Master_Calc!$F$81,OFFSET(Master_Calc!$B$82,MATCH(ROW()-8,Master_Calc!$F$83:$F$422,FALSE),0),"")) -> 
S94: =IF(Master_Calc!$E$34=2,"",IF(ROW()-8<=Master_Calc!$F$81,OFFSET(Master_Calc!$B$82,MATCH(ROW()-8,Master_Calc!$F$83:$F$422,FALSE),0),"")) -> 
S95: =IF(Master_Calc!$E$34=2,"",IF(ROW()-8<=Master_Calc!$F$81,OFFSET(Master_Calc!$B$82,MATCH(ROW()-8,Master_Calc!$F$83:$F$422,FALSE),0),"")) -> 
S96: =IF(Master_Calc!$E$34=2,"",IF(ROW()-8<=Master_Calc!$F$81,OFFSET(Master_Calc!$B$82,MATCH(ROW()-8,Master_Calc!$F$83:$F$422,FALSE),0),"")) -> 
S97: =IF(Master_Calc!$E$34=2,"",IF(ROW()-8<=Master_Calc!$F$81,OFFSET(Master_Calc!$B$82,MATCH(ROW()-8,Master_Calc!$F$83:$F$422,FALSE),0),"")) -> 
S98: =IF(Master_Calc!$E$34=2,"",IF(ROW()-8<=Master_Calc!$F$81,OFFSET(Master_Calc!$B$82,MATCH(ROW()-8,Master_Calc!$F$83:$F$422,FALSE),0),"")) -> 
S99: =IF(Master_Calc!$E$34=2,"",IF(ROW()-8<=Master_Calc!$F$81,OFFSET(Master_Calc!$B$82,MATCH(ROW()-8,Master_Calc!$F$83:$F$422,FALSE),0),"")) -> 
S100: =IF(Master_Calc!$E$34=2,"",IF(ROW()-8<=Master_Calc!$F$81,OFFSET(Master_Calc!$B$82,MATCH(ROW()-8,Master_Calc!$F$83:$F$422,FALSE),0),"")) -> 
S101: =IF(Master_Calc!$E$34=2,"",IF(ROW()-8<=Master_Calc!$F$81,OFFSET(Master_Calc!$B$82,MATCH(ROW()-8,Master_Calc!$F$83:$F$422,FALSE),0),"")) -> 
S102: =IF(Master_Calc!$E$34=2,"",IF(ROW()-8<=Master_Calc!$F$81,OFFSET(Master_Calc!$B$82,MATCH(ROW()-8,Master_Calc!$F$83:$F$422,FALSE),0),"")) -> 
S103: =IF(Master_Calc!$E$34=2,"",IF(ROW()-8<=Master_Calc!$F$81,OFFSET(Master_Calc!$B$82,MATCH(ROW()-8,Master_Calc!$F$83:$F$422,FALSE),0),"")) -> 
S104: =IF(Master_Calc!$E$34=2,"",IF(ROW()-8<=Master_Calc!$F$81,OFFSET(Master_Calc!$B$82,MATCH(ROW()-8,Master_Calc!$F$83:$F$422,FALSE),0),"")) -> 
S105: =IF(Master_Calc!$E$34=2,"",IF(ROW()-8<=Master_Calc!$F$81,OFFSET(Master_Calc!$B$82,MATCH(ROW()-8,Master_Calc!$F$83:$F$422,FALSE),0),"")) -> 
S106: =IF(Master_Calc!$E$34=2,"",IF(ROW()-8<=Master_Calc!$F$81,OFFSET(Master_Calc!$B$82,MATCH(ROW()-8,Master_Calc!$F$83:$F$422,FALSE),0),"")) -> 
S107: =IF(Master_Calc!$E$34=2,"",IF(ROW()-8<=Master_Calc!$F$81,OFFSET(Master_Calc!$B$82,MATCH(ROW()-8,Master_Calc!$F$83:$F$422,FALSE),0),"")) -> 
S108: =IF(Master_Calc!$E$34=2,"",IF(ROW()-8<=Master_Calc!$F$81,OFFSET(Master_Calc!$B$82,MATCH(ROW()-8,Master_Calc!$F$83:$F$422,FALSE),0),"")) -> 
S109: =IF(Master_Calc!$E$34=2,"",IF(ROW()-8<=Master_Calc!$F$81,OFFSET(Master_Calc!$B$82,MATCH(ROW()-8,Master_Calc!$F$83:$F$422,FALSE),0),"")) -> 
S110: =IF(Master_Calc!$E$34=2,"",IF(ROW()-8<=Master_Calc!$F$81,OFFSET(Master_Calc!$B$82,MATCH(ROW()-8,Master_Calc!$F$83:$F$422,FALSE),0),"")) -> 
S111: =IF(Master_Calc!$E$34=2,"",IF(ROW()-8<=Master_Calc!$F$81,OFFSET(Master_Calc!$B$82,MATCH(ROW()-8,Master_Calc!$F$83:$F$422,FALSE),0),"")) -> 
S112: =IF(Master_Calc!$E$34=2,"",IF(ROW()-8<=Master_Calc!$F$81,OFFSET(Master_Calc!$B$82,MATCH(ROW()-8,Master_Calc!$F$83:$F$422,FALSE),0),"")) -> 
S113: =IF(Master_Calc!$E$34=2,"",IF(ROW()-8<=Master_Calc!$F$81,OFFSET(Master_Calc!$B$82,MATCH(ROW()-8,Master_Calc!$F$83:$F$422,FALSE),0),"")) -> 
S114: =IF(Master_Calc!$E$34=2,"",IF(ROW()-8<=Master_Calc!$F$81,OFFSET(Master_Calc!$B$82,MATCH(ROW()-8,Master_Calc!$F$83:$F$422,FALSE),0),"")) -> 
S115: =IF(Master_Calc!$E$34=2,"",IF(ROW()-8<=Master_Calc!$F$81,OFFSET(Master_Calc!$B$82,MATCH(ROW()-8,Master_Calc!$F$83:$F$422,FALSE),0),"")) -> 
S116: =IF(Master_Calc!$E$34=2,"",IF(ROW()-8<=Master_Calc!$F$81,OFFSET(Master_Calc!$B$82,MATCH(ROW()-8,Master_Calc!$F$83:$F$422,FALSE),0),"")) -> 
S117: =IF(Master_Calc!$E$34=2,"",IF(ROW()-8<=Master_Calc!$F$81,OFFSET(Master_Calc!$B$82,MATCH(ROW()-8,Master_Calc!$F$83:$F$422,FALSE),0),"")) -> 
S118: =IF(Master_Calc!$E$34=2,"",IF(ROW()-8<=Master_Calc!$F$81,OFFSET(Master_Calc!$B$82,MATCH(ROW()-8,Master_Calc!$F$83:$F$422,FALSE),0),"")) -> 
S119: =IF(Master_Calc!$E$34=2,"",IF(ROW()-8<=Master_Calc!$F$81,OFFSET(Master_Calc!$B$82,MATCH(ROW()-8,Master_Calc!$F$83:$F$422,FALSE),0),"")) -> 
S120: =IF(Master_Calc!$E$34=2,"",IF(ROW()-8<=Master_Calc!$F$81,OFFSET(Master_Calc!$B$82,MATCH(ROW()-8,Master_Calc!$F$83:$F$422,FALSE),0),"")) -> 
S121: =IF(Master_Calc!$E$34=2,"",IF(ROW()-8<=Master_Calc!$F$81,OFFSET(Master_Calc!$B$82,MATCH(ROW()-8,Master_Calc!$F$83:$F$422,FALSE),0),"")) -> 
S122: =IF(Master_Calc!$E$34=2,"",IF(ROW()-8<=Master_Calc!$F$81,OFFSET(Master_Calc!$B$82,MATCH(ROW()-8,Master_Calc!$F$83:$F$422,FALSE),0),"")) -> 
S123: =IF(Master_Calc!$E$34=2,"",IF(ROW()-8<=Master_Calc!$F$81,OFFSET(Master_Calc!$B$82,MATCH(ROW()-8,Master_Calc!$F$83:$F$422,FALSE),0),"")) -> 
S124: =IF(Master_Calc!$E$34=2,"",IF(ROW()-8<=Master_Calc!$F$81,OFFSET(Master_Calc!$B$82,MATCH(ROW()-8,Master_Calc!$F$83:$F$422,FALSE),0),"")) -> 
S125: =IF(Master_Calc!$E$34=2,"",IF(ROW()-8<=Master_Calc!$F$81,OFFSET(Master_Calc!$B$82,MATCH(ROW()-8,Master_Calc!$F$83:$F$422,FALSE),0),"")) -> 
S126: =IF(Master_Calc!$E$34=2,"",IF(ROW()-8<=Master_Calc!$F$81,OFFSET(Master_Calc!$B$82,MATCH(ROW()-8,Master_Calc!$F$83:$F$422,FALSE),0),"")) -> 
S127: =IF(Master_Calc!$E$34=2,"",IF(ROW()-8<=Master_Calc!$F$81,OFFSET(Master_Calc!$B$82,MATCH(ROW()-8,Master_Calc!$F$83:$F$422,FALSE),0),"")) -> 
S128: =IF(Master_Calc!$E$34=2,"",IF(ROW()-8<=Master_Calc!$F$81,OFFSET(Master_Calc!$B$82,MATCH(ROW()-8,Master_Calc!$F$83:$F$422,FALSE),0),"")) -> 
S129: =IF(Master_Calc!$E$34=2,"",IF(ROW()-8<=Master_Calc!$F$81,OFFSET(Master_Calc!$B$82,MATCH(ROW()-8,Master_Calc!$F$83:$F$422,FALSE),0),"")) -> 
S130: =IF(Master_Calc!$E$34=2,"",IF(ROW()-8<=Master_Calc!$F$81,OFFSET(Master_Calc!$B$82,MATCH(ROW()-8,Master_Calc!$F$83:$F$422,FALSE),0),"")) -> 
S131: =IF(Master_Calc!$E$34=2,"",IF(ROW()-8<=Master_Calc!$F$81,OFFSET(Master_Calc!$B$82,MATCH(ROW()-8,Master_Calc!$F$83:$F$422,FALSE),0),"")) -> 
S132: =IF(Master_Calc!$E$34=2,"",IF(ROW()-8<=Master_Calc!$F$81,OFFSET(Master_Calc!$B$82,MATCH(ROW()-8,Master_Calc!$F$83:$F$422,FALSE),0),"")) -> 
S133: =IF(Master_Calc!$E$34=2,"",IF(ROW()-8<=Master_Calc!$F$81,OFFSET(Master_Calc!$B$82,MATCH(ROW()-8,Master_Calc!$F$83:$F$422,FALSE),0),"")) -> 
S134: =IF(Master_Calc!$E$34=2,"",IF(ROW()-8<=Master_Calc!$F$81,OFFSET(Master_Calc!$B$82,MATCH(ROW()-8,Master_Calc!$F$83:$F$422,FALSE),0),"")) -> 
S135: =IF(Master_Calc!$E$34=2,"",IF(ROW()-8<=Master_Calc!$F$81,OFFSET(Master_Calc!$B$82,MATCH(ROW()-8,Master_Calc!$F$83:$F$422,FALSE),0),"")) -> 
S136: =IF(Master_Calc!$E$34=2,"",IF(ROW()-8<=Master_Calc!$F$81,OFFSET(Master_Calc!$B$82,MATCH(ROW()-8,Master_Calc!$F$83:$F$422,FALSE),0),"")) -> 
S137: =IF(Master_Calc!$E$34=2,"",IF(ROW()-8<=Master_Calc!$F$81,OFFSET(Master_Calc!$B$82,MATCH(ROW()-8,Master_Calc!$F$83:$F$422,FALSE),0),"")) -> 
S138: =IF(Master_Calc!$E$34=2,"",IF(ROW()-8<=Master_Calc!$F$81,OFFSET(Master_Calc!$B$82,MATCH(ROW()-8,Master_Calc!$F$83:$F$422,FALSE),0),"")) -> 
S139: =IF(Master_Calc!$E$34=2,"",IF(ROW()-8<=Master_Calc!$F$81,OFFSET(Master_Calc!$B$82,MATCH(ROW()-8,Master_Calc!$F$83:$F$422,FALSE),0),"")) -> 
S140: =IF(Master_Calc!$E$34=2,"",IF(ROW()-8<=Master_Calc!$F$81,OFFSET(Master_Calc!$B$82,MATCH(ROW()-8,Master_Calc!$F$83:$F$422,FALSE),0),"")) -> 
S141: =IF(Master_Calc!$E$34=2,"",IF(ROW()-8<=Master_Calc!$F$81,OFFSET(Master_Calc!$B$82,MATCH(ROW()-8,Master_Calc!$F$83:$F$422,FALSE),0),"")) -> 
S142: =IF(Master_Calc!$E$34=2,"",IF(ROW()-8<=Master_Calc!$F$81,OFFSET(Master_Calc!$B$82,MATCH(ROW()-8,Master_Calc!$F$83:$F$422,FALSE),0),"")) -> 
S143: =IF(Master_Calc!$E$34=2,"",IF(ROW()-8<=Master_Calc!$F$81,OFFSET(Master_Calc!$B$82,MATCH(ROW()-8,Master_Calc!$F$83:$F$422,FALSE),0),"")) -> 
S144: =IF(Master_Calc!$E$34=2,"",IF(ROW()-8<=Master_Calc!$F$81,OFFSET(Master_Calc!$B$82,MATCH(ROW()-8,Master_Calc!$F$83:$F$422,FALSE),0),"")) -> 
S145: =IF(Master_Calc!$E$34=2,"",IF(ROW()-8<=Master_Calc!$F$81,OFFSET(Master_Calc!$B$82,MATCH(ROW()-8,Master_Calc!$F$83:$F$422,FALSE),0),"")) -> 
S146: =IF(Master_Calc!$E$34=2,"",IF(ROW()-8<=Master_Calc!$F$81,OFFSET(Master_Calc!$B$82,MATCH(ROW()-8,Master_Calc!$F$83:$F$422,FALSE),0),"")) -> 
S147: =IF(Master_Calc!$E$34=2,"",IF(ROW()-8<=Master_Calc!$F$81,OFFSET(Master_Calc!$B$82,MATCH(ROW()-8,Master_Calc!$F$83:$F$422,FALSE),0),"")) -> 
S148: =IF(Master_Calc!$E$34=2,"",IF(ROW()-8<=Master_Calc!$F$81,OFFSET(Master_Calc!$B$82,MATCH(ROW()-8,Master_Calc!$F$83:$F$422,FALSE),0),"")) -> 
S149: =IF(Master_Calc!$E$34=2,"",IF(ROW()-8<=Master_Calc!$F$81,OFFSET(Master_Calc!$B$82,MATCH(ROW()-8,Master_Calc!$F$83:$F$422,FALSE),0),"")) -> 
S150: =IF(Master_Calc!$E$34=2,"",IF(ROW()-8<=Master_Calc!$F$81,OFFSET(Master_Calc!$B$82,MATCH(ROW()-8,Master_Calc!$F$83:$F$422,FALSE),0),"")) -> 
S151: =IF(Master_Calc!$E$34=2,"",IF(ROW()-8<=Master_Calc!$F$81,OFFSET(Master_Calc!$B$82,MATCH(ROW()-8,Master_Calc!$F$83:$F$422,FALSE),0),"")) -> 
S152: =IF(Master_Calc!$E$34=2,"",IF(ROW()-8<=Master_Calc!$F$81,OFFSET(Master_Calc!$B$82,MATCH(ROW()-8,Master_Calc!$F$83:$F$422,FALSE),0),"")) -> 
S153: =IF(Master_Calc!$E$34=2,"",IF(ROW()-8<=Master_Calc!$F$81,OFFSET(Master_Calc!$B$82,MATCH(ROW()-8,Master_Calc!$F$83:$F$422,FALSE),0),"")) -> 
S154: =IF(Master_Calc!$E$34=2,"",IF(ROW()-8<=Master_Calc!$F$81,OFFSET(Master_Calc!$B$82,MATCH(ROW()-8,Master_Calc!$F$83:$F$422,FALSE),0),"")) -> 
S155: =IF(Master_Calc!$E$34=2,"",IF(ROW()-8<=Master_Calc!$F$81,OFFSET(Master_Calc!$B$82,MATCH(ROW()-8,Master_Calc!$F$83:$F$422,FALSE),0),"")) -> 
S156: =IF(Master_Calc!$E$34=2,"",IF(ROW()-8<=Master_Calc!$F$81,OFFSET(Master_Calc!$B$82,MATCH(ROW()-8,Master_Calc!$F$83:$F$422,FALSE),0),"")) -> 
S157: =IF(Master_Calc!$E$34=2,"",IF(ROW()-8<=Master_Calc!$F$81,OFFSET(Master_Calc!$B$82,MATCH(ROW()-8,Master_Calc!$F$83:$F$422,FALSE),0),"")) -> 
S158: =IF(Master_Calc!$E$34=2,"",IF(ROW()-8<=Master_Calc!$F$81,OFFSET(Master_Calc!$B$82,MATCH(ROW()-8,Master_Calc!$F$83:$F$422,FALSE),0),"")) -> 
S159: =IF(Master_Calc!$E$34=2,"",IF(ROW()-8<=Master_Calc!$F$81,OFFSET(Master_Calc!$B$82,MATCH(ROW()-8,Master_Calc!$F$83:$F$422,FALSE),0),"")) -> 
S160: =IF(Master_Calc!$E$34=2,"",IF(ROW()-8<=Master_Calc!$F$81,OFFSET(Master_Calc!$B$82,MATCH(ROW()-8,Master_Calc!$F$83:$F$422,FALSE),0),"")) -> 
S161: =IF(Master_Calc!$E$34=2,"",IF(ROW()-8<=Master_Calc!$F$81,OFFSET(Master_Calc!$B$82,MATCH(ROW()-8,Master_Calc!$F$83:$F$422,FALSE),0),"")) -> 
S162: =IF(Master_Calc!$E$34=2,"",IF(ROW()-8<=Master_Calc!$F$81,OFFSET(Master_Calc!$B$82,MATCH(ROW()-8,Master_Calc!$F$83:$F$422,FALSE),0),"")) -> 
S163: =IF(Master_Calc!$E$34=2,"",IF(ROW()-8<=Master_Calc!$F$81,OFFSET(Master_Calc!$B$82,MATCH(ROW()-8,Master_Calc!$F$83:$F$422,FALSE),0),"")) -> 
S164: =IF(Master_Calc!$E$34=2,"",IF(ROW()-8<=Master_Calc!$F$81,OFFSET(Master_Calc!$B$82,MATCH(ROW()-8,Master_Calc!$F$83:$F$422,FALSE),0),"")) -> 
S165: =IF(Master_Calc!$E$34=2,"",IF(ROW()-8<=Master_Calc!$F$81,OFFSET(Master_Calc!$B$82,MATCH(ROW()-8,Master_Calc!$F$83:$F$422,FALSE),0),"")) -> 
S166: =IF(Master_Calc!$E$34=2,"",IF(ROW()-8<=Master_Calc!$F$81,OFFSET(Master_Calc!$B$82,MATCH(ROW()-8,Master_Calc!$F$83:$F$422,FALSE),0),"")) -> 
S167: =IF(Master_Calc!$E$34=2,"",IF(ROW()-8<=Master_Calc!$F$81,OFFSET(Master_Calc!$B$82,MATCH(ROW()-8,Master_Calc!$F$83:$F$422,FALSE),0),"")) -> 
S168: =IF(Master_Calc!$E$34=2,"",IF(ROW()-8<=Master_Calc!$F$81,OFFSET(Master_Calc!$B$82,MATCH(ROW()-8,Master_Calc!$F$83:$F$422,FALSE),0),"")) -> 
S169: =IF(Master_Calc!$E$34=2,"",IF(ROW()-8<=Master_Calc!$F$81,OFFSET(Master_Calc!$B$82,MATCH(ROW()-8,Master_Calc!$F$83:$F$422,FALSE),0),"")) -> 
S170: =IF(Master_Calc!$E$34=2,"",IF(ROW()-8<=Master_Calc!$F$81,OFFSET(Master_Calc!$B$82,MATCH(ROW()-8,Master_Calc!$F$83:$F$422,FALSE),0),"")) -> 
S171: =IF(Master_Calc!$E$34=2,"",IF(ROW()-8<=Master_Calc!$F$81,OFFSET(Master_Calc!$B$82,MATCH(ROW()-8,Master_Calc!$F$83:$F$422,FALSE),0),"")) -> 
S172: =IF(Master_Calc!$E$34=2,"",IF(ROW()-8<=Master_Calc!$F$81,OFFSET(Master_Calc!$B$82,MATCH(ROW()-8,Master_Calc!$F$83:$F$422,FALSE),0),"")) -> 
S173: =IF(Master_Calc!$E$34=2,"",IF(ROW()-8<=Master_Calc!$F$81,OFFSET(Master_Calc!$B$82,MATCH(ROW()-8,Master_Calc!$F$83:$F$422,FALSE),0),"")) -> 
S174: =IF(Master_Calc!$E$34=2,"",IF(ROW()-8<=Master_Calc!$F$81,OFFSET(Master_Calc!$B$82,MATCH(ROW()-8,Master_Calc!$F$83:$F$422,FALSE),0),"")) -> 
S175: =IF(Master_Calc!$E$34=2,"",IF(ROW()-8<=Master_Calc!$F$81,OFFSET(Master_Calc!$B$82,MATCH(ROW()-8,Master_Calc!$F$83:$F$422,FALSE),0),"")) -> 
S176: =IF(Master_Calc!$E$34=2,"",IF(ROW()-8<=Master_Calc!$F$81,OFFSET(Master_Calc!$B$82,MATCH(ROW()-8,Master_Calc!$F$83:$F$422,FALSE),0),"")) -> 
S177: =IF(Master_Calc!$E$34=2,"",IF(ROW()-8<=Master_Calc!$F$81,OFFSET(Master_Calc!$B$82,MATCH(ROW()-8,Master_Calc!$F$83:$F$422,FALSE),0),"")) -> 
S178: =IF(Master_Calc!$E$34=2,"",IF(ROW()-8<=Master_Calc!$F$81,OFFSET(Master_Calc!$B$82,MATCH(ROW()-8,Master_Calc!$F$83:$F$422,FALSE),0),"")) -> 
S179: =IF(Master_Calc!$E$34=2,"",IF(ROW()-8<=Master_Calc!$F$81,OFFSET(Master_Calc!$B$82,MATCH(ROW()-8,Master_Calc!$F$83:$F$422,FALSE),0),"")) -> 
S180: =IF(Master_Calc!$E$34=2,"",IF(ROW()-8<=Master_Calc!$F$81,OFFSET(Master_Calc!$B$82,MATCH(ROW()-8,Master_Calc!$F$83:$F$422,FALSE),0),"")) -> 
S181: =IF(Master_Calc!$E$34=2,"",IF(ROW()-8<=Master_Calc!$F$81,OFFSET(Master_Calc!$B$82,MATCH(ROW()-8,Master_Calc!$F$83:$F$422,FALSE),0),"")) -> 
S182: =IF(Master_Calc!$E$34=2,"",IF(ROW()-8<=Master_Calc!$F$81,OFFSET(Master_Calc!$B$82,MATCH(ROW()-8,Master_Calc!$F$83:$F$422,FALSE),0),"")) -> 
S183: =IF(Master_Calc!$E$34=2,"",IF(ROW()-8<=Master_Calc!$F$81,OFFSET(Master_Calc!$B$82,MATCH(ROW()-8,Master_Calc!$F$83:$F$422,FALSE),0),"")) -> 
S184: =IF(Master_Calc!$E$34=2,"",IF(ROW()-8<=Master_Calc!$F$81,OFFSET(Master_Calc!$B$82,MATCH(ROW()-8,Master_Calc!$F$83:$F$422,FALSE),0),"")) -> 
S185: =IF(Master_Calc!$E$34=2,"",IF(ROW()-8<=Master_Calc!$F$81,OFFSET(Master_Calc!$B$82,MATCH(ROW()-8,Master_Calc!$F$83:$F$422,FALSE),0),"")) -> 
S186: =IF(Master_Calc!$E$34=2,"",IF(ROW()-8<=Master_Calc!$F$81,OFFSET(Master_Calc!$B$82,MATCH(ROW()-8,Master_Calc!$F$83:$F$422,FALSE),0),"")) -> 
S187: =IF(Master_Calc!$E$34=2,"",IF(ROW()-8<=Master_Calc!$F$81,OFFSET(Master_Calc!$B$82,MATCH(ROW()-8,Master_Calc!$F$83:$F$422,FALSE),0),"")) -> 
S188: =IF(Master_Calc!$E$34=2,"",IF(ROW()-8<=Master_Calc!$F$81,OFFSET(Master_Calc!$B$82,MATCH(ROW()-8,Master_Calc!$F$83:$F$422,FALSE),0),"")) -> 
S189: =IF(Master_Calc!$E$34=2,"",IF(ROW()-8<=Master_Calc!$F$81,OFFSET(Master_Calc!$B$82,MATCH(ROW()-8,Master_Calc!$F$83:$F$422,FALSE),0),"")) -> 
S190: =IF(Master_Calc!$E$34=2,"",IF(ROW()-8<=Master_Calc!$F$81,OFFSET(Master_Calc!$B$82,MATCH(ROW()-8,Master_Calc!$F$83:$F$422,FALSE),0),"")) -> 
S191: =IF(Master_Calc!$E$34=2,"",IF(ROW()-8<=Master_Calc!$F$81,OFFSET(Master_Calc!$B$82,MATCH(ROW()-8,Master_Calc!$F$83:$F$422,FALSE),0),"")) -> 
S192: =IF(Master_Calc!$E$34=2,"",IF(ROW()-8<=Master_Calc!$F$81,OFFSET(Master_Calc!$B$82,MATCH(ROW()-8,Master_Calc!$F$83:$F$422,FALSE),0),"")) -> 
S193: =IF(Master_Calc!$E$34=2,"",IF(ROW()-8<=Master_Calc!$F$81,OFFSET(Master_Calc!$B$82,MATCH(ROW()-8,Master_Calc!$F$83:$F$422,FALSE),0),"")) -> 
S194: =IF(Master_Calc!$E$34=2,"",IF(ROW()-8<=Master_Calc!$F$81,OFFSET(Master_Calc!$B$82,MATCH(ROW()-8,Master_Calc!$F$83:$F$422,FALSE),0),"")) -> 
S195: =IF(Master_Calc!$E$34=2,"",IF(ROW()-8<=Master_Calc!$F$81,OFFSET(Master_Calc!$B$82,MATCH(ROW()-8,Master_Calc!$F$83:$F$422,FALSE),0),"")) -> 
S196: =IF(Master_Calc!$E$34=2,"",IF(ROW()-8<=Master_Calc!$F$81,OFFSET(Master_Calc!$B$82,MATCH(ROW()-8,Master_Calc!$F$83:$F$422,FALSE),0),"")) -> 
S197: =IF(Master_Calc!$E$34=2,"",IF(ROW()-8<=Master_Calc!$F$81,OFFSET(Master_Calc!$B$82,MATCH(ROW()-8,Master_Calc!$F$83:$F$422,FALSE),0),"")) -> 
S198: =IF(Master_Calc!$E$34=2,"",IF(ROW()-8<=Master_Calc!$F$81,OFFSET(Master_Calc!$B$82,MATCH(ROW()-8,Master_Calc!$F$83:$F$422,FALSE),0),"")) -> 
S199: =IF(Master_Calc!$E$34=2,"",IF(ROW()-8<=Master_Calc!$F$81,OFFSET(Master_Calc!$B$82,MATCH(ROW()-8,Master_Calc!$F$83:$F$422,FALSE),0),"")) -> 
S200: =IF(Master_Calc!$E$34=2,"",IF(ROW()-8<=Master_Calc!$F$81,OFFSET(Master_Calc!$B$82,MATCH(ROW()-8,Master_Calc!$F$83:$F$422,FALSE),0),"")) -> 
S201: =IF(Master_Calc!$E$34=2,"",IF(ROW()-8<=Master_Calc!$F$81,OFFSET(Master_Calc!$B$82,MATCH(ROW()-8,Master_Calc!$F$83:$F$422,FALSE),0),"")) -> 
S202: =IF(Master_Calc!$E$34=2,"",IF(ROW()-8<=Master_Calc!$F$81,OFFSET(Master_Calc!$B$82,MATCH(ROW()-8,Master_Calc!$F$83:$F$422,FALSE),0),"")) -> 
... 298 more rows

Sheet Export (hidden)
B2: =T5_Calc!B42 ->  | E2: =TEXT(T5_Calc!C42,T5_Calc!$C$43) ->  | G2: =T5_Calc!D42 -> 
F4: =T5_Calc!C44 -> Cost Score | G4: =T5_Calc!D44 -> PI Score
B5: =T5_Calc!B45 -> Council Tax and Housing Benefits | F5: =TEXT(T5_Calc!C45,T5_Calc!$C$43) -> 100.0% | G5: =TEXT(T5_Calc!D45,T5_Calc!$D$43) -> 60.0%
B6: =T5_Calc!B46 -> Council Tax and NNDR collection | F6: =TEXT(T5_Calc!C46,T5_Calc!$C$43) -> 94.8% | G6: =TEXT(T5_Calc!D46,T5_Calc!$D$43) -> 67.9%
B7: =T5_Calc!B47 -> Economic Development | F7: =TEXT(T5_Calc!C47,T5_Calc!$C$43) -> 40.1% | G7: =TEXT(T5_Calc!D47,T5_Calc!$D$43) -> 82.1%
B8: =T5_Calc!B48 -> Homelessness | F8: =TEXT(T5_Calc!C48,T5_Calc!$C$43) -> na | G8: =TEXT(T5_Calc!D48,T5_Calc!$D$43) -> 27.3%
B9: =T5_Calc!B49 -> Planning | F9: =TEXT(T5_Calc!C49,T5_Calc!$C$43) -> 100.0% | G9: =TEXT(T5_Calc!D49,T5_Calc!$D$43) -> 37.7%
B10: =T5_Calc!B50 -> Recycling | F10: =TEXT(T5_Calc!C50,T5_Calc!$C$43) -> 82.8% | G10: =TEXT(T5_Calc!D50,T5_Calc!$D$43) -> 28.6%
B11: =T5_Calc!B51 -> Sport | F11: =TEXT(T5_Calc!C51,T5_Calc!$C$43) -> 100.0% | G11: =TEXT(T5_Calc!D51,T5_Calc!$D$43) -> 88.1%
B12: =T5_Calc!B52 -> Street Cleansing | F12: =TEXT(T5_Calc!C52,T5_Calc!$C$43) -> 100.0% | G12: =TEXT(T5_Calc!D52,T5_Calc!$D$43) -> 80.0%
B13: =T5_Calc!B53 -> Waste Collection | F13: =TEXT(T5_Calc!C53,T5_Calc!$C$43) -> 100.0% | G13: =TEXT(T5_Calc!D53,T5_Calc!$D$43) -> 59.1%
B14: =T5_Calc!B54 ->  | F14: =TEXT(T5_Calc!C54,T5_Calc!$C$43) ->  | G14: =TEXT(T5_Calc!D54,T5_Calc!$D$43) -> 
B15: =T5_Calc!B55 ->  | F15: =TEXT(T5_Calc!C55,T5_Calc!$C$43) ->  | G15: =TEXT(T5_Calc!D55,T5_Calc!$D$43) -> 
B16: =T5_Calc!B56 ->  | F16: =TEXT(T5_Calc!C56,T5_Calc!$C$43) ->  | G16: =TEXT(T5_Calc!D56,T5_Calc!$D$43) -> 
B17: =T5_Calc!B57 ->  | F17: =TEXT(T5_Calc!C57,T5_Calc!$C$43) ->  | G17: =TEXT(T5_Calc!D57,T5_Calc!$D$43) -> 
B18: =T5_Calc!B58 ->  | F18: =TEXT(T5_Calc!C58,T5_Calc!$C$43) ->  | G18: =TEXT(T5_Calc!D58,T5_Calc!$D$43) -> 
B19: =T5_Calc!B59 ->  | F19: =TEXT(T5_Calc!C59,T5_Calc!$C$43) ->  | G19: =TEXT(T5_Calc!D59,T5_Calc!$D$43) -> 
B20: =T5_Calc!B60 ->  | F20: =TEXT(T5_Calc!C60,T5_Calc!$C$43) ->  | G20: =TEXT(T5_Calc!D60,T5_Calc!$D$43) -> 
B21: =T5_Calc!B61 ->  | F21: =TEXT(T5_Calc!C61,T5_Calc!$C$43) ->  | G21: =TEXT(T5_Calc!D61,T5_Calc!$D$43) -> 
B22: =T5_Calc!B62 ->  | F22: =TEXT(T5_Calc!C62,T5_Calc!$C$43) ->  | G22: =TEXT(T5_Calc!D62,T5_Calc!$D$43) -> 
B23: =T5_Calc!B63 ->  | F23: =TEXT(T5_Calc!C63,T5_Calc!$C$43) ->  | G23: =TEXT(T5_Calc!D63,T5_Calc!$D$43) -> 
B24: =T5_Calc!B64 ->  | F24: =TEXT(T5_Calc!C64,T5_Calc!$C$43) ->  | G24: =TEXT(T5_Calc!D64,T5_Calc!$D$43) -> 
B25: =T5_Calc!B65 ->  | F25: =TEXT(T5_Calc!C65,T5_Calc!$C$43) ->  | G25: =TEXT(T5_Calc!D65,T5_Calc!$D$43) -> 
B26: =T5_Calc!B66 ->  | F26: =TEXT(T5_Calc!C66,T5_Calc!$C$43) ->  | G26: =TEXT(T5_Calc!D66,T5_Calc!$D$43) -> 
B27: =T5_Calc!B67 ->  | F27: =TEXT(T5_Calc!C67,T5_Calc!$C$43) ->  | G27: =TEXT(T5_Calc!D67,T5_Calc!$D$43) -> 
B28: =T5_Calc!B68 ->  | F28: =TEXT(T5_Calc!C68,T5_Calc!$C$43) ->  | G28: =TEXT(T5_Calc!D68,T5_Calc!$D$43) -> 
B29: =T5_Calc!B69 ->  | F29: =TEXT(T5_Calc!C69,T5_Calc!$C$43) ->  | G29: =TEXT(T5_Calc!D69,T5_Calc!$D$43) -> 
B30: =T5_Calc!B70 ->  | F30: =TEXT(T5_Calc!C70,T5_Calc!$C$43) ->  | G30: =TEXT(T5_Calc!D70,T5_Calc!$D$43) -> 
B31: =T5_Calc!B71 ->  | F31: =TEXT(T5_Calc!C71,T5_Calc!$C$43) ->  | G31: =TEXT(T5_Calc!D71,T5_Calc!$D$43) -> 
B32: =T5_Calc!B72 ->  | F32: =TEXT(T5_Calc!C72,T5_Calc!$C$43) ->  | G32: =TEXT(T5_Calc!D72,T5_Calc!$D$43) -> 
B33: =T5_Calc!B73 ->  | F33: =TEXT(T5_Calc!C73,T5_Calc!$C$43) ->  | G33: =TEXT(T5_Calc!D73,T5_Calc!$D$43) -> 
B34: =T5_Calc!B74 ->  | F34: =TEXT(T5_Calc!C74,T5_Calc!$C$43) ->  | G34: =TEXT(T5_Calc!D74,T5_Calc!$D$43) -> 
B35: =T5_Calc!B75 ->  | F35: =TEXT(T5_Calc!C75,T5_Calc!$C$43) ->  | G35: =TEXT(T5_Calc!D75,T5_Calc!$D$43) -> 
B36: =T5_Calc!B76 ->  | F36: =TEXT(T5_Calc!C76,T5_Calc!$C$43) ->  | G36: =TEXT(T5_Calc!D76,T5_Calc!$D$43) -> 
B37: =T5_Calc!B77 ->  | F37: =TEXT(T5_Calc!C77,T5_Calc!$C$43) ->  | G37: =TEXT(T5_Calc!D77,T5_Calc!$D$43) -> 
B38: =T5_Calc!B78 ->  | F38: =TEXT(T5_Calc!C78,T5_Calc!$C$43) ->  | G38: =TEXT(T5_Calc!D78,T5_Calc!$D$43) -> 
B39: =T5_Calc!B79 ->  | F39: =TEXT(T5_Calc!C79,T5_Calc!$C$43) ->  | G39: =TEXT(T5_Calc!D79,T5_Calc!$D$43) -> 

Sheet REPORT
U3: =IF(ISERROR(U4),"",U4) -> For the selected comparator group the highest performing service is Sport. The lowest performing service is Homelessness.
U4: =U5&U6&U7&U8&U9&U10&U11 -> For the selected comparator group the highest performing service is Sport. The lowest performing service is Homelessness. | AC4: =T5_Calc!H45 -> Council Tax and Housing Benefits | AD4: =IF(ISERROR(AVERAGE(T5_Calc!I45:J45)),"na",AVERAGE(T5_Calc!I45:J45)) -> 0.8 | AF4: =T2_Calc!B20 -> City of London | AG4: =IF(VLOOKUP($AF4,T2_Calc!$B$20:$LU$359,((DropD_Calc!$J$7)*9)+7+IF(T2_RankType=2,3,0),FALSE)<0,"na",VLOOKUP($AF4,T2_Calc!$B$20:$LU$359,((DropD_Calc!$J$7)*9)+7+IF(T2_RankType=2,3,0),FALSE)) -> na | AH4: =IF(VLOOKUP($AF4,T2_Calc!$B$20:$BLL$359,((DropD_Calc!$J$7)*37)+295+IF(T2_RankType=2,3,0),FALSE)<0,"na",VLOOKUP($AF4,T2_Calc!$B$20:$BLL$359,((DropD_Calc!$J$7)*37)+295+IF(T2_RankType=2,3,0),FALSE)) -> na | AI4: =IF(OR(AG4="na",AH4="na"),"na",AVERAGE(AG4:AH4)+(ROW()*0.00000000001)) -> na
U5: For the selected comparator group | AC5: =T5_Calc!H46 -> Council Tax and NNDR collection | AD5: =IF(ISERROR(AVERAGE(T5_Calc!I46:J46)),"na",AVERAGE(T5_Calc!I46:J46)) -> 0.8134116748 | AF5: =T2_Calc!B21 -> Camden | AG5: =IF(VLOOKUP($AF5,T2_Calc!$B$20:$LU$359,((DropD_Calc!$J$7)*9)+7+IF(T2_RankType=2,3,0),FALSE)<0,"na",VLOOKUP($AF5,T2_Calc!$B$20:$LU$359,((DropD_Calc!$J$7)*9)+7+IF(T2_RankType=2,3,0),FALSE)) -> na | AH5: =IF(VLOOKUP($AF5,T2_Calc!$B$20:$BLL$359,((DropD_Calc!$J$7)*37)+295+IF(T2_RankType=2,3,0),FALSE)<0,"na",VLOOKUP($AF5,T2_Calc!$B$20:$BLL$359,((DropD_Calc!$J$7)*37)+295+IF(T2_RankType=2,3,0),FALSE)) -> na | AI5: =IF(OR(AG5="na",AH5="na"),"na",AVERAGE(AG5:AH5)+(ROW()*0.00000000001)) -> na
U6: the highest performing service is | AC6: =T5_Calc!H47 -> Economic Development | AD6: =IF(ISERROR(AVERAGE(T5_Calc!I47:J47)),"na",AVERAGE(T5_Calc!I47:J47)) -> 0.6110855431 | AF6: =T2_Calc!B22 -> Greenwich | AG6: =IF(VLOOKUP($AF6,T2_Calc!$B$20:$LU$359,((DropD_Calc!$J$7)*9)+7+IF(T2_RankType=2,3,0),FALSE)<0,"na",VLOOKUP($AF6,T2_Calc!$B$20:$LU$359,((DropD_Calc!$J$7)*9)+7+IF(T2_RankType=2,3,0),FALSE)) -> na | AH6: =IF(VLOOKUP($AF6,T2_Calc!$B$20:$BLL$359,((DropD_Calc!$J$7)*37)+295+IF(T2_RankType=2,3,0),FALSE)<0,"na",VLOOKUP($AF6,T2_Calc!$B$20:$BLL$359,((DropD_Calc!$J$7)*37)+295+IF(T2_RankType=2,3,0),FALSE)) -> na | AI6: na
U7: =INDEX(AC4:AC38,MATCH(MAX(AD4:AD38),AD4:AD38,0)) -> Sport | AC7: =T5_Calc!H48 -> Homelessness | AD7: =IF(ISERROR(AVERAGE(T5_Calc!I48:J48)),"na",AVERAGE(T5_Calc!I48:J48)) -> 0.2733333333 | AF7: =T2_Calc!B23 -> Hackney | AG7: =IF(VLOOKUP($AF7,T2_Calc!$B$20:$LU$359,((DropD_Calc!$J$7)*9)+7+IF(T2_RankType=2,3,0),FALSE)<0,"na",VLOOKUP($AF7,T2_Calc!$B$20:$LU$359,((DropD_Calc!$J$7)*9)+7+IF(T2_RankType=2,3,0),FALSE)) -> na | AH7: =IF(VLOOKUP($AF7,T2_Calc!$B$20:$BLL$359,((DropD_Calc!$J$7)*37)+295+IF(T2_RankType=2,3,0),FALSE)<0,"na",VLOOKUP($AF7,T2_Calc!$B$20:$BLL$359,((DropD_Calc!$J$7)*37)+295+IF(T2_RankType=2,3,0),FALSE)) -> na | AI7: na
U8: . | AC8: =T5_Calc!H49 -> Planning | AD8: =IF(ISERROR(AVERAGE(T5_Calc!I49:J49)),"na",AVERAGE(T5_Calc!I49:J49)) -> 0.6887417219 | AF8: =T2_Calc!B24 -> Hammersmith & Fulham | AG8: =IF(VLOOKUP($AF8,T2_Calc!$B$20:$LU$359,((DropD_Calc!$J$7)*9)+7+IF(T2_RankType=2,3,0),FALSE)<0,"na",VLOOKUP($AF8,T2_Calc!$B$20:$LU$359,((DropD_Calc!$J$7)*9)+7+IF(T2_RankType=2,3,0),FALSE)) -> na | AH8: =IF(VLOOKUP($AF8,T2_Calc!$B$20:$BLL$359,((DropD_Calc!$J$7)*37)+295+IF(T2_RankType=2,3,0),FALSE)<0,"na",VLOOKUP($AF8,T2_Calc!$B$20:$BLL$359,((DropD_Calc!$J$7)*37)+295+IF(T2_RankType=2,3,0),FALSE)) -> na | AI8: na
U9: The lowest performing service is | AC9: =T5_Calc!H50 -> Recycling | AD9: =IF(ISERROR(AVERAGE(T5_Calc!I50:J50)),"na",AVERAGE(T5_Calc!I50:J50)) -> 0.5567955234 | AF9: =T2_Calc!B25 -> Islington | AG9: =IF(VLOOKUP($AF9,T2_Calc!$B$20:$LU$359,((DropD_Calc!$J$7)*9)+7+IF(T2_RankType=2,3,0),FALSE)<0,"na",VLOOKUP($AF9,T2_Calc!$B$20:$LU$359,((DropD_Calc!$J$7)*9)+7+IF(T2_RankType=2,3,0),FALSE)) -> na | AH9: =IF(VLOOKUP($AF9,T2_Calc!$B$20:$BLL$359,((DropD_Calc!$J$7)*37)+295+IF(T2_RankType=2,3,0),FALSE)<0,"na",VLOOKUP($AF9,T2_Calc!$B$20:$BLL$359,((DropD_Calc!$J$7)*37)+295+IF(T2_RankType=2,3,0),FALSE)) -> na | AI9: na
U10: =INDEX(AC4:AC38,MATCH(MIN(AD4:AD38),AD4:AD38,0)) -> Homelessness | AC10: =T5_Calc!H51 -> Sport | AD10: =IF(ISERROR(AVERAGE(T5_Calc!I51:J51)),"na",AVERAGE(T5_Calc!I51:J51)) -> 0.9402985075 | AF10: =T2_Calc!B26 -> Kensington & Chelsea | AG10: =IF(VLOOKUP($AF10,T2_Calc!$B$20:$LU$359,((DropD_Calc!$J$7)*9)+7+IF(T2_RankType=2,3,0),FALSE)<0,"na",VLOOKUP($AF10,T2_Calc!$B$20:$LU$359,((DropD_Calc!$J$7)*9)+7+IF(T2_RankType=2,3,0),FALSE)) -> na | AH10: =IF(VLOOKUP($AF10,T2_Calc!$B$20:$BLL$359,((DropD_Calc!$J$7)*37)+295+IF(T2_RankType=2,3,0),FALSE)<0,"na",VLOOKUP($AF10,T2_Calc!$B$20:$BLL$359,((DropD_Calc!$J$7)*37)+295+IF(T2_RankType=2,3,0),FALSE)) -> na | AI10: na
U11: . | AC11: =T5_Calc!H52 -> Street Cleansing | AD11: =IF(ISERROR(AVERAGE(T5_Calc!I52:J52)),"na",AVERAGE(T5_Calc!I52:J52)) -> 0.9 | AF11: =T2_Calc!B27 -> Lambeth | AG11: =IF(VLOOKUP($AF11,T2_Calc!$B$20:$LU$359,((DropD_Calc!$J$7)*9)+7+IF(T2_RankType=2,3,0),FALSE)<0,"na",VLOOKUP($AF11,T2_Calc!$B$20:$LU$359,((DropD_Calc!$J$7)*9)+7+IF(T2_RankType=2,3,0),FALSE)) -> na | AH11: =IF(VLOOKUP($AF11,T2_Calc!$B$20:$BLL$359,((DropD_Calc!$J$7)*37)+295+IF(T2_RankType=2,3,0),FALSE)<0,"na",VLOOKUP($AF11,T2_Calc!$B$20:$BLL$359,((DropD_Calc!$J$7)*37)+295+IF(T2_RankType=2,3,0),FALSE)) -> na | AI11: na
AC12: =T5_Calc!H53 -> Waste Collection | AD12: =IF(ISERROR(AVERAGE(T5_Calc!I53:J53)),"na",AVERAGE(T5_Calc!I53:J53)) -> 0.7954545455 | AF12: =T2_Calc!B28 -> Lewisham | AG12: =IF(VLOOKUP($AF12,T2_Calc!$B$20:$LU$359,((DropD_Calc!$J$7)*9)+7+IF(T2_RankType=2,3,0),FALSE)<0,"na",VLOOKUP($AF12,T2_Calc!$B$20:$LU$359,((DropD_Calc!$J$7)*9)+7+IF(T2_RankType=2,3,0),FALSE)) -> na | AH12: =IF(VLOOKUP($AF12,T2_Calc!$B$20:$BLL$359,((DropD_Calc!$J$7)*37)+295+IF(T2_RankType=2,3,0),FALSE)<0,"na",VLOOKUP($AF12,T2_Calc!$B$20:$BLL$359,((DropD_Calc!$J$7)*37)+295+IF(T2_RankType=2,3,0),FALSE)) -> na | AI12: na
AC13: =T5_Calc!H54 ->  | AD13: =IF(ISERROR(AVERAGE(T5_Calc!I54:J54)),"na",AVERAGE(T5_Calc!I54:J54)) -> na | AF13: =T2_Calc!B29 -> Southwark | AG13: =IF(VLOOKUP($AF13,T2_Calc!$B$20:$LU$359,((DropD_Calc!$J$7)*9)+7+IF(T2_RankType=2,3,0),FALSE)<0,"na",VLOOKUP($AF13,T2_Calc!$B$20:$LU$359,((DropD_Calc!$J$7)*9)+7+IF(T2_RankType=2,3,0),FALSE)) -> na | AH13: =IF(VLOOKUP($AF13,T2_Calc!$B$20:$BLL$359,((DropD_Calc!$J$7)*37)+295+IF(T2_RankType=2,3,0),FALSE)<0,"na",VLOOKUP($AF13,T2_Calc!$B$20:$BLL$359,((DropD_Calc!$J$7)*37)+295+IF(T2_RankType=2,3,0),FALSE)) -> na | AI13: na
AC14: =T5_Calc!H55 ->  | AD14: =IF(ISERROR(AVERAGE(T5_Calc!I55:J55)),"na",AVERAGE(T5_Calc!I55:J55)) -> na | AF14: =T2_Calc!B30 -> Tower Hamlets | AG14: =IF(VLOOKUP($AF14,T2_Calc!$B$20:$LU$359,((DropD_Calc!$J$7)*9)+7+IF(T2_RankType=2,3,0),FALSE)<0,"na",VLOOKUP($AF14,T2_Calc!$B$20:$LU$359,((DropD_Calc!$J$7)*9)+7+IF(T2_RankType=2,3,0),FALSE)) -> na | AH14: =IF(VLOOKUP($AF14,T2_Calc!$B$20:$BLL$359,((DropD_Calc!$J$7)*37)+295+IF(T2_RankType=2,3,0),FALSE)<0,"na",VLOOKUP($AF14,T2_Calc!$B$20:$BLL$359,((DropD_Calc!$J$7)*37)+295+IF(T2_RankType=2,3,0),FALSE)) -> na | AI14: na
AC15: =T5_Calc!H56 ->  | AD15: =IF(ISERROR(AVERAGE(T5_Calc!I56:J56)),"na",AVERAGE(T5_Calc!I56:J56)) -> na | AF15: =T2_Calc!B31 -> Wandsworth | AG15: =IF(VLOOKUP($AF15,T2_Calc!$B$20:$LU$359,((DropD_Calc!$J$7)*9)+7+IF(T2_RankType=2,3,0),FALSE)<0,"na",VLOOKUP($AF15,T2_Calc!$B$20:$LU$359,((DropD_Calc!$J$7)*9)+7+IF(T2_RankType=2,3,0),FALSE)) -> na | AH15: =IF(VLOOKUP($AF15,T2_Calc!$B$20:$BLL$359,((DropD_Calc!$J$7)*37)+295+IF(T2_RankType=2,3,0),FALSE)<0,"na",VLOOKUP($AF15,T2_Calc!$B$20:$BLL$359,((DropD_Calc!$J$7)*37)+295+IF(T2_RankType=2,3,0),FALSE)) -> na | AI15: na
M16: =U3 -> For the selected comparator group the highest performing service is Sport. The lowest performing service is Homelessness. | AC16: =T5_Calc!H57 ->  | AD16: =IF(ISERROR(AVERAGE(T5_Calc!I57:J57)),"na",AVERAGE(T5_Calc!I57:J57)) -> na | AF16: =T2_Calc!B32 -> Westminster | AG16: =IF(VLOOKUP($AF16,T2_Calc!$B$20:$LU$359,((DropD_Calc!$J$7)*9)+7+IF(T2_RankType=2,3,0),FALSE)<0,"na",VLOOKUP($AF16,T2_Calc!$B$20:$LU$359,((DropD_Calc!$J$7)*9)+7+IF(T2_RankType=2,3,0),FALSE)) -> na | AH16: =IF(VLOOKUP($AF16,T2_Calc!$B$20:$BLL$359,((DropD_Calc!$J$7)*37)+295+IF(T2_RankType=2,3,0),FALSE)<0,"na",VLOOKUP($AF16,T2_Calc!$B$20:$BLL$359,((DropD_Calc!$J$7)*37)+295+IF(T2_RankType=2,3,0),FALSE)) -> na | AI16: na
AC17: =T5_Calc!H58 ->  | AD17: =IF(ISERROR(AVERAGE(T5_Calc!I58:J58)),"na",AVERAGE(T5_Calc!I58:J58)) -> na | AF17: =T2_Calc!B33 -> Barking & Dagenham | AG17: =IF(VLOOKUP($AF17,T2_Calc!$B$20:$LU$359,((DropD_Calc!$J$7)*9)+7+IF(T2_RankType=2,3,0),FALSE)<0,"na",VLOOKUP($AF17,T2_Calc!$B$20:$LU$359,((DropD_Calc!$J$7)*9)+7+IF(T2_RankType=2,3,0),FALSE)) -> na | AH17: =IF(VLOOKUP($AF17,T2_Calc!$B$20:$BLL$359,((DropD_Calc!$J$7)*37)+295+IF(T2_RankType=2,3,0),FALSE)<0,"na",VLOOKUP($AF17,T2_Calc!$B$20:$BLL$359,((DropD_Calc!$J$7)*37)+295+IF(T2_RankType=2,3,0),FALSE)) -> na | AI17: na
AC18: =T5_Calc!H59 ->  | AD18: =IF(ISERROR(AVERAGE(T5_Calc!I59:J59)),"na",AVERAGE(T5_Calc!I59:J59)) -> na | AF18: =T2_Calc!B34 -> Barnet | AG18: =IF(VLOOKUP($AF18,T2_Calc!$B$20:$LU$359,((DropD_Calc!$J$7)*9)+7+IF(T2_RankType=2,3,0),FALSE)<0,"na",VLOOKUP($AF18,T2_Calc!$B$20:$LU$359,((DropD_Calc!$J$7)*9)+7+IF(T2_RankType=2,3,0),FALSE)) -> na | AH18: =IF(VLOOKUP($AF18,T2_Calc!$B$20:$BLL$359,((DropD_Calc!$J$7)*37)+295+IF(T2_RankType=2,3,0),FALSE)<0,"na",VLOOKUP($AF18,T2_Calc!$B$20:$BLL$359,((DropD_Calc!$J$7)*37)+295+IF(T2_RankType=2,3,0),FALSE)) -> na | AI18: na
AC19: =T5_Calc!H60 ->  | AD19: =IF(ISERROR(AVERAGE(T5_Calc!I60:J60)),"na",AVERAGE(T5_Calc!I60:J60)) -> na | AF19: =T2_Calc!B35 -> Bexley | AG19: =IF(VLOOKUP($AF19,T2_Calc!$B$20:$LU$359,((DropD_Calc!$J$7)*9)+7+IF(T2_RankType=2,3,0),FALSE)<0,"na",VLOOKUP($AF19,T2_Calc!$B$20:$LU$359,((DropD_Calc!$J$7)*9)+7+IF(T2_RankType=2,3,0),FALSE)) -> na | AH19: =IF(VLOOKUP($AF19,T2_Calc!$B$20:$BLL$359,((DropD_Calc!$J$7)*37)+295+IF(T2_RankType=2,3,0),FALSE)<0,"na",VLOOKUP($AF19,T2_Calc!$B$20:$BLL$359,((DropD_Calc!$J$7)*37)+295+IF(T2_RankType=2,3,0),FALSE)) -> na | AI19: na
AC20: =T5_Calc!H61 ->  | AD20: =IF(ISERROR(AVERAGE(T5_Calc!I61:J61)),"na",AVERAGE(T5_Calc!I61:J61)) -> na | AF20: =T2_Calc!B36 -> Brent | AG20: =IF(VLOOKUP($AF20,T2_Calc!$B$20:$LU$359,((DropD_Calc!$J$7)*9)+7+IF(T2_RankType=2,3,0),FALSE)<0,"na",VLOOKUP($AF20,T2_Calc!$B$20:$LU$359,((DropD_Calc!$J$7)*9)+7+IF(T2_RankType=2,3,0),FALSE)) -> na | AH20: =IF(VLOOKUP($AF20,T2_Calc!$B$20:$BLL$359,((DropD_Calc!$J$7)*37)+295+IF(T2_RankType=2,3,0),FALSE)<0,"na",VLOOKUP($AF20,T2_Calc!$B$20:$BLL$359,((DropD_Calc!$J$7)*37)+295+IF(T2_RankType=2,3,0),FALSE)) -> na | AI20: na
AC21: =T5_Calc!H62 ->  | AD21: =IF(ISERROR(AVERAGE(T5_Calc!I62:J62)),"na",AVERAGE(T5_Calc!I62:J62)) -> na | AF21: =T2_Calc!B37 -> Bromley | AG21: =IF(VLOOKUP($AF21,T2_Calc!$B$20:$LU$359,((DropD_Calc!$J$7)*9)+7+IF(T2_RankType=2,3,0),FALSE)<0,"na",VLOOKUP($AF21,T2_Calc!$B$20:$LU$359,((DropD_Calc!$J$7)*9)+7+IF(T2_RankType=2,3,0),FALSE)) -> na | AH21: =IF(VLOOKUP($AF21,T2_Calc!$B$20:$BLL$359,((DropD_Calc!$J$7)*37)+295+IF(T2_RankType=2,3,0),FALSE)<0,"na",VLOOKUP($AF21,T2_Calc!$B$20:$BLL$359,((DropD_Calc!$J$7)*37)+295+IF(T2_RankType=2,3,0),FALSE)) -> na | AI21: na
AC22: =T5_Calc!H63 ->  | AD22: =IF(ISERROR(AVERAGE(T5_Calc!I63:J63)),"na",AVERAGE(T5_Calc!I63:J63)) -> na | AF22: =T2_Calc!B38 -> Croydon | AG22: =IF(VLOOKUP($AF22,T2_Calc!$B$20:$LU$359,((DropD_Calc!$J$7)*9)+7+IF(T2_RankType=2,3,0),FALSE)<0,"na",VLOOKUP($AF22,T2_Calc!$B$20:$LU$359,((DropD_Calc!$J$7)*9)+7+IF(T2_RankType=2,3,0),FALSE)) -> na | AH22: =IF(VLOOKUP($AF22,T2_Calc!$B$20:$BLL$359,((DropD_Calc!$J$7)*37)+295+IF(T2_RankType=2,3,0),FALSE)<0,"na",VLOOKUP($AF22,T2_Calc!$B$20:$BLL$359,((DropD_Calc!$J$7)*37)+295+IF(T2_RankType=2,3,0),FALSE)) -> na | AI22: na
AC23: =T5_Calc!H64 ->  | AD23: =IF(ISERROR(AVERAGE(T5_Calc!I64:J64)),"na",AVERAGE(T5_Calc!I64:J64)) -> na | AF23: =T2_Calc!B39 -> Ealing | AG23: =IF(VLOOKUP($AF23,T2_Calc!$B$20:$LU$359,((DropD_Calc!$J$7)*9)+7+IF(T2_RankType=2,3,0),FALSE)<0,"na",VLOOKUP($AF23,T2_Calc!$B$20:$LU$359,((DropD_Calc!$J$7)*9)+7+IF(T2_RankType=2,3,0),FALSE)) -> na | AH23: =IF(VLOOKUP($AF23,T2_Calc!$B$20:$BLL$359,((DropD_Calc!$J$7)*37)+295+IF(T2_RankType=2,3,0),FALSE)<0,"na",VLOOKUP($AF23,T2_Calc!$B$20:$BLL$359,((DropD_Calc!$J$7)*37)+295+IF(T2_RankType=2,3,0),FALSE)) -> na | AI23: na
AC24: =T5_Calc!H65 ->  | AD24: =IF(ISERROR(AVERAGE(T5_Calc!I65:J65)),"na",AVERAGE(T5_Calc!I65:J65)) -> na | AF24: =T2_Calc!B40 -> Enfield | AG24: =IF(VLOOKUP($AF24,T2_Calc!$B$20:$LU$359,((DropD_Calc!$J$7)*9)+7+IF(T2_RankType=2,3,0),FALSE)<0,"na",VLOOKUP($AF24,T2_Calc!$B$20:$LU$359,((DropD_Calc!$J$7)*9)+7+IF(T2_RankType=2,3,0),FALSE)) -> na | AH24: =IF(VLOOKUP($AF24,T2_Calc!$B$20:$BLL$359,((DropD_Calc!$J$7)*37)+295+IF(T2_RankType=2,3,0),FALSE)<0,"na",VLOOKUP($AF24,T2_Calc!$B$20:$BLL$359,((DropD_Calc!$J$7)*37)+295+IF(T2_RankType=2,3,0),FALSE)) -> na | AI24: na
AC25: =T5_Calc!H66 ->  | AD25: =IF(ISERROR(AVERAGE(T5_Calc!I66:J66)),"na",AVERAGE(T5_Calc!I66:J66)) -> na | AF25: =T2_Calc!B41 -> Haringey | AG25: =IF(VLOOKUP($AF25,T2_Calc!$B$20:$LU$359,((DropD_Calc!$J$7)*9)+7+IF(T2_RankType=2,3,0),FALSE)<0,"na",VLOOKUP($AF25,T2_Calc!$B$20:$LU$359,((DropD_Calc!$J$7)*9)+7+IF(T2_RankType=2,3,0),FALSE)) -> na | AH25: =IF(VLOOKUP($AF25,T2_Calc!$B$20:$BLL$359,((DropD_Calc!$J$7)*37)+295+IF(T2_RankType=2,3,0),FALSE)<0,"na",VLOOKUP($AF25,T2_Calc!$B$20:$BLL$359,((DropD_Calc!$J$7)*37)+295+IF(T2_RankType=2,3,0),FALSE)) -> na | AI25: na
AC26: =T5_Calc!H67 ->  | AD26: =IF(ISERROR(AVERAGE(T5_Calc!I67:J67)),"na",AVERAGE(T5_Calc!I67:J67)) -> na | AF26: =T2_Calc!B42 -> Harrow | AG26: =IF(VLOOKUP($AF26,T2_Calc!$B$20:$LU$359,((DropD_Calc!$J$7)*9)+7+IF(T2_RankType=2,3,0),FALSE)<0,"na",VLOOKUP($AF26,T2_Calc!$B$20:$LU$359,((DropD_Calc!$J$7)*9)+7+IF(T2_RankType=2,3,0),FALSE)) -> na | AH26: =IF(VLOOKUP($AF26,T2_Calc!$B$20:$BLL$359,((DropD_Calc!$J$7)*37)+295+IF(T2_RankType=2,3,0),FALSE)<0,"na",VLOOKUP($AF26,T2_Calc!$B$20:$BLL$359,((DropD_Calc!$J$7)*37)+295+IF(T2_RankType=2,3,0),FALSE)) -> na | AI26: na
AC27: =T5_Calc!H68 ->  | AD27: =IF(ISERROR(AVERAGE(T5_Calc!I68:J68)),"na",AVERAGE(T5_Calc!I68:J68)) -> na | AF27: =T2_Calc!B43 -> Havering | AG27: =IF(VLOOKUP($AF27,T2_Calc!$B$20:$LU$359,((DropD_Calc!$J$7)*9)+7+IF(T2_RankType=2,3,0),FALSE)<0,"na",VLOOKUP($AF27,T2_Calc!$B$20:$LU$359,((DropD_Calc!$J$7)*9)+7+IF(T2_RankType=2,3,0),FALSE)) -> na | AH27: =IF(VLOOKUP($AF27,T2_Calc!$B$20:$BLL$359,((DropD_Calc!$J$7)*37)+295+IF(T2_RankType=2,3,0),FALSE)<0,"na",VLOOKUP($AF27,T2_Calc!$B$20:$BLL$359,((DropD_Calc!$J$7)*37)+295+IF(T2_RankType=2,3,0),FALSE)) -> na | AI27: na
AC28: =T5_Calc!H69 ->  | AD28: =IF(ISERROR(AVERAGE(T5_Calc!I69:J69)),"na",AVERAGE(T5_Calc!I69:J69)) -> na | AF28: =T2_Calc!B44 -> Hillingdon | AG28: =IF(VLOOKUP($AF28,T2_Calc!$B$20:$LU$359,((DropD_Calc!$J$7)*9)+7+IF(T2_RankType=2,3,0),FALSE)<0,"na",VLOOKUP($AF28,T2_Calc!$B$20:$LU$359,((DropD_Calc!$J$7)*9)+7+IF(T2_RankType=2,3,0),FALSE)) -> na | AH28: =IF(VLOOKUP($AF28,T2_Calc!$B$20:$BLL$359,((DropD_Calc!$J$7)*37)+295+IF(T2_RankType=2,3,0),FALSE)<0,"na",VLOOKUP($AF28,T2_Calc!$B$20:$BLL$359,((DropD_Calc!$J$7)*37)+295+IF(T2_RankType=2,3,0),FALSE)) -> na | AI28: na
AC29: =T5_Calc!H70 ->  | AD29: =IF(ISERROR(AVERAGE(T5_Calc!I70:J70)),"na",AVERAGE(T5_Calc!I70:J70)) -> na | AF29: =T2_Calc!B45 -> Hounslow | AG29: =IF(VLOOKUP($AF29,T2_Calc!$B$20:$LU$359,((DropD_Calc!$J$7)*9)+7+IF(T2_RankType=2,3,0),FALSE)<0,"na",VLOOKUP($AF29,T2_Calc!$B$20:$LU$359,((DropD_Calc!$J$7)*9)+7+IF(T2_RankType=2,3,0),FALSE)) -> na | AH29: =IF(VLOOKUP($AF29,T2_Calc!$B$20:$BLL$359,((DropD_Calc!$J$7)*37)+295+IF(T2_RankType=2,3,0),FALSE)<0,"na",VLOOKUP($AF29,T2_Calc!$B$20:$BLL$359,((DropD_Calc!$J$7)*37)+295+IF(T2_RankType=2,3,0),FALSE)) -> na | AI29: na
AC30: =T5_Calc!H71 ->  | AD30: =IF(ISERROR(AVERAGE(T5_Calc!I71:J71)),"na",AVERAGE(T5_Calc!I71:J71)) -> na | AF30: =T2_Calc!B46 -> Kingston-upon-Thames | AG30: =IF(VLOOKUP($AF30,T2_Calc!$B$20:$LU$359,((DropD_Calc!$J$7)*9)+7+IF(T2_RankType=2,3,0),FALSE)<0,"na",VLOOKUP($AF30,T2_Calc!$B$20:$LU$359,((DropD_Calc!$J$7)*9)+7+IF(T2_RankType=2,3,0),FALSE)) -> na | AH30: =IF(VLOOKUP($AF30,T2_Calc!$B$20:$BLL$359,((DropD_Calc!$J$7)*37)+295+IF(T2_RankType=2,3,0),FALSE)<0,"na",VLOOKUP($AF30,T2_Calc!$B$20:$BLL$359,((DropD_Calc!$J$7)*37)+295+IF(T2_RankType=2,3,0),FALSE)) -> na | AI30: na
AC31: =T5_Calc!H72 ->  | AD31: =IF(ISERROR(AVERAGE(T5_Calc!I72:J72)),"na",AVERAGE(T5_Calc!I72:J72)) -> na | AF31: =T2_Calc!B47 -> Merton | AG31: =IF(VLOOKUP($AF31,T2_Calc!$B$20:$LU$359,((DropD_Calc!$J$7)*9)+7+IF(T2_RankType=2,3,0),FALSE)<0,"na",VLOOKUP($AF31,T2_Calc!$B$20:$LU$359,((DropD_Calc!$J$7)*9)+7+IF(T2_RankType=2,3,0),FALSE)) -> na | AH31: =IF(VLOOKUP($AF31,T2_Calc!$B$20:$BLL$359,((DropD_Calc!$J$7)*37)+295+IF(T2_RankType=2,3,0),FALSE)<0,"na",VLOOKUP($AF31,T2_Calc!$B$20:$BLL$359,((DropD_Calc!$J$7)*37)+295+IF(T2_RankType=2,3,0),FALSE)) -> na | AI31: na
AC32: =T5_Calc!H73 ->  | AD32: =IF(ISERROR(AVERAGE(T5_Calc!I73:J73)),"na",AVERAGE(T5_Calc!I73:J73)) -> na | AF32: =T2_Calc!B48 -> Newham | AG32: =IF(VLOOKUP($AF32,T2_Calc!$B$20:$LU$359,((DropD_Calc!$J$7)*9)+7+IF(T2_RankType=2,3,0),FALSE)<0,"na",VLOOKUP($AF32,T2_Calc!$B$20:$LU$359,((DropD_Calc!$J$7)*9)+7+IF(T2_RankType=2,3,0),FALSE)) -> na | AH32: =IF(VLOOKUP($AF32,T2_Calc!$B$20:$BLL$359,((DropD_Calc!$J$7)*37)+295+IF(T2_RankType=2,3,0),FALSE)<0,"na",VLOOKUP($AF32,T2_Calc!$B$20:$BLL$359,((DropD_Calc!$J$7)*37)+295+IF(T2_RankType=2,3,0),FALSE)) -> na | AI32: na
AC33: =T5_Calc!H74 ->  | AD33: =IF(ISERROR(AVERAGE(T5_Calc!I74:J74)),"na",AVERAGE(T5_Calc!I74:J74)) -> na | AF33: =T2_Calc!B49 -> Redbridge | AG33: =IF(VLOOKUP($AF33,T2_Calc!$B$20:$LU$359,((DropD_Calc!$J$7)*9)+7+IF(T2_RankType=2,3,0),FALSE)<0,"na",VLOOKUP($AF33,T2_Calc!$B$20:$LU$359,((DropD_Calc!$J$7)*9)+7+IF(T2_RankType=2,3,0),FALSE)) -> na | AH33: =IF(VLOOKUP($AF33,T2_Calc!$B$20:$BLL$359,((DropD_Calc!$J$7)*37)+295+IF(T2_RankType=2,3,0),FALSE)<0,"na",VLOOKUP($AF33,T2_Calc!$B$20:$BLL$359,((DropD_Calc!$J$7)*37)+295+IF(T2_RankType=2,3,0),FALSE)) -> na | AI33: na
AC34: =T5_Calc!H75 ->  | AD34: =IF(ISERROR(AVERAGE(T5_Calc!I75:J75)),"na",AVERAGE(T5_Calc!I75:J75)) -> na | AF34: =T2_Calc!B50 -> Richmond-upon-Thames | AG34: =IF(VLOOKUP($AF34,T2_Calc!$B$20:$LU$359,((DropD_Calc!$J$7)*9)+7+IF(T2_RankType=2,3,0),FALSE)<0,"na",VLOOKUP($AF34,T2_Calc!$B$20:$LU$359,((DropD_Calc!$J$7)*9)+7+IF(T2_RankType=2,3,0),FALSE)) -> na | AH34: =IF(VLOOKUP($AF34,T2_Calc!$B$20:$BLL$359,((DropD_Calc!$J$7)*37)+295+IF(T2_RankType=2,3,0),FALSE)<0,"na",VLOOKUP($AF34,T2_Calc!$B$20:$BLL$359,((DropD_Calc!$J$7)*37)+295+IF(T2_RankType=2,3,0),FALSE)) -> na | AI34: na
AC35: =T5_Calc!H76 ->  | AD35: =IF(ISERROR(AVERAGE(T5_Calc!I76:J76)),"na",AVERAGE(T5_Calc!I76:J76)) -> na | AF35: =T2_Calc!B51 -> Sutton | AG35: =IF(VLOOKUP($AF35,T2_Calc!$B$20:$LU$359,((DropD_Calc!$J$7)*9)+7+IF(T2_RankType=2,3,0),FALSE)<0,"na",VLOOKUP($AF35,T2_Calc!$B$20:$LU$359,((DropD_Calc!$J$7)*9)+7+IF(T2_RankType=2,3,0),FALSE)) -> na | AH35: =IF(VLOOKUP($AF35,T2_Calc!$B$20:$BLL$359,((DropD_Calc!$J$7)*37)+295+IF(T2_RankType=2,3,0),FALSE)<0,"na",VLOOKUP($AF35,T2_Calc!$B$20:$BLL$359,((DropD_Calc!$J$7)*37)+295+IF(T2_RankType=2,3,0),FALSE)) -> na | AI35: na
AC36: =T5_Calc!H77 ->  | AD36: =IF(ISERROR(AVERAGE(T5_Calc!I77:J77)),"na",AVERAGE(T5_Calc!I77:J77)) -> na | AF36: =T2_Calc!B52 -> Waltham Forest | AG36: =IF(VLOOKUP($AF36,T2_Calc!$B$20:$LU$359,((DropD_Calc!$J$7)*9)+7+IF(T2_RankType=2,3,0),FALSE)<0,"na",VLOOKUP($AF36,T2_Calc!$B$20:$LU$359,((DropD_Calc!$J$7)*9)+7+IF(T2_RankType=2,3,0),FALSE)) -> na | AH36: =IF(VLOOKUP($AF36,T2_Calc!$B$20:$BLL$359,((DropD_Calc!$J$7)*37)+295+IF(T2_RankType=2,3,0),FALSE)<0,"na",VLOOKUP($AF36,T2_Calc!$B$20:$BLL$359,((DropD_Calc!$J$7)*37)+295+IF(T2_RankType=2,3,0),FALSE)) -> na | AI36: na
AC37: =T5_Calc!H78 ->  | AD37: =IF(ISERROR(AVERAGE(T5_Calc!I78:J78)),"na",AVERAGE(T5_Calc!I78:J78)) -> na | AF37: =T2_Calc!B53 -> Bolton | AG37: =IF(VLOOKUP($AF37,T2_Calc!$B$20:$LU$359,((DropD_Calc!$J$7)*9)+7+IF(T2_RankType=2,3,0),FALSE)<0,"na",VLOOKUP($AF37,T2_Calc!$B$20:$LU$359,((DropD_Calc!$J$7)*9)+7+IF(T2_RankType=2,3,0),FALSE)) -> na | AH37: =IF(VLOOKUP($AF37,T2_Calc!$B$20:$BLL$359,((DropD_Calc!$J$7)*37)+295+IF(T2_RankType=2,3,0),FALSE)<0,"na",VLOOKUP($AF37,T2_Calc!$B$20:$BLL$359,((DropD_Calc!$J$7)*37)+295+IF(T2_RankType=2,3,0),FALSE)) -> na | AI37: na
U38: ="Service Analysis: "&T2_Calc!B2 -> Service Analysis: Council Tax and Housing Benefits | AC38: =T5_Calc!H79 ->  | AD38: =IF(ISERROR(AVERAGE(T5_Calc!I79:J79)),"na",AVERAGE(T5_Calc!I79:J79)) -> na | AF38: =T2_Calc!B54 -> Bury | AG38: =IF(VLOOKUP($AF38,T2_Calc!$B$20:$LU$359,((DropD_Calc!$J$7)*9)+7+IF(T2_RankType=2,3,0),FALSE)<0,"na",VLOOKUP($AF38,T2_Calc!$B$20:$LU$359,((DropD_Calc!$J$7)*9)+7+IF(T2_RankType=2,3,0),FALSE)) -> na | AH38: =IF(VLOOKUP($AF38,T2_Calc!$B$20:$BLL$359,((DropD_Calc!$J$7)*37)+295+IF(T2_RankType=2,3,0),FALSE)<0,"na",VLOOKUP($AF38,T2_Calc!$B$20:$BLL$359,((DropD_Calc!$J$7)*37)+295+IF(T2_RankType=2,3,0),FALSE)) -> na | AI38: na
U39: =IF(ISERROR(U40),"Please edit the tools settings on the variable tab to receive further analysis here",U40) -> Please edit the tools settings on the variable tab to receive further analysis here | AF39: =T2_Calc!B55 -> Manchester | AG39: =IF(VLOOKUP($AF39,T2_Calc!$B$20:$LU$359,((DropD_Calc!$J$7)*9)+7+IF(T2_RankType=2,3,0),FALSE)<0,"na",VLOOKUP($AF39,T2_Calc!$B$20:$LU$359,((DropD_Calc!$J$7)*9)+7+IF(T2_RankType=2,3,0),FALSE)) -> na | AH39: =IF(VLOOKUP($AF39,T2_Calc!$B$20:$BLL$359,((DropD_Calc!$J$7)*37)+295+IF(T2_RankType=2,3,0),FALSE)<0,"na",VLOOKUP($AF39,T2_Calc!$B$20:$BLL$359,((DropD_Calc!$J$7)*37)+295+IF(T2_RankType=2,3,0),FALSE)) -> na | AI39: na
M40: =U39 -> Please edit the tools settings on the variable tab to receive further analysis here | U40: =U41&U42&U43&U44&U45&U46&U47&U48&U49&U50&U51&U52&U53&U54&U55&U56&U57&U58&U59&U60&U61&U62&U63&U64 ->  | AF40: =T2_Calc!B56 -> Oldham | AG40: =IF(VLOOKUP($AF40,T2_Calc!$B$20:$LU$359,((DropD_Calc!$J$7)*9)+7+IF(T2_RankType=2,3,0),FALSE)<0,"na",VLOOKUP($AF40,T2_Calc!$B$20:$LU$359,((DropD_Calc!$J$7)*9)+7+IF(T2_RankType=2,3,0),FALSE)) -> na | AH40: =IF(VLOOKUP($AF40,T2_Calc!$B$20:$BLL$359,((DropD_Calc!$J$7)*37)+295+IF(T2_RankType=2,3,0),FALSE)<0,"na",VLOOKUP($AF40,T2_Calc!$B$20:$BLL$359,((DropD_Calc!$J$7)*37)+295+IF(T2_RankType=2,3,0),FALSE)) -> na | AI40: na
U41: Out of the group of | AF41: =T2_Calc!B57 -> Rochdale | AG41: =IF(VLOOKUP($AF41,T2_Calc!$B$20:$LU$359,((DropD_Calc!$J$7)*9)+7+IF(T2_RankType=2,3,0),FALSE)<0,"na",VLOOKUP($AF41,T2_Calc!$B$20:$LU$359,((DropD_Calc!$J$7)*9)+7+IF(T2_RankType=2,3,0),FALSE)) -> na | AH41: =IF(VLOOKUP($AF41,T2_Calc!$B$20:$BLL$359,((DropD_Calc!$J$7)*37)+295+IF(T2_RankType=2,3,0),FALSE)<0,"na",VLOOKUP($AF41,T2_Calc!$B$20:$BLL$359,((DropD_Calc!$J$7)*37)+295+IF(T2_RankType=2,3,0),FALSE)) -> na | AI41: na
U42: =T2_Calc!F5 -> 16 | AF42: =T2_Calc!B58 -> Salford | AG42: =IF(VLOOKUP($AF42,T2_Calc!$B$20:$LU$359,((DropD_Calc!$J$7)*9)+7+IF(T2_RankType=2,3,0),FALSE)<0,"na",VLOOKUP($AF42,T2_Calc!$B$20:$LU$359,((DropD_Calc!$J$7)*9)+7+IF(T2_RankType=2,3,0),FALSE)) -> na | AH42: =IF(VLOOKUP($AF42,T2_Calc!$B$20:$BLL$359,((DropD_Calc!$J$7)*37)+295+IF(T2_RankType=2,3,0),FALSE)<0,"na",VLOOKUP($AF42,T2_Calc!$B$20:$BLL$359,((DropD_Calc!$J$7)*37)+295+IF(T2_RankType=2,3,0),FALSE)) -> na | AI42: na
U43: authorities, including the selected authority, | AF43: =T2_Calc!B59 -> Stockport | AG43: =IF(VLOOKUP($AF43,T2_Calc!$B$20:$LU$359,((DropD_Calc!$J$7)*9)+7+IF(T2_RankType=2,3,0),FALSE)<0,"na",VLOOKUP($AF43,T2_Calc!$B$20:$LU$359,((DropD_Calc!$J$7)*9)+7+IF(T2_RankType=2,3,0),FALSE)) -> na | AH43: =IF(VLOOKUP($AF43,T2_Calc!$B$20:$BLL$359,((DropD_Calc!$J$7)*37)+295+IF(T2_RankType=2,3,0),FALSE)<0,"na",VLOOKUP($AF43,T2_Calc!$B$20:$BLL$359,((DropD_Calc!$J$7)*37)+295+IF(T2_RankType=2,3,0),FALSE)) -> na | AI43: na
U44: =Authority -> Adur | AF44: =T2_Calc!B60 -> Tameside | AG44: =IF(VLOOKUP($AF44,T2_Calc!$B$20:$LU$359,((DropD_Calc!$J$7)*9)+7+IF(T2_RankType=2,3,0),FALSE)<0,"na",VLOOKUP($AF44,T2_Calc!$B$20:$LU$359,((DropD_Calc!$J$7)*9)+7+IF(T2_RankType=2,3,0),FALSE)) -> na | AH44: =IF(VLOOKUP($AF44,T2_Calc!$B$20:$BLL$359,((DropD_Calc!$J$7)*37)+295+IF(T2_RankType=2,3,0),FALSE)<0,"na",VLOOKUP($AF44,T2_Calc!$B$20:$BLL$359,((DropD_Calc!$J$7)*37)+295+IF(T2_RankType=2,3,0),FALSE)) -> na | AI44: na
U45: are ranked | AF45: =T2_Calc!B61 -> Trafford | AG45: =IF(VLOOKUP($AF45,T2_Calc!$B$20:$LU$359,((DropD_Calc!$J$7)*9)+7+IF(T2_RankType=2,3,0),FALSE)<0,"na",VLOOKUP($AF45,T2_Calc!$B$20:$LU$359,((DropD_Calc!$J$7)*9)+7+IF(T2_RankType=2,3,0),FALSE)) -> na | AH45: =IF(VLOOKUP($AF45,T2_Calc!$B$20:$BLL$359,((DropD_Calc!$J$7)*37)+295+IF(T2_RankType=2,3,0),FALSE)<0,"na",VLOOKUP($AF45,T2_Calc!$B$20:$BLL$359,((DropD_Calc!$J$7)*37)+295+IF(T2_RankType=2,3,0),FALSE)) -> na | AI45: na
U46: =RANK(VLOOKUP(Authority,AF:AI,4,FALSE),AI:AI,0) ->  | AF46: =T2_Calc!B62 -> Wigan | AG46: =IF(VLOOKUP($AF46,T2_Calc!$B$20:$LU$359,((DropD_Calc!$J$7)*9)+7+IF(T2_RankType=2,3,0),FALSE)<0,"na",VLOOKUP($AF46,T2_Calc!$B$20:$LU$359,((DropD_Calc!$J$7)*9)+7+IF(T2_RankType=2,3,0),FALSE)) -> na | AH46: =IF(VLOOKUP($AF46,T2_Calc!$B$20:$BLL$359,((DropD_Calc!$J$7)*37)+295+IF(T2_RankType=2,3,0),FALSE)<0,"na",VLOOKUP($AF46,T2_Calc!$B$20:$BLL$359,((DropD_Calc!$J$7)*37)+295+IF(T2_RankType=2,3,0),FALSE)) -> na | AI46: na
U47: =IF(AND(RIGHT(U46,1)="1",U46<>11),"st",IF(AND(RIGHT(U46,1)="2",U46<>12),"nd",IF(AND(RIGHT(U46,1)="3",U46<>13),"rd","th"))) ->  | AF47: =T2_Calc!B63 -> Knowsley | AG47: =IF(VLOOKUP($AF47,T2_Calc!$B$20:$LU$359,((DropD_Calc!$J$7)*9)+7+IF(T2_RankType=2,3,0),FALSE)<0,"na",VLOOKUP($AF47,T2_Calc!$B$20:$LU$359,((DropD_Calc!$J$7)*9)+7+IF(T2_RankType=2,3,0),FALSE)) -> na | AH47: =IF(VLOOKUP($AF47,T2_Calc!$B$20:$BLL$359,((DropD_Calc!$J$7)*37)+295+IF(T2_RankType=2,3,0),FALSE)<0,"na",VLOOKUP($AF47,T2_Calc!$B$20:$BLL$359,((DropD_Calc!$J$7)*37)+295+IF(T2_RankType=2,3,0),FALSE)) -> na | AI47: na
U48: for | AF48: =T2_Calc!B64 -> Liverpool | AG48: =IF(VLOOKUP($AF48,T2_Calc!$B$20:$LU$359,((DropD_Calc!$J$7)*9)+7+IF(T2_RankType=2,3,0),FALSE)<0,"na",VLOOKUP($AF48,T2_Calc!$B$20:$LU$359,((DropD_Calc!$J$7)*9)+7+IF(T2_RankType=2,3,0),FALSE)) -> na | AH48: =IF(VLOOKUP($AF48,T2_Calc!$B$20:$BLL$359,((DropD_Calc!$J$7)*37)+295+IF(T2_RankType=2,3,0),FALSE)<0,"na",VLOOKUP($AF48,T2_Calc!$B$20:$BLL$359,((DropD_Calc!$J$7)*37)+295+IF(T2_RankType=2,3,0),FALSE)) -> na | AI48: na
U49: =T2_Calc!B2 -> Council Tax and Housing Benefits | AF49: =T2_Calc!B65 -> St Helens | AG49: =IF(VLOOKUP($AF49,T2_Calc!$B$20:$LU$359,((DropD_Calc!$J$7)*9)+7+IF(T2_RankType=2,3,0),FALSE)<0,"na",VLOOKUP($AF49,T2_Calc!$B$20:$LU$359,((DropD_Calc!$J$7)*9)+7+IF(T2_RankType=2,3,0),FALSE)) -> na | AH49: =IF(VLOOKUP($AF49,T2_Calc!$B$20:$BLL$359,((DropD_Calc!$J$7)*37)+295+IF(T2_RankType=2,3,0),FALSE)<0,"na",VLOOKUP($AF49,T2_Calc!$B$20:$BLL$359,((DropD_Calc!$J$7)*37)+295+IF(T2_RankType=2,3,0),FALSE)) -> na | AI49: na
U50: . | AF50: =T2_Calc!B66 -> Sefton | AG50: =IF(VLOOKUP($AF50,T2_Calc!$B$20:$LU$359,((DropD_Calc!$J$7)*9)+7+IF(T2_RankType=2,3,0),FALSE)<0,"na",VLOOKUP($AF50,T2_Calc!$B$20:$LU$359,((DropD_Calc!$J$7)*9)+7+IF(T2_RankType=2,3,0),FALSE)) -> na | AH50: =IF(VLOOKUP($AF50,T2_Calc!$B$20:$BLL$359,((DropD_Calc!$J$7)*37)+295+IF(T2_RankType=2,3,0),FALSE)<0,"na",VLOOKUP($AF50,T2_Calc!$B$20:$BLL$359,((DropD_Calc!$J$7)*37)+295+IF(T2_RankType=2,3,0),FALSE)) -> na | AI50: na
U51: The highest performing authority for this service is | Z51: =IFERROR(INDEX(AF4:AF356,MATCH(LARGE(AI4:AI356,1),AI4:AI356,0)),"") ->  | AF51: =T2_Calc!B67 -> Wirral | AG51: =IF(VLOOKUP($AF51,T2_Calc!$B$20:$LU$359,((DropD_Calc!$J$7)*9)+7+IF(T2_RankType=2,3,0),FALSE)<0,"na",VLOOKUP($AF51,T2_Calc!$B$20:$LU$359,((DropD_Calc!$J$7)*9)+7+IF(T2_RankType=2,3,0),FALSE)) -> na | AH51: =IF(VLOOKUP($AF51,T2_Calc!$B$20:$BLL$359,((DropD_Calc!$J$7)*37)+295+IF(T2_RankType=2,3,0),FALSE)<0,"na",VLOOKUP($AF51,T2_Calc!$B$20:$BLL$359,((DropD_Calc!$J$7)*37)+295+IF(T2_RankType=2,3,0),FALSE)) -> na | AI51: na
U52: =Z51 ->  | Z52: =IFERROR(INDEX(AF4:AF356,MATCH(LARGE(AI4:AI356,2),AI4:AI356,0)),"") ->  | AF52: =T2_Calc!B68 -> Barnsley | AG52: =IF(VLOOKUP($AF52,T2_Calc!$B$20:$LU$359,((DropD_Calc!$J$7)*9)+7+IF(T2_RankType=2,3,0),FALSE)<0,"na",VLOOKUP($AF52,T2_Calc!$B$20:$LU$359,((DropD_Calc!$J$7)*9)+7+IF(T2_RankType=2,3,0),FALSE)) -> na | AH52: =IF(VLOOKUP($AF52,T2_Calc!$B$20:$BLL$359,((DropD_Calc!$J$7)*37)+295+IF(T2_RankType=2,3,0),FALSE)<0,"na",VLOOKUP($AF52,T2_Calc!$B$20:$BLL$359,((DropD_Calc!$J$7)*37)+295+IF(T2_RankType=2,3,0),FALSE)) -> na | AI52: na
U53: and the lowest are | Z53: =IFERROR(INDEX(AF4:AF356,MATCH(LARGE(AI4:AI356,3),AI4:AI356,0)),"") ->  | AF53: =T2_Calc!B69 -> Doncaster | AG53: =IF(VLOOKUP($AF53,T2_Calc!$B$20:$LU$359,((DropD_Calc!$J$7)*9)+7+IF(T2_RankType=2,3,0),FALSE)<0,"na",VLOOKUP($AF53,T2_Calc!$B$20:$LU$359,((DropD_Calc!$J$7)*9)+7+IF(T2_RankType=2,3,0),FALSE)) -> na | AH53: =IF(VLOOKUP($AF53,T2_Calc!$B$20:$BLL$359,((DropD_Calc!$J$7)*37)+295+IF(T2_RankType=2,3,0),FALSE)<0,"na",VLOOKUP($AF53,T2_Calc!$B$20:$BLL$359,((DropD_Calc!$J$7)*37)+295+IF(T2_RankType=2,3,0),FALSE)) -> na | AI53: na
U54: =Z55 ->  | AF54: =T2_Calc!B70 -> Rotherham | AG54: =IF(VLOOKUP($AF54,T2_Calc!$B$20:$LU$359,((DropD_Calc!$J$7)*9)+7+IF(T2_RankType=2,3,0),FALSE)<0,"na",VLOOKUP($AF54,T2_Calc!$B$20:$LU$359,((DropD_Calc!$J$7)*9)+7+IF(T2_RankType=2,3,0),FALSE)) -> na | AH54: =IF(VLOOKUP($AF54,T2_Calc!$B$20:$BLL$359,((DropD_Calc!$J$7)*37)+295+IF(T2_RankType=2,3,0),FALSE)<0,"na",VLOOKUP($AF54,T2_Calc!$B$20:$BLL$359,((DropD_Calc!$J$7)*37)+295+IF(T2_RankType=2,3,0),FALSE)) -> na | AI54: na
U55: . | Z55: =IFERROR(INDEX(AF4:AF356,MATCH(SMALL(AI4:AI356,1),AI4:AI356,0)),"") ->  | AF55: =T2_Calc!B71 -> Sheffield | AG55: =IF(VLOOKUP($AF55,T2_Calc!$B$20:$LU$359,((DropD_Calc!$J$7)*9)+7+IF(T2_RankType=2,3,0),FALSE)<0,"na",VLOOKUP($AF55,T2_Calc!$B$20:$LU$359,((DropD_Calc!$J$7)*9)+7+IF(T2_RankType=2,3,0),FALSE)) -> na | AH55: =IF(VLOOKUP($AF55,T2_Calc!$B$20:$BLL$359,((DropD_Calc!$J$7)*37)+295+IF(T2_RankType=2,3,0),FALSE)<0,"na",VLOOKUP($AF55,T2_Calc!$B$20:$BLL$359,((DropD_Calc!$J$7)*37)+295+IF(T2_RankType=2,3,0),FALSE)) -> na | AI55: na
U56: When broken down | Z56: =IFERROR(INDEX(AF4:AF356,MATCH(SMALL(AI4:AI356,2),AI4:AI356,0)),"") ->  | AF56: =T2_Calc!B72 -> Gateshead | AG56: =IF(VLOOKUP($AF56,T2_Calc!$B$20:$LU$359,((DropD_Calc!$J$7)*9)+7+IF(T2_RankType=2,3,0),FALSE)<0,"na",VLOOKUP($AF56,T2_Calc!$B$20:$LU$359,((DropD_Calc!$J$7)*9)+7+IF(T2_RankType=2,3,0),FALSE)) -> na | AH56: =IF(VLOOKUP($AF56,T2_Calc!$B$20:$BLL$359,((DropD_Calc!$J$7)*37)+295+IF(T2_RankType=2,3,0),FALSE)<0,"na",VLOOKUP($AF56,T2_Calc!$B$20:$BLL$359,((DropD_Calc!$J$7)*37)+295+IF(T2_RankType=2,3,0),FALSE)) -> na | AI56: na
U57: =Authority -> Adur | Z57: =IFERROR(INDEX(AF4:AF356,MATCH(SMALL(AI4:AI356,3),AI4:AI356,0)),"") ->  | AF57: =T2_Calc!B73 -> Newcastle-upon-Tyne | AG57: =IF(VLOOKUP($AF57,T2_Calc!$B$20:$LU$359,((DropD_Calc!$J$7)*9)+7+IF(T2_RankType=2,3,0),FALSE)<0,"na",VLOOKUP($AF57,T2_Calc!$B$20:$LU$359,((DropD_Calc!$J$7)*9)+7+IF(T2_RankType=2,3,0),FALSE)) -> na | AH57: =IF(VLOOKUP($AF57,T2_Calc!$B$20:$BLL$359,((DropD_Calc!$J$7)*37)+295+IF(T2_RankType=2,3,0),FALSE)<0,"na",VLOOKUP($AF57,T2_Calc!$B$20:$BLL$359,((DropD_Calc!$J$7)*37)+295+IF(T2_RankType=2,3,0),FALSE)) -> na | AI57: na
U58: are ranked | AF58: =T2_Calc!B74 -> North Tyneside | AG58: =IF(VLOOKUP($AF58,T2_Calc!$B$20:$LU$359,((DropD_Calc!$J$7)*9)+7+IF(T2_RankType=2,3,0),FALSE)<0,"na",VLOOKUP($AF58,T2_Calc!$B$20:$LU$359,((DropD_Calc!$J$7)*9)+7+IF(T2_RankType=2,3,0),FALSE)) -> na | AH58: =IF(VLOOKUP($AF58,T2_Calc!$B$20:$BLL$359,((DropD_Calc!$J$7)*37)+295+IF(T2_RankType=2,3,0),FALSE)<0,"na",VLOOKUP($AF58,T2_Calc!$B$20:$BLL$359,((DropD_Calc!$J$7)*37)+295+IF(T2_RankType=2,3,0),FALSE)) -> na | AI58: na
U59: =RANK(VLOOKUP(Authority,AF:AH,2,FALSE),AG:AG,0) ->  | AF59: =T2_Calc!B75 -> South Tyneside | AG59: =IF(VLOOKUP($AF59,T2_Calc!$B$20:$LU$359,((DropD_Calc!$J$7)*9)+7+IF(T2_RankType=2,3,0),FALSE)<0,"na",VLOOKUP($AF59,T2_Calc!$B$20:$LU$359,((DropD_Calc!$J$7)*9)+7+IF(T2_RankType=2,3,0),FALSE)) -> na | AH59: =IF(VLOOKUP($AF59,T2_Calc!$B$20:$BLL$359,((DropD_Calc!$J$7)*37)+295+IF(T2_RankType=2,3,0),FALSE)<0,"na",VLOOKUP($AF59,T2_Calc!$B$20:$BLL$359,((DropD_Calc!$J$7)*37)+295+IF(T2_RankType=2,3,0),FALSE)) -> na | AI59: na
U60: =IF(AND(RIGHT(U59,1)="1",U59<>11),"st",IF(AND(RIGHT(U59,1)="2",U59<>12),"nd",IF(AND(RIGHT(U59,1)="3",U59<>13),"rd","th"))) ->  | AF60: =T2_Calc!B76 -> Sunderland | AG60: =IF(VLOOKUP($AF60,T2_Calc!$B$20:$LU$359,((DropD_Calc!$J$7)*9)+7+IF(T2_RankType=2,3,0),FALSE)<0,"na",VLOOKUP($AF60,T2_Calc!$B$20:$LU$359,((DropD_Calc!$J$7)*9)+7+IF(T2_RankType=2,3,0),FALSE)) -> na | AH60: =IF(VLOOKUP($AF60,T2_Calc!$B$20:$BLL$359,((DropD_Calc!$J$7)*37)+295+IF(T2_RankType=2,3,0),FALSE)<0,"na",VLOOKUP($AF60,T2_Calc!$B$20:$BLL$359,((DropD_Calc!$J$7)*37)+295+IF(T2_RankType=2,3,0),FALSE)) -> na | AI60: na
U61: for unit cost and | AF61: =T2_Calc!B77 -> Birmingham | AG61: =IF(VLOOKUP($AF61,T2_Calc!$B$20:$LU$359,((DropD_Calc!$J$7)*9)+7+IF(T2_RankType=2,3,0),FALSE)<0,"na",VLOOKUP($AF61,T2_Calc!$B$20:$LU$359,((DropD_Calc!$J$7)*9)+7+IF(T2_RankType=2,3,0),FALSE)) -> na | AH61: =IF(VLOOKUP($AF61,T2_Calc!$B$20:$BLL$359,((DropD_Calc!$J$7)*37)+295+IF(T2_RankType=2,3,0),FALSE)<0,"na",VLOOKUP($AF61,T2_Calc!$B$20:$BLL$359,((DropD_Calc!$J$7)*37)+295+IF(T2_RankType=2,3,0),FALSE)) -> na | AI61: na
U62: =RANK(VLOOKUP(Authority,AF:AH,3,FALSE),AH:AH,0) ->  | AF62: =T2_Calc!B78 -> Coventry | AG62: =IF(VLOOKUP($AF62,T2_Calc!$B$20:$LU$359,((DropD_Calc!$J$7)*9)+7+IF(T2_RankType=2,3,0),FALSE)<0,"na",VLOOKUP($AF62,T2_Calc!$B$20:$LU$359,((DropD_Calc!$J$7)*9)+7+IF(T2_RankType=2,3,0),FALSE)) -> na | AH62: =IF(VLOOKUP($AF62,T2_Calc!$B$20:$BLL$359,((DropD_Calc!$J$7)*37)+295+IF(T2_RankType=2,3,0),FALSE)<0,"na",VLOOKUP($AF62,T2_Calc!$B$20:$BLL$359,((DropD_Calc!$J$7)*37)+295+IF(T2_RankType=2,3,0),FALSE)) -> na | AI62: na
U63: =IF(AND(RIGHT(U62,1)="1",U62<>11),"st",IF(AND(RIGHT(U62,1)="2",U62<>12),"nd",IF(AND(RIGHT(U62,1)="3",U62<>13),"rd","th"))) ->  | AF63: =T2_Calc!B79 -> Dudley | AG63: =IF(VLOOKUP($AF63,T2_Calc!$B$20:$LU$359,((DropD_Calc!$J$7)*9)+7+IF(T2_RankType=2,3,0),FALSE)<0,"na",VLOOKUP($AF63,T2_Calc!$B$20:$LU$359,((DropD_Calc!$J$7)*9)+7+IF(T2_RankType=2,3,0),FALSE)) -> na | AH63: =IF(VLOOKUP($AF63,T2_Calc!$B$20:$BLL$359,((DropD_Calc!$J$7)*37)+295+IF(T2_RankType=2,3,0),FALSE)<0,"na",VLOOKUP($AF63,T2_Calc!$B$20:$BLL$359,((DropD_Calc!$J$7)*37)+295+IF(T2_RankType=2,3,0),FALSE)) -> na | AI63: na
U64: for performance. | AF64: =T2_Calc!B80 -> Sandwell | AG64: =IF(VLOOKUP($AF64,T2_Calc!$B$20:$LU$359,((DropD_Calc!$J$7)*9)+7+IF(T2_RankType=2,3,0),FALSE)<0,"na",VLOOKUP($AF64,T2_Calc!$B$20:$LU$359,((DropD_Calc!$J$7)*9)+7+IF(T2_RankType=2,3,0),FALSE)) -> na | AH64: =IF(VLOOKUP($AF64,T2_Calc!$B$20:$BLL$359,((DropD_Calc!$J$7)*37)+295+IF(T2_RankType=2,3,0),FALSE)<0,"na",VLOOKUP($AF64,T2_Calc!$B$20:$BLL$359,((DropD_Calc!$J$7)*37)+295+IF(T2_RankType=2,3,0),FALSE)) -> na | AI64: na
AF65: =T2_Calc!B81 -> Solihull | AG65: =IF(VLOOKUP($AF65,T2_Calc!$B$20:$LU$359,((DropD_Calc!$J$7)*9)+7+IF(T2_RankType=2,3,0),FALSE)<0,"na",VLOOKUP($AF65,T2_Calc!$B$20:$LU$359,((DropD_Calc!$J$7)*9)+7+IF(T2_RankType=2,3,0),FALSE)) -> na | AH65: =IF(VLOOKUP($AF65,T2_Calc!$B$20:$BLL$359,((DropD_Calc!$J$7)*37)+295+IF(T2_RankType=2,3,0),FALSE)<0,"na",VLOOKUP($AF65,T2_Calc!$B$20:$BLL$359,((DropD_Calc!$J$7)*37)+295+IF(T2_RankType=2,3,0),FALSE)) -> na | AI65: na
U66: =IF(ISERROR(U67),"",U67) -> Adur are ranked 11th out of 16 authorities for their performance in Average time taken to process housing benefit change of circumstance. Ranked highest in the group are Rochford, whilst Wyre are ranked lowest. | AF66: =T2_Calc!B82 -> Walsall | AG66: =IF(VLOOKUP($AF66,T2_Calc!$B$20:$LU$359,((DropD_Calc!$J$7)*9)+7+IF(T2_RankType=2,3,0),FALSE)<0,"na",VLOOKUP($AF66,T2_Calc!$B$20:$LU$359,((DropD_Calc!$J$7)*9)+7+IF(T2_RankType=2,3,0),FALSE)) -> na | AH66: =IF(VLOOKUP($AF66,T2_Calc!$B$20:$BLL$359,((DropD_Calc!$J$7)*37)+295+IF(T2_RankType=2,3,0),FALSE)<0,"na",VLOOKUP($AF66,T2_Calc!$B$20:$BLL$359,((DropD_Calc!$J$7)*37)+295+IF(T2_RankType=2,3,0),FALSE)) -> na | AI66: na
U67: =U68&U69&U70&U71&U72&U73&U74&U75&U76&U77&U78&U79&U80&U81 -> Adur are ranked 11th out of 16 authorities for their performance in Average time taken to process housing benefit change of circumstance. Ranked highest in the group are Rochford, whilst Wyre are ranked lowest. | AF67: =T2_Calc!B83 -> Wolverhampton | AG67: =IF(VLOOKUP($AF67,T2_Calc!$B$20:$LU$359,((DropD_Calc!$J$7)*9)+7+IF(T2_RankType=2,3,0),FALSE)<0,"na",VLOOKUP($AF67,T2_Calc!$B$20:$LU$359,((DropD_Calc!$J$7)*9)+7+IF(T2_RankType=2,3,0),FALSE)) -> na | AH67: =IF(VLOOKUP($AF67,T2_Calc!$B$20:$BLL$359,((DropD_Calc!$J$7)*37)+295+IF(T2_RankType=2,3,0),FALSE)<0,"na",VLOOKUP($AF67,T2_Calc!$B$20:$BLL$359,((DropD_Calc!$J$7)*37)+295+IF(T2_RankType=2,3,0),FALSE)) -> na | AI67: na
U68: =Authority -> Adur | AF68: =T2_Calc!B84 -> Bradford | AG68: =IF(VLOOKUP($AF68,T2_Calc!$B$20:$LU$359,((DropD_Calc!$J$7)*9)+7+IF(T2_RankType=2,3,0),FALSE)<0,"na",VLOOKUP($AF68,T2_Calc!$B$20:$LU$359,((DropD_Calc!$J$7)*9)+7+IF(T2_RankType=2,3,0),FALSE)) -> na | AH68: =IF(VLOOKUP($AF68,T2_Calc!$B$20:$BLL$359,((DropD_Calc!$J$7)*37)+295+IF(T2_RankType=2,3,0),FALSE)<0,"na",VLOOKUP($AF68,T2_Calc!$B$20:$BLL$359,((DropD_Calc!$J$7)*37)+295+IF(T2_RankType=2,3,0),FALSE)) -> na | AI68: na
U69: are ranked | AF69: =T2_Calc!B85 -> Calderdale | AG69: =IF(VLOOKUP($AF69,T2_Calc!$B$20:$LU$359,((DropD_Calc!$J$7)*9)+7+IF(T2_RankType=2,3,0),FALSE)<0,"na",VLOOKUP($AF69,T2_Calc!$B$20:$LU$359,((DropD_Calc!$J$7)*9)+7+IF(T2_RankType=2,3,0),FALSE)) -> na | AH69: =IF(VLOOKUP($AF69,T2_Calc!$B$20:$BLL$359,((DropD_Calc!$J$7)*37)+295+IF(T2_RankType=2,3,0),FALSE)<0,"na",VLOOKUP($AF69,T2_Calc!$B$20:$BLL$359,((DropD_Calc!$J$7)*37)+295+IF(T2_RankType=2,3,0),FALSE)) -> na | AI69: =IF(OR(AG69="na",AH69="na"),"na",AVERAGE(AG69:AH69)+(ROW()*0.00000000001)) -> na
U70: =MATCH(U68,T3_Calc!K20:K356,0) -> 11 | AF70: =T2_Calc!B86 -> Kirklees | AG70: =IF(VLOOKUP($AF70,T2_Calc!$B$20:$LU$359,((DropD_Calc!$J$7)*9)+7+IF(T2_RankType=2,3,0),FALSE)<0,"na",VLOOKUP($AF70,T2_Calc!$B$20:$LU$359,((DropD_Calc!$J$7)*9)+7+IF(T2_RankType=2,3,0),FALSE)) -> na | AH70: =IF(VLOOKUP($AF70,T2_Calc!$B$20:$BLL$359,((DropD_Calc!$J$7)*37)+295+IF(T2_RankType=2,3,0),FALSE)<0,"na",VLOOKUP($AF70,T2_Calc!$B$20:$BLL$359,((DropD_Calc!$J$7)*37)+295+IF(T2_RankType=2,3,0),FALSE)) -> na | AI70: na
U71: =IF(AND(RIGHT(U70,1)="1",U70<>11),"st",IF(AND(RIGHT(U70,1)="2",U70<>12),"nd",IF(AND(RIGHT(U70,1)="3",U70<>13),"rd","th"))) -> th | AF71: =T2_Calc!B87 -> Leeds | AG71: =IF(VLOOKUP($AF71,T2_Calc!$B$20:$LU$359,((DropD_Calc!$J$7)*9)+7+IF(T2_RankType=2,3,0),FALSE)<0,"na",VLOOKUP($AF71,T2_Calc!$B$20:$LU$359,((DropD_Calc!$J$7)*9)+7+IF(T2_RankType=2,3,0),FALSE)) -> na | AH71: =IF(VLOOKUP($AF71,T2_Calc!$B$20:$BLL$359,((DropD_Calc!$J$7)*37)+295+IF(T2_RankType=2,3,0),FALSE)<0,"na",VLOOKUP($AF71,T2_Calc!$B$20:$BLL$359,((DropD_Calc!$J$7)*37)+295+IF(T2_RankType=2,3,0),FALSE)) -> na | AI71: na
U72: out of | AF72: =T2_Calc!B88 -> Wakefield | AG72: =IF(VLOOKUP($AF72,T2_Calc!$B$20:$LU$359,((DropD_Calc!$J$7)*9)+7+IF(T2_RankType=2,3,0),FALSE)<0,"na",VLOOKUP($AF72,T2_Calc!$B$20:$LU$359,((DropD_Calc!$J$7)*9)+7+IF(T2_RankType=2,3,0),FALSE)) -> na | AH72: =IF(VLOOKUP($AF72,T2_Calc!$B$20:$BLL$359,((DropD_Calc!$J$7)*37)+295+IF(T2_RankType=2,3,0),FALSE)<0,"na",VLOOKUP($AF72,T2_Calc!$B$20:$BLL$359,((DropD_Calc!$J$7)*37)+295+IF(T2_RankType=2,3,0),FALSE)) -> na | AI72: na
U73: =T2_Calc!F5 -> 16 | AF73: =T2_Calc!B89 -> Bath & North East Somerset | AG73: =IF(VLOOKUP($AF73,T2_Calc!$B$20:$LU$359,((DropD_Calc!$J$7)*9)+7+IF(T2_RankType=2,3,0),FALSE)<0,"na",VLOOKUP($AF73,T2_Calc!$B$20:$LU$359,((DropD_Calc!$J$7)*9)+7+IF(T2_RankType=2,3,0),FALSE)) -> na | AH73: =IF(VLOOKUP($AF73,T2_Calc!$B$20:$BLL$359,((DropD_Calc!$J$7)*37)+295+IF(T2_RankType=2,3,0),FALSE)<0,"na",VLOOKUP($AF73,T2_Calc!$B$20:$BLL$359,((DropD_Calc!$J$7)*37)+295+IF(T2_RankType=2,3,0),FALSE)) -> na | AI73: na
U74: authorities for their performance in | AF74: =T2_Calc!B90 -> Bedford | AG74: =IF(VLOOKUP($AF74,T2_Calc!$B$20:$LU$359,((DropD_Calc!$J$7)*9)+7+IF(T2_RankType=2,3,0),FALSE)<0,"na",VLOOKUP($AF74,T2_Calc!$B$20:$LU$359,((DropD_Calc!$J$7)*9)+7+IF(T2_RankType=2,3,0),FALSE)) -> na | AH74: =IF(VLOOKUP($AF74,T2_Calc!$B$20:$BLL$359,((DropD_Calc!$J$7)*37)+295+IF(T2_RankType=2,3,0),FALSE)<0,"na",VLOOKUP($AF74,T2_Calc!$B$20:$BLL$359,((DropD_Calc!$J$7)*37)+295+IF(T2_RankType=2,3,0),FALSE)) -> na | AI74: na
U75: =T3_Calc!C16 -> Average time taken to process housing benefit change of circumstance | AF75: =T2_Calc!B91 -> Blackburn with Darwen | AG75: =IF(VLOOKUP($AF75,T2_Calc!$B$20:$LU$359,((DropD_Calc!$J$7)*9)+7+IF(T2_RankType=2,3,0),FALSE)<0,"na",VLOOKUP($AF75,T2_Calc!$B$20:$LU$359,((DropD_Calc!$J$7)*9)+7+IF(T2_RankType=2,3,0),FALSE)) -> na | AH75: =IF(VLOOKUP($AF75,T2_Calc!$B$20:$BLL$359,((DropD_Calc!$J$7)*37)+295+IF(T2_RankType=2,3,0),FALSE)<0,"na",VLOOKUP($AF75,T2_Calc!$B$20:$BLL$359,((DropD_Calc!$J$7)*37)+295+IF(T2_RankType=2,3,0),FALSE)) -> na | AI75: na
U76: . | AF76: =T2_Calc!B92 -> Blackpool | AG76: =IF(VLOOKUP($AF76,T2_Calc!$B$20:$LU$359,((DropD_Calc!$J$7)*9)+7+IF(T2_RankType=2,3,0),FALSE)<0,"na",VLOOKUP($AF76,T2_Calc!$B$20:$LU$359,((DropD_Calc!$J$7)*9)+7+IF(T2_RankType=2,3,0),FALSE)) -> na | AH76: =IF(VLOOKUP($AF76,T2_Calc!$B$20:$BLL$359,((DropD_Calc!$J$7)*37)+295+IF(T2_RankType=2,3,0),FALSE)<0,"na",VLOOKUP($AF76,T2_Calc!$B$20:$BLL$359,((DropD_Calc!$J$7)*37)+295+IF(T2_RankType=2,3,0),FALSE)) -> na | AI76: na
B77: =U66 -> Adur are ranked 11th out of 16 authorities for their performance in Average time taken to process housing benefit change of circumstance. Ranked highest in the group are Rochford, whilst Wyre are ranked lowest. | U77: Ranked highest in the group are | AF77: =T2_Calc!B93 -> Bournemouth, Christchurch & Poole | AG77: =IF(VLOOKUP($AF77,T2_Calc!$B$20:$LU$359,((DropD_Calc!$J$7)*9)+7+IF(T2_RankType=2,3,0),FALSE)<0,"na",VLOOKUP($AF77,T2_Calc!$B$20:$LU$359,((DropD_Calc!$J$7)*9)+7+IF(T2_RankType=2,3,0),FALSE)) -> na | AH77: =IF(VLOOKUP($AF77,T2_Calc!$B$20:$BLL$359,((DropD_Calc!$J$7)*37)+295+IF(T2_RankType=2,3,0),FALSE)<0,"na",VLOOKUP($AF77,T2_Calc!$B$20:$BLL$359,((DropD_Calc!$J$7)*37)+295+IF(T2_RankType=2,3,0),FALSE)) -> na | AI77: na
U78: =T3_Calc!K20 -> Rochford | AF78: =T2_Calc!B94 -> Bracknell Forest | AG78: =IF(VLOOKUP($AF78,T2_Calc!$B$20:$LU$359,((DropD_Calc!$J$7)*9)+7+IF(T2_RankType=2,3,0),FALSE)<0,"na",VLOOKUP($AF78,T2_Calc!$B$20:$LU$359,((DropD_Calc!$J$7)*9)+7+IF(T2_RankType=2,3,0),FALSE)) -> na | AH78: =IF(VLOOKUP($AF78,T2_Calc!$B$20:$BLL$359,((DropD_Calc!$J$7)*37)+295+IF(T2_RankType=2,3,0),FALSE)<0,"na",VLOOKUP($AF78,T2_Calc!$B$20:$BLL$359,((DropD_Calc!$J$7)*37)+295+IF(T2_RankType=2,3,0),FALSE)) -> na | AI78: na
U79: , whilst | AF79: =T2_Calc!B95 -> Brighton & Hove | AG79: =IF(VLOOKUP($AF79,T2_Calc!$B$20:$LU$359,((DropD_Calc!$J$7)*9)+7+IF(T2_RankType=2,3,0),FALSE)<0,"na",VLOOKUP($AF79,T2_Calc!$B$20:$LU$359,((DropD_Calc!$J$7)*9)+7+IF(T2_RankType=2,3,0),FALSE)) -> na | AH79: =IF(VLOOKUP($AF79,T2_Calc!$B$20:$BLL$359,((DropD_Calc!$J$7)*37)+295+IF(T2_RankType=2,3,0),FALSE)<0,"na",VLOOKUP($AF79,T2_Calc!$B$20:$BLL$359,((DropD_Calc!$J$7)*37)+295+IF(T2_RankType=2,3,0),FALSE)) -> na | AI79: na
U80: =INDEX(T3_Calc!K20:K356,T2_Calc!F5) -> Wyre | AF80: =T2_Calc!B96 -> Bristol | AG80: =IF(VLOOKUP($AF80,T2_Calc!$B$20:$LU$359,((DropD_Calc!$J$7)*9)+7+IF(T2_RankType=2,3,0),FALSE)<0,"na",VLOOKUP($AF80,T2_Calc!$B$20:$LU$359,((DropD_Calc!$J$7)*9)+7+IF(T2_RankType=2,3,0),FALSE)) -> na | AH80: =IF(VLOOKUP($AF80,T2_Calc!$B$20:$BLL$359,((DropD_Calc!$J$7)*37)+295+IF(T2_RankType=2,3,0),FALSE)<0,"na",VLOOKUP($AF80,T2_Calc!$B$20:$BLL$359,((DropD_Calc!$J$7)*37)+295+IF(T2_RankType=2,3,0),FALSE)) -> na | AI80: na
U81: are ranked lowest. | AF81: =T2_Calc!B98 -> Central Bedfordshire | AG81: =IF(VLOOKUP($AF81,T2_Calc!$B$20:$LU$359,((DropD_Calc!$J$7)*9)+7+IF(T2_RankType=2,3,0),FALSE)<0,"na",VLOOKUP($AF81,T2_Calc!$B$20:$LU$359,((DropD_Calc!$J$7)*9)+7+IF(T2_RankType=2,3,0),FALSE)) -> na | AH81: =IF(VLOOKUP($AF81,T2_Calc!$B$20:$BLL$359,((DropD_Calc!$J$7)*37)+295+IF(T2_RankType=2,3,0),FALSE)<0,"na",VLOOKUP($AF81,T2_Calc!$B$20:$BLL$359,((DropD_Calc!$J$7)*37)+295+IF(T2_RankType=2,3,0),FALSE)) -> na | AI81: na
AF82: =T2_Calc!B99 -> Cheshire East | AG82: =IF(VLOOKUP($AF82,T2_Calc!$B$20:$LU$359,((DropD_Calc!$J$7)*9)+7+IF(T2_RankType=2,3,0),FALSE)<0,"na",VLOOKUP($AF82,T2_Calc!$B$20:$LU$359,((DropD_Calc!$J$7)*9)+7+IF(T2_RankType=2,3,0),FALSE)) -> na | AH82: =IF(VLOOKUP($AF82,T2_Calc!$B$20:$BLL$359,((DropD_Calc!$J$7)*37)+295+IF(T2_RankType=2,3,0),FALSE)<0,"na",VLOOKUP($AF82,T2_Calc!$B$20:$BLL$359,((DropD_Calc!$J$7)*37)+295+IF(T2_RankType=2,3,0),FALSE)) -> na | AI82: na
U83: =IF(ISERROR(U84),"",U84) -> Adur are ranked 1st out of 16 for their unit cost value for the service Council Tax and Housing Benefits. Ranked most expensive in the group are Adur, whilst South Ribble are ranked as the cheapest. | AF83: =T2_Calc!B100 -> Cheshire West and Chester | AG83: =IF(VLOOKUP($AF83,T2_Calc!$B$20:$LU$359,((DropD_Calc!$J$7)*9)+7+IF(T2_RankType=2,3,0),FALSE)<0,"na",VLOOKUP($AF83,T2_Calc!$B$20:$LU$359,((DropD_Calc!$J$7)*9)+7+IF(T2_RankType=2,3,0),FALSE)) -> na | AH83: =IF(VLOOKUP($AF83,T2_Calc!$B$20:$BLL$359,((DropD_Calc!$J$7)*37)+295+IF(T2_RankType=2,3,0),FALSE)<0,"na",VLOOKUP($AF83,T2_Calc!$B$20:$BLL$359,((DropD_Calc!$J$7)*37)+295+IF(T2_RankType=2,3,0),FALSE)) -> na | AI83: na
U84: =U85&U86&U87&U88&U89&U90&U91&U92&U93&U94&U95&U96&U97 -> Adur are ranked 1st out of 16 for their unit cost value for the service Council Tax and Housing Benefits. Ranked most expensive in the group are Adur, whilst South Ribble are ranked as the cheapest. | AF84: =T2_Calc!B101 -> Cornwall | AG84: =IF(VLOOKUP($AF84,T2_Calc!$B$20:$LU$359,((DropD_Calc!$J$7)*9)+7+IF(T2_RankType=2,3,0),FALSE)<0,"na",VLOOKUP($AF84,T2_Calc!$B$20:$LU$359,((DropD_Calc!$J$7)*9)+7+IF(T2_RankType=2,3,0),FALSE)) -> na | AH84: =IF(VLOOKUP($AF84,T2_Calc!$B$20:$BLL$359,((DropD_Calc!$J$7)*37)+295+IF(T2_RankType=2,3,0),FALSE)<0,"na",VLOOKUP($AF84,T2_Calc!$B$20:$BLL$359,((DropD_Calc!$J$7)*37)+295+IF(T2_RankType=2,3,0),FALSE)) -> na | AI84: na
U85: =Authority -> Adur | AF85: =T2_Calc!B102 -> Darlington | AG85: =IF(VLOOKUP($AF85,T2_Calc!$B$20:$LU$359,((DropD_Calc!$J$7)*9)+7+IF(T2_RankType=2,3,0),FALSE)<0,"na",VLOOKUP($AF85,T2_Calc!$B$20:$LU$359,((DropD_Calc!$J$7)*9)+7+IF(T2_RankType=2,3,0),FALSE)) -> na | AH85: =IF(VLOOKUP($AF85,T2_Calc!$B$20:$BLL$359,((DropD_Calc!$J$7)*37)+295+IF(T2_RankType=2,3,0),FALSE)<0,"na",VLOOKUP($AF85,T2_Calc!$B$20:$BLL$359,((DropD_Calc!$J$7)*37)+295+IF(T2_RankType=2,3,0),FALSE)) -> na | AI85: na
U86: are ranked | AF86: =T2_Calc!B103 -> Derby | AG86: =IF(VLOOKUP($AF86,T2_Calc!$B$20:$LU$359,((DropD_Calc!$J$7)*9)+7+IF(T2_RankType=2,3,0),FALSE)<0,"na",VLOOKUP($AF86,T2_Calc!$B$20:$LU$359,((DropD_Calc!$J$7)*9)+7+IF(T2_RankType=2,3,0),FALSE)) -> na | AH86: =IF(VLOOKUP($AF86,T2_Calc!$B$20:$BLL$359,((DropD_Calc!$J$7)*37)+295+IF(T2_RankType=2,3,0),FALSE)<0,"na",VLOOKUP($AF86,T2_Calc!$B$20:$BLL$359,((DropD_Calc!$J$7)*37)+295+IF(T2_RankType=2,3,0),FALSE)) -> na | AI86: na
U87: =MATCH(U85,T4_Calc!L20:L357,0) -> 1 | AF87: =T2_Calc!B105 -> Durham | AG87: =IF(VLOOKUP($AF87,T2_Calc!$B$20:$LU$359,((DropD_Calc!$J$7)*9)+7+IF(T2_RankType=2,3,0),FALSE)<0,"na",VLOOKUP($AF87,T2_Calc!$B$20:$LU$359,((DropD_Calc!$J$7)*9)+7+IF(T2_RankType=2,3,0),FALSE)) -> na | AH87: =IF(VLOOKUP($AF87,T2_Calc!$B$20:$BLL$359,((DropD_Calc!$J$7)*37)+295+IF(T2_RankType=2,3,0),FALSE)<0,"na",VLOOKUP($AF87,T2_Calc!$B$20:$BLL$359,((DropD_Calc!$J$7)*37)+295+IF(T2_RankType=2,3,0),FALSE)) -> na | AI87: na
U88: =IF(AND(RIGHT(U87,1)="1",U87<>11),"st",IF(AND(RIGHT(U87,1)="2",U87<>12),"nd",IF(AND(RIGHT(U87,1)="3",U87<>13),"rd","th"))) -> st | AF88: =T2_Calc!B106 -> East Riding of Yorkshire | AG88: =IF(VLOOKUP($AF88,T2_Calc!$B$20:$LU$359,((DropD_Calc!$J$7)*9)+7+IF(T2_RankType=2,3,0),FALSE)<0,"na",VLOOKUP($AF88,T2_Calc!$B$20:$LU$359,((DropD_Calc!$J$7)*9)+7+IF(T2_RankType=2,3,0),FALSE)) -> na | AH88: =IF(VLOOKUP($AF88,T2_Calc!$B$20:$BLL$359,((DropD_Calc!$J$7)*37)+295+IF(T2_RankType=2,3,0),FALSE)<0,"na",VLOOKUP($AF88,T2_Calc!$B$20:$BLL$359,((DropD_Calc!$J$7)*37)+295+IF(T2_RankType=2,3,0),FALSE)) -> na | AI88: na
U89: out of | AF89: =T2_Calc!B107 -> Halton | AG89: =IF(VLOOKUP($AF89,T2_Calc!$B$20:$LU$359,((DropD_Calc!$J$7)*9)+7+IF(T2_RankType=2,3,0),FALSE)<0,"na",VLOOKUP($AF89,T2_Calc!$B$20:$LU$359,((DropD_Calc!$J$7)*9)+7+IF(T2_RankType=2,3,0),FALSE)) -> na | AH89: =IF(VLOOKUP($AF89,T2_Calc!$B$20:$BLL$359,((DropD_Calc!$J$7)*37)+295+IF(T2_RankType=2,3,0),FALSE)<0,"na",VLOOKUP($AF89,T2_Calc!$B$20:$BLL$359,((DropD_Calc!$J$7)*37)+295+IF(T2_RankType=2,3,0),FALSE)) -> na | AI89: na
U90: =T2_Calc!F5 -> 16 | AF90: =T2_Calc!B108 -> Hartlepool | AG90: =IF(VLOOKUP($AF90,T2_Calc!$B$20:$LU$359,((DropD_Calc!$J$7)*9)+7+IF(T2_RankType=2,3,0),FALSE)<0,"na",VLOOKUP($AF90,T2_Calc!$B$20:$LU$359,((DropD_Calc!$J$7)*9)+7+IF(T2_RankType=2,3,0),FALSE)) -> na | AH90: =IF(VLOOKUP($AF90,T2_Calc!$B$20:$BLL$359,((DropD_Calc!$J$7)*37)+295+IF(T2_RankType=2,3,0),FALSE)<0,"na",VLOOKUP($AF90,T2_Calc!$B$20:$BLL$359,((DropD_Calc!$J$7)*37)+295+IF(T2_RankType=2,3,0),FALSE)) -> na | AI90: na
U91: for their unit cost value for the service | AF91: =T2_Calc!B109 -> Herefordshire | AG91: =IF(VLOOKUP($AF91,T2_Calc!$B$20:$LU$359,((DropD_Calc!$J$7)*9)+7+IF(T2_RankType=2,3,0),FALSE)<0,"na",VLOOKUP($AF91,T2_Calc!$B$20:$LU$359,((DropD_Calc!$J$7)*9)+7+IF(T2_RankType=2,3,0),FALSE)) -> na | AH91: =IF(VLOOKUP($AF91,T2_Calc!$B$20:$BLL$359,((DropD_Calc!$J$7)*37)+295+IF(T2_RankType=2,3,0),FALSE)<0,"na",VLOOKUP($AF91,T2_Calc!$B$20:$BLL$359,((DropD_Calc!$J$7)*37)+295+IF(T2_RankType=2,3,0),FALSE)) -> na | AI91: na
U92: =T2_Calc!B2 -> Council Tax and Housing Benefits | AF92: =T2_Calc!B110 -> Isle of Wight | AG92: =IF(VLOOKUP($AF92,T2_Calc!$B$20:$LU$359,((DropD_Calc!$J$7)*9)+7+IF(T2_RankType=2,3,0),FALSE)<0,"na",VLOOKUP($AF92,T2_Calc!$B$20:$LU$359,((DropD_Calc!$J$7)*9)+7+IF(T2_RankType=2,3,0),FALSE)) -> na | AH92: =IF(VLOOKUP($AF92,T2_Calc!$B$20:$BLL$359,((DropD_Calc!$J$7)*37)+295+IF(T2_RankType=2,3,0),FALSE)<0,"na",VLOOKUP($AF92,T2_Calc!$B$20:$BLL$359,((DropD_Calc!$J$7)*37)+295+IF(T2_RankType=2,3,0),FALSE)) -> na | AI92: na
U93: . Ranked most expensive in the group are | AF93: =T2_Calc!B111 -> Kingston-upon-Hull | AG93: =IF(VLOOKUP($AF93,T2_Calc!$B$20:$LU$359,((DropD_Calc!$J$7)*9)+7+IF(T2_RankType=2,3,0),FALSE)<0,"na",VLOOKUP($AF93,T2_Calc!$B$20:$LU$359,((DropD_Calc!$J$7)*9)+7+IF(T2_RankType=2,3,0),FALSE)) -> na | AH93: =IF(VLOOKUP($AF93,T2_Calc!$B$20:$BLL$359,((DropD_Calc!$J$7)*37)+295+IF(T2_RankType=2,3,0),FALSE)<0,"na",VLOOKUP($AF93,T2_Calc!$B$20:$BLL$359,((DropD_Calc!$J$7)*37)+295+IF(T2_RankType=2,3,0),FALSE)) -> na | AI93: na
U94: =T4_Calc!L20 -> Adur | AF94: =T2_Calc!B112 -> Leicester | AG94: =IF(VLOOKUP($AF94,T2_Calc!$B$20:$LU$359,((DropD_Calc!$J$7)*9)+7+IF(T2_RankType=2,3,0),FALSE)<0,"na",VLOOKUP($AF94,T2_Calc!$B$20:$LU$359,((DropD_Calc!$J$7)*9)+7+IF(T2_RankType=2,3,0),FALSE)) -> na | AH94: =IF(VLOOKUP($AF94,T2_Calc!$B$20:$BLL$359,((DropD_Calc!$J$7)*37)+295+IF(T2_RankType=2,3,0),FALSE)<0,"na",VLOOKUP($AF94,T2_Calc!$B$20:$BLL$359,((DropD_Calc!$J$7)*37)+295+IF(T2_RankType=2,3,0),FALSE)) -> na | AI94: na
U95: , whilst | AF95: =T2_Calc!B113 -> Luton | AG95: =IF(VLOOKUP($AF95,T2_Calc!$B$20:$LU$359,((DropD_Calc!$J$7)*9)+7+IF(T2_RankType=2,3,0),FALSE)<0,"na",VLOOKUP($AF95,T2_Calc!$B$20:$LU$359,((DropD_Calc!$J$7)*9)+7+IF(T2_RankType=2,3,0),FALSE)) -> na | AH95: =IF(VLOOKUP($AF95,T2_Calc!$B$20:$BLL$359,((DropD_Calc!$J$7)*37)+295+IF(T2_RankType=2,3,0),FALSE)<0,"na",VLOOKUP($AF95,T2_Calc!$B$20:$BLL$359,((DropD_Calc!$J$7)*37)+295+IF(T2_RankType=2,3,0),FALSE)) -> na | AI95: na
U96: =INDEX(T4_Calc!L20:L357,T2_Calc!F5) -> South Ribble | AF96: =T2_Calc!B114 -> Medway Towns | AG96: =IF(VLOOKUP($AF96,T2_Calc!$B$20:$LU$359,((DropD_Calc!$J$7)*9)+7+IF(T2_RankType=2,3,0),FALSE)<0,"na",VLOOKUP($AF96,T2_Calc!$B$20:$LU$359,((DropD_Calc!$J$7)*9)+7+IF(T2_RankType=2,3,0),FALSE)) -> na | AH96: =IF(VLOOKUP($AF96,T2_Calc!$B$20:$BLL$359,((DropD_Calc!$J$7)*37)+295+IF(T2_RankType=2,3,0),FALSE)<0,"na",VLOOKUP($AF96,T2_Calc!$B$20:$BLL$359,((DropD_Calc!$J$7)*37)+295+IF(T2_RankType=2,3,0),FALSE)) -> na | AI96: na
U97: are ranked as the cheapest. | AF97: =T2_Calc!B115 -> Middlesbrough | AG97: =IF(VLOOKUP($AF97,T2_Calc!$B$20:$LU$359,((DropD_Calc!$J$7)*9)+7+IF(T2_RankType=2,3,0),FALSE)<0,"na",VLOOKUP($AF97,T2_Calc!$B$20:$LU$359,((DropD_Calc!$J$7)*9)+7+IF(T2_RankType=2,3,0),FALSE)) -> na | AH97: =IF(VLOOKUP($AF97,T2_Calc!$B$20:$BLL$359,((DropD_Calc!$J$7)*37)+295+IF(T2_RankType=2,3,0),FALSE)<0,"na",VLOOKUP($AF97,T2_Calc!$B$20:$BLL$359,((DropD_Calc!$J$7)*37)+295+IF(T2_RankType=2,3,0),FALSE)) -> na | AI97: na
AF98: =T2_Calc!B116 -> Milton Keynes | AG98: =IF(VLOOKUP($AF98,T2_Calc!$B$20:$LU$359,((DropD_Calc!$J$7)*9)+7+IF(T2_RankType=2,3,0),FALSE)<0,"na",VLOOKUP($AF98,T2_Calc!$B$20:$LU$359,((DropD_Calc!$J$7)*9)+7+IF(T2_RankType=2,3,0),FALSE)) -> na | AH98: =IF(VLOOKUP($AF98,T2_Calc!$B$20:$BLL$359,((DropD_Calc!$J$7)*37)+295+IF(T2_RankType=2,3,0),FALSE)<0,"na",VLOOKUP($AF98,T2_Calc!$B$20:$BLL$359,((DropD_Calc!$J$7)*37)+295+IF(T2_RankType=2,3,0),FALSE)) -> na | AI98: na
AF99: =T2_Calc!B117 -> North East Lincolnshire | AG99: =IF(VLOOKUP($AF99,T2_Calc!$B$20:$LU$359,((DropD_Calc!$J$7)*9)+7+IF(T2_RankType=2,3,0),FALSE)<0,"na",VLOOKUP($AF99,T2_Calc!$B$20:$LU$359,((DropD_Calc!$J$7)*9)+7+IF(T2_RankType=2,3,0),FALSE)) -> na | AH99: =IF(VLOOKUP($AF99,T2_Calc!$B$20:$BLL$359,((DropD_Calc!$J$7)*37)+295+IF(T2_RankType=2,3,0),FALSE)<0,"na",VLOOKUP($AF99,T2_Calc!$B$20:$BLL$359,((DropD_Calc!$J$7)*37)+295+IF(T2_RankType=2,3,0),FALSE)) -> na | AI99: na
B100: =U83 -> Adur are ranked 1st out of 16 for their unit cost value for the service Council Tax and Housing Benefits. Ranked most expensive in the group are Adur, whilst South Ribble are ranked as the cheapest. | AF100: =T2_Calc!B118 -> North Lincolnshire | AG100: =IF(VLOOKUP($AF100,T2_Calc!$B$20:$LU$359,((DropD_Calc!$J$7)*9)+7+IF(T2_RankType=2,3,0),FALSE)<0,"na",VLOOKUP($AF100,T2_Calc!$B$20:$LU$359,((DropD_Calc!$J$7)*9)+7+IF(T2_RankType=2,3,0),FALSE)) -> na | AH100: =IF(VLOOKUP($AF100,T2_Calc!$B$20:$BLL$359,((DropD_Calc!$J$7)*37)+295+IF(T2_RankType=2,3,0),FALSE)<0,"na",VLOOKUP($AF100,T2_Calc!$B$20:$BLL$359,((DropD_Calc!$J$7)*37)+295+IF(T2_RankType=2,3,0),FALSE)) -> na | AI100: na
AF101: =T2_Calc!B119 -> North Somerset | AG101: =IF(VLOOKUP($AF101,T2_Calc!$B$20:$LU$359,((DropD_Calc!$J$7)*9)+7+IF(T2_RankType=2,3,0),FALSE)<0,"na",VLOOKUP($AF101,T2_Calc!$B$20:$LU$359,((DropD_Calc!$J$7)*9)+7+IF(T2_RankType=2,3,0),FALSE)) -> na | AH101: =IF(VLOOKUP($AF101,T2_Calc!$B$20:$BLL$359,((DropD_Calc!$J$7)*37)+295+IF(T2_RankType=2,3,0),FALSE)<0,"na",VLOOKUP($AF101,T2_Calc!$B$20:$BLL$359,((DropD_Calc!$J$7)*37)+295+IF(T2_RankType=2,3,0),FALSE)) -> na | AI101: na
AF102: =T2_Calc!B120 -> Northumberland | AG102: =IF(VLOOKUP($AF102,T2_Calc!$B$20:$LU$359,((DropD_Calc!$J$7)*9)+7+IF(T2_RankType=2,3,0),FALSE)<0,"na",VLOOKUP($AF102,T2_Calc!$B$20:$LU$359,((DropD_Calc!$J$7)*9)+7+IF(T2_RankType=2,3,0),FALSE)) -> na | AH102: =IF(VLOOKUP($AF102,T2_Calc!$B$20:$BLL$359,((DropD_Calc!$J$7)*37)+295+IF(T2_RankType=2,3,0),FALSE)<0,"na",VLOOKUP($AF102,T2_Calc!$B$20:$BLL$359,((DropD_Calc!$J$7)*37)+295+IF(T2_RankType=2,3,0),FALSE)) -> na | AI102: na
AF103: =T2_Calc!B121 -> Nottingham | AG103: =IF(VLOOKUP($AF103,T2_Calc!$B$20:$LU$359,((DropD_Calc!$J$7)*9)+7+IF(T2_RankType=2,3,0),FALSE)<0,"na",VLOOKUP($AF103,T2_Calc!$B$20:$LU$359,((DropD_Calc!$J$7)*9)+7+IF(T2_RankType=2,3,0),FALSE)) -> na | AH103: =IF(VLOOKUP($AF103,T2_Calc!$B$20:$BLL$359,((DropD_Calc!$J$7)*37)+295+IF(T2_RankType=2,3,0),FALSE)<0,"na",VLOOKUP($AF103,T2_Calc!$B$20:$BLL$359,((DropD_Calc!$J$7)*37)+295+IF(T2_RankType=2,3,0),FALSE)) -> na | AI103: na
AF104: =T2_Calc!B122 -> Peterborough | AG104: =IF(VLOOKUP($AF104,T2_Calc!$B$20:$LU$359,((DropD_Calc!$J$7)*9)+7+IF(T2_RankType=2,3,0),FALSE)<0,"na",VLOOKUP($AF104,T2_Calc!$B$20:$LU$359,((DropD_Calc!$J$7)*9)+7+IF(T2_RankType=2,3,0),FALSE)) -> na | AH104: =IF(VLOOKUP($AF104,T2_Calc!$B$20:$BLL$359,((DropD_Calc!$J$7)*37)+295+IF(T2_RankType=2,3,0),FALSE)<0,"na",VLOOKUP($AF104,T2_Calc!$B$20:$BLL$359,((DropD_Calc!$J$7)*37)+295+IF(T2_RankType=2,3,0),FALSE)) -> na | AI104: na
B105: Further Information For more information on our statistical services please visit www.cipfa.org or phone 0203 7543 5600 and ask to speak to a member of the Analytics team. | AF105: =T2_Calc!B123 -> Plymouth | AG105: =IF(VLOOKUP($AF105,T2_Calc!$B$20:$LU$359,((DropD_Calc!$J$7)*9)+7+IF(T2_RankType=2,3,0),FALSE)<0,"na",VLOOKUP($AF105,T2_Calc!$B$20:$LU$359,((DropD_Calc!$J$7)*9)+7+IF(T2_RankType=2,3,0),FALSE)) -> na | AH105: =IF(VLOOKUP($AF105,T2_Calc!$B$20:$BLL$359,((DropD_Calc!$J$7)*37)+295+IF(T2_RankType=2,3,0),FALSE)<0,"na",VLOOKUP($AF105,T2_Calc!$B$20:$BLL$359,((DropD_Calc!$J$7)*37)+295+IF(T2_RankType=2,3,0),FALSE)) -> na | AI105: na
AF106: =T2_Calc!#REF! ->  | AG106: =IF(VLOOKUP($AF106,T2_Calc!$B$20:$LU$359,((DropD_Calc!$J$7)*9)+7+IF(T2_RankType=2,3,0),FALSE)<0,"na",VLOOKUP($AF106,T2_Calc!$B$20:$LU$359,((DropD_Calc!$J$7)*9)+7+IF(T2_RankType=2,3,0),FALSE)) ->  | AH106: =IF(VLOOKUP($AF106,T2_Calc!$B$20:$BLL$359,((DropD_Calc!$J$7)*37)+295+IF(T2_RankType=2,3,0),FALSE)<0,"na",VLOOKUP($AF106,T2_Calc!$B$20:$BLL$359,((DropD_Calc!$J$7)*37)+295+IF(T2_RankType=2,3,0),FALSE)) -> 
AF107: =T2_Calc!B124 -> Portsmouth | AG107: =IF(VLOOKUP($AF107,T2_Calc!$B$20:$LU$359,((DropD_Calc!$J$7)*9)+7+IF(T2_RankType=2,3,0),FALSE)<0,"na",VLOOKUP($AF107,T2_Calc!$B$20:$LU$359,((DropD_Calc!$J$7)*9)+7+IF(T2_RankType=2,3,0),FALSE)) -> na | AH107: =IF(VLOOKUP($AF107,T2_Calc!$B$20:$BLL$359,((DropD_Calc!$J$7)*37)+295+IF(T2_RankType=2,3,0),FALSE)<0,"na",VLOOKUP($AF107,T2_Calc!$B$20:$BLL$359,((DropD_Calc!$J$7)*37)+295+IF(T2_RankType=2,3,0),FALSE)) -> na | AI107: na
AF108: =T2_Calc!B125 -> Reading | AG108: =IF(VLOOKUP($AF108,T2_Calc!$B$20:$LU$359,((DropD_Calc!$J$7)*9)+7+IF(T2_RankType=2,3,0),FALSE)<0,"na",VLOOKUP($AF108,T2_Calc!$B$20:$LU$359,((DropD_Calc!$J$7)*9)+7+IF(T2_RankType=2,3,0),FALSE)) -> na | AH108: =IF(VLOOKUP($AF108,T2_Calc!$B$20:$BLL$359,((DropD_Calc!$J$7)*37)+295+IF(T2_RankType=2,3,0),FALSE)<0,"na",VLOOKUP($AF108,T2_Calc!$B$20:$BLL$359,((DropD_Calc!$J$7)*37)+295+IF(T2_RankType=2,3,0),FALSE)) -> na | AI108: na
AF109: =T2_Calc!B126 -> Redcar & Cleveland | AG109: =IF(VLOOKUP($AF109,T2_Calc!$B$20:$LU$359,((DropD_Calc!$J$7)*9)+7+IF(T2_RankType=2,3,0),FALSE)<0,"na",VLOOKUP($AF109,T2_Calc!$B$20:$LU$359,((DropD_Calc!$J$7)*9)+7+IF(T2_RankType=2,3,0),FALSE)) -> na | AH109: =IF(VLOOKUP($AF109,T2_Calc!$B$20:$BLL$359,((DropD_Calc!$J$7)*37)+295+IF(T2_RankType=2,3,0),FALSE)<0,"na",VLOOKUP($AF109,T2_Calc!$B$20:$BLL$359,((DropD_Calc!$J$7)*37)+295+IF(T2_RankType=2,3,0),FALSE)) -> na | AI109: na
AF110: =T2_Calc!B127 -> Rutland | AG110: =IF(VLOOKUP($AF110,T2_Calc!$B$20:$LU$359,((DropD_Calc!$J$7)*9)+7+IF(T2_RankType=2,3,0),FALSE)<0,"na",VLOOKUP($AF110,T2_Calc!$B$20:$LU$359,((DropD_Calc!$J$7)*9)+7+IF(T2_RankType=2,3,0),FALSE)) -> na | AH110: =IF(VLOOKUP($AF110,T2_Calc!$B$20:$BLL$359,((DropD_Calc!$J$7)*37)+295+IF(T2_RankType=2,3,0),FALSE)<0,"na",VLOOKUP($AF110,T2_Calc!$B$20:$BLL$359,((DropD_Calc!$J$7)*37)+295+IF(T2_RankType=2,3,0),FALSE)) -> na | AI110: na
AF111: =T2_Calc!B128 -> Shropshire | AG111: =IF(VLOOKUP($AF111,T2_Calc!$B$20:$LU$359,((DropD_Calc!$J$7)*9)+7+IF(T2_RankType=2,3,0),FALSE)<0,"na",VLOOKUP($AF111,T2_Calc!$B$20:$LU$359,((DropD_Calc!$J$7)*9)+7+IF(T2_RankType=2,3,0),FALSE)) -> na | AH111: =IF(VLOOKUP($AF111,T2_Calc!$B$20:$BLL$359,((DropD_Calc!$J$7)*37)+295+IF(T2_RankType=2,3,0),FALSE)<0,"na",VLOOKUP($AF111,T2_Calc!$B$20:$BLL$359,((DropD_Calc!$J$7)*37)+295+IF(T2_RankType=2,3,0),FALSE)) -> na | AI111: na
AF112: =T2_Calc!B129 -> Slough | AG112: =IF(VLOOKUP($AF112,T2_Calc!$B$20:$LU$359,((DropD_Calc!$J$7)*9)+7+IF(T2_RankType=2,3,0),FALSE)<0,"na",VLOOKUP($AF112,T2_Calc!$B$20:$LU$359,((DropD_Calc!$J$7)*9)+7+IF(T2_RankType=2,3,0),FALSE)) -> na | AH112: =IF(VLOOKUP($AF112,T2_Calc!$B$20:$BLL$359,((DropD_Calc!$J$7)*37)+295+IF(T2_RankType=2,3,0),FALSE)<0,"na",VLOOKUP($AF112,T2_Calc!$B$20:$BLL$359,((DropD_Calc!$J$7)*37)+295+IF(T2_RankType=2,3,0),FALSE)) -> na | AI112: na
AF113: =T2_Calc!B130 -> South Gloucestershire | AG113: =IF(VLOOKUP($AF113,T2_Calc!$B$20:$LU$359,((DropD_Calc!$J$7)*9)+7+IF(T2_RankType=2,3,0),FALSE)<0,"na",VLOOKUP($AF113,T2_Calc!$B$20:$LU$359,((DropD_Calc!$J$7)*9)+7+IF(T2_RankType=2,3,0),FALSE)) -> na | AH113: =IF(VLOOKUP($AF113,T2_Calc!$B$20:$BLL$359,((DropD_Calc!$J$7)*37)+295+IF(T2_RankType=2,3,0),FALSE)<0,"na",VLOOKUP($AF113,T2_Calc!$B$20:$BLL$359,((DropD_Calc!$J$7)*37)+295+IF(T2_RankType=2,3,0),FALSE)) -> na | AI113: na
AF114: =T2_Calc!B131 -> Southampton | AG114: =IF(VLOOKUP($AF114,T2_Calc!$B$20:$LU$359,((DropD_Calc!$J$7)*9)+7+IF(T2_RankType=2,3,0),FALSE)<0,"na",VLOOKUP($AF114,T2_Calc!$B$20:$LU$359,((DropD_Calc!$J$7)*9)+7+IF(T2_RankType=2,3,0),FALSE)) -> na | AH114: =IF(VLOOKUP($AF114,T2_Calc!$B$20:$BLL$359,((DropD_Calc!$J$7)*37)+295+IF(T2_RankType=2,3,0),FALSE)<0,"na",VLOOKUP($AF114,T2_Calc!$B$20:$BLL$359,((DropD_Calc!$J$7)*37)+295+IF(T2_RankType=2,3,0),FALSE)) -> na | AI114: na
AF115: =T2_Calc!B132 -> Southend-on-Sea | AG115: =IF(VLOOKUP($AF115,T2_Calc!$B$20:$LU$359,((DropD_Calc!$J$7)*9)+7+IF(T2_RankType=2,3,0),FALSE)<0,"na",VLOOKUP($AF115,T2_Calc!$B$20:$LU$359,((DropD_Calc!$J$7)*9)+7+IF(T2_RankType=2,3,0),FALSE)) -> na | AH115: =IF(VLOOKUP($AF115,T2_Calc!$B$20:$BLL$359,((DropD_Calc!$J$7)*37)+295+IF(T2_RankType=2,3,0),FALSE)<0,"na",VLOOKUP($AF115,T2_Calc!$B$20:$BLL$359,((DropD_Calc!$J$7)*37)+295+IF(T2_RankType=2,3,0),FALSE)) -> na | AI115: na
AF116: =T2_Calc!B133 -> Stockton-on-Tees | AG116: =IF(VLOOKUP($AF116,T2_Calc!$B$20:$LU$359,((DropD_Calc!$J$7)*9)+7+IF(T2_RankType=2,3,0),FALSE)<0,"na",VLOOKUP($AF116,T2_Calc!$B$20:$LU$359,((DropD_Calc!$J$7)*9)+7+IF(T2_RankType=2,3,0),FALSE)) -> na | AH116: =IF(VLOOKUP($AF116,T2_Calc!$B$20:$BLL$359,((DropD_Calc!$J$7)*37)+295+IF(T2_RankType=2,3,0),FALSE)<0,"na",VLOOKUP($AF116,T2_Calc!$B$20:$BLL$359,((DropD_Calc!$J$7)*37)+295+IF(T2_RankType=2,3,0),FALSE)) -> na | AI116: na
AF117: =T2_Calc!B134 -> Stoke-on-Trent | AG117: =IF(VLOOKUP($AF117,T2_Calc!$B$20:$LU$359,((DropD_Calc!$J$7)*9)+7+IF(T2_RankType=2,3,0),FALSE)<0,"na",VLOOKUP($AF117,T2_Calc!$B$20:$LU$359,((DropD_Calc!$J$7)*9)+7+IF(T2_RankType=2,3,0),FALSE)) -> na | AH117: =IF(VLOOKUP($AF117,T2_Calc!$B$20:$BLL$359,((DropD_Calc!$J$7)*37)+295+IF(T2_RankType=2,3,0),FALSE)<0,"na",VLOOKUP($AF117,T2_Calc!$B$20:$BLL$359,((DropD_Calc!$J$7)*37)+295+IF(T2_RankType=2,3,0),FALSE)) -> na | AI117: na
AF118: =T2_Calc!B135 -> Swindon | AG118: =IF(VLOOKUP($AF118,T2_Calc!$B$20:$LU$359,((DropD_Calc!$J$7)*9)+7+IF(T2_RankType=2,3,0),FALSE)<0,"na",VLOOKUP($AF118,T2_Calc!$B$20:$LU$359,((DropD_Calc!$J$7)*9)+7+IF(T2_RankType=2,3,0),FALSE)) -> na | AH118: =IF(VLOOKUP($AF118,T2_Calc!$B$20:$BLL$359,((DropD_Calc!$J$7)*37)+295+IF(T2_RankType=2,3,0),FALSE)<0,"na",VLOOKUP($AF118,T2_Calc!$B$20:$BLL$359,((DropD_Calc!$J$7)*37)+295+IF(T2_RankType=2,3,0),FALSE)) -> na | AI118: na
AF119: =T2_Calc!B136 -> Telford & Wrekin | AG119: =IF(VLOOKUP($AF119,T2_Calc!$B$20:$LU$359,((DropD_Calc!$J$7)*9)+7+IF(T2_RankType=2,3,0),FALSE)<0,"na",VLOOKUP($AF119,T2_Calc!$B$20:$LU$359,((DropD_Calc!$J$7)*9)+7+IF(T2_RankType=2,3,0),FALSE)) -> na | AH119: =IF(VLOOKUP($AF119,T2_Calc!$B$20:$BLL$359,((DropD_Calc!$J$7)*37)+295+IF(T2_RankType=2,3,0),FALSE)<0,"na",VLOOKUP($AF119,T2_Calc!$B$20:$BLL$359,((DropD_Calc!$J$7)*37)+295+IF(T2_RankType=2,3,0),FALSE)) -> na | AI119: na
AF120: =T2_Calc!B137 -> Thurrock | AG120: =IF(VLOOKUP($AF120,T2_Calc!$B$20:$LU$359,((DropD_Calc!$J$7)*9)+7+IF(T2_RankType=2,3,0),FALSE)<0,"na",VLOOKUP($AF120,T2_Calc!$B$20:$LU$359,((DropD_Calc!$J$7)*9)+7+IF(T2_RankType=2,3,0),FALSE)) -> na | AH120: =IF(VLOOKUP($AF120,T2_Calc!$B$20:$BLL$359,((DropD_Calc!$J$7)*37)+295+IF(T2_RankType=2,3,0),FALSE)<0,"na",VLOOKUP($AF120,T2_Calc!$B$20:$BLL$359,((DropD_Calc!$J$7)*37)+295+IF(T2_RankType=2,3,0),FALSE)) -> na | AI120: na
AF121: =T2_Calc!B138 -> Torbay | AG121: =IF(VLOOKUP($AF121,T2_Calc!$B$20:$LU$359,((DropD_Calc!$J$7)*9)+7+IF(T2_RankType=2,3,0),FALSE)<0,"na",VLOOKUP($AF121,T2_Calc!$B$20:$LU$359,((DropD_Calc!$J$7)*9)+7+IF(T2_RankType=2,3,0),FALSE)) -> na | AH121: =IF(VLOOKUP($AF121,T2_Calc!$B$20:$BLL$359,((DropD_Calc!$J$7)*37)+295+IF(T2_RankType=2,3,0),FALSE)<0,"na",VLOOKUP($AF121,T2_Calc!$B$20:$BLL$359,((DropD_Calc!$J$7)*37)+295+IF(T2_RankType=2,3,0),FALSE)) -> na | AI121: na
AF122: =T2_Calc!B139 -> Warrington | AG122: =IF(VLOOKUP($AF122,T2_Calc!$B$20:$LU$359,((DropD_Calc!$J$7)*9)+7+IF(T2_RankType=2,3,0),FALSE)<0,"na",VLOOKUP($AF122,T2_Calc!$B$20:$LU$359,((DropD_Calc!$J$7)*9)+7+IF(T2_RankType=2,3,0),FALSE)) -> na | AH122: =IF(VLOOKUP($AF122,T2_Calc!$B$20:$BLL$359,((DropD_Calc!$J$7)*37)+295+IF(T2_RankType=2,3,0),FALSE)<0,"na",VLOOKUP($AF122,T2_Calc!$B$20:$BLL$359,((DropD_Calc!$J$7)*37)+295+IF(T2_RankType=2,3,0),FALSE)) -> na | AI122: na
AF123: =T2_Calc!B140 -> West Berkshire | AG123: =IF(VLOOKUP($AF123,T2_Calc!$B$20:$LU$359,((DropD_Calc!$J$7)*9)+7+IF(T2_RankType=2,3,0),FALSE)<0,"na",VLOOKUP($AF123,T2_Calc!$B$20:$LU$359,((DropD_Calc!$J$7)*9)+7+IF(T2_RankType=2,3,0),FALSE)) -> na | AH123: =IF(VLOOKUP($AF123,T2_Calc!$B$20:$BLL$359,((DropD_Calc!$J$7)*37)+295+IF(T2_RankType=2,3,0),FALSE)<0,"na",VLOOKUP($AF123,T2_Calc!$B$20:$BLL$359,((DropD_Calc!$J$7)*37)+295+IF(T2_RankType=2,3,0),FALSE)) -> na | AI123: na
AF124: =T2_Calc!B141 -> Wiltshire | AG124: =IF(VLOOKUP($AF124,T2_Calc!$B$20:$LU$359,((DropD_Calc!$J$7)*9)+7+IF(T2_RankType=2,3,0),FALSE)<0,"na",VLOOKUP($AF124,T2_Calc!$B$20:$LU$359,((DropD_Calc!$J$7)*9)+7+IF(T2_RankType=2,3,0),FALSE)) -> na | AH124: =IF(VLOOKUP($AF124,T2_Calc!$B$20:$BLL$359,((DropD_Calc!$J$7)*37)+295+IF(T2_RankType=2,3,0),FALSE)<0,"na",VLOOKUP($AF124,T2_Calc!$B$20:$BLL$359,((DropD_Calc!$J$7)*37)+295+IF(T2_RankType=2,3,0),FALSE)) -> na | AI124: na
AF125: =T2_Calc!B142 -> Windsor & Maidenhead | AG125: =IF(VLOOKUP($AF125,T2_Calc!$B$20:$LU$359,((DropD_Calc!$J$7)*9)+7+IF(T2_RankType=2,3,0),FALSE)<0,"na",VLOOKUP($AF125,T2_Calc!$B$20:$LU$359,((DropD_Calc!$J$7)*9)+7+IF(T2_RankType=2,3,0),FALSE)) -> na | AH125: =IF(VLOOKUP($AF125,T2_Calc!$B$20:$BLL$359,((DropD_Calc!$J$7)*37)+295+IF(T2_RankType=2,3,0),FALSE)<0,"na",VLOOKUP($AF125,T2_Calc!$B$20:$BLL$359,((DropD_Calc!$J$7)*37)+295+IF(T2_RankType=2,3,0),FALSE)) -> na | AI125: na
AF126: =T2_Calc!B143 -> Wokingham | AG126: =IF(VLOOKUP($AF126,T2_Calc!$B$20:$LU$359,((DropD_Calc!$J$7)*9)+7+IF(T2_RankType=2,3,0),FALSE)<0,"na",VLOOKUP($AF126,T2_Calc!$B$20:$LU$359,((DropD_Calc!$J$7)*9)+7+IF(T2_RankType=2,3,0),FALSE)) -> na | AH126: =IF(VLOOKUP($AF126,T2_Calc!$B$20:$BLL$359,((DropD_Calc!$J$7)*37)+295+IF(T2_RankType=2,3,0),FALSE)<0,"na",VLOOKUP($AF126,T2_Calc!$B$20:$BLL$359,((DropD_Calc!$J$7)*37)+295+IF(T2_RankType=2,3,0),FALSE)) -> na | AI126: na
AF127: =T2_Calc!B144 -> York | AG127: =IF(VLOOKUP($AF127,T2_Calc!$B$20:$LU$359,((DropD_Calc!$J$7)*9)+7+IF(T2_RankType=2,3,0),FALSE)<0,"na",VLOOKUP($AF127,T2_Calc!$B$20:$LU$359,((DropD_Calc!$J$7)*9)+7+IF(T2_RankType=2,3,0),FALSE)) -> na | AH127: =IF(VLOOKUP($AF127,T2_Calc!$B$20:$BLL$359,((DropD_Calc!$J$7)*37)+295+IF(T2_RankType=2,3,0),FALSE)<0,"na",VLOOKUP($AF127,T2_Calc!$B$20:$BLL$359,((DropD_Calc!$J$7)*37)+295+IF(T2_RankType=2,3,0),FALSE)) -> na | AI127: na
AF128: =T2_Calc!B145 -> Isles of Scilly | AG128: =IF(VLOOKUP($AF128,T2_Calc!$B$20:$LU$359,((DropD_Calc!$J$7)*9)+7+IF(T2_RankType=2,3,0),FALSE)<0,"na",VLOOKUP($AF128,T2_Calc!$B$20:$LU$359,((DropD_Calc!$J$7)*9)+7+IF(T2_RankType=2,3,0),FALSE)) -> na | AH128: =IF(VLOOKUP($AF128,T2_Calc!$B$20:$BLL$359,((DropD_Calc!$J$7)*37)+295+IF(T2_RankType=2,3,0),FALSE)<0,"na",VLOOKUP($AF128,T2_Calc!$B$20:$BLL$359,((DropD_Calc!$J$7)*37)+295+IF(T2_RankType=2,3,0),FALSE)) -> na | AI128: na
AF129: =T2_Calc!#REF! ->  | AG129: =IF(VLOOKUP($AF129,T2_Calc!$B$20:$LU$359,((DropD_Calc!$J$7)*9)+7+IF(T2_RankType=2,3,0),FALSE)<0,"na",VLOOKUP($AF129,T2_Calc!$B$20:$LU$359,((DropD_Calc!$J$7)*9)+7+IF(T2_RankType=2,3,0),FALSE)) ->  | AH129: =IF(VLOOKUP($AF129,T2_Calc!$B$20:$BLL$359,((DropD_Calc!$J$7)*37)+295+IF(T2_RankType=2,3,0),FALSE)<0,"na",VLOOKUP($AF129,T2_Calc!$B$20:$BLL$359,((DropD_Calc!$J$7)*37)+295+IF(T2_RankType=2,3,0),FALSE)) -> 
AF130: =T2_Calc!B146 -> Cambridgeshire | AG130: =IF(VLOOKUP($AF130,T2_Calc!$B$20:$LU$359,((DropD_Calc!$J$7)*9)+7+IF(T2_RankType=2,3,0),FALSE)<0,"na",VLOOKUP($AF130,T2_Calc!$B$20:$LU$359,((DropD_Calc!$J$7)*9)+7+IF(T2_RankType=2,3,0),FALSE)) -> na | AH130: =IF(VLOOKUP($AF130,T2_Calc!$B$20:$BLL$359,((DropD_Calc!$J$7)*37)+295+IF(T2_RankType=2,3,0),FALSE)<0,"na",VLOOKUP($AF130,T2_Calc!$B$20:$BLL$359,((DropD_Calc!$J$7)*37)+295+IF(T2_RankType=2,3,0),FALSE)) -> na | AI130: na
AF131: =T2_Calc!B147 -> Cumbria | AG131: =IF(VLOOKUP($AF131,T2_Calc!$B$20:$LU$359,((DropD_Calc!$J$7)*9)+7+IF(T2_RankType=2,3,0),FALSE)<0,"na",VLOOKUP($AF131,T2_Calc!$B$20:$LU$359,((DropD_Calc!$J$7)*9)+7+IF(T2_RankType=2,3,0),FALSE)) -> na | AH131: =IF(VLOOKUP($AF131,T2_Calc!$B$20:$BLL$359,((DropD_Calc!$J$7)*37)+295+IF(T2_RankType=2,3,0),FALSE)<0,"na",VLOOKUP($AF131,T2_Calc!$B$20:$BLL$359,((DropD_Calc!$J$7)*37)+295+IF(T2_RankType=2,3,0),FALSE)) -> na | AI131: na
AF132: =T2_Calc!B148 -> Derbyshire | AG132: =IF(VLOOKUP($AF132,T2_Calc!$B$20:$LU$359,((DropD_Calc!$J$7)*9)+7+IF(T2_RankType=2,3,0),FALSE)<0,"na",VLOOKUP($AF132,T2_Calc!$B$20:$LU$359,((DropD_Calc!$J$7)*9)+7+IF(T2_RankType=2,3,0),FALSE)) -> na | AH132: =IF(VLOOKUP($AF132,T2_Calc!$B$20:$BLL$359,((DropD_Calc!$J$7)*37)+295+IF(T2_RankType=2,3,0),FALSE)<0,"na",VLOOKUP($AF132,T2_Calc!$B$20:$BLL$359,((DropD_Calc!$J$7)*37)+295+IF(T2_RankType=2,3,0),FALSE)) -> na | AI132: na
AF133: =T2_Calc!B149 -> Devon | AG133: =IF(VLOOKUP($AF133,T2_Calc!$B$20:$LU$359,((DropD_Calc!$J$7)*9)+7+IF(T2_RankType=2,3,0),FALSE)<0,"na",VLOOKUP($AF133,T2_Calc!$B$20:$LU$359,((DropD_Calc!$J$7)*9)+7+IF(T2_RankType=2,3,0),FALSE)) -> na | AH133: =IF(VLOOKUP($AF133,T2_Calc!$B$20:$BLL$359,((DropD_Calc!$J$7)*37)+295+IF(T2_RankType=2,3,0),FALSE)<0,"na",VLOOKUP($AF133,T2_Calc!$B$20:$BLL$359,((DropD_Calc!$J$7)*37)+295+IF(T2_RankType=2,3,0),FALSE)) -> na | AI133: =IF(OR(AG133="na",AH133="na"),"na",AVERAGE(AG133:AH133)+(ROW()*0.00000000001)) -> na
AF134: =T2_Calc!#REF! ->  | AG134: =IF(VLOOKUP($AF134,T2_Calc!$B$20:$LU$359,((DropD_Calc!$J$7)*9)+7+IF(T2_RankType=2,3,0),FALSE)<0,"na",VLOOKUP($AF134,T2_Calc!$B$20:$LU$359,((DropD_Calc!$J$7)*9)+7+IF(T2_RankType=2,3,0),FALSE)) ->  | AH134: =IF(VLOOKUP($AF134,T2_Calc!$B$20:$BLL$359,((DropD_Calc!$J$7)*37)+295+IF(T2_RankType=2,3,0),FALSE)<0,"na",VLOOKUP($AF134,T2_Calc!$B$20:$BLL$359,((DropD_Calc!$J$7)*37)+295+IF(T2_RankType=2,3,0),FALSE)) -> 
AF135: =T2_Calc!B150 -> East Sussex | AG135: =IF(VLOOKUP($AF135,T2_Calc!$B$20:$LU$359,((DropD_Calc!$J$7)*9)+7+IF(T2_RankType=2,3,0),FALSE)<0,"na",VLOOKUP($AF135,T2_Calc!$B$20:$LU$359,((DropD_Calc!$J$7)*9)+7+IF(T2_RankType=2,3,0),FALSE)) -> na | AH135: =IF(VLOOKUP($AF135,T2_Calc!$B$20:$BLL$359,((DropD_Calc!$J$7)*37)+295+IF(T2_RankType=2,3,0),FALSE)<0,"na",VLOOKUP($AF135,T2_Calc!$B$20:$BLL$359,((DropD_Calc!$J$7)*37)+295+IF(T2_RankType=2,3,0),FALSE)) -> na | AI135: na
AF136: =T2_Calc!B151 -> Essex | AG136: =IF(VLOOKUP($AF136,T2_Calc!$B$20:$LU$359,((DropD_Calc!$J$7)*9)+7+IF(T2_RankType=2,3,0),FALSE)<0,"na",VLOOKUP($AF136,T2_Calc!$B$20:$LU$359,((DropD_Calc!$J$7)*9)+7+IF(T2_RankType=2,3,0),FALSE)) -> na | AH136: =IF(VLOOKUP($AF136,T2_Calc!$B$20:$BLL$359,((DropD_Calc!$J$7)*37)+295+IF(T2_RankType=2,3,0),FALSE)<0,"na",VLOOKUP($AF136,T2_Calc!$B$20:$BLL$359,((DropD_Calc!$J$7)*37)+295+IF(T2_RankType=2,3,0),FALSE)) -> na | AI136: na
AF137: =T2_Calc!B152 -> Gloucestershire | AG137: =IF(VLOOKUP($AF137,T2_Calc!$B$20:$LU$359,((DropD_Calc!$J$7)*9)+7+IF(T2_RankType=2,3,0),FALSE)<0,"na",VLOOKUP($AF137,T2_Calc!$B$20:$LU$359,((DropD_Calc!$J$7)*9)+7+IF(T2_RankType=2,3,0),FALSE)) -> na | AH137: =IF(VLOOKUP($AF137,T2_Calc!$B$20:$BLL$359,((DropD_Calc!$J$7)*37)+295+IF(T2_RankType=2,3,0),FALSE)<0,"na",VLOOKUP($AF137,T2_Calc!$B$20:$BLL$359,((DropD_Calc!$J$7)*37)+295+IF(T2_RankType=2,3,0),FALSE)) -> na | AI137: na
AF138: =T2_Calc!B153 -> Hampshire | AG138: =IF(VLOOKUP($AF138,T2_Calc!$B$20:$LU$359,((DropD_Calc!$J$7)*9)+7+IF(T2_RankType=2,3,0),FALSE)<0,"na",VLOOKUP($AF138,T2_Calc!$B$20:$LU$359,((DropD_Calc!$J$7)*9)+7+IF(T2_RankType=2,3,0),FALSE)) -> na | AH138: =IF(VLOOKUP($AF138,T2_Calc!$B$20:$BLL$359,((DropD_Calc!$J$7)*37)+295+IF(T2_RankType=2,3,0),FALSE)<0,"na",VLOOKUP($AF138,T2_Calc!$B$20:$BLL$359,((DropD_Calc!$J$7)*37)+295+IF(T2_RankType=2,3,0),FALSE)) -> na | AI138: na
AF139: =T2_Calc!B154 -> Hertfordshire | AG139: =IF(VLOOKUP($AF139,T2_Calc!$B$20:$LU$359,((DropD_Calc!$J$7)*9)+7+IF(T2_RankType=2,3,0),FALSE)<0,"na",VLOOKUP($AF139,T2_Calc!$B$20:$LU$359,((DropD_Calc!$J$7)*9)+7+IF(T2_RankType=2,3,0),FALSE)) -> na | AH139: =IF(VLOOKUP($AF139,T2_Calc!$B$20:$BLL$359,((DropD_Calc!$J$7)*37)+295+IF(T2_RankType=2,3,0),FALSE)<0,"na",VLOOKUP($AF139,T2_Calc!$B$20:$BLL$359,((DropD_Calc!$J$7)*37)+295+IF(T2_RankType=2,3,0),FALSE)) -> na | AI139: na
AF140: =T2_Calc!B155 -> Kent | AG140: =IF(VLOOKUP($AF140,T2_Calc!$B$20:$LU$359,((DropD_Calc!$J$7)*9)+7+IF(T2_RankType=2,3,0),FALSE)<0,"na",VLOOKUP($AF140,T2_Calc!$B$20:$LU$359,((DropD_Calc!$J$7)*9)+7+IF(T2_RankType=2,3,0),FALSE)) -> na | AH140: =IF(VLOOKUP($AF140,T2_Calc!$B$20:$BLL$359,((DropD_Calc!$J$7)*37)+295+IF(T2_RankType=2,3,0),FALSE)<0,"na",VLOOKUP($AF140,T2_Calc!$B$20:$BLL$359,((DropD_Calc!$J$7)*37)+295+IF(T2_RankType=2,3,0),FALSE)) -> na | AI140: na
AF141: =T2_Calc!B156 -> Lancashire | AG141: =IF(VLOOKUP($AF141,T2_Calc!$B$20:$LU$359,((DropD_Calc!$J$7)*9)+7+IF(T2_RankType=2,3,0),FALSE)<0,"na",VLOOKUP($AF141,T2_Calc!$B$20:$LU$359,((DropD_Calc!$J$7)*9)+7+IF(T2_RankType=2,3,0),FALSE)) -> na | AH141: =IF(VLOOKUP($AF141,T2_Calc!$B$20:$BLL$359,((DropD_Calc!$J$7)*37)+295+IF(T2_RankType=2,3,0),FALSE)<0,"na",VLOOKUP($AF141,T2_Calc!$B$20:$BLL$359,((DropD_Calc!$J$7)*37)+295+IF(T2_RankType=2,3,0),FALSE)) -> na | AI141: na
AF142: =T2_Calc!B157 -> Leicestershire | AG142: =IF(VLOOKUP($AF142,T2_Calc!$B$20:$LU$359,((DropD_Calc!$J$7)*9)+7+IF(T2_RankType=2,3,0),FALSE)<0,"na",VLOOKUP($AF142,T2_Calc!$B$20:$LU$359,((DropD_Calc!$J$7)*9)+7+IF(T2_RankType=2,3,0),FALSE)) -> na | AH142: =IF(VLOOKUP($AF142,T2_Calc!$B$20:$BLL$359,((DropD_Calc!$J$7)*37)+295+IF(T2_RankType=2,3,0),FALSE)<0,"na",VLOOKUP($AF142,T2_Calc!$B$20:$BLL$359,((DropD_Calc!$J$7)*37)+295+IF(T2_RankType=2,3,0),FALSE)) -> na | AI142: na
AF143: =T2_Calc!B158 -> Lincolnshire | AG143: =IF(VLOOKUP($AF143,T2_Calc!$B$20:$LU$359,((DropD_Calc!$J$7)*9)+7+IF(T2_RankType=2,3,0),FALSE)<0,"na",VLOOKUP($AF143,T2_Calc!$B$20:$LU$359,((DropD_Calc!$J$7)*9)+7+IF(T2_RankType=2,3,0),FALSE)) -> na | AH143: =IF(VLOOKUP($AF143,T2_Calc!$B$20:$BLL$359,((DropD_Calc!$J$7)*37)+295+IF(T2_RankType=2,3,0),FALSE)<0,"na",VLOOKUP($AF143,T2_Calc!$B$20:$BLL$359,((DropD_Calc!$J$7)*37)+295+IF(T2_RankType=2,3,0),FALSE)) -> na | AI143: na
AF144: =T2_Calc!B159 -> Norfolk | AG144: =IF(VLOOKUP($AF144,T2_Calc!$B$20:$LU$359,((DropD_Calc!$J$7)*9)+7+IF(T2_RankType=2,3,0),FALSE)<0,"na",VLOOKUP($AF144,T2_Calc!$B$20:$LU$359,((DropD_Calc!$J$7)*9)+7+IF(T2_RankType=2,3,0),FALSE)) -> na | AH144: =IF(VLOOKUP($AF144,T2_Calc!$B$20:$BLL$359,((DropD_Calc!$J$7)*37)+295+IF(T2_RankType=2,3,0),FALSE)<0,"na",VLOOKUP($AF144,T2_Calc!$B$20:$BLL$359,((DropD_Calc!$J$7)*37)+295+IF(T2_RankType=2,3,0),FALSE)) -> na | AI144: na
AF145: =T2_Calc!B160 -> Northamptonshire | AG145: =IF(VLOOKUP($AF145,T2_Calc!$B$20:$LU$359,((DropD_Calc!$J$7)*9)+7+IF(T2_RankType=2,3,0),FALSE)<0,"na",VLOOKUP($AF145,T2_Calc!$B$20:$LU$359,((DropD_Calc!$J$7)*9)+7+IF(T2_RankType=2,3,0),FALSE)) -> na | AH145: =IF(VLOOKUP($AF145,T2_Calc!$B$20:$BLL$359,((DropD_Calc!$J$7)*37)+295+IF(T2_RankType=2,3,0),FALSE)<0,"na",VLOOKUP($AF145,T2_Calc!$B$20:$BLL$359,((DropD_Calc!$J$7)*37)+295+IF(T2_RankType=2,3,0),FALSE)) -> na | AI145: na
AF146: =T2_Calc!B161 -> North Yorkshire | AG146: =IF(VLOOKUP($AF146,T2_Calc!$B$20:$LU$359,((DropD_Calc!$J$7)*9)+7+IF(T2_RankType=2,3,0),FALSE)<0,"na",VLOOKUP($AF146,T2_Calc!$B$20:$LU$359,((DropD_Calc!$J$7)*9)+7+IF(T2_RankType=2,3,0),FALSE)) -> na | AH146: =IF(VLOOKUP($AF146,T2_Calc!$B$20:$BLL$359,((DropD_Calc!$J$7)*37)+295+IF(T2_RankType=2,3,0),FALSE)<0,"na",VLOOKUP($AF146,T2_Calc!$B$20:$BLL$359,((DropD_Calc!$J$7)*37)+295+IF(T2_RankType=2,3,0),FALSE)) -> na | AI146: na
AF147: =T2_Calc!B162 -> Nottinghamshire | AG147: =IF(VLOOKUP($AF147,T2_Calc!$B$20:$LU$359,((DropD_Calc!$J$7)*9)+7+IF(T2_RankType=2,3,0),FALSE)<0,"na",VLOOKUP($AF147,T2_Calc!$B$20:$LU$359,((DropD_Calc!$J$7)*9)+7+IF(T2_RankType=2,3,0),FALSE)) -> na | AH147: =IF(VLOOKUP($AF147,T2_Calc!$B$20:$BLL$359,((DropD_Calc!$J$7)*37)+295+IF(T2_RankType=2,3,0),FALSE)<0,"na",VLOOKUP($AF147,T2_Calc!$B$20:$BLL$359,((DropD_Calc!$J$7)*37)+295+IF(T2_RankType=2,3,0),FALSE)) -> na | AI147: na
AF148: =T2_Calc!B163 -> Oxfordshire | AG148: =IF(VLOOKUP($AF148,T2_Calc!$B$20:$LU$359,((DropD_Calc!$J$7)*9)+7+IF(T2_RankType=2,3,0),FALSE)<0,"na",VLOOKUP($AF148,T2_Calc!$B$20:$LU$359,((DropD_Calc!$J$7)*9)+7+IF(T2_RankType=2,3,0),FALSE)) -> na | AH148: =IF(VLOOKUP($AF148,T2_Calc!$B$20:$BLL$359,((DropD_Calc!$J$7)*37)+295+IF(T2_RankType=2,3,0),FALSE)<0,"na",VLOOKUP($AF148,T2_Calc!$B$20:$BLL$359,((DropD_Calc!$J$7)*37)+295+IF(T2_RankType=2,3,0),FALSE)) -> na | AI148: na
AF149: =T2_Calc!B164 -> Somerset | AG149: =IF(VLOOKUP($AF149,T2_Calc!$B$20:$LU$359,((DropD_Calc!$J$7)*9)+7+IF(T2_RankType=2,3,0),FALSE)<0,"na",VLOOKUP($AF149,T2_Calc!$B$20:$LU$359,((DropD_Calc!$J$7)*9)+7+IF(T2_RankType=2,3,0),FALSE)) -> na | AH149: =IF(VLOOKUP($AF149,T2_Calc!$B$20:$BLL$359,((DropD_Calc!$J$7)*37)+295+IF(T2_RankType=2,3,0),FALSE)<0,"na",VLOOKUP($AF149,T2_Calc!$B$20:$BLL$359,((DropD_Calc!$J$7)*37)+295+IF(T2_RankType=2,3,0),FALSE)) -> na | AI149: na
AF150: =T2_Calc!B165 -> Staffordshire | AG150: =IF(VLOOKUP($AF150,T2_Calc!$B$20:$LU$359,((DropD_Calc!$J$7)*9)+7+IF(T2_RankType=2,3,0),FALSE)<0,"na",VLOOKUP($AF150,T2_Calc!$B$20:$LU$359,((DropD_Calc!$J$7)*9)+7+IF(T2_RankType=2,3,0),FALSE)) -> na | AH150: =IF(VLOOKUP($AF150,T2_Calc!$B$20:$BLL$359,((DropD_Calc!$J$7)*37)+295+IF(T2_RankType=2,3,0),FALSE)<0,"na",VLOOKUP($AF150,T2_Calc!$B$20:$BLL$359,((DropD_Calc!$J$7)*37)+295+IF(T2_RankType=2,3,0),FALSE)) -> na | AI150: na
AF151: =T2_Calc!B166 -> Suffolk | AG151: =IF(VLOOKUP($AF151,T2_Calc!$B$20:$LU$359,((DropD_Calc!$J$7)*9)+7+IF(T2_RankType=2,3,0),FALSE)<0,"na",VLOOKUP($AF151,T2_Calc!$B$20:$LU$359,((DropD_Calc!$J$7)*9)+7+IF(T2_RankType=2,3,0),FALSE)) -> na | AH151: =IF(VLOOKUP($AF151,T2_Calc!$B$20:$BLL$359,((DropD_Calc!$J$7)*37)+295+IF(T2_RankType=2,3,0),FALSE)<0,"na",VLOOKUP($AF151,T2_Calc!$B$20:$BLL$359,((DropD_Calc!$J$7)*37)+295+IF(T2_RankType=2,3,0),FALSE)) -> na | AI151: na
AF152: =T2_Calc!B167 -> Surrey | AG152: =IF(VLOOKUP($AF152,T2_Calc!$B$20:$LU$359,((DropD_Calc!$J$7)*9)+7+IF(T2_RankType=2,3,0),FALSE)<0,"na",VLOOKUP($AF152,T2_Calc!$B$20:$LU$359,((DropD_Calc!$J$7)*9)+7+IF(T2_RankType=2,3,0),FALSE)) -> na | AH152: =IF(VLOOKUP($AF152,T2_Calc!$B$20:$BLL$359,((DropD_Calc!$J$7)*37)+295+IF(T2_RankType=2,3,0),FALSE)<0,"na",VLOOKUP($AF152,T2_Calc!$B$20:$BLL$359,((DropD_Calc!$J$7)*37)+295+IF(T2_RankType=2,3,0),FALSE)) -> na | AI152: na
AF153: =T2_Calc!B168 -> Warwickshire | AG153: =IF(VLOOKUP($AF153,T2_Calc!$B$20:$LU$359,((DropD_Calc!$J$7)*9)+7+IF(T2_RankType=2,3,0),FALSE)<0,"na",VLOOKUP($AF153,T2_Calc!$B$20:$LU$359,((DropD_Calc!$J$7)*9)+7+IF(T2_RankType=2,3,0),FALSE)) -> na | AH153: =IF(VLOOKUP($AF153,T2_Calc!$B$20:$BLL$359,((DropD_Calc!$J$7)*37)+295+IF(T2_RankType=2,3,0),FALSE)<0,"na",VLOOKUP($AF153,T2_Calc!$B$20:$BLL$359,((DropD_Calc!$J$7)*37)+295+IF(T2_RankType=2,3,0),FALSE)) -> na | AI153: na
AF154: =T2_Calc!B169 -> West Sussex | AG154: =IF(VLOOKUP($AF154,T2_Calc!$B$20:$LU$359,((DropD_Calc!$J$7)*9)+7+IF(T2_RankType=2,3,0),FALSE)<0,"na",VLOOKUP($AF154,T2_Calc!$B$20:$LU$359,((DropD_Calc!$J$7)*9)+7+IF(T2_RankType=2,3,0),FALSE)) -> na | AH154: =IF(VLOOKUP($AF154,T2_Calc!$B$20:$BLL$359,((DropD_Calc!$J$7)*37)+295+IF(T2_RankType=2,3,0),FALSE)<0,"na",VLOOKUP($AF154,T2_Calc!$B$20:$BLL$359,((DropD_Calc!$J$7)*37)+295+IF(T2_RankType=2,3,0),FALSE)) -> na | AI154: na
AF155: =T2_Calc!B170 -> Worcestershire | AG155: =IF(VLOOKUP($AF155,T2_Calc!$B$20:$LU$359,((DropD_Calc!$J$7)*9)+7+IF(T2_RankType=2,3,0),FALSE)<0,"na",VLOOKUP($AF155,T2_Calc!$B$20:$LU$359,((DropD_Calc!$J$7)*9)+7+IF(T2_RankType=2,3,0),FALSE)) -> na | AH155: =IF(VLOOKUP($AF155,T2_Calc!$B$20:$BLL$359,((DropD_Calc!$J$7)*37)+295+IF(T2_RankType=2,3,0),FALSE)<0,"na",VLOOKUP($AF155,T2_Calc!$B$20:$BLL$359,((DropD_Calc!$J$7)*37)+295+IF(T2_RankType=2,3,0),FALSE)) -> na | AI155: na
AF156: =T2_Calc!B171 -> Adur | AG156: =IF(VLOOKUP($AF156,T2_Calc!$B$20:$LU$359,((DropD_Calc!$J$7)*9)+7+IF(T2_RankType=2,3,0),FALSE)<0,"na",VLOOKUP($AF156,T2_Calc!$B$20:$LU$359,((DropD_Calc!$J$7)*9)+7+IF(T2_RankType=2,3,0),FALSE)) -> 1 | AH156: =IF(VLOOKUP($AF156,T2_Calc!$B$20:$BLL$359,((DropD_Calc!$J$7)*37)+295+IF(T2_RankType=2,3,0),FALSE)<0,"na",VLOOKUP($AF156,T2_Calc!$B$20:$BLL$359,((DropD_Calc!$J$7)*37)+295+IF(T2_RankType=2,3,0),FALSE)) -> 0.6 | AI156: 0.8000000016
AF157: =T2_Calc!B172 -> Allerdale | AG157: =IF(VLOOKUP($AF157,T2_Calc!$B$20:$LU$359,((DropD_Calc!$J$7)*9)+7+IF(T2_RankType=2,3,0),FALSE)<0,"na",VLOOKUP($AF157,T2_Calc!$B$20:$LU$359,((DropD_Calc!$J$7)*9)+7+IF(T2_RankType=2,3,0),FALSE)) -> na | AH157: =IF(VLOOKUP($AF157,T2_Calc!$B$20:$BLL$359,((DropD_Calc!$J$7)*37)+295+IF(T2_RankType=2,3,0),FALSE)<0,"na",VLOOKUP($AF157,T2_Calc!$B$20:$BLL$359,((DropD_Calc!$J$7)*37)+295+IF(T2_RankType=2,3,0),FALSE)) -> na | AI157: na
AF158: =T2_Calc!B173 -> Amber Valley | AG158: =IF(VLOOKUP($AF158,T2_Calc!$B$20:$LU$359,((DropD_Calc!$J$7)*9)+7+IF(T2_RankType=2,3,0),FALSE)<0,"na",VLOOKUP($AF158,T2_Calc!$B$20:$LU$359,((DropD_Calc!$J$7)*9)+7+IF(T2_RankType=2,3,0),FALSE)) -> na | AH158: =IF(VLOOKUP($AF158,T2_Calc!$B$20:$BLL$359,((DropD_Calc!$J$7)*37)+295+IF(T2_RankType=2,3,0),FALSE)<0,"na",VLOOKUP($AF158,T2_Calc!$B$20:$BLL$359,((DropD_Calc!$J$7)*37)+295+IF(T2_RankType=2,3,0),FALSE)) -> na | AI158: na
AF159: =T2_Calc!B174 -> Arun | AG159: =IF(VLOOKUP($AF159,T2_Calc!$B$20:$LU$359,((DropD_Calc!$J$7)*9)+7+IF(T2_RankType=2,3,0),FALSE)<0,"na",VLOOKUP($AF159,T2_Calc!$B$20:$LU$359,((DropD_Calc!$J$7)*9)+7+IF(T2_RankType=2,3,0),FALSE)) -> na | AH159: =IF(VLOOKUP($AF159,T2_Calc!$B$20:$BLL$359,((DropD_Calc!$J$7)*37)+295+IF(T2_RankType=2,3,0),FALSE)<0,"na",VLOOKUP($AF159,T2_Calc!$B$20:$BLL$359,((DropD_Calc!$J$7)*37)+295+IF(T2_RankType=2,3,0),FALSE)) -> na | AI159: na
AF160: =T2_Calc!B175 -> Ashfield | AG160: =IF(VLOOKUP($AF160,T2_Calc!$B$20:$LU$359,((DropD_Calc!$J$7)*9)+7+IF(T2_RankType=2,3,0),FALSE)<0,"na",VLOOKUP($AF160,T2_Calc!$B$20:$LU$359,((DropD_Calc!$J$7)*9)+7+IF(T2_RankType=2,3,0),FALSE)) -> na | AH160: =IF(VLOOKUP($AF160,T2_Calc!$B$20:$BLL$359,((DropD_Calc!$J$7)*37)+295+IF(T2_RankType=2,3,0),FALSE)<0,"na",VLOOKUP($AF160,T2_Calc!$B$20:$BLL$359,((DropD_Calc!$J$7)*37)+295+IF(T2_RankType=2,3,0),FALSE)) -> na | AI160: na
AF161: =T2_Calc!B176 -> Ashford | AG161: =IF(VLOOKUP($AF161,T2_Calc!$B$20:$LU$359,((DropD_Calc!$J$7)*9)+7+IF(T2_RankType=2,3,0),FALSE)<0,"na",VLOOKUP($AF161,T2_Calc!$B$20:$LU$359,((DropD_Calc!$J$7)*9)+7+IF(T2_RankType=2,3,0),FALSE)) -> na | AH161: =IF(VLOOKUP($AF161,T2_Calc!$B$20:$BLL$359,((DropD_Calc!$J$7)*37)+295+IF(T2_RankType=2,3,0),FALSE)<0,"na",VLOOKUP($AF161,T2_Calc!$B$20:$BLL$359,((DropD_Calc!$J$7)*37)+295+IF(T2_RankType=2,3,0),FALSE)) -> na | AI161: na
AF162: =T2_Calc!#REF! ->  | AG162: =IF(VLOOKUP($AF162,T2_Calc!$B$20:$LU$359,((DropD_Calc!$J$7)*9)+7+IF(T2_RankType=2,3,0),FALSE)<0,"na",VLOOKUP($AF162,T2_Calc!$B$20:$LU$359,((DropD_Calc!$J$7)*9)+7+IF(T2_RankType=2,3,0),FALSE)) ->  | AH162: =IF(VLOOKUP($AF162,T2_Calc!$B$20:$BLL$359,((DropD_Calc!$J$7)*37)+295+IF(T2_RankType=2,3,0),FALSE)<0,"na",VLOOKUP($AF162,T2_Calc!$B$20:$BLL$359,((DropD_Calc!$J$7)*37)+295+IF(T2_RankType=2,3,0),FALSE)) -> 
AF163: =T2_Calc!B177 -> Babergh | AG163: =IF(VLOOKUP($AF163,T2_Calc!$B$20:$LU$359,((DropD_Calc!$J$7)*9)+7+IF(T2_RankType=2,3,0),FALSE)<0,"na",VLOOKUP($AF163,T2_Calc!$B$20:$LU$359,((DropD_Calc!$J$7)*9)+7+IF(T2_RankType=2,3,0),FALSE)) -> na | AH163: =IF(VLOOKUP($AF163,T2_Calc!$B$20:$BLL$359,((DropD_Calc!$J$7)*37)+295+IF(T2_RankType=2,3,0),FALSE)<0,"na",VLOOKUP($AF163,T2_Calc!$B$20:$BLL$359,((DropD_Calc!$J$7)*37)+295+IF(T2_RankType=2,3,0),FALSE)) -> na | AI163: na
AF164: =T2_Calc!B178 -> Barrow-in-Furness | AG164: =IF(VLOOKUP($AF164,T2_Calc!$B$20:$LU$359,((DropD_Calc!$J$7)*9)+7+IF(T2_RankType=2,3,0),FALSE)<0,"na",VLOOKUP($AF164,T2_Calc!$B$20:$LU$359,((DropD_Calc!$J$7)*9)+7+IF(T2_RankType=2,3,0),FALSE)) -> na | AH164: =IF(VLOOKUP($AF164,T2_Calc!$B$20:$BLL$359,((DropD_Calc!$J$7)*37)+295+IF(T2_RankType=2,3,0),FALSE)<0,"na",VLOOKUP($AF164,T2_Calc!$B$20:$BLL$359,((DropD_Calc!$J$7)*37)+295+IF(T2_RankType=2,3,0),FALSE)) -> na | AI164: na
AF165: =T2_Calc!B179 -> Basildon | AG165: =IF(VLOOKUP($AF165,T2_Calc!$B$20:$LU$359,((DropD_Calc!$J$7)*9)+7+IF(T2_RankType=2,3,0),FALSE)<0,"na",VLOOKUP($AF165,T2_Calc!$B$20:$LU$359,((DropD_Calc!$J$7)*9)+7+IF(T2_RankType=2,3,0),FALSE)) -> na | AH165: =IF(VLOOKUP($AF165,T2_Calc!$B$20:$BLL$359,((DropD_Calc!$J$7)*37)+295+IF(T2_RankType=2,3,0),FALSE)<0,"na",VLOOKUP($AF165,T2_Calc!$B$20:$BLL$359,((DropD_Calc!$J$7)*37)+295+IF(T2_RankType=2,3,0),FALSE)) -> na | AI165: na
AF166: =T2_Calc!B180 -> Basingstoke & Deane | AG166: =IF(VLOOKUP($AF166,T2_Calc!$B$20:$LU$359,((DropD_Calc!$J$7)*9)+7+IF(T2_RankType=2,3,0),FALSE)<0,"na",VLOOKUP($AF166,T2_Calc!$B$20:$LU$359,((DropD_Calc!$J$7)*9)+7+IF(T2_RankType=2,3,0),FALSE)) -> na | AH166: =IF(VLOOKUP($AF166,T2_Calc!$B$20:$BLL$359,((DropD_Calc!$J$7)*37)+295+IF(T2_RankType=2,3,0),FALSE)<0,"na",VLOOKUP($AF166,T2_Calc!$B$20:$BLL$359,((DropD_Calc!$J$7)*37)+295+IF(T2_RankType=2,3,0),FALSE)) -> na | AI166: na
AF167: =T2_Calc!B181 -> Bassetlaw | AG167: =IF(VLOOKUP($AF167,T2_Calc!$B$20:$LU$359,((DropD_Calc!$J$7)*9)+7+IF(T2_RankType=2,3,0),FALSE)<0,"na",VLOOKUP($AF167,T2_Calc!$B$20:$LU$359,((DropD_Calc!$J$7)*9)+7+IF(T2_RankType=2,3,0),FALSE)) -> na | AH167: =IF(VLOOKUP($AF167,T2_Calc!$B$20:$BLL$359,((DropD_Calc!$J$7)*37)+295+IF(T2_RankType=2,3,0),FALSE)<0,"na",VLOOKUP($AF167,T2_Calc!$B$20:$BLL$359,((DropD_Calc!$J$7)*37)+295+IF(T2_RankType=2,3,0),FALSE)) -> na | AI167: na
AF168: =T2_Calc!B182 -> Blaby | AG168: =IF(VLOOKUP($AF168,T2_Calc!$B$20:$LU$359,((DropD_Calc!$J$7)*9)+7+IF(T2_RankType=2,3,0),FALSE)<0,"na",VLOOKUP($AF168,T2_Calc!$B$20:$LU$359,((DropD_Calc!$J$7)*9)+7+IF(T2_RankType=2,3,0),FALSE)) -> na | AH168: =IF(VLOOKUP($AF168,T2_Calc!$B$20:$BLL$359,((DropD_Calc!$J$7)*37)+295+IF(T2_RankType=2,3,0),FALSE)<0,"na",VLOOKUP($AF168,T2_Calc!$B$20:$BLL$359,((DropD_Calc!$J$7)*37)+295+IF(T2_RankType=2,3,0),FALSE)) -> na | AI168: na
AF169: =T2_Calc!B183 -> Bolsover | AG169: =IF(VLOOKUP($AF169,T2_Calc!$B$20:$LU$359,((DropD_Calc!$J$7)*9)+7+IF(T2_RankType=2,3,0),FALSE)<0,"na",VLOOKUP($AF169,T2_Calc!$B$20:$LU$359,((DropD_Calc!$J$7)*9)+7+IF(T2_RankType=2,3,0),FALSE)) -> na | AH169: =IF(VLOOKUP($AF169,T2_Calc!$B$20:$BLL$359,((DropD_Calc!$J$7)*37)+295+IF(T2_RankType=2,3,0),FALSE)<0,"na",VLOOKUP($AF169,T2_Calc!$B$20:$BLL$359,((DropD_Calc!$J$7)*37)+295+IF(T2_RankType=2,3,0),FALSE)) -> na | AI169: na
AF170: =T2_Calc!B184 -> Boston | AG170: =IF(VLOOKUP($AF170,T2_Calc!$B$20:$LU$359,((DropD_Calc!$J$7)*9)+7+IF(T2_RankType=2,3,0),FALSE)<0,"na",VLOOKUP($AF170,T2_Calc!$B$20:$LU$359,((DropD_Calc!$J$7)*9)+7+IF(T2_RankType=2,3,0),FALSE)) -> na | AH170: =IF(VLOOKUP($AF170,T2_Calc!$B$20:$BLL$359,((DropD_Calc!$J$7)*37)+295+IF(T2_RankType=2,3,0),FALSE)<0,"na",VLOOKUP($AF170,T2_Calc!$B$20:$BLL$359,((DropD_Calc!$J$7)*37)+295+IF(T2_RankType=2,3,0),FALSE)) -> na | AI170: na
AF171: =T2_Calc!B185 -> Braintree | AG171: =IF(VLOOKUP($AF171,T2_Calc!$B$20:$LU$359,((DropD_Calc!$J$7)*9)+7+IF(T2_RankType=2,3,0),FALSE)<0,"na",VLOOKUP($AF171,T2_Calc!$B$20:$LU$359,((DropD_Calc!$J$7)*9)+7+IF(T2_RankType=2,3,0),FALSE)) -> na | AH171: =IF(VLOOKUP($AF171,T2_Calc!$B$20:$BLL$359,((DropD_Calc!$J$7)*37)+295+IF(T2_RankType=2,3,0),FALSE)<0,"na",VLOOKUP($AF171,T2_Calc!$B$20:$BLL$359,((DropD_Calc!$J$7)*37)+295+IF(T2_RankType=2,3,0),FALSE)) -> na | AI171: na
AF172: =T2_Calc!B186 -> Breckland | AG172: =IF(VLOOKUP($AF172,T2_Calc!$B$20:$LU$359,((DropD_Calc!$J$7)*9)+7+IF(T2_RankType=2,3,0),FALSE)<0,"na",VLOOKUP($AF172,T2_Calc!$B$20:$LU$359,((DropD_Calc!$J$7)*9)+7+IF(T2_RankType=2,3,0),FALSE)) -> na | AH172: =IF(VLOOKUP($AF172,T2_Calc!$B$20:$BLL$359,((DropD_Calc!$J$7)*37)+295+IF(T2_RankType=2,3,0),FALSE)<0,"na",VLOOKUP($AF172,T2_Calc!$B$20:$BLL$359,((DropD_Calc!$J$7)*37)+295+IF(T2_RankType=2,3,0),FALSE)) -> na | AI172: na
AF173: =T2_Calc!B187 -> Brentwood | AG173: =IF(VLOOKUP($AF173,T2_Calc!$B$20:$LU$359,((DropD_Calc!$J$7)*9)+7+IF(T2_RankType=2,3,0),FALSE)<0,"na",VLOOKUP($AF173,T2_Calc!$B$20:$LU$359,((DropD_Calc!$J$7)*9)+7+IF(T2_RankType=2,3,0),FALSE)) -> na | AH173: =IF(VLOOKUP($AF173,T2_Calc!$B$20:$BLL$359,((DropD_Calc!$J$7)*37)+295+IF(T2_RankType=2,3,0),FALSE)<0,"na",VLOOKUP($AF173,T2_Calc!$B$20:$BLL$359,((DropD_Calc!$J$7)*37)+295+IF(T2_RankType=2,3,0),FALSE)) -> na | AI173: na
AF174: =T2_Calc!B188 -> Broadland | AG174: =IF(VLOOKUP($AF174,T2_Calc!$B$20:$LU$359,((DropD_Calc!$J$7)*9)+7+IF(T2_RankType=2,3,0),FALSE)<0,"na",VLOOKUP($AF174,T2_Calc!$B$20:$LU$359,((DropD_Calc!$J$7)*9)+7+IF(T2_RankType=2,3,0),FALSE)) -> na | AH174: =IF(VLOOKUP($AF174,T2_Calc!$B$20:$BLL$359,((DropD_Calc!$J$7)*37)+295+IF(T2_RankType=2,3,0),FALSE)<0,"na",VLOOKUP($AF174,T2_Calc!$B$20:$BLL$359,((DropD_Calc!$J$7)*37)+295+IF(T2_RankType=2,3,0),FALSE)) -> na | AI174: na
AF175: =T2_Calc!B189 -> Bromsgrove | AG175: =IF(VLOOKUP($AF175,T2_Calc!$B$20:$LU$359,((DropD_Calc!$J$7)*9)+7+IF(T2_RankType=2,3,0),FALSE)<0,"na",VLOOKUP($AF175,T2_Calc!$B$20:$LU$359,((DropD_Calc!$J$7)*9)+7+IF(T2_RankType=2,3,0),FALSE)) -> na | AH175: =IF(VLOOKUP($AF175,T2_Calc!$B$20:$BLL$359,((DropD_Calc!$J$7)*37)+295+IF(T2_RankType=2,3,0),FALSE)<0,"na",VLOOKUP($AF175,T2_Calc!$B$20:$BLL$359,((DropD_Calc!$J$7)*37)+295+IF(T2_RankType=2,3,0),FALSE)) -> na | AI175: na
AF176: =T2_Calc!B190 -> Broxbourne | AG176: =IF(VLOOKUP($AF176,T2_Calc!$B$20:$LU$359,((DropD_Calc!$J$7)*9)+7+IF(T2_RankType=2,3,0),FALSE)<0,"na",VLOOKUP($AF176,T2_Calc!$B$20:$LU$359,((DropD_Calc!$J$7)*9)+7+IF(T2_RankType=2,3,0),FALSE)) -> na | AH176: =IF(VLOOKUP($AF176,T2_Calc!$B$20:$BLL$359,((DropD_Calc!$J$7)*37)+295+IF(T2_RankType=2,3,0),FALSE)<0,"na",VLOOKUP($AF176,T2_Calc!$B$20:$BLL$359,((DropD_Calc!$J$7)*37)+295+IF(T2_RankType=2,3,0),FALSE)) -> na | AI176: na
AF177: =T2_Calc!B191 -> Broxtowe | AG177: =IF(VLOOKUP($AF177,T2_Calc!$B$20:$LU$359,((DropD_Calc!$J$7)*9)+7+IF(T2_RankType=2,3,0),FALSE)<0,"na",VLOOKUP($AF177,T2_Calc!$B$20:$LU$359,((DropD_Calc!$J$7)*9)+7+IF(T2_RankType=2,3,0),FALSE)) -> na | AH177: =IF(VLOOKUP($AF177,T2_Calc!$B$20:$BLL$359,((DropD_Calc!$J$7)*37)+295+IF(T2_RankType=2,3,0),FALSE)<0,"na",VLOOKUP($AF177,T2_Calc!$B$20:$BLL$359,((DropD_Calc!$J$7)*37)+295+IF(T2_RankType=2,3,0),FALSE)) -> na | AI177: na
AF178: =T2_Calc!B192 -> Burnley | AG178: =IF(VLOOKUP($AF178,T2_Calc!$B$20:$LU$359,((DropD_Calc!$J$7)*9)+7+IF(T2_RankType=2,3,0),FALSE)<0,"na",VLOOKUP($AF178,T2_Calc!$B$20:$LU$359,((DropD_Calc!$J$7)*9)+7+IF(T2_RankType=2,3,0),FALSE)) -> na | AH178: =IF(VLOOKUP($AF178,T2_Calc!$B$20:$BLL$359,((DropD_Calc!$J$7)*37)+295+IF(T2_RankType=2,3,0),FALSE)<0,"na",VLOOKUP($AF178,T2_Calc!$B$20:$BLL$359,((DropD_Calc!$J$7)*37)+295+IF(T2_RankType=2,3,0),FALSE)) -> na | AI178: na
AF179: =T2_Calc!B193 -> Cambridge | AG179: =IF(VLOOKUP($AF179,T2_Calc!$B$20:$LU$359,((DropD_Calc!$J$7)*9)+7+IF(T2_RankType=2,3,0),FALSE)<0,"na",VLOOKUP($AF179,T2_Calc!$B$20:$LU$359,((DropD_Calc!$J$7)*9)+7+IF(T2_RankType=2,3,0),FALSE)) -> na | AH179: =IF(VLOOKUP($AF179,T2_Calc!$B$20:$BLL$359,((DropD_Calc!$J$7)*37)+295+IF(T2_RankType=2,3,0),FALSE)<0,"na",VLOOKUP($AF179,T2_Calc!$B$20:$BLL$359,((DropD_Calc!$J$7)*37)+295+IF(T2_RankType=2,3,0),FALSE)) -> na | AI179: na
AF180: =T2_Calc!B194 -> Cannock Chase | AG180: =IF(VLOOKUP($AF180,T2_Calc!$B$20:$LU$359,((DropD_Calc!$J$7)*9)+7+IF(T2_RankType=2,3,0),FALSE)<0,"na",VLOOKUP($AF180,T2_Calc!$B$20:$LU$359,((DropD_Calc!$J$7)*9)+7+IF(T2_RankType=2,3,0),FALSE)) -> na | AH180: =IF(VLOOKUP($AF180,T2_Calc!$B$20:$BLL$359,((DropD_Calc!$J$7)*37)+295+IF(T2_RankType=2,3,0),FALSE)<0,"na",VLOOKUP($AF180,T2_Calc!$B$20:$BLL$359,((DropD_Calc!$J$7)*37)+295+IF(T2_RankType=2,3,0),FALSE)) -> na | AI180: na
AF181: =T2_Calc!B195 -> Canterbury | AG181: =IF(VLOOKUP($AF181,T2_Calc!$B$20:$LU$359,((DropD_Calc!$J$7)*9)+7+IF(T2_RankType=2,3,0),FALSE)<0,"na",VLOOKUP($AF181,T2_Calc!$B$20:$LU$359,((DropD_Calc!$J$7)*9)+7+IF(T2_RankType=2,3,0),FALSE)) -> na | AH181: =IF(VLOOKUP($AF181,T2_Calc!$B$20:$BLL$359,((DropD_Calc!$J$7)*37)+295+IF(T2_RankType=2,3,0),FALSE)<0,"na",VLOOKUP($AF181,T2_Calc!$B$20:$BLL$359,((DropD_Calc!$J$7)*37)+295+IF(T2_RankType=2,3,0),FALSE)) -> na | AI181: na
AF182: =T2_Calc!B196 -> Carlisle | AG182: =IF(VLOOKUP($AF182,T2_Calc!$B$20:$LU$359,((DropD_Calc!$J$7)*9)+7+IF(T2_RankType=2,3,0),FALSE)<0,"na",VLOOKUP($AF182,T2_Calc!$B$20:$LU$359,((DropD_Calc!$J$7)*9)+7+IF(T2_RankType=2,3,0),FALSE)) -> na | AH182: =IF(VLOOKUP($AF182,T2_Calc!$B$20:$BLL$359,((DropD_Calc!$J$7)*37)+295+IF(T2_RankType=2,3,0),FALSE)<0,"na",VLOOKUP($AF182,T2_Calc!$B$20:$BLL$359,((DropD_Calc!$J$7)*37)+295+IF(T2_RankType=2,3,0),FALSE)) -> na | AI182: na
AF183: =T2_Calc!B197 -> Castle Point | AG183: =IF(VLOOKUP($AF183,T2_Calc!$B$20:$LU$359,((DropD_Calc!$J$7)*9)+7+IF(T2_RankType=2,3,0),FALSE)<0,"na",VLOOKUP($AF183,T2_Calc!$B$20:$LU$359,((DropD_Calc!$J$7)*9)+7+IF(T2_RankType=2,3,0),FALSE)) -> na | AH183: =IF(VLOOKUP($AF183,T2_Calc!$B$20:$BLL$359,((DropD_Calc!$J$7)*37)+295+IF(T2_RankType=2,3,0),FALSE)<0,"na",VLOOKUP($AF183,T2_Calc!$B$20:$BLL$359,((DropD_Calc!$J$7)*37)+295+IF(T2_RankType=2,3,0),FALSE)) -> na | AI183: na
AF184: =T2_Calc!B198 -> Charnwood | AG184: =IF(VLOOKUP($AF184,T2_Calc!$B$20:$LU$359,((DropD_Calc!$J$7)*9)+7+IF(T2_RankType=2,3,0),FALSE)<0,"na",VLOOKUP($AF184,T2_Calc!$B$20:$LU$359,((DropD_Calc!$J$7)*9)+7+IF(T2_RankType=2,3,0),FALSE)) -> na | AH184: =IF(VLOOKUP($AF184,T2_Calc!$B$20:$BLL$359,((DropD_Calc!$J$7)*37)+295+IF(T2_RankType=2,3,0),FALSE)<0,"na",VLOOKUP($AF184,T2_Calc!$B$20:$BLL$359,((DropD_Calc!$J$7)*37)+295+IF(T2_RankType=2,3,0),FALSE)) -> na | AI184: na
AF185: =T2_Calc!B199 -> Chelmsford | AG185: =IF(VLOOKUP($AF185,T2_Calc!$B$20:$LU$359,((DropD_Calc!$J$7)*9)+7+IF(T2_RankType=2,3,0),FALSE)<0,"na",VLOOKUP($AF185,T2_Calc!$B$20:$LU$359,((DropD_Calc!$J$7)*9)+7+IF(T2_RankType=2,3,0),FALSE)) -> na | AH185: =IF(VLOOKUP($AF185,T2_Calc!$B$20:$BLL$359,((DropD_Calc!$J$7)*37)+295+IF(T2_RankType=2,3,0),FALSE)<0,"na",VLOOKUP($AF185,T2_Calc!$B$20:$BLL$359,((DropD_Calc!$J$7)*37)+295+IF(T2_RankType=2,3,0),FALSE)) -> na | AI185: na
AF186: =T2_Calc!B200 -> Cheltenham | AG186: =IF(VLOOKUP($AF186,T2_Calc!$B$20:$LU$359,((DropD_Calc!$J$7)*9)+7+IF(T2_RankType=2,3,0),FALSE)<0,"na",VLOOKUP($AF186,T2_Calc!$B$20:$LU$359,((DropD_Calc!$J$7)*9)+7+IF(T2_RankType=2,3,0),FALSE)) -> na | AH186: =IF(VLOOKUP($AF186,T2_Calc!$B$20:$BLL$359,((DropD_Calc!$J$7)*37)+295+IF(T2_RankType=2,3,0),FALSE)<0,"na",VLOOKUP($AF186,T2_Calc!$B$20:$BLL$359,((DropD_Calc!$J$7)*37)+295+IF(T2_RankType=2,3,0),FALSE)) -> na | AI186: na
AF187: =T2_Calc!B201 -> Cherwell | AG187: =IF(VLOOKUP($AF187,T2_Calc!$B$20:$LU$359,((DropD_Calc!$J$7)*9)+7+IF(T2_RankType=2,3,0),FALSE)<0,"na",VLOOKUP($AF187,T2_Calc!$B$20:$LU$359,((DropD_Calc!$J$7)*9)+7+IF(T2_RankType=2,3,0),FALSE)) -> na | AH187: =IF(VLOOKUP($AF187,T2_Calc!$B$20:$BLL$359,((DropD_Calc!$J$7)*37)+295+IF(T2_RankType=2,3,0),FALSE)<0,"na",VLOOKUP($AF187,T2_Calc!$B$20:$BLL$359,((DropD_Calc!$J$7)*37)+295+IF(T2_RankType=2,3,0),FALSE)) -> na | AI187: na
AF188: =T2_Calc!B202 -> Chesterfield | AG188: =IF(VLOOKUP($AF188,T2_Calc!$B$20:$LU$359,((DropD_Calc!$J$7)*9)+7+IF(T2_RankType=2,3,0),FALSE)<0,"na",VLOOKUP($AF188,T2_Calc!$B$20:$LU$359,((DropD_Calc!$J$7)*9)+7+IF(T2_RankType=2,3,0),FALSE)) -> na | AH188: =IF(VLOOKUP($AF188,T2_Calc!$B$20:$BLL$359,((DropD_Calc!$J$7)*37)+295+IF(T2_RankType=2,3,0),FALSE)<0,"na",VLOOKUP($AF188,T2_Calc!$B$20:$BLL$359,((DropD_Calc!$J$7)*37)+295+IF(T2_RankType=2,3,0),FALSE)) -> na | AI188: na
AF189: =T2_Calc!B203 -> Chichester | AG189: =IF(VLOOKUP($AF189,T2_Calc!$B$20:$LU$359,((DropD_Calc!$J$7)*9)+7+IF(T2_RankType=2,3,0),FALSE)<0,"na",VLOOKUP($AF189,T2_Calc!$B$20:$LU$359,((DropD_Calc!$J$7)*9)+7+IF(T2_RankType=2,3,0),FALSE)) -> na | AH189: =IF(VLOOKUP($AF189,T2_Calc!$B$20:$BLL$359,((DropD_Calc!$J$7)*37)+295+IF(T2_RankType=2,3,0),FALSE)<0,"na",VLOOKUP($AF189,T2_Calc!$B$20:$BLL$359,((DropD_Calc!$J$7)*37)+295+IF(T2_RankType=2,3,0),FALSE)) -> na | AI189: na
AF190: =T2_Calc!#REF! ->  | AG190: =IF(VLOOKUP($AF190,T2_Calc!$B$20:$LU$359,((DropD_Calc!$J$7)*9)+7+IF(T2_RankType=2,3,0),FALSE)<0,"na",VLOOKUP($AF190,T2_Calc!$B$20:$LU$359,((DropD_Calc!$J$7)*9)+7+IF(T2_RankType=2,3,0),FALSE)) ->  | AH190: =IF(VLOOKUP($AF190,T2_Calc!$B$20:$BLL$359,((DropD_Calc!$J$7)*37)+295+IF(T2_RankType=2,3,0),FALSE)<0,"na",VLOOKUP($AF190,T2_Calc!$B$20:$BLL$359,((DropD_Calc!$J$7)*37)+295+IF(T2_RankType=2,3,0),FALSE)) -> 
AF191: =T2_Calc!B204 -> Chorley | AG191: =IF(VLOOKUP($AF191,T2_Calc!$B$20:$LU$359,((DropD_Calc!$J$7)*9)+7+IF(T2_RankType=2,3,0),FALSE)<0,"na",VLOOKUP($AF191,T2_Calc!$B$20:$LU$359,((DropD_Calc!$J$7)*9)+7+IF(T2_RankType=2,3,0),FALSE)) -> na | AH191: =IF(VLOOKUP($AF191,T2_Calc!$B$20:$BLL$359,((DropD_Calc!$J$7)*37)+295+IF(T2_RankType=2,3,0),FALSE)<0,"na",VLOOKUP($AF191,T2_Calc!$B$20:$BLL$359,((DropD_Calc!$J$7)*37)+295+IF(T2_RankType=2,3,0),FALSE)) -> na | AI191: na
AF192: =T2_Calc!#REF! ->  | AG192: =IF(VLOOKUP($AF192,T2_Calc!$B$20:$LU$359,((DropD_Calc!$J$7)*9)+7+IF(T2_RankType=2,3,0),FALSE)<0,"na",VLOOKUP($AF192,T2_Calc!$B$20:$LU$359,((DropD_Calc!$J$7)*9)+7+IF(T2_RankType=2,3,0),FALSE)) ->  | AH192: =IF(VLOOKUP($AF192,T2_Calc!$B$20:$BLL$359,((DropD_Calc!$J$7)*37)+295+IF(T2_RankType=2,3,0),FALSE)<0,"na",VLOOKUP($AF192,T2_Calc!$B$20:$BLL$359,((DropD_Calc!$J$7)*37)+295+IF(T2_RankType=2,3,0),FALSE)) -> 
AF193: =T2_Calc!B205 -> Colchester | AG193: =IF(VLOOKUP($AF193,T2_Calc!$B$20:$LU$359,((DropD_Calc!$J$7)*9)+7+IF(T2_RankType=2,3,0),FALSE)<0,"na",VLOOKUP($AF193,T2_Calc!$B$20:$LU$359,((DropD_Calc!$J$7)*9)+7+IF(T2_RankType=2,3,0),FALSE)) -> na | AH193: =IF(VLOOKUP($AF193,T2_Calc!$B$20:$BLL$359,((DropD_Calc!$J$7)*37)+295+IF(T2_RankType=2,3,0),FALSE)<0,"na",VLOOKUP($AF193,T2_Calc!$B$20:$BLL$359,((DropD_Calc!$J$7)*37)+295+IF(T2_RankType=2,3,0),FALSE)) -> na | AI193: na
AF194: =T2_Calc!B206 -> Copeland | AG194: =IF(VLOOKUP($AF194,T2_Calc!$B$20:$LU$359,((DropD_Calc!$J$7)*9)+7+IF(T2_RankType=2,3,0),FALSE)<0,"na",VLOOKUP($AF194,T2_Calc!$B$20:$LU$359,((DropD_Calc!$J$7)*9)+7+IF(T2_RankType=2,3,0),FALSE)) -> na | AH194: =IF(VLOOKUP($AF194,T2_Calc!$B$20:$BLL$359,((DropD_Calc!$J$7)*37)+295+IF(T2_RankType=2,3,0),FALSE)<0,"na",VLOOKUP($AF194,T2_Calc!$B$20:$BLL$359,((DropD_Calc!$J$7)*37)+295+IF(T2_RankType=2,3,0),FALSE)) -> na | AI194: na
AF195: =T2_Calc!B207 -> Corby | AG195: =IF(VLOOKUP($AF195,T2_Calc!$B$20:$LU$359,((DropD_Calc!$J$7)*9)+7+IF(T2_RankType=2,3,0),FALSE)<0,"na",VLOOKUP($AF195,T2_Calc!$B$20:$LU$359,((DropD_Calc!$J$7)*9)+7+IF(T2_RankType=2,3,0),FALSE)) -> na | AH195: =IF(VLOOKUP($AF195,T2_Calc!$B$20:$BLL$359,((DropD_Calc!$J$7)*37)+295+IF(T2_RankType=2,3,0),FALSE)<0,"na",VLOOKUP($AF195,T2_Calc!$B$20:$BLL$359,((DropD_Calc!$J$7)*37)+295+IF(T2_RankType=2,3,0),FALSE)) -> na | AI195: na
AF196: =T2_Calc!B208 -> Cotswold | AG196: =IF(VLOOKUP($AF196,T2_Calc!$B$20:$LU$359,((DropD_Calc!$J$7)*9)+7+IF(T2_RankType=2,3,0),FALSE)<0,"na",VLOOKUP($AF196,T2_Calc!$B$20:$LU$359,((DropD_Calc!$J$7)*9)+7+IF(T2_RankType=2,3,0),FALSE)) -> na | AH196: =IF(VLOOKUP($AF196,T2_Calc!$B$20:$BLL$359,((DropD_Calc!$J$7)*37)+295+IF(T2_RankType=2,3,0),FALSE)<0,"na",VLOOKUP($AF196,T2_Calc!$B$20:$BLL$359,((DropD_Calc!$J$7)*37)+295+IF(T2_RankType=2,3,0),FALSE)) -> na | AI196: na
AF197: =T2_Calc!B209 -> Craven | AG197: =IF(VLOOKUP($AF197,T2_Calc!$B$20:$LU$359,((DropD_Calc!$J$7)*9)+7+IF(T2_RankType=2,3,0),FALSE)<0,"na",VLOOKUP($AF197,T2_Calc!$B$20:$LU$359,((DropD_Calc!$J$7)*9)+7+IF(T2_RankType=2,3,0),FALSE)) -> na | AH197: =IF(VLOOKUP($AF197,T2_Calc!$B$20:$BLL$359,((DropD_Calc!$J$7)*37)+295+IF(T2_RankType=2,3,0),FALSE)<0,"na",VLOOKUP($AF197,T2_Calc!$B$20:$BLL$359,((DropD_Calc!$J$7)*37)+295+IF(T2_RankType=2,3,0),FALSE)) -> na | AI197: =IF(OR(AG197="na",AH197="na"),"na",AVERAGE(AG197:AH197)+(ROW()*0.00000000001)) -> na
AF198: =T2_Calc!B210 -> Crawley | AG198: =IF(VLOOKUP($AF198,T2_Calc!$B$20:$LU$359,((DropD_Calc!$J$7)*9)+7+IF(T2_RankType=2,3,0),FALSE)<0,"na",VLOOKUP($AF198,T2_Calc!$B$20:$LU$359,((DropD_Calc!$J$7)*9)+7+IF(T2_RankType=2,3,0),FALSE)) -> na | AH198: =IF(VLOOKUP($AF198,T2_Calc!$B$20:$BLL$359,((DropD_Calc!$J$7)*37)+295+IF(T2_RankType=2,3,0),FALSE)<0,"na",VLOOKUP($AF198,T2_Calc!$B$20:$BLL$359,((DropD_Calc!$J$7)*37)+295+IF(T2_RankType=2,3,0),FALSE)) -> na | AI198: na
AF199: =T2_Calc!B211 -> Dacorum | AG199: =IF(VLOOKUP($AF199,T2_Calc!$B$20:$LU$359,((DropD_Calc!$J$7)*9)+7+IF(T2_RankType=2,3,0),FALSE)<0,"na",VLOOKUP($AF199,T2_Calc!$B$20:$LU$359,((DropD_Calc!$J$7)*9)+7+IF(T2_RankType=2,3,0),FALSE)) -> na | AH199: =IF(VLOOKUP($AF199,T2_Calc!$B$20:$BLL$359,((DropD_Calc!$J$7)*37)+295+IF(T2_RankType=2,3,0),FALSE)<0,"na",VLOOKUP($AF199,T2_Calc!$B$20:$BLL$359,((DropD_Calc!$J$7)*37)+295+IF(T2_RankType=2,3,0),FALSE)) -> na | AI199: na
AF200: =T2_Calc!B212 -> Dartford | AG200: =IF(VLOOKUP($AF200,T2_Calc!$B$20:$LU$359,((DropD_Calc!$J$7)*9)+7+IF(T2_RankType=2,3,0),FALSE)<0,"na",VLOOKUP($AF200,T2_Calc!$B$20:$LU$359,((DropD_Calc!$J$7)*9)+7+IF(T2_RankType=2,3,0),FALSE)) -> na | AH200: =IF(VLOOKUP($AF200,T2_Calc!$B$20:$BLL$359,((DropD_Calc!$J$7)*37)+295+IF(T2_RankType=2,3,0),FALSE)<0,"na",VLOOKUP($AF200,T2_Calc!$B$20:$BLL$359,((DropD_Calc!$J$7)*37)+295+IF(T2_RankType=2,3,0),FALSE)) -> na | AI200: na
AF201: =T2_Calc!B213 -> Daventry | AG201: =IF(VLOOKUP($AF201,T2_Calc!$B$20:$LU$359,((DropD_Calc!$J$7)*9)+7+IF(T2_RankType=2,3,0),FALSE)<0,"na",VLOOKUP($AF201,T2_Calc!$B$20:$LU$359,((DropD_Calc!$J$7)*9)+7+IF(T2_RankType=2,3,0),FALSE)) -> na | AH201: =IF(VLOOKUP($AF201,T2_Calc!$B$20:$BLL$359,((DropD_Calc!$J$7)*37)+295+IF(T2_RankType=2,3,0),FALSE)<0,"na",VLOOKUP($AF201,T2_Calc!$B$20:$BLL$359,((DropD_Calc!$J$7)*37)+295+IF(T2_RankType=2,3,0),FALSE)) -> na | AI201: na
AF202: =T2_Calc!B214 -> Derbyshire Dales | AG202: =IF(VLOOKUP($AF202,T2_Calc!$B$20:$LU$359,((DropD_Calc!$J$7)*9)+7+IF(T2_RankType=2,3,0),FALSE)<0,"na",VLOOKUP($AF202,T2_Calc!$B$20:$LU$359,((DropD_Calc!$J$7)*9)+7+IF(T2_RankType=2,3,0),FALSE)) -> na | AH202: =IF(VLOOKUP($AF202,T2_Calc!$B$20:$BLL$359,((DropD_Calc!$J$7)*37)+295+IF(T2_RankType=2,3,0),FALSE)<0,"na",VLOOKUP($AF202,T2_Calc!$B$20:$BLL$359,((DropD_Calc!$J$7)*37)+295+IF(T2_RankType=2,3,0),FALSE)) -> na | AI202: na
... 154 more rows

Sheet GUIDANCE

Sheet Master_Calc (hidden)
P2: Version
P3: v21.2
T10: =MATCH($C$5,DB_D!$C$17:$L$17,FALSE) -> 
T11: =T14 -> 10
T12: =INDEX(DB_D!$C$19:$M$19,T4_Paste) -> 
T13: =INDEX(DB_D!$C$17:$M$17,T4_Paste) -> 
N14: =MAX(N16:N30) -> 5 | T14: =DropD_Calc!J7 -> 10 | U14: =INDEX(Data_Name,Master_Calc!T14) -> Council Tax and Housing Benefits | AC14: =SUM(AC16:AC28) -> 3
B15: COMMON DATA: | E15: Data Source | F15: Database Sheet | G15: 5 | J15: ACA: | L15: 1 | N15: Yr Calcs | S15: Denominators | T15: =MATCH($C$5,DB_D!$C$17:$L$17,FALSE) ->  | V15: Highlight | W15: 1 | Y15: Selected Tool | Z15: 1 | AB15: Settings | AC15: 0 | AD15: =SUM(AD16:AD28) -> 10 | AE15: =INDEX(AE16:AE28,PI_Outflow_Code) -> VfM 35 | AF15: =INDEX(AF16:AF28,PI_Outflow_Code) -> Proportion of council tax payments made by direct debit
D16: 1 | E16: RO Dataset 2015-16 | F16: DB_RO_1516 | G16: RO | H16: =LEFT(RIGHT(F16,4),2)&"/"&RIGHT(F16,2) -> 15/16 | J16: On | L16: Data Sources | N16: =IF(G16=INDEX($L$17:$L$20,$L$15),COUNTIF($G$16:G16,INDEX($L$17:$L$20,$L$15)),"") -> 1 | O16: =INDEX($H$16:$H$30,MATCH(D16,$N$16:$N$30,0)) -> 15/16 | P16: =IF((MAX($N$16:$N$30)-ROW()+16)<1,NA(),MAX($N$16:$N$30)-ROW()+16) -> 5 | Q16: =IF(ISERROR(INDEX($O$16:$O$30,P16)),"",INDEX($O$16:$O$30,P16)) -> 19/20 | S16: =DB_D!C19 -> Distance of Roads Maintained (km) | Y16: Comparator Analysis | Z16: =INDEX(Y16:Y19,Selected_Tool) -> Comparator Analysis | AB16: 2 | AC16: =IF(AE16="na",0,1) -> 1 | AD16: =IF(AE16="na",1,0) -> 0 | AE16: =OFFSET(T2_Calc!$MB$10,0,((DropD_Calc!$J$7-1)*37)+(ROW()-16)*2) -> NI 181 | AF16: =INDEX(DB_PI!$13:$13,1,MATCH(AE16,DB_PI!$19:$19,0)) -> Average time taken to process housing benefit change of circumstance
B17: AUTHORITY CELL LINK: | C17: =DropD_Calc!H208 -> 1 | D17: 2 | E17: RO Dataset 2016-17 | F17: DB_RO_1617 | G17: RO | H17: 16/17 | J17: Off | L17: RO | N17: =IF(G17=INDEX($L$17:$L$20,$L$15),COUNTIF($G$16:G17,INDEX($L$17:$L$20,$L$15)),"") -> 2 | O17: 16/17 | P17: =IF((MAX($N$16:$N$30)-ROW()+16)<1,NA(),MAX($N$16:$N$30)-ROW()+16) -> 4 | Q17: 18/19 | S17: =DB_D!D19 -> Housing Stock | Y17: Service Analysis | AC17: =IF(AE17="na",0,1) -> 1 | AD17: =IF(AE17="na",1,0) -> 0 | AE17: =OFFSET(T2_Calc!$MB$10,0,((DropD_Calc!$J$7-1)*37)+(ROW()-16)*2) -> VfM 35 | AF17: =INDEX(DB_PI!$13:$13,1,MATCH(AE17,DB_PI!$19:$19,0)) -> Proportion of council tax payments made by direct debit
B18: FLAS CODE: | C18: =OFFSET(C82,$C$17,0) -> E3831 | D18: 3 | E18: RO Dataset 2017-18 | F18: DB_RO_1718 | G18: RO | H18: 17/18 | L18: RA | N18: =IF(G18=INDEX($L$17:$L$20,$L$15),COUNTIF($G$16:G18,INDEX($L$17:$L$20,$L$15)),"") -> 3 | O18: 17/18 | P18: 3 | Q18: 17/18 | S18: =DB_D!E19 -> Per Household | Y18: Performance Analysis | AC18: 1 | AD18: 0 | AE18: =OFFSET(T2_Calc!$MB$10,0,((DropD_Calc!$J$7-1)*37)+(ROW()-16)*2) -> VfM 36 | AF18: =INDEX(DB_PI!$13:$13,1,MATCH(AE18,DB_PI!$19:$19,0)) -> Proportion of NNDR payments made by direct debit
B19: AUTHORITY NAME: | C19: =OFFSET(B82,C17,0) -> Adur | D19: 4 | E19: RO Dataset 2018-19 | F19: DB_RO_1819 | G19: RO | H19: 18/19 | J19: Cost_DB | L19: ASCFR | N19: =IF(G19=INDEX($L$17:$L$20,$L$15),COUNTIF($G$16:G19,INDEX($L$17:$L$20,$L$15)),"") -> 4 | O19: 18/19 | P19: 2 | Q19: 16/17 | S19: =DB_D!F19 -> Number of Pupils | Y19: Unit Cost Analysis | AC19: 0 | AD19: 1 | AE19: =OFFSET(T2_Calc!$MB$10,0,((DropD_Calc!$J$7-1)*37)+(ROW()-16)*2) -> na | AF19: =INDEX(DB_PI!$13:$13,1,MATCH(AE19,DB_PI!$19:$19,0)) -> 
B20: ROW: | C20: =C17+19 -> 20 | D20: 5 | E20: RO Dataset 2019-20 | F20: DB_RO_1920 | G20: RO | H20: 19/20 | J20: =INDEX(E16:E30,C22,FALSE) -> RO Dataset 2019-20 | N20: =IF(G20=INDEX($L$17:$L$20,$L$15),COUNTIF($G$16:G20,INDEX($L$17:$L$20,$L$15)),"") -> 5 | O20: 19/20 | P20: 1 | Q20: 15/16 | S20: =DB_D!G19 -> Population (aged 0 - 4) | AC20: 0 | AD20: 1 | AE20: =OFFSET(T2_Calc!$MB$10,0,((DropD_Calc!$J$7-1)*37)+(ROW()-16)*2) -> na | AF20: =INDEX(DB_PI!$13:$13,1,MATCH(AE20,DB_PI!$19:$19,0)) -> 
D21: 6 | E21: RA Dataset 2016-17 | F21: DB_RA_1617 | G21: RA | H21: 16/17 | J21: =INDEX(F16:F30,C22,FALSE) -> DB_RO_1920 | N21: =IF(G21=INDEX($L$17:$L$20,$L$15),COUNTIF($G$16:G21,INDEX($L$17:$L$20,$L$15)),"") ->  | S21: =DB_D!H19 -> Population (aged 0-17) | AC21: 0 | AD21: 1 | AE21: =OFFSET(T2_Calc!$MB$10,0,((DropD_Calc!$J$7-1)*37)+(ROW()-16)*2) -> na | AF21: =INDEX(DB_PI!$13:$13,1,MATCH(AE21,DB_PI!$19:$19,0)) -> 
B22: COST SOURCE CELL LINK: | C22: =MATCH(INDEX(L17:L19,L15),G16:G30,0)+Selected_Dataset-1 -> 5 | D22: 7 | E22: RA Dataset 2017-18 | F22: DB_RA_1718 | G22: RA | H22: 17/18 | N22: =IF(G22=INDEX($L$17:$L$20,$L$15),COUNTIF($G$16:G22,INDEX($L$17:$L$20,$L$15)),"") ->  | S22: =DB_D!I19 -> Population (aged 18 - 64) | AC22: 0 | AD22: 1 | AE22: =OFFSET(T2_Calc!$MB$10,0,((DropD_Calc!$J$7-1)*37)+(ROW()-16)*2) -> na | AF22: =INDEX(DB_PI!$13:$13,1,MATCH(AE22,DB_PI!$19:$19,0)) -> 
D23: 8 | E23: RA Dataset 2018-19 | F23: DB_RA_1819 | G23: RA | H23: 18/19 | J23: Hide Raw | K23: 0 | N23: =IF(G23=INDEX($L$17:$L$20,$L$15),COUNTIF($G$16:G23,INDEX($L$17:$L$20,$L$15)),"") ->  | S23: =DB_D!J19 -> Population (aged 65+) | AC23: 0 | AD23: 1 | AE23: =OFFSET(T2_Calc!$MB$10,0,((DropD_Calc!$J$7-1)*37)+(ROW()-16)*2) -> na | AF23: =INDEX(DB_PI!$13:$13,1,MATCH(AE23,DB_PI!$19:$19,0)) -> 
B24: AREA COST ADJUSTMENT: | C24: 2 | D24: 9 | E24: RA Dataset 2019-20 | F24: DB_RA_1920 | G24: RA | H24: 19/20 | N24: =IF(G24=INDEX($L$17:$L$20,$L$15),COUNTIF($G$16:G24,INDEX($L$17:$L$20,$L$15)),"") ->  | S24: =DB_D!K19 -> Population (aged 19+) | AC24: 0 | AD24: 1 | AE24: =OFFSET(T2_Calc!$MB$10,0,((DropD_Calc!$J$7-1)*37)+(ROW()-16)*2) -> na | AF24: =INDEX(DB_PI!$13:$13,1,MATCH(AE24,DB_PI!$19:$19,0)) -> 
D25: 10 | E25: RA Dataset 2020-21 | F25: DB_RA_2021 | G25: RA | H25: 20/21 | N25: =IF(G25=INDEX($L$17:$L$20,$L$15),COUNTIF($G$16:G25,INDEX($L$17:$L$20,$L$15)),"") ->  | S25: =DB_D!L19 -> Total Population | AC25: 0 | AD25: 1 | AE25: =OFFSET(T2_Calc!$MB$10,0,((DropD_Calc!$J$7-1)*37)+(ROW()-16)*2) -> na | AF25: =INDEX(DB_PI!$13:$13,1,MATCH(AE25,DB_PI!$19:$19,0)) -> 
B26: Start Row: | C26: =ROW(DB_PI!B20) -> 20 | D26: 11 | E26: ASC FR 2014-15 | F26: DB_ASCFR_1415 | G26: ASCFR | H26: 14/15 | N26: =IF(G26=INDEX($L$17:$L$20,$L$15),COUNTIF($G$16:G26,INDEX($L$17:$L$20,$L$15)),"") ->  | S26: =DB_D!M19 -> Motor Vehicle Traffic | AC26: 0 | AD26: 1 | AE26: =OFFSET(T2_Calc!$MB$10,0,((DropD_Calc!$J$7-1)*37)+(ROW()-16)*2) -> na | AF26: =INDEX(DB_PI!$13:$13,1,MATCH(AE26,DB_PI!$19:$19,0)) -> 
B27: End Row: | C27: =ROW(DB_PI!#REF!) ->  | D27: 12 | E27: ASC FR 2015-16 | F27: DB_ASCFR_1516 | G27: ASCFR | H27: 15/16 | N27: =IF(G27=INDEX($L$17:$L$20,$L$15),COUNTIF($G$16:G27,INDEX($L$17:$L$20,$L$15)),"") ->  | AC27: 0 | AD27: 1 | AE27: =OFFSET(T2_Calc!$MB$10,0,((DropD_Calc!$J$7-1)*37)+(ROW()-16)*2) -> na | AF27: =INDEX(DB_PI!$13:$13,1,MATCH(AE27,DB_PI!$19:$19,0)) -> 
D28: 13 | E28: ASC FR 2016-17 | F28: DB_ASCFR_1617 | G28: ASCFR | H28: 16/17 | N28: =IF(G28=INDEX($L$17:$L$20,$L$15),COUNTIF($G$16:G28,INDEX($L$17:$L$20,$L$15)),"") ->  | AC28: 0 | AD28: 1 | AE28: =OFFSET(T2_Calc!$MB$10,0,((DropD_Calc!$J$7-1)*37)+(ROW()-16)*2) -> na | AF28: =INDEX(DB_PI!$13:$13,1,MATCH(AE28,DB_PI!$19:$19,0)) -> 
D29: 14 | E29: ASC FR 2017-18 | F29: DB_ASCFR_1718 | G29: ASCFR | H29: 17/18 | N29: =IF(G29=INDEX($L$17:$L$20,$L$15),COUNTIF($G$16:G29,INDEX($L$17:$L$20,$L$15)),"") -> 
D30: 15 | E30: ASC FR 2018-19 | F30: DB_ASCFR_1819 | G30: ASCFR | H30: 18/19 | N30: =IF(G30=INDEX($L$17:$L$20,$L$15),COUNTIF($G$16:G30,INDEX($L$17:$L$20,$L$15)),"") -> 
B32: COMPARATOR TABLES
D33: Table # | E33: Type
B34: Comparison Group Cell Link | C34: 1 | D34: =MATCH(OFFSET(I60,C34,0),B61:B78,FALSE) -> 1 | E34: =OFFSET(C60,D34,0) -> 1 | G34: =IF(ISERROR(INDEX($B$61:$B$78,D34)),"",INDEX($B$61:$B$78,D34)) -> CIPFA Nearest Neighbours (NN)
B35: COMPARATOR GROUP NAME: | C35: =IF(#REF!<>"Type group name here",#REF!,"Selected Family Group") -> 
B36: COMPARATOR GROUP TABLE # | C36: =OFFSET(E60,D34,0) -> 3 | G36: 0 | H36: Comparator Panel visible?
B37: COMPARATOR GROUP FLAG | C37: =IF(E34=3,OFFSET(B82,C17-1,C36-1),"") -> 
B39: Manual Group 1 | C39: 1 | D39: =OFFSET($C$82,C39-1,0) -> 0
B40: Manual Group 2 | C40: 1 | D40: 0
B41: Manual Group 3 | C41: 1 | D41: 0
B42: Manual Group 4 | C42: 1 | D42: 0
B43: Manual Group 5 | C43: 1 | D43: 0
B44: Manual Group 6 | C44: 1 | D44: 0
B45: Manual Group 7 | C45: 1 | D45: 0
B46: Manual Group 8 | C46: 1 | D46: 0
B47: Manual Group 9 | C47: 1 | D47: 0
B48: Manual Group 10 | C48: 1 | D48: 0
B49: Manual Group 11 | C49: 1 | D49: 0
B50: Manual Group 12 | C50: 1 | D50: 0
B51: Manual Group 13 | C51: 1 | D51: 0
B52: Manual Group 14 | C52: 1 | D52: 0
B53: Manual Group 15 | C53: 1 | D53: 0
B54: Manual Group 16 | C54: 1 | D54: 0
B55: Manual Group 17 | C55: 1 | D55: 0 | F55: (TYPES: 1 = Nearest Neighbour Style - Picked up from DB_NN, 2 = Create Your Own, 3 = Present Group from table below)
B56: Manual Group 18 | C56: 1 | D56: 0 | F56: (VALID: USED TO SEE IF THIS GROUPING SUITABLE FOR THE AUTHORITY SELECTED? 0 = no))
B57: Manual Group 19 | C57: 1 | D57: 0 | F57: (START: Type 1 = column reference in DB_NN, Type 3 = Table Column Reference on this sheet)
B58: Manual Group 20 | C58: 1 | D58: 0 | F58: (NUMBER: Type 1 only, Max number of nearest neighbours)
G59: COUNT: | H59: =MAX(H61:H78) -> 18
C60: TYPE | D60: VALID? | E60: START | F60: NUMBER | H60: LIST FOR DROP DOWN
A61: 1 | B61: CIPFA Nearest Neighbours (NN) | C61: 1 | D61: 1 | E61: 3 | F61: 15 | H61: =--(D61<>0) -> 1 | I61: =IF(A61<=$H$59,OFFSET($B$60,MATCH(A61,$H$61:$H$78,FALSE),0),"") -> CIPFA Nearest Neighbours (NN) | M61: NN
A62: 2 | B62: Create your own group | C62: 2 | D62: 1 | H62: =--(D62<>0)+(D62<>0)*MAX($H$61:H61) -> 2 | I62: Create your own group | M62: Own Group
A63: 3 | B63: All England | C63: 3 | D63: 1 | E63: 1 | H63: =--(D63<>0)+(D63<>0)*MAX($H$61:H62) -> 3 | I63: All England | M63: All England
A64: 4 | B64: County Councils | C64: 3 | D64: 1 | E64: 2 | H64: =--(D64<>0)+(D64<>0)*MAX($H$61:H63) -> 4 | I64: County Councils | M64: Counties
A65: 5 | B65: Shire District Councils | C65: 3 | D65: 1 | E65: 3 | H65: =--(D65<>0)+(D65<>0)*MAX($H$61:H64) -> 5 | I65: Shire District Councils | M65: Non mets
A66: 6 | B66: All Upper Tier | C66: 3 | D66: 1 | E66: 4 | H66: =--(D66<>0)+(D66<>0)*MAX($H$61:H65) -> 6 | I66: All Upper Tier | M66: All Upper
A67: 7 | B67: All Lower Tier | C67: 3 | D67: 1 | E67: 5 | H67: =--(D67<>0)+(D67<>0)*MAX($H$61:H66) -> 7 | I67: All Lower Tier | M67: All lower
A68: 8 | B68: Region (County & Unitary) | C68: 4 | D68: 1 | E68: 6 | H68: =--(D68<>0)+(D68<>0)*MAX($H$61:H67) -> 8 | I68: Region (County & Unitary) | M68: Region (County & Unitary)
A69: 9 | B69: Region (District & Unitary) | C69: 4 | D69: 1 | E69: 7 | H69: =--(D69<>0)+(D69<>0)*MAX($H$61:H68) -> 9 | I69: Region (District & Unitary) | M69: Region (District & Unitary)
A70: 10 | B70: County Group (districts) | C70: 4 | D70: 1 | E70: 8 | H70: =--(D70<>0)+(D70<>0)*MAX($H$61:H69) -> 10 | I70: County Group (districts) | M70: County Group (districts)
A71: 11 | B71: All London | C71: 3 | D71: 1 | E71: 9 | H71: =--(D71<>0)+(D71<>0)*MAX($H$61:H70) -> 11 | I71: All London | M71: London
A72: 12 | B72: Core Cities | C72: 3 | D72: 1 | E72: 11 | H72: =--(D72<>0)+(D72<>0)*MAX($H$61:H71) -> 12 | I72: Core Cities | M72: Core Cities
A73: 13 | B73: Metropolitan | C73: 3 | D73: 1 | E73: 12 | H73: =--(D73<>0)+(D73<>0)*MAX($H$61:H72) -> 13 | I73: Metropolitan | M73: Metropoitans
A74: 14 | B74: Unitaries excl. London & Met | C74: 3 | D74: 1 | E74: 13 | H74: =--(D74<>0)+(D74<>0)*MAX($H$61:H73) -> 14 | I74: Unitaries excl. London & Met | M74: Unitaries
A75: 15 | B75: Fire Authorities | C75: 3 | D75: 1 | E75: 14 | H75: =--(D75<>0)+(D75<>0)*MAX($H$61:H74) -> 15 | I75: Fire Authorities | M75: Fire
A76: 16 | B76: Children's Services Statistical Neighbours | C76: 1 | D76: 1 | E76: 18 | F76: 10 | H76: =--(D76<>0)+(D76<>0)*MAX($H$61:H75) -> 16 | I76: Children's Services Statistical Neighbours | M76: Childrens
A77: 17 | B77: Passenger Transport Nearest Neighbours (PTNN) | C77: 1 | D77: 1 | E77: 28 | F77: 10 | H77: =--(D77<>0)+(D77<>0)*MAX($H$61:H76) -> 17 | I77: Passenger Transport Nearest Neighbours (PTNN) | M77: Passanger
A78: 18 | B78: Housing Family Group | C78: 1 | D78: 1 | E78: 38 | F78: 10 | H78: =--(D78<>0)+(D78<>0)*MAX($H$61:H77) -> 18 | I78: Housing Family Group | M78: Housing Family
E81: COUNT: | F81: =MAX(F83:F422) -> 16 | H81: What groups is the authority in? | R81: Variable | Y81: What services does it provide?
B82: {Select Authority} | E82: SHOW | F82: POSITION | H82: All England | I82: County Councils | J82: Shire District Councils | K82: All Upper | L82: All Lower | M82: Region (County & Unitary) | N82: Region (District & Unitary) | O82: County Group (districts) | P82: All London | Q82: =IF(LEN(VLOOKUP($C$18,$C$83:$U$422,COLUMN()-2,FALSE))=0,"Inner/Outer London",VLOOKUP($C$18,$C$83:$U$422,COLUMN()-2,FALSE)) -> Inner/Outer London | R82: Core Cities | S82: Metropolitan | T82: Unitaries excl. London & Met | U82: Fire Authorities | X82: TYPE | Y82: Addiction | Z82: Adult Education | AA82: Adults<65 with LD | AB82: Adults<65 with MHNs | AC82: Adult Social Care | AD82: BS, Welfare & Incl | AE82: Carers | AF82: Children's Social Care | AG82: Community Safety | AH82: Council Tax and Housing Benefits | AI82: Council Tax and NNDR collection | AJ82: Early Years | AK82: Economic Development | AL82: Excess Weight | AM82: Fire | AN82: Highways Maintenance | AO82: Homelessness | AP82: Libraries | AQ82: Older Peoples Social Care | AR82: Planning | AS82: Public Transport | AT82: Recycling | AU82: Road Safety | AV82: School Improvement | AW82: School Planning & Admissions | AX82: Sexual Health | AY82: Social Housing | AZ82: Special Educational Needs | BA82: Sport | BB82: Street Cleansing | BC82: Street Lighting | BD82: Trading Standards | BE82: Waste Collection | BF82: Waste Disposal | BG82: Wellbeing
A83: NM | B83: Adur | C83: E3831 | D83: Adur | E83: =IF(C83=$C$18,1,CHOOSE($E$34,IF(ISERROR(MATCH(C83,OFFSET(DB_NN!$A$19,MATCH($C$18,DB_NN!$A$20:$A$377,0),INDEX($E$61:$E$78,$C$34),1,INDEX($F$61:$F$78,$C$34)),0)),0,1),IF(ISERROR(MATCH(C83,$D$39:$D$58,0)),0,1),INDEX($H83:$U83,1,INDEX($E$61:$E$78,$C$34)),IF(AND(INDEX(H83:U83,INDEX($E$61:$E$78,$C$34))<>"",INDEX(H83:U83,INDEX($E$61:$E$78,$C$34))=VLOOKUP($C$18,$C$83:$U$422,INDEX($E$61:$E$78,$C$34)+5,FALSE)),1,0))) -> 1 | F83: =--(E83<>0) -> 1 | H83: 1 | I83: 0 | J83: 1 | K83: 0 | L83: 1 | N83: South East | O83: West Sussex | P83: 0 | X83: Lower | Y83: 0 | Z83: 0 | AA83: 0 | AB83: 0 | AC83: 0 | AD83: 0 | AE83: 0 | AF83: 0 | AG83: 0 | AH83: 1 | AI83: 1 | AJ83: 0 | AK83: 1 | AL83: 0 | AM83: 0 | AN83: 0 | AO83: 1 | AP83: 0 | AQ83: 0 | AR83: 1 | AS83: 0 | AT83: 1 | AU83: 0 | AV83: 0 | AW83: 0 | AX83: 0 | AY83: 0 | AZ83: 0 | BA83: 1 | BB83: 1 | BC83: 0 | BD83: 0 | BE83: 1 | BF83: 0 | BG83: 0
A84: NM | B84: Allerdale | C84: E0931 | D84: Allerdale | E84: =IF(C84=$C$18,1,CHOOSE($E$34,IF(ISERROR(MATCH(C84,OFFSET(DB_NN!$A$19,MATCH($C$18,DB_NN!$A$20:$A$377,0),INDEX($E$61:$E$78,$C$34),1,INDEX($F$61:$F$78,$C$34)),0)),0,1),IF(ISERROR(MATCH(C84,$D$39:$D$58,0)),0,1),INDEX($H84:$U84,1,INDEX($E$61:$E$78,$C$34)),IF(AND(INDEX(H84:U84,INDEX($E$61:$E$78,$C$34))<>"",INDEX(H84:U84,INDEX($E$61:$E$78,$C$34))=VLOOKUP($C$18,$C$83:$U$422,INDEX($E$61:$E$78,$C$34)+5,FALSE)),1,0))) -> 0 | F84: =--(E84<>0)+(E84<>0)*MAX($F$83:F83) -> 0 | H84: 1 | I84: 0 | J84: 1 | K84: 0 | L84: 1 | N84: North West | O84: Cumbria | P84: 0 | X84: Lower | Y84: 0 | Z84: 0 | AA84: 0 | AB84: 0 | AC84: 0 | AD84: 0 | AE84: 0 | AF84: 0 | AG84: 0 | AH84: 1 | AI84: 1 | AJ84: 0 | AK84: 1 | AL84: 0 | AM84: 0 | AN84: 0 | AO84: 1 | AP84: 0 | AQ84: 0 | AR84: 1 | AS84: 0 | AT84: 1 | AU84: 0 | AV84: 0 | AW84: 0 | AX84: 0 | AY84: 0 | AZ84: 0 | BA84: 1 | BB84: 1 | BC84: 0 | BD84: 0 | BE84: 1 | BF84: 0 | BG84: 0
A85: NM | B85: Amber Valley | C85: E1031 | D85: Amber Valley | E85: =IF(C85=$C$18,1,CHOOSE($E$34,IF(ISERROR(MATCH(C85,OFFSET(DB_NN!$A$19,MATCH($C$18,DB_NN!$A$20:$A$377,0),INDEX($E$61:$E$78,$C$34),1,INDEX($F$61:$F$78,$C$34)),0)),0,1),IF(ISERROR(MATCH(C85,$D$39:$D$58,0)),0,1),INDEX($H85:$U85,1,INDEX($E$61:$E$78,$C$34)),IF(AND(INDEX(H85:U85,INDEX($E$61:$E$78,$C$34))<>"",INDEX(H85:U85,INDEX($E$61:$E$78,$C$34))=VLOOKUP($C$18,$C$83:$U$422,INDEX($E$61:$E$78,$C$34)+5,FALSE)),1,0))) -> 0 | F85: =--(E85<>0)+(E85<>0)*MAX($F$83:F84) -> 0 | H85: 1 | I85: 0 | J85: 1 | K85: 0 | L85: 1 | N85: East Midlands | O85: Derbyshire | P85: 0 | X85: Lower | Y85: 0 | Z85: 0 | AA85: 0 | AB85: 0 | AC85: 0 | AD85: 0 | AE85: 0 | AF85: 0 | AG85: 0 | AH85: 1 | AI85: 1 | AJ85: 0 | AK85: 1 | AL85: 0 | AM85: 0 | AN85: 0 | AO85: 1 | AP85: 0 | AQ85: 0 | AR85: 1 | AS85: 0 | AT85: 1 | AU85: 0 | AV85: 0 | AW85: 0 | AX85: 0 | AY85: 0 | AZ85: 0 | BA85: 1 | BB85: 1 | BC85: 0 | BD85: 0 | BE85: 1 | BF85: 0 | BG85: 0
A86: NM | B86: Arun | C86: E3832 | D86: Arun | E86: =IF(C86=$C$18,1,CHOOSE($E$34,IF(ISERROR(MATCH(C86,OFFSET(DB_NN!$A$19,MATCH($C$18,DB_NN!$A$20:$A$377,0),INDEX($E$61:$E$78,$C$34),1,INDEX($F$61:$F$78,$C$34)),0)),0,1),IF(ISERROR(MATCH(C86,$D$39:$D$58,0)),0,1),INDEX($H86:$U86,1,INDEX($E$61:$E$78,$C$34)),IF(AND(INDEX(H86:U86,INDEX($E$61:$E$78,$C$34))<>"",INDEX(H86:U86,INDEX($E$61:$E$78,$C$34))=VLOOKUP($C$18,$C$83:$U$422,INDEX($E$61:$E$78,$C$34)+5,FALSE)),1,0))) -> 0 | F86: =--(E86<>0)+(E86<>0)*MAX($F$83:F85) -> 0 | H86: 1 | I86: 0 | J86: 1 | K86: 0 | L86: 1 | N86: South East | O86: West Sussex | P86: 0 | X86: Lower | Y86: 0 | Z86: 0 | AA86: 0 | AB86: 0 | AC86: 0 | AD86: 0 | AE86: 0 | AF86: 0 | AG86: 0 | AH86: 1 | AI86: 1 | AJ86: 0 | AK86: 1 | AL86: 0 | AM86: 0 | AN86: 0 | AO86: 1 | AP86: 0 | AQ86: 0 | AR86: 1 | AS86: 0 | AT86: 1 | AU86: 0 | AV86: 0 | AW86: 0 | AX86: 0 | AY86: 0 | AZ86: 0 | BA86: 1 | BB86: 1 | BC86: 0 | BD86: 0 | BE86: 1 | BF86: 0 | BG86: 0
A87: NM | B87: Ashfield | C87: E3031 | D87: Ashfield | E87: =IF(C87=$C$18,1,CHOOSE($E$34,IF(ISERROR(MATCH(C87,OFFSET(DB_NN!$A$19,MATCH($C$18,DB_NN!$A$20:$A$377,0),INDEX($E$61:$E$78,$C$34),1,INDEX($F$61:$F$78,$C$34)),0)),0,1),IF(ISERROR(MATCH(C87,$D$39:$D$58,0)),0,1),INDEX($H87:$U87,1,INDEX($E$61:$E$78,$C$34)),IF(AND(INDEX(H87:U87,INDEX($E$61:$E$78,$C$34))<>"",INDEX(H87:U87,INDEX($E$61:$E$78,$C$34))=VLOOKUP($C$18,$C$83:$U$422,INDEX($E$61:$E$78,$C$34)+5,FALSE)),1,0))) -> 0 | F87: =--(E87<>0)+(E87<>0)*MAX($F$83:F86) -> 0 | H87: 1 | I87: 0 | J87: 1 | K87: 0 | L87: 1 | N87: East Midlands | O87: Nottinghamshire | P87: 0 | X87: Lower | Y87: 0 | Z87: 0 | AA87: 0 | AB87: 0 | AC87: 0 | AD87: 0 | AE87: 0 | AF87: 0 | AG87: 0 | AH87: 1 | AI87: 1 | AJ87: 0 | AK87: 1 | AL87: 0 | AM87: 0 | AN87: 0 | AO87: 1 | AP87: 0 | AQ87: 0 | AR87: 1 | AS87: 0 | AT87: 1 | AU87: 0 | AV87: 0 | AW87: 0 | AX87: 0 | AY87: 0 | AZ87: 0 | BA87: 1 | BB87: 1 | BC87: 0 | BD87: 0 | BE87: 1 | BF87: 0 | BG87: 0
A88: NM | B88: Ashford | C88: E2231 | D88: Ashford | E88: =IF(C88=$C$18,1,CHOOSE($E$34,IF(ISERROR(MATCH(C88,OFFSET(DB_NN!$A$19,MATCH($C$18,DB_NN!$A$20:$A$377,0),INDEX($E$61:$E$78,$C$34),1,INDEX($F$61:$F$78,$C$34)),0)),0,1),IF(ISERROR(MATCH(C88,$D$39:$D$58,0)),0,1),INDEX($H88:$U88,1,INDEX($E$61:$E$78,$C$34)),IF(AND(INDEX(H88:U88,INDEX($E$61:$E$78,$C$34))<>"",INDEX(H88:U88,INDEX($E$61:$E$78,$C$34))=VLOOKUP($C$18,$C$83:$U$422,INDEX($E$61:$E$78,$C$34)+5,FALSE)),1,0))) -> 0 | F88: =--(E88<>0)+(E88<>0)*MAX($F$83:F87) -> 0 | H88: 1 | I88: 0 | J88: 1 | K88: 0 | L88: 1 | N88: South East | O88: Kent | P88: 0 | X88: Lower | Y88: 0 | Z88: 0 | AA88: 0 | AB88: 0 | AC88: 0 | AD88: 0 | AE88: 0 | AF88: 0 | AG88: 0 | AH88: 1 | AI88: 1 | AJ88: 0 | AK88: 1 | AL88: 0 | AM88: 0 | AN88: 0 | AO88: 1 | AP88: 0 | AQ88: 0 | AR88: 1 | AS88: 0 | AT88: 1 | AU88: 0 | AV88: 0 | AW88: 0 | AX88: 0 | AY88: 0 | AZ88: 0 | BA88: 1 | BB88: 1 | BC88: 0 | BD88: 0 | BE88: 1 | BF88: 0 | BG88: 0
A89: NM | B89: Babergh | C89: E3531 | D89: Babergh | E89: =IF(C89=$C$18,1,CHOOSE($E$34,IF(ISERROR(MATCH(C89,OFFSET(DB_NN!$A$19,MATCH($C$18,DB_NN!$A$20:$A$377,0),INDEX($E$61:$E$78,$C$34),1,INDEX($F$61:$F$78,$C$34)),0)),0,1),IF(ISERROR(MATCH(C89,$D$39:$D$58,0)),0,1),INDEX($H89:$U89,1,INDEX($E$61:$E$78,$C$34)),IF(AND(INDEX(H89:U89,INDEX($E$61:$E$78,$C$34))<>"",INDEX(H89:U89,INDEX($E$61:$E$78,$C$34))=VLOOKUP($C$18,$C$83:$U$422,INDEX($E$61:$E$78,$C$34)+5,FALSE)),1,0))) -> 0 | F89: =--(E89<>0)+(E89<>0)*MAX($F$83:F88) -> 0 | H89: 1 | I89: 0 | J89: 1 | K89: 0 | L89: 1 | N89: Eastern | O89: Suffolk | P89: 0 | X89: Lower | Y89: 0 | Z89: 0 | AA89: 0 | AB89: 0 | AC89: 0 | AD89: 0 | AE89: 0 | AF89: 0 | AG89: 0 | AH89: 1 | AI89: 1 | AJ89: 0 | AK89: 1 | AL89: 0 | AM89: 0 | AN89: 0 | AO89: 1 | AP89: 0 | AQ89: 0 | AR89: 1 | AS89: 0 | AT89: 1 | AU89: 0 | AV89: 0 | AW89: 0 | AX89: 0 | AY89: 0 | AZ89: 0 | BA89: 1 | BB89: 1 | BC89: 0 | BD89: 0 | BE89: 1 | BF89: 0 | BG89: 0
A90: OL | B90: Barking & Dagenham | C90: E5030 | D90: Barking & Dagenham | E90: =IF(C90=$C$18,1,CHOOSE($E$34,IF(ISERROR(MATCH(C90,OFFSET(DB_NN!$A$19,MATCH($C$18,DB_NN!$A$20:$A$377,0),INDEX($E$61:$E$78,$C$34),1,INDEX($F$61:$F$78,$C$34)),0)),0,1),IF(ISERROR(MATCH(C90,$D$39:$D$58,0)),0,1),INDEX($H90:$U90,1,INDEX($E$61:$E$78,$C$34)),IF(AND(INDEX(H90:U90,INDEX($E$61:$E$78,$C$34))<>"",INDEX(H90:U90,INDEX($E$61:$E$78,$C$34))=VLOOKUP($C$18,$C$83:$U$422,INDEX($E$61:$E$78,$C$34)+5,FALSE)),1,0))) -> 0 | F90: =--(E90<>0)+(E90<>0)*MAX($F$83:F89) -> 0 | H90: 1 | I90: 0 | J90: 0 | K90: 1 | L90: 1 | M90: London | N90: London | P90: 1 | Q90: Outer London | X90: All - Housing | Y90: 1 | Z90: 1 | AA90: 1 | AB90: 1 | AC90: 1 | AD90: 1 | AE90: 1 | AF90: 1 | AG90: 1 | AH90: 1 | AI90: 1 | AJ90: 1 | AK90: 1 | AL90: 1 | AM90: 0 | AN90: 1 | AO90: 1 | AP90: 1 | AQ90: 1 | AR90: 1 | AS90: 1 | AT90: 1 | AU90: 1 | AV90: 1 | AW90: 1 | AX90: 1 | AY90: 1 | AZ90: 1 | BA90: 1 | BB90: 1 | BC90: 1 | BD90: 1 | BE90: 1 | BF90: 0 | BG90: 1
A91: OL | B91: Barnet | C91: E5031 | D91: Barnet | E91: =IF(C91=$C$18,1,CHOOSE($E$34,IF(ISERROR(MATCH(C91,OFFSET(DB_NN!$A$19,MATCH($C$18,DB_NN!$A$20:$A$377,0),INDEX($E$61:$E$78,$C$34),1,INDEX($F$61:$F$78,$C$34)),0)),0,1),IF(ISERROR(MATCH(C91,$D$39:$D$58,0)),0,1),INDEX($H91:$U91,1,INDEX($E$61:$E$78,$C$34)),IF(AND(INDEX(H91:U91,INDEX($E$61:$E$78,$C$34))<>"",INDEX(H91:U91,INDEX($E$61:$E$78,$C$34))=VLOOKUP($C$18,$C$83:$U$422,INDEX($E$61:$E$78,$C$34)+5,FALSE)),1,0))) -> 0 | F91: =--(E91<>0)+(E91<>0)*MAX($F$83:F90) -> 0 | H91: 1 | I91: 0 | J91: 0 | K91: 1 | L91: 1 | M91: London | N91: London | P91: 1 | Q91: Outer London | X91: All - Housing | Y91: 1 | Z91: 1 | AA91: 1 | AB91: 1 | AC91: 1 | AD91: 1 | AE91: 1 | AF91: 1 | AG91: 1 | AH91: 1 | AI91: 1 | AJ91: 1 | AK91: 1 | AL91: 1 | AM91: 0 | AN91: 1 | AO91: 1 | AP91: 1 | AQ91: 1 | AR91: 1 | AS91: 1 | AT91: 1 | AU91: 1 | AV91: 1 | AW91: 1 | AX91: 1 | AY91: 1 | AZ91: 1 | BA91: 1 | BB91: 1 | BC91: 1 | BD91: 1 | BE91: 1 | BF91: 0 | BG91: 1
A92: M | B92: Barnsley | C92: E4401 | D92: Barnsley | E92: =IF(C92=$C$18,1,CHOOSE($E$34,IF(ISERROR(MATCH(C92,OFFSET(DB_NN!$A$19,MATCH($C$18,DB_NN!$A$20:$A$377,0),INDEX($E$61:$E$78,$C$34),1,INDEX($F$61:$F$78,$C$34)),0)),0,1),IF(ISERROR(MATCH(C92,$D$39:$D$58,0)),0,1),INDEX($H92:$U92,1,INDEX($E$61:$E$78,$C$34)),IF(AND(INDEX(H92:U92,INDEX($E$61:$E$78,$C$34))<>"",INDEX(H92:U92,INDEX($E$61:$E$78,$C$34))=VLOOKUP($C$18,$C$83:$U$422,INDEX($E$61:$E$78,$C$34)+5,FALSE)),1,0))) -> 0 | F92: =--(E92<>0)+(E92<>0)*MAX($F$83:F91) -> 0 | H92: 1 | I92: 0 | J92: 0 | K92: 1 | L92: 1 | M92: Yorkshire & Humber | N92: Yorkshire & Humber | P92: 0 | S92: 1 | X92: All - Housing and WD | Y92: 1 | Z92: 1 | AA92: 1 | AB92: 1 | AC92: 1 | AD92: 1 | AE92: 1 | AF92: 1 | AG92: 1 | AH92: 1 | AI92: 1 | AJ92: 1 | AK92: 1 | AL92: 1 | AM92: 0 | AN92: 1 | AO92: 1 | AP92: 1 | AQ92: 1 | AR92: 1 | AS92: 1 | AT92: 1 | AU92: 1 | AV92: 1 | AW92: 1 | AX92: 1 | AY92: 1 | AZ92: 1 | BA92: 1 | BB92: 1 | BC92: 1 | BD92: 1 | BE92: 1 | BF92: 1 | BG92: 1
A93: NM | B93: Barrow-in-Furness | C93: E0932 | D93: Barrow-in-Furness | E93: =IF(C93=$C$18,1,CHOOSE($E$34,IF(ISERROR(MATCH(C93,OFFSET(DB_NN!$A$19,MATCH($C$18,DB_NN!$A$20:$A$377,0),INDEX($E$61:$E$78,$C$34),1,INDEX($F$61:$F$78,$C$34)),0)),0,1),IF(ISERROR(MATCH(C93,$D$39:$D$58,0)),0,1),INDEX($H93:$U93,1,INDEX($E$61:$E$78,$C$34)),IF(AND(INDEX(H93:U93,INDEX($E$61:$E$78,$C$34))<>"",INDEX(H93:U93,INDEX($E$61:$E$78,$C$34))=VLOOKUP($C$18,$C$83:$U$422,INDEX($E$61:$E$78,$C$34)+5,FALSE)),1,0))) -> 0 | F93: =--(E93<>0)+(E93<>0)*MAX($F$83:F92) -> 0 | H93: 1 | I93: 0 | J93: 1 | K93: 0 | L93: 1 | N93: North West | O93: Cumbria | P93: 0 | X93: Lower - Housing | Y93: 0 | Z93: 0 | AA93: 0 | AB93: 0 | AC93: 0 | AD93: 0 | AE93: 0 | AF93: 0 | AG93: 0 | AH93: 1 | AI93: 1 | AJ93: 0 | AK93: 1 | AL93: 0 | AM93: 0 | AN93: 0 | AO93: 1 | AP93: 0 | AQ93: 0 | AR93: 1 | AS93: 0 | AT93: 1 | AU93: 0 | AV93: 0 | AW93: 0 | AX93: 0 | AY93: 1 | AZ93: 0 | BA93: 1 | BB93: 1 | BC93: 0 | BD93: 0 | BE93: 1 | BF93: 0 | BG93: 0
A94: NM | B94: Basildon | C94: E1531 | D94: Basildon | E94: =IF(C94=$C$18,1,CHOOSE($E$34,IF(ISERROR(MATCH(C94,OFFSET(DB_NN!$A$19,MATCH($C$18,DB_NN!$A$20:$A$377,0),INDEX($E$61:$E$78,$C$34),1,INDEX($F$61:$F$78,$C$34)),0)),0,1),IF(ISERROR(MATCH(C94,$D$39:$D$58,0)),0,1),INDEX($H94:$U94,1,INDEX($E$61:$E$78,$C$34)),IF(AND(INDEX(H94:U94,INDEX($E$61:$E$78,$C$34))<>"",INDEX(H94:U94,INDEX($E$61:$E$78,$C$34))=VLOOKUP($C$18,$C$83:$U$422,INDEX($E$61:$E$78,$C$34)+5,FALSE)),1,0))) -> 0 | F94: =--(E94<>0)+(E94<>0)*MAX($F$83:F93) -> 0 | H94: 1 | I94: 0 | J94: 1 | K94: 0 | L94: 1 | N94: Eastern | O94: Essex | P94: 0 | X94: Lower - Housing | Y94: 0 | Z94: 0 | AA94: 0 | AB94: 0 | AC94: 0 | AD94: 0 | AE94: 0 | AF94: 0 | AG94: 0 | AH94: 1 | AI94: 1 | AJ94: 0 | AK94: 1 | AL94: 0 | AM94: 0 | AN94: 0 | AO94: 1 | AP94: 0 | AQ94: 0 | AR94: 1 | AS94: 0 | AT94: 1 | AU94: 0 | AV94: 0 | AW94: 0 | AX94: 0 | AY94: 1 | AZ94: 0 | BA94: 1 | BB94: 1 | BC94: 0 | BD94: 0 | BE94: 1 | BF94: 0 | BG94: 0
A95: NM | B95: Basingstoke & Deane | C95: E1731 | D95: Basingstoke & Deane | E95: =IF(C95=$C$18,1,CHOOSE($E$34,IF(ISERROR(MATCH(C95,OFFSET(DB_NN!$A$19,MATCH($C$18,DB_NN!$A$20:$A$377,0),INDEX($E$61:$E$78,$C$34),1,INDEX($F$61:$F$78,$C$34)),0)),0,1),IF(ISERROR(MATCH(C95,$D$39:$D$58,0)),0,1),INDEX($H95:$U95,1,INDEX($E$61:$E$78,$C$34)),IF(AND(INDEX(H95:U95,INDEX($E$61:$E$78,$C$34))<>"",INDEX(H95:U95,INDEX($E$61:$E$78,$C$34))=VLOOKUP($C$18,$C$83:$U$422,INDEX($E$61:$E$78,$C$34)+5,FALSE)),1,0))) -> 0 | F95: =--(E95<>0)+(E95<>0)*MAX($F$83:F94) -> 0 | H95: 1 | I95: 0 | J95: 1 | K95: 0 | L95: 1 | N95: South East | O95: Hampshire | P95: 0 | X95: Lower | Y95: 0 | Z95: 0 | AA95: 0 | AB95: 0 | AC95: 0 | AD95: 0 | AE95: 0 | AF95: 0 | AG95: 0 | AH95: 1 | AI95: 1 | AJ95: 0 | AK95: 1 | AL95: 0 | AM95: 0 | AN95: 0 | AO95: 1 | AP95: 0 | AQ95: 0 | AR95: 1 | AS95: 0 | AT95: 1 | AU95: 0 | AV95: 0 | AW95: 0 | AX95: 0 | AY95: 0 | AZ95: 0 | BA95: 1 | BB95: 1 | BC95: 0 | BD95: 0 | BE95: 1 | BF95: 0 | BG95: 0
A96: NM | B96: Bassetlaw | C96: E3032 | D96: Bassetlaw | E96: =IF(C96=$C$18,1,CHOOSE($E$34,IF(ISERROR(MATCH(C96,OFFSET(DB_NN!$A$19,MATCH($C$18,DB_NN!$A$20:$A$377,0),INDEX($E$61:$E$78,$C$34),1,INDEX($F$61:$F$78,$C$34)),0)),0,1),IF(ISERROR(MATCH(C96,$D$39:$D$58,0)),0,1),INDEX($H96:$U96,1,INDEX($E$61:$E$78,$C$34)),IF(AND(INDEX(H96:U96,INDEX($E$61:$E$78,$C$34))<>"",INDEX(H96:U96,INDEX($E$61:$E$78,$C$34))=VLOOKUP($C$18,$C$83:$U$422,INDEX($E$61:$E$78,$C$34)+5,FALSE)),1,0))) -> 0 | F96: =--(E96<>0)+(E96<>0)*MAX($F$83:F95) -> 0 | H96: 1 | I96: 0 | J96: 1 | K96: 0 | L96: 1 | N96: East Midlands | O96: Nottinghamshire | P96: 0 | X96: Lower - Housing | Y96: 0 | Z96: 0 | AA96: 0 | AB96: 0 | AC96: 0 | AD96: 0 | AE96: 0 | AF96: 0 | AG96: 0 | AH96: 1 | AI96: 1 | AJ96: 0 | AK96: 1 | AL96: 0 | AM96: 0 | AN96: 0 | AO96: 1 | AP96: 0 | AQ96: 0 | AR96: 1 | AS96: 0 | AT96: 1 | AU96: 0 | AV96: 0 | AW96: 0 | AX96: 0 | AY96: 1 | AZ96: 0 | BA96: 1 | BB96: 1 | BC96: 0 | BD96: 0 | BE96: 1 | BF96: 0 | BG96: 0
A97: U | B97: Bath & North East Somerset | C97: E0101 | D97: Bath & North East Somerset | E97: =IF(C97=$C$18,1,CHOOSE($E$34,IF(ISERROR(MATCH(C97,OFFSET(DB_NN!$A$19,MATCH($C$18,DB_NN!$A$20:$A$377,0),INDEX($E$61:$E$78,$C$34),1,INDEX($F$61:$F$78,$C$34)),0)),0,1),IF(ISERROR(MATCH(C97,$D$39:$D$58,0)),0,1),INDEX($H97:$U97,1,INDEX($E$61:$E$78,$C$34)),IF(AND(INDEX(H97:U97,INDEX($E$61:$E$78,$C$34))<>"",INDEX(H97:U97,INDEX($E$61:$E$78,$C$34))=VLOOKUP($C$18,$C$83:$U$422,INDEX($E$61:$E$78,$C$34)+5,FALSE)),1,0))) -> 0 | F97: =--(E97<>0)+(E97<>0)*MAX($F$83:F96) -> 0 | H97: 1 | I97: 0 | J97: 0 | K97: 1 | L97: 1 | M97: South West | N97: South West | P97: 0 | T97: 1 | X97: All - WD | Y97: 1 | Z97: 1 | AA97: 1 | AB97: 1 | AC97: 1 | AD97: 1 | AE97: 1 | AF97: 1 | AG97: 1 | AH97: 1 | AI97: 1 | AJ97: 1 | AK97: 1 | AL97: 1 | AM97: 0 | AN97: 1 | AO97: 1 | AP97: 1 | AQ97: 1 | AR97: 1 | AS97: 1 | AT97: 1 | AU97: 1 | AV97: 1 | AW97: 1 | AX97: 1 | AY97: 0 | AZ97: 1 | BA97: 1 | BB97: 1 | BC97: 1 | BD97: 1 | BE97: 1 | BF97: 1 | BG97: 1
A98: U | B98: Bedford | C98: E0202 | D98: Bedford | E98: =IF(C98=$C$18,1,CHOOSE($E$34,IF(ISERROR(MATCH(C98,OFFSET(DB_NN!$A$19,MATCH($C$18,DB_NN!$A$20:$A$377,0),INDEX($E$61:$E$78,$C$34),1,INDEX($F$61:$F$78,$C$34)),0)),0,1),IF(ISERROR(MATCH(C98,$D$39:$D$58,0)),0,1),INDEX($H98:$U98,1,INDEX($E$61:$E$78,$C$34)),IF(AND(INDEX(H98:U98,INDEX($E$61:$E$78,$C$34))<>"",INDEX(H98:U98,INDEX($E$61:$E$78,$C$34))=VLOOKUP($C$18,$C$83:$U$422,INDEX($E$61:$E$78,$C$34)+5,FALSE)),1,0))) -> 0 | F98: =--(E98<>0)+(E98<>0)*MAX($F$83:F97) -> 0 | H98: 1 | I98: 0 | J98: 0 | K98: 1 | L98: 1 | M98: Eastern | N98: Eastern | P98: 0 | T98: 1 | X98: All - WD | Y98: 1 | Z98: 1 | AA98: 1 | AB98: 1 | AC98: 1 | AD98: 1 | AE98: 1 | AF98: 1 | AG98: 1 | AH98: 1 | AI98: 1 | AJ98: 1 | AK98: 1 | AL98: 1 | AM98: 0 | AN98: 1 | AO98: 1 | AP98: 1 | AQ98: 1 | AR98: 1 | AS98: 1 | AT98: 1 | AU98: 1 | AV98: 1 | AW98: 1 | AX98: 1 | AY98: 0 | AZ98: 1 | BA98: 1 | BB98: 1 | BC98: 1 | BD98: 1 | BE98: 1 | BF98: 1 | BG98: 1
A99: OL | B99: Bexley | C99: E5032 | D99: Bexley | E99: =IF(C99=$C$18,1,CHOOSE($E$34,IF(ISERROR(MATCH(C99,OFFSET(DB_NN!$A$19,MATCH($C$18,DB_NN!$A$20:$A$377,0),INDEX($E$61:$E$78,$C$34),1,INDEX($F$61:$F$78,$C$34)),0)),0,1),IF(ISERROR(MATCH(C99,$D$39:$D$58,0)),0,1),INDEX($H99:$U99,1,INDEX($E$61:$E$78,$C$34)),IF(AND(INDEX(H99:U99,INDEX($E$61:$E$78,$C$34))<>"",INDEX(H99:U99,INDEX($E$61:$E$78,$C$34))=VLOOKUP($C$18,$C$83:$U$422,INDEX($E$61:$E$78,$C$34)+5,FALSE)),1,0))) -> 0 | F99: =--(E99<>0)+(E99<>0)*MAX($F$83:F98) -> 0 | H99: 1 | I99: 0 | J99: 0 | K99: 1 | L99: 1 | M99: London | N99: London | P99: 1 | Q99: Outer London | X99: All - WD | Y99: 1 | Z99: 1 | AA99: 1 | AB99: 1 | AC99: 1 | AD99: 1 | AE99: 1 | AF99: 1 | AG99: 1 | AH99: 1 | AI99: 1 | AJ99: 1 | AK99: 1 | AL99: 1 | AM99: 0 | AN99: 1 | AO99: 1 | AP99: 1 | AQ99: 1 | AR99: 1 | AS99: 1 | AT99: 1 | AU99: 1 | AV99: 1 | AW99: 1 | AX99: 1 | AY99: 0 | AZ99: 1 | BA99: 1 | BB99: 1 | BC99: 1 | BD99: 1 | BE99: 1 | BF99: 1 | BG99: 1
A100: M | B100: Birmingham | C100: E4601 | D100: Birmingham | E100: =IF(C100=$C$18,1,CHOOSE($E$34,IF(ISERROR(MATCH(C100,OFFSET(DB_NN!$A$19,MATCH($C$18,DB_NN!$A$20:$A$377,0),INDEX($E$61:$E$78,$C$34),1,INDEX($F$61:$F$78,$C$34)),0)),0,1),IF(ISERROR(MATCH(C100,$D$39:$D$58,0)),0,1),INDEX($H100:$U100,1,INDEX($E$61:$E$78,$C$34)),IF(AND(INDEX(H100:U100,INDEX($E$61:$E$78,$C$34))<>"",INDEX(H100:U100,INDEX($E$61:$E$78,$C$34))=VLOOKUP($C$18,$C$83:$U$422,INDEX($E$61:$E$78,$C$34)+5,FALSE)),1,0))) -> 0 | F100: =--(E100<>0)+(E100<>0)*MAX($F$83:F99) -> 0 | H100: 1 | I100: 0 | J100: 0 | K100: 1 | L100: 1 | M100: West Midlands | N100: West Midlands | P100: 0 | R100: 1 | S100: 1 | X100: All - Housing and WD | Y100: 1 | Z100: 1 | AA100: 1 | AB100: 1 | AC100: 1 | AD100: 1 | AE100: 1 | AF100: 1 | AG100: 1 | AH100: 1 | AI100: 1 | AJ100: 1 | AK100: 1 | AL100: 1 | AM100: 0 | AN100: 1 | AO100: 1 | AP100: 1 | AQ100: 1 | AR100: 1 | AS100: 1 | AT100: 1 | AU100: 1 | AV100: 1 | AW100: 1 | AX100: 1 | AY100: 1 | AZ100: 1 | BA100: 1 | BB100: 1 | BC100: 1 | BD100: 1 | BE100: 1 | BF100: 1 | BG100: 1
A101: NM | B101: Blaby | C101: E2431 | D101: Blaby | E101: =IF(C101=$C$18,1,CHOOSE($E$34,IF(ISERROR(MATCH(C101,OFFSET(DB_NN!$A$19,MATCH($C$18,DB_NN!$A$20:$A$377,0),INDEX($E$61:$E$78,$C$34),1,INDEX($F$61:$F$78,$C$34)),0)),0,1),IF(ISERROR(MATCH(C101,$D$39:$D$58,0)),0,1),INDEX($H101:$U101,1,INDEX($E$61:$E$78,$C$34)),IF(AND(INDEX(H101:U101,INDEX($E$61:$E$78,$C$34))<>"",INDEX(H101:U101,INDEX($E$61:$E$78,$C$34))=VLOOKUP($C$18,$C$83:$U$422,INDEX($E$61:$E$78,$C$34)+5,FALSE)),1,0))) -> 0 | F101: =--(E101<>0)+(E101<>0)*MAX($F$83:F100) -> 0 | H101: 1 | I101: 0 | J101: 1 | K101: 0 | L101: 1 | N101: East Midlands | O101: Leicestershire | P101: 0 | X101: Lower | Y101: 0 | Z101: 0 | AA101: 0 | AB101: 0 | AC101: 0 | AD101: 0 | AE101: 0 | AF101: 0 | AG101: 0 | AH101: 1 | AI101: 1 | AJ101: 0 | AK101: 1 | AL101: 0 | AM101: 0 | AN101: 0 | AO101: 1 | AP101: 0 | AQ101: 0 | AR101: 1 | AS101: 0 | AT101: 1 | AU101: 0 | AV101: 0 | AW101: 0 | AX101: 0 | AY101: 0 | AZ101: 0 | BA101: 1 | BB101: 1 | BC101: 0 | BD101: 0 | BE101: 1 | BF101: 0 | BG101: 0
A102: U | B102: Blackburn with Darwen | C102: E2301 | D102: Blackburn with Darwen | E102: =IF(C102=$C$18,1,CHOOSE($E$34,IF(ISERROR(MATCH(C102,OFFSET(DB_NN!$A$19,MATCH($C$18,DB_NN!$A$20:$A$377,0),INDEX($E$61:$E$78,$C$34),1,INDEX($F$61:$F$78,$C$34)),0)),0,1),IF(ISERROR(MATCH(C102,$D$39:$D$58,0)),0,1),INDEX($H102:$U102,1,INDEX($E$61:$E$78,$C$34)),IF(AND(INDEX(H102:U102,INDEX($E$61:$E$78,$C$34))<>"",INDEX(H102:U102,INDEX($E$61:$E$78,$C$34))=VLOOKUP($C$18,$C$83:$U$422,INDEX($E$61:$E$78,$C$34)+5,FALSE)),1,0))) -> 0 | F102: =--(E102<>0)+(E102<>0)*MAX($F$83:F101) -> 0 | H102: 1 | I102: 0 | J102: 0 | K102: 1 | L102: 1 | M102: North West | N102: North West | P102: 0 | T102: 1 | X102: All - WD | Y102: 1 | Z102: 1 | AA102: 1 | AB102: 1 | AC102: 1 | AD102: 1 | AE102: 1 | AF102: 1 | AG102: 1 | AH102: 1 | AI102: 1 | AJ102: 1 | AK102: 1 | AL102: 1 | AM102: 0 | AN102: 1 | AO102: 1 | AP102: 1 | AQ102: 1 | AR102: 1 | AS102: 1 | AT102: 1 | AU102: 1 | AV102: 1 | AW102: 1 | AX102: 1 | AY102: 0 | AZ102: 1 | BA102: 1 | BB102: 1 | BC102: 1 | BD102: 1 | BE102: 1 | BF102: 1 | BG102: 1
A103: U | B103: Blackpool | C103: E2302 | D103: Blackpool | E103: =IF(C103=$C$18,1,CHOOSE($E$34,IF(ISERROR(MATCH(C103,OFFSET(DB_NN!$A$19,MATCH($C$18,DB_NN!$A$20:$A$377,0),INDEX($E$61:$E$78,$C$34),1,INDEX($F$61:$F$78,$C$34)),0)),0,1),IF(ISERROR(MATCH(C103,$D$39:$D$58,0)),0,1),INDEX($H103:$U103,1,INDEX($E$61:$E$78,$C$34)),IF(AND(INDEX(H103:U103,INDEX($E$61:$E$78,$C$34))<>"",INDEX(H103:U103,INDEX($E$61:$E$78,$C$34))=VLOOKUP($C$18,$C$83:$U$422,INDEX($E$61:$E$78,$C$34)+5,FALSE)),1,0))) -> 0 | F103: =--(E103<>0)+(E103<>0)*MAX($F$83:F102) -> 0 | H103: 1 | I103: 0 | J103: 0 | K103: 1 | L103: 1 | M103: North West | N103: North West | P103: 0 | T103: 1 | X103: All - Housing and WD | Y103: 1 | Z103: 1 | AA103: 1 | AB103: 1 | AC103: 1 | AD103: 1 | AE103: 1 | AF103: 1 | AG103: 1 | AH103: 1 | AI103: 1 | AJ103: 1 | AK103: 1 | AL103: 1 | AM103: 0 | AN103: 1 | AO103: 1 | AP103: 1 | AQ103: 1 | AR103: 1 | AS103: 1 | AT103: 1 | AU103: 1 | AV103: 1 | AW103: 1 | AX103: 1 | AY103: 1 | AZ103: 1 | BA103: 1 | BB103: 1 | BC103: 1 | BD103: 1 | BE103: 1 | BF103: 1 | BG103: 1
A104: NM | B104: Bolsover | C104: E1032 | D104: Bolsover | E104: =IF(C104=$C$18,1,CHOOSE($E$34,IF(ISERROR(MATCH(C104,OFFSET(DB_NN!$A$19,MATCH($C$18,DB_NN!$A$20:$A$377,0),INDEX($E$61:$E$78,$C$34),1,INDEX($F$61:$F$78,$C$34)),0)),0,1),IF(ISERROR(MATCH(C104,$D$39:$D$58,0)),0,1),INDEX($H104:$U104,1,INDEX($E$61:$E$78,$C$34)),IF(AND(INDEX(H104:U104,INDEX($E$61:$E$78,$C$34))<>"",INDEX(H104:U104,INDEX($E$61:$E$78,$C$34))=VLOOKUP($C$18,$C$83:$U$422,INDEX($E$61:$E$78,$C$34)+5,FALSE)),1,0))) -> 0 | F104: =--(E104<>0)+(E104<>0)*MAX($F$83:F103) -> 0 | H104: 1 | I104: 0 | J104: 1 | K104: 0 | L104: 1 | N104: East Midlands | O104: Derbyshire | P104: 0 | X104: Lower - Housing | Y104: 0 | Z104: 0 | AA104: 0 | AB104: 0 | AC104: 0 | AD104: 0 | AE104: 0 | AF104: 0 | AG104: 0 | AH104: 1 | AI104: 1 | AJ104: 0 | AK104: 1 | AL104: 0 | AM104: 0 | AN104: 0 | AO104: 1 | AP104: 0 | AQ104: 0 | AR104: 1 | AS104: 0 | AT104: 1 | AU104: 0 | AV104: 0 | AW104: 0 | AX104: 0 | AY104: 1 | AZ104: 0 | BA104: 1 | BB104: 1 | BC104: 0 | BD104: 0 | BE104: 1 | BF104: 0 | BG104: 0
A105: M | B105: Bolton | C105: E4201 | D105: Bolton | E105: =IF(C105=$C$18,1,CHOOSE($E$34,IF(ISERROR(MATCH(C105,OFFSET(DB_NN!$A$19,MATCH($C$18,DB_NN!$A$20:$A$377,0),INDEX($E$61:$E$78,$C$34),1,INDEX($F$61:$F$78,$C$34)),0)),0,1),IF(ISERROR(MATCH(C105,$D$39:$D$58,0)),0,1),INDEX($H105:$U105,1,INDEX($E$61:$E$78,$C$34)),IF(AND(INDEX(H105:U105,INDEX($E$61:$E$78,$C$34))<>"",INDEX(H105:U105,INDEX($E$61:$E$78,$C$34))=VLOOKUP($C$18,$C$83:$U$422,INDEX($E$61:$E$78,$C$34)+5,FALSE)),1,0))) -> 0 | F105: =--(E105<>0)+(E105<>0)*MAX($F$83:F104) -> 0 | H105: 1 | I105: 0 | J105: 0 | K105: 1 | L105: 1 | M105: North West | N105: North West | P105: 0 | S105: 1 | X105: All - Housing | Y105: 1 | Z105: 1 | AA105: 1 | AB105: 1 | AC105: 1 | AD105: 1 | AE105: 1 | AF105: 1 | AG105: 1 | AH105: 1 | AI105: 1 | AJ105: 1 | AK105: 1 | AL105: 1 | AM105: 0 | AN105: 1 | AO105: 1 | AP105: 1 | AQ105: 1 | AR105: 1 | AS105: 1 | AT105: 1 | AU105: 1 | AV105: 1 | AW105: 1 | AX105: 1 | AY105: 1 | AZ105: 1 | BA105: 1 | BB105: 1 | BC105: 1 | BD105: 1 | BE105: 1 | BF105: 0 | BG105: 1
A106: NM | B106: Boston | C106: E2531 | D106: Boston | E106: =IF(C106=$C$18,1,CHOOSE($E$34,IF(ISERROR(MATCH(C106,OFFSET(DB_NN!$A$19,MATCH($C$18,DB_NN!$A$20:$A$377,0),INDEX($E$61:$E$78,$C$34),1,INDEX($F$61:$F$78,$C$34)),0)),0,1),IF(ISERROR(MATCH(C106,$D$39:$D$58,0)),0,1),INDEX($H106:$U106,1,INDEX($E$61:$E$78,$C$34)),IF(AND(INDEX(H106:U106,INDEX($E$61:$E$78,$C$34))<>"",INDEX(H106:U106,INDEX($E$61:$E$78,$C$34))=VLOOKUP($C$18,$C$83:$U$422,INDEX($E$61:$E$78,$C$34)+5,FALSE)),1,0))) -> 0 | F106: =--(E106<>0)+(E106<>0)*MAX($F$83:F105) -> 0 | H106: 1 | I106: 0 | J106: 1 | K106: 0 | L106: 1 | N106: East Midlands | O106: Lincolnshire | P106: 0 | X106: Lower | Y106: 0 | Z106: 0 | AA106: 0 | AB106: 0 | AC106: 0 | AD106: 0 | AE106: 0 | AF106: 0 | AG106: 0 | AH106: 1 | AI106: 1 | AJ106: 0 | AK106: 1 | AL106: 0 | AM106: 0 | AN106: 0 | AO106: 1 | AP106: 0 | AQ106: 0 | AR106: 1 | AS106: 0 | AT106: 1 | AU106: 0 | AV106: 0 | AW106: 0 | AX106: 0 | AY106: 0 | AZ106: 0 | BA106: 1 | BB106: 1 | BC106: 0 | BD106: 0 | BE106: 1 | BF106: 0 | BG106: 0
A107: U | B107: Bournemouth, Christchurch & Poole | C107: E1204 | D107: Bournemouth, Christchurch & Poole | E107: =IF(C107=$C$18,1,CHOOSE($E$34,IF(ISERROR(MATCH(C107,OFFSET(DB_NN!$A$19,MATCH($C$18,DB_NN!$A$20:$A$377,0),INDEX($E$61:$E$78,$C$34),1,INDEX($F$61:$F$78,$C$34)),0)),0,1),IF(ISERROR(MATCH(C107,$D$39:$D$58,0)),0,1),INDEX($H107:$U107,1,INDEX($E$61:$E$78,$C$34)),IF(AND(INDEX(H107:U107,INDEX($E$61:$E$78,$C$34))<>"",INDEX(H107:U107,INDEX($E$61:$E$78,$C$34))=VLOOKUP($C$18,$C$83:$U$422,INDEX($E$61:$E$78,$C$34)+5,FALSE)),1,0))) -> 0 | F107: =--(E107<>0)+(E107<>0)*MAX($F$83:F106) -> 0 | H107: 1 | I107: 0 | J107: 0 | K107: 1 | L107: 1 | M107: South West | N107: South West | P107: 0 | T107: 1 | X107: All - Housing and WD | Y107: 1 | Z107: 1 | AA107: 1 | AB107: 1 | AC107: 1 | AD107: 1 | AE107: 1 | AF107: 1 | AG107: 1 | AH107: 1 | AI107: 1 | AJ107: 1 | AK107: 1 | AL107: 1 | AM107: 0 | AN107: 1 | AO107: 1 | AP107: 1 | AQ107: 1 | AR107: 1 | AS107: 1 | AT107: 1 | AU107: 1 | AV107: 1 | AW107: 1 | AX107: 1 | AY107: 1 | AZ107: 1 | BA107: 1 | BB107: 1 | BC107: 1 | BD107: 1 | BE107: 1 | BF107: 1 | BG107: 1
A108: U | B108: Bracknell Forest | C108: E0301 | D108: Bracknell Forest | E108: =IF(C108=$C$18,1,CHOOSE($E$34,IF(ISERROR(MATCH(C108,OFFSET(DB_NN!$A$19,MATCH($C$18,DB_NN!$A$20:$A$377,0),INDEX($E$61:$E$78,$C$34),1,INDEX($F$61:$F$78,$C$34)),0)),0,1),IF(ISERROR(MATCH(C108,$D$39:$D$58,0)),0,1),INDEX($H108:$U108,1,INDEX($E$61:$E$78,$C$34)),IF(AND(INDEX(H108:U108,INDEX($E$61:$E$78,$C$34))<>"",INDEX(H108:U108,INDEX($E$61:$E$78,$C$34))=VLOOKUP($C$18,$C$83:$U$422,INDEX($E$61:$E$78,$C$34)+5,FALSE)),1,0))) -> 0 | F108: =--(E108<>0)+(E108<>0)*MAX($F$83:F107) -> 0 | H108: 1 | I108: 0 | J108: 0 | K108: 1 | L108: 1 | M108: South East | N108: South East | P108: 0 | T108: 1 | X108: All - WD | Y108: 1 | Z108: 1 | AA108: 1 | AB108: 1 | AC108: 1 | AD108: 1 | AE108: 1 | AF108: 1 | AG108: 1 | AH108: 1 | AI108: 1 | AJ108: 1 | AK108: 1 | AL108: 1 | AM108: 0 | AN108: 1 | AO108: 1 | AP108: 1 | AQ108: 1 | AR108: 1 | AS108: 1 | AT108: 1 | AU108: 1 | AV108: 1 | AW108: 1 | AX108: 1 | AY108: 0 | AZ108: 1 | BA108: 1 | BB108: 1 | BC108: 1 | BD108: 1 | BE108: 1 | BF108: 1 | BG108: 1
A109: M | B109: Bradford | C109: E4701 | D109: Bradford | E109: =IF(C109=$C$18,1,CHOOSE($E$34,IF(ISERROR(MATCH(C109,OFFSET(DB_NN!$A$19,MATCH($C$18,DB_NN!$A$20:$A$377,0),INDEX($E$61:$E$78,$C$34),1,INDEX($F$61:$F$78,$C$34)),0)),0,1),IF(ISERROR(MATCH(C109,$D$39:$D$58,0)),0,1),INDEX($H109:$U109,1,INDEX($E$61:$E$78,$C$34)),IF(AND(INDEX(H109:U109,INDEX($E$61:$E$78,$C$34))<>"",INDEX(H109:U109,INDEX($E$61:$E$78,$C$34))=VLOOKUP($C$18,$C$83:$U$422,INDEX($E$61:$E$78,$C$34)+5,FALSE)),1,0))) -> 0 | F109: =--(E109<>0)+(E109<>0)*MAX($F$83:F108) -> 0 | H109: 1 | I109: 0 | J109: 0 | K109: 1 | L109: 1 | M109: Yorkshire & Humber | N109: Yorkshire & Humber | P109: 0 | S109: 1 | X109: All - WD | Y109: 1 | Z109: 1 | AA109: 1 | AB109: 1 | AC109: 1 | AD109: 1 | AE109: 1 | AF109: 1 | AG109: 1 | AH109: 1 | AI109: 1 | AJ109: 1 | AK109: 1 | AL109: 1 | AM109: 0 | AN109: 1 | AO109: 1 | AP109: 1 | AQ109: 1 | AR109: 1 | AS109: 1 | AT109: 1 | AU109: 1 | AV109: 1 | AW109: 1 | AX109: 1 | AY109: 0 | AZ109: 1 | BA109: 1 | BB109: 1 | BC109: 1 | BD109: 1 | BE109: 1 | BF109: 1 | BG109: 1
A110: NM | B110: Braintree | C110: E1532 | D110: Braintree | E110: =IF(C110=$C$18,1,CHOOSE($E$34,IF(ISERROR(MATCH(C110,OFFSET(DB_NN!$A$19,MATCH($C$18,DB_NN!$A$20:$A$377,0),INDEX($E$61:$E$78,$C$34),1,INDEX($F$61:$F$78,$C$34)),0)),0,1),IF(ISERROR(MATCH(C110,$D$39:$D$58,0)),0,1),INDEX($H110:$U110,1,INDEX($E$61:$E$78,$C$34)),IF(AND(INDEX(H110:U110,INDEX($E$61:$E$78,$C$34))<>"",INDEX(H110:U110,INDEX($E$61:$E$78,$C$34))=VLOOKUP($C$18,$C$83:$U$422,INDEX($E$61:$E$78,$C$34)+5,FALSE)),1,0))) -> 0 | F110: =--(E110<>0)+(E110<>0)*MAX($F$83:F109) -> 0 | H110: 1 | I110: 0 | J110: 1 | K110: 0 | L110: 1 | N110: Eastern | O110: Essex | P110: 0 | X110: Lower | Y110: 0 | Z110: 0 | AA110: 0 | AB110: 0 | AC110: 0 | AD110: 0 | AE110: 0 | AF110: 0 | AG110: 0 | AH110: 1 | AI110: 1 | AJ110: 0 | AK110: 1 | AL110: 0 | AM110: 0 | AN110: 0 | AO110: 1 | AP110: 0 | AQ110: 0 | AR110: 1 | AS110: 0 | AT110: 1 | AU110: 0 | AV110: 0 | AW110: 0 | AX110: 0 | AY110: 0 | AZ110: 0 | BA110: 1 | BB110: 1 | BC110: 0 | BD110: 0 | BE110: 1 | BF110: 0 | BG110: 0
A111: NM | B111: Breckland | C111: E2631 | D111: Breckland | E111: =IF(C111=$C$18,1,CHOOSE($E$34,IF(ISERROR(MATCH(C111,OFFSET(DB_NN!$A$19,MATCH($C$18,DB_NN!$A$20:$A$377,0),INDEX($E$61:$E$78,$C$34),1,INDEX($F$61:$F$78,$C$34)),0)),0,1),IF(ISERROR(MATCH(C111,$D$39:$D$58,0)),0,1),INDEX($H111:$U111,1,INDEX($E$61:$E$78,$C$34)),IF(AND(INDEX(H111:U111,INDEX($E$61:$E$78,$C$34))<>"",INDEX(H111:U111,INDEX($E$61:$E$78,$C$34))=VLOOKUP($C$18,$C$83:$U$422,INDEX($E$61:$E$78,$C$34)+5,FALSE)),1,0))) -> 0 | F111: =--(E111<>0)+(E111<>0)*MAX($F$83:F110) -> 0 | H111: 1 | I111: 0 | J111: 1 | K111: 0 | L111: 1 | N111: Eastern | O111: Norfolk | P111: 0 | X111: Lower | Y111: 0 | Z111: 0 | AA111: 0 | AB111: 0 | AC111: 0 | AD111: 0 | AE111: 0 | AF111: 0 | AG111: 0 | AH111: 1 | AI111: 1 | AJ111: 0 | AK111: 1 | AL111: 0 | AM111: 0 | AN111: 0 | AO111: 1 | AP111: 0 | AQ111: 0 | AR111: 1 | AS111: 0 | AT111: 1 | AU111: 0 | AV111: 0 | AW111: 0 | AX111: 0 | AY111: 0 | AZ111: 0 | BA111: 1 | BB111: 1 | BC111: 0 | BD111: 0 | BE111: 1 | BF111: 0 | BG111: 0
A112: OL | B112: Brent | C112: E5033 | D112: Brent | E112: =IF(C112=$C$18,1,CHOOSE($E$34,IF(ISERROR(MATCH(C112,OFFSET(DB_NN!$A$19,MATCH($C$18,DB_NN!$A$20:$A$377,0),INDEX($E$61:$E$78,$C$34),1,INDEX($F$61:$F$78,$C$34)),0)),0,1),IF(ISERROR(MATCH(C112,$D$39:$D$58,0)),0,1),INDEX($H112:$U112,1,INDEX($E$61:$E$78,$C$34)),IF(AND(INDEX(H112:U112,INDEX($E$61:$E$78,$C$34))<>"",INDEX(H112:U112,INDEX($E$61:$E$78,$C$34))=VLOOKUP($C$18,$C$83:$U$422,INDEX($E$61:$E$78,$C$34)+5,FALSE)),1,0))) -> 0 | F112: =--(E112<>0)+(E112<>0)*MAX($F$83:F111) -> 0 | H112: 1 | I112: 0 | J112: 0 | K112: 1 | L112: 1 | M112: London | N112: London | P112: 1 | Q112: Outer London | X112: All - Housing | Y112: 1 | Z112: 1 | AA112: 1 | AB112: 1 | AC112: 1 | AD112: 1 | AE112: 1 | AF112: 1 | AG112: 1 | AH112: 1 | AI112: 1 | AJ112: 1 | AK112: 1 | AL112: 1 | AM112: 0 | AN112: 1 | AO112: 1 | AP112: 1 | AQ112: 1 | AR112: 1 | AS112: 1 | AT112: 1 | AU112: 1 | AV112: 1 | AW112: 1 | AX112: 1 | AY112: 1 | AZ112: 1 | BA112: 1 | BB112: 1 | BC112: 1 | BD112: 1 | BE112: 1 | BF112: 0 | BG112: 1
A113: NM | B113: Brentwood | C113: E1533 | D113: Brentwood | E113: =IF(C113=$C$18,1,CHOOSE($E$34,IF(ISERROR(MATCH(C113,OFFSET(DB_NN!$A$19,MATCH($C$18,DB_NN!$A$20:$A$377,0),INDEX($E$61:$E$78,$C$34),1,INDEX($F$61:$F$78,$C$34)),0)),0,1),IF(ISERROR(MATCH(C113,$D$39:$D$58,0)),0,1),INDEX($H113:$U113,1,INDEX($E$61:$E$78,$C$34)),IF(AND(INDEX(H113:U113,INDEX($E$61:$E$78,$C$34))<>"",INDEX(H113:U113,INDEX($E$61:$E$78,$C$34))=VLOOKUP($C$18,$C$83:$U$422,INDEX($E$61:$E$78,$C$34)+5,FALSE)),1,0))) -> 0 | F113: =--(E113<>0)+(E113<>0)*MAX($F$83:F112) -> 0 | H113: 1 | I113: 0 | J113: 1 | K113: 0 | L113: 1 | N113: Eastern | O113: Essex | P113: 0 | X113: Lower - Housing | Y113: 0 | Z113: 0 | AA113: 0 | AB113: 0 | AC113: 0 | AD113: 0 | AE113: 0 | AF113: 0 | AG113: 0 | AH113: 1 | AI113: 1 | AJ113: 0 | AK113: 1 | AL113: 0 | AM113: 0 | AN113: 0 | AO113: 1 | AP113: 0 | AQ113: 0 | AR113: 1 | AS113: 0 | AT113: 1 | AU113: 0 | AV113: 0 | AW113: 0 | AX113: 0 | AY113: 1 | AZ113: 0 | BA113: 1 | BB113: 1 | BC113: 0 | BD113: 0 | BE113: 1 | BF113: 0 | BG113: 0
A114: U | B114: Brighton & Hove | C114: E1401 | D114: Brighton & Hove | E114: =IF(C114=$C$18,1,CHOOSE($E$34,IF(ISERROR(MATCH(C114,OFFSET(DB_NN!$A$19,MATCH($C$18,DB_NN!$A$20:$A$377,0),INDEX($E$61:$E$78,$C$34),1,INDEX($F$61:$F$78,$C$34)),0)),0,1),IF(ISERROR(MATCH(C114,$D$39:$D$58,0)),0,1),INDEX($H114:$U114,1,INDEX($E$61:$E$78,$C$34)),IF(AND(INDEX(H114:U114,INDEX($E$61:$E$78,$C$34))<>"",INDEX(H114:U114,INDEX($E$61:$E$78,$C$34))=VLOOKUP($C$18,$C$83:$U$422,INDEX($E$61:$E$78,$C$34)+5,FALSE)),1,0))) -> 0 | F114: =--(E114<>0)+(E114<>0)*MAX($F$83:F113) -> 0 | H114: 1 | I114: 0 | J114: 0 | K114: 1 | L114: 1 | M114: South East | N114: South East | P114: 0 | T114: 1 | X114: All - Housing and WD | Y114: 1 | Z114: 1 | AA114: 1 | AB114: 1 | AC114: 1 | AD114: 1 | AE114: 1 | AF114: 1 | AG114: 1 | AH114: 1 | AI114: 1 | AJ114: 1 | AK114: 1 | AL114: 1 | AM114: 0 | AN114: 1 | AO114: 1 | AP114: 1 | AQ114: 1 | AR114: 1 | AS114: 1 | AT114: 1 | AU114: 1 | AV114: 1 | AW114: 1 | AX114: 1 | AY114: 1 | AZ114: 1 | BA114: 1 | BB114: 1 | BC114: 1 | BD114: 1 | BE114: 1 | BF114: 1 | BG114: 1
A115: U | B115: Bristol | C115: E0102 | D115: Bristol | E115: =IF(C115=$C$18,1,CHOOSE($E$34,IF(ISERROR(MATCH(C115,OFFSET(DB_NN!$A$19,MATCH($C$18,DB_NN!$A$20:$A$377,0),INDEX($E$61:$E$78,$C$34),1,INDEX($F$61:$F$78,$C$34)),0)),0,1),IF(ISERROR(MATCH(C115,$D$39:$D$58,0)),0,1),INDEX($H115:$U115,1,INDEX($E$61:$E$78,$C$34)),IF(AND(INDEX(H115:U115,INDEX($E$61:$E$78,$C$34))<>"",INDEX(H115:U115,INDEX($E$61:$E$78,$C$34))=VLOOKUP($C$18,$C$83:$U$422,INDEX($E$61:$E$78,$C$34)+5,FALSE)),1,0))) -> 0 | F115: =--(E115<>0)+(E115<>0)*MAX($F$83:F114) -> 0 | H115: 1 | I115: 0 | J115: 0 | K115: 1 | L115: 1 | M115: South West | N115: South West | P115: 0 | R115: 1 | T115: 1 | X115: All - Housing and WD | Y115: 1 | Z115: 1 | AA115: 1 | AB115: 1 | AC115: 1 | AD115: 1 | AE115: 1 | AF115: 1 | AG115: 1 | AH115: 1 | AI115: 1 | AJ115: 1 | AK115: 1 | AL115: 1 | AM115: 0 | AN115: 1 | AO115: 1 | AP115: 1 | AQ115: 1 | AR115: 1 | AS115: 1 | AT115: 1 | AU115: 1 | AV115: 1 | AW115: 1 | AX115: 1 | AY115: 1 | AZ115: 1 | BA115: 1 | BB115: 1 | BC115: 1 | BD115: 1 | BE115: 1 | BF115: 1 | BG115: 1
A116: NM | B116: Broadland | C116: E2632 | D116: Broadland | E116: =IF(C116=$C$18,1,CHOOSE($E$34,IF(ISERROR(MATCH(C116,OFFSET(DB_NN!$A$19,MATCH($C$18,DB_NN!$A$20:$A$377,0),INDEX($E$61:$E$78,$C$34),1,INDEX($F$61:$F$78,$C$34)),0)),0,1),IF(ISERROR(MATCH(C116,$D$39:$D$58,0)),0,1),INDEX($H116:$U116,1,INDEX($E$61:$E$78,$C$34)),IF(AND(INDEX(H116:U116,INDEX($E$61:$E$78,$C$34))<>"",INDEX(H116:U116,INDEX($E$61:$E$78,$C$34))=VLOOKUP($C$18,$C$83:$U$422,INDEX($E$61:$E$78,$C$34)+5,FALSE)),1,0))) -> 0 | F116: =--(E116<>0)+(E116<>0)*MAX($F$83:F115) -> 0 | H116: 1 | I116: 0 | J116: 1 | K116: 0 | L116: 1 | N116: Eastern | O116: Norfolk | P116: 0 | X116: Lower | Y116: 0 | Z116: 0 | AA116: 0 | AB116: 0 | AC116: 0 | AD116: 0 | AE116: 0 | AF116: 0 | AG116: 0 | AH116: 1 | AI116: 1 | AJ116: 0 | AK116: 1 | AL116: 0 | AM116: 0 | AN116: 0 | AO116: 1 | AP116: 0 | AQ116: 0 | AR116: 1 | AS116: 0 | AT116: 1 | AU116: 0 | AV116: 0 | AW116: 0 | AX116: 0 | AY116: 0 | AZ116: 0 | BA116: 1 | BB116: 1 | BC116: 0 | BD116: 0 | BE116: 1 | BF116: 0 | BG116: 0
A117: OL | B117: Bromley | C117: E5034 | D117: Bromley | E117: =IF(C117=$C$18,1,CHOOSE($E$34,IF(ISERROR(MATCH(C117,OFFSET(DB_NN!$A$19,MATCH($C$18,DB_NN!$A$20:$A$377,0),INDEX($E$61:$E$78,$C$34),1,INDEX($F$61:$F$78,$C$34)),0)),0,1),IF(ISERROR(MATCH(C117,$D$39:$D$58,0)),0,1),INDEX($H117:$U117,1,INDEX($E$61:$E$78,$C$34)),IF(AND(INDEX(H117:U117,INDEX($E$61:$E$78,$C$34))<>"",INDEX(H117:U117,INDEX($E$61:$E$78,$C$34))=VLOOKUP($C$18,$C$83:$U$422,INDEX($E$61:$E$78,$C$34)+5,FALSE)),1,0))) -> 0 | F117: =--(E117<>0)+(E117<>0)*MAX($F$83:F116) -> 0 | H117: 1 | I117: 0 | J117: 0 | K117: 1 | L117: 1 | M117: London | N117: London | P117: 1 | Q117: Outer London | X117: All - WD | Y117: 1 | Z117: 1 | AA117: 1 | AB117: 1 | AC117: 1 | AD117: 1 | AE117: 1 | AF117: 1 | AG117: 1 | AH117: 1 | AI117: 1 | AJ117: 1 | AK117: 1 | AL117: 1 | AM117: 0 | AN117: 1 | AO117: 1 | AP117: 1 | AQ117: 1 | AR117: 1 | AS117: 1 | AT117: 1 | AU117: 1 | AV117: 1 | AW117: 1 | AX117: 1 | AY117: 0 | AZ117: 1 | BA117: 1 | BB117: 1 | BC117: 1 | BD117: 1 | BE117: 1 | BF117: 1 | BG117: 1
A118: NM | B118: Bromsgrove | C118: E1831 | D118: Bromsgrove | E118: =IF(C118=$C$18,1,CHOOSE($E$34,IF(ISERROR(MATCH(C118,OFFSET(DB_NN!$A$19,MATCH($C$18,DB_NN!$A$20:$A$377,0),INDEX($E$61:$E$78,$C$34),1,INDEX($F$61:$F$78,$C$34)),0)),0,1),IF(ISERROR(MATCH(C118,$D$39:$D$58,0)),0,1),INDEX($H118:$U118,1,INDEX($E$61:$E$78,$C$34)),IF(AND(INDEX(H118:U118,INDEX($E$61:$E$78,$C$34))<>"",INDEX(H118:U118,INDEX($E$61:$E$78,$C$34))=VLOOKUP($C$18,$C$83:$U$422,INDEX($E$61:$E$78,$C$34)+5,FALSE)),1,0))) -> 0 | F118: =--(E118<>0)+(E118<>0)*MAX($F$83:F117) -> 0 | H118: 1 | I118: 0 | J118: 1 | K118: 0 | L118: 1 | N118: West Midlands | O118: Worcestershire | P118: 0 | X118: Lower | Y118: 0 | Z118: 0 | AA118: 0 | AB118: 0 | AC118: 0 | AD118: 0 | AE118: 0 | AF118: 0 | AG118: 0 | AH118: 1 | AI118: 1 | AJ118: 0 | AK118: 1 | AL118: 0 | AM118: 0 | AN118: 0 | AO118: 1 | AP118: 0 | AQ118: 0 | AR118: 1 | AS118: 0 | AT118: 1 | AU118: 0 | AV118: 0 | AW118: 0 | AX118: 0 | AY118: 0 | AZ118: 0 | BA118: 1 | BB118: 1 | BC118: 0 | BD118: 0 | BE118: 1 | BF118: 0 | BG118: 0
A119: NM | B119: Broxbourne | C119: E1931 | D119: Broxbourne | E119: =IF(C119=$C$18,1,CHOOSE($E$34,IF(ISERROR(MATCH(C119,OFFSET(DB_NN!$A$19,MATCH($C$18,DB_NN!$A$20:$A$377,0),INDEX($E$61:$E$78,$C$34),1,INDEX($F$61:$F$78,$C$34)),0)),0,1),IF(ISERROR(MATCH(C119,$D$39:$D$58,0)),0,1),INDEX($H119:$U119,1,INDEX($E$61:$E$78,$C$34)),IF(AND(INDEX(H119:U119,INDEX($E$61:$E$78,$C$34))<>"",INDEX(H119:U119,INDEX($E$61:$E$78,$C$34))=VLOOKUP($C$18,$C$83:$U$422,INDEX($E$61:$E$78,$C$34)+5,FALSE)),1,0))) -> 0 | F119: =--(E119<>0)+(E119<>0)*MAX($F$83:F118) -> 0 | H119: 1 | I119: 0 | J119: 1 | K119: 0 | L119: 1 | N119: Eastern | O119: Hertfordshire | P119: 0 | X119: Lower | Y119: 0 | Z119: 0 | AA119: 0 | AB119: 0 | AC119: 0 | AD119: 0 | AE119: 0 | AF119: 0 | AG119: 0 | AH119: 1 | AI119: 1 | AJ119: 0 | AK119: 1 | AL119: 0 | AM119: 0 | AN119: 0 | AO119: 1 | AP119: 0 | AQ119: 0 | AR119: 1 | AS119: 0 | AT119: 1 | AU119: 0 | AV119: 0 | AW119: 0 | AX119: 0 | AY119: 0 | AZ119: 0 | BA119: 1 | BB119: 1 | BC119: 0 | BD119: 0 | BE119: 1 | BF119: 0 | BG119: 0
A120: NM | B120: Broxtowe | C120: E3033 | D120: Broxtowe | E120: =IF(C120=$C$18,1,CHOOSE($E$34,IF(ISERROR(MATCH(C120,OFFSET(DB_NN!$A$19,MATCH($C$18,DB_NN!$A$20:$A$377,0),INDEX($E$61:$E$78,$C$34),1,INDEX($F$61:$F$78,$C$34)),0)),0,1),IF(ISERROR(MATCH(C120,$D$39:$D$58,0)),0,1),INDEX($H120:$U120,1,INDEX($E$61:$E$78,$C$34)),IF(AND(INDEX(H120:U120,INDEX($E$61:$E$78,$C$34))<>"",INDEX(H120:U120,INDEX($E$61:$E$78,$C$34))=VLOOKUP($C$18,$C$83:$U$422,INDEX($E$61:$E$78,$C$34)+5,FALSE)),1,0))) -> 0 | F120: =--(E120<>0)+(E120<>0)*MAX($F$83:F119) -> 0 | H120: 1 | I120: 0 | J120: 1 | K120: 0 | L120: 1 | N120: East Midlands | O120: Nottinghamshire | P120: 0 | X120: Lower - Housing | Y120: 0 | Z120: 0 | AA120: 0 | AB120: 0 | AC120: 0 | AD120: 0 | AE120: 0 | AF120: 0 | AG120: 0 | AH120: 1 | AI120: 1 | AJ120: 0 | AK120: 1 | AL120: 0 | AM120: 0 | AN120: 0 | AO120: 1 | AP120: 0 | AQ120: 0 | AR120: 1 | AS120: 0 | AT120: 1 | AU120: 0 | AV120: 0 | AW120: 0 | AX120: 0 | AY120: 1 | AZ120: 0 | BA120: 1 | BB120: 1 | BC120: 0 | BD120: 0 | BE120: 1 | BF120: 0 | BG120: 0
A121: U | B121: Buckinghamshire | C121: E0421 | D121: Buckinghamshire | E121: =IF(C121=$C$18,1,CHOOSE($E$34,IF(ISERROR(MATCH(C121,OFFSET(DB_NN!$A$19,MATCH($C$18,DB_NN!$A$20:$A$377,0),INDEX($E$61:$E$78,$C$34),1,INDEX($F$61:$F$78,$C$34)),0)),0,1),IF(ISERROR(MATCH(C121,$D$39:$D$58,0)),0,1),INDEX($H121:$U121,1,INDEX($E$61:$E$78,$C$34)),IF(AND(INDEX(H121:U121,INDEX($E$61:$E$78,$C$34))<>"",INDEX(H121:U121,INDEX($E$61:$E$78,$C$34))=VLOOKUP($C$18,$C$83:$U$422,INDEX($E$61:$E$78,$C$34)+5,FALSE)),1,0))) -> 0 | F121: =--(E121<>0)+(E121<>0)*MAX($F$83:F120) -> 0 | H121: 1 | I121: 0 | J121: 1 | K121: 0 | L121: 1 | P121: 0
A122: NM | B122: Burnley | C122: E2333 | D122: Burnley | E122: =IF(C122=$C$18,1,CHOOSE($E$34,IF(ISERROR(MATCH(C122,OFFSET(DB_NN!$A$19,MATCH($C$18,DB_NN!$A$20:$A$377,0),INDEX($E$61:$E$78,$C$34),1,INDEX($F$61:$F$78,$C$34)),0)),0,1),IF(ISERROR(MATCH(C122,$D$39:$D$58,0)),0,1),INDEX($H122:$U122,1,INDEX($E$61:$E$78,$C$34)),IF(AND(INDEX(H122:U122,INDEX($E$61:$E$78,$C$34))<>"",INDEX(H122:U122,INDEX($E$61:$E$78,$C$34))=VLOOKUP($C$18,$C$83:$U$422,INDEX($E$61:$E$78,$C$34)+5,FALSE)),1,0))) -> 0 | F122: =--(E122<>0)+(E122<>0)*MAX($F$83:F120) -> 0 | H122: 1 | I122: 0 | J122: 1 | K122: 0 | L122: 1 | N122: North West | O122: Lancashire | P122: 0 | X122: Lower | Y122: 0 | Z122: 0 | AA122: 0 | AB122: 0 | AC122: 0 | AD122: 0 | AE122: 0 | AF122: 0 | AG122: 0 | AH122: 1 | AI122: 1 | AJ122: 0 | AK122: 1 | AL122: 0 | AM122: 0 | AN122: 0 | AO122: 1 | AP122: 0 | AQ122: 0 | AR122: 1 | AS122: 0 | AT122: 1 | AU122: 0 | AV122: 0 | AW122: 0 | AX122: 0 | AY122: 0 | AZ122: 0 | BA122: 1 | BB122: 1 | BC122: 0 | BD122: 0 | BE122: 1 | BF122: 0 | BG122: 0
A123: M | B123: Bury | C123: E4202 | D123: Bury | E123: =IF(C123=$C$18,1,CHOOSE($E$34,IF(ISERROR(MATCH(C123,OFFSET(DB_NN!$A$19,MATCH($C$18,DB_NN!$A$20:$A$377,0),INDEX($E$61:$E$78,$C$34),1,INDEX($F$61:$F$78,$C$34)),0)),0,1),IF(ISERROR(MATCH(C123,$D$39:$D$58,0)),0,1),INDEX($H123:$U123,1,INDEX($E$61:$E$78,$C$34)),IF(AND(INDEX(H123:U123,INDEX($E$61:$E$78,$C$34))<>"",INDEX(H123:U123,INDEX($E$61:$E$78,$C$34))=VLOOKUP($C$18,$C$83:$U$422,INDEX($E$61:$E$78,$C$34)+5,FALSE)),1,0))) -> 0 | F123: =--(E123<>0)+(E123<>0)*MAX($F$83:F122) -> 0 | H123: 1 | I123: 0 | J123: 0 | K123: 1 | L123: 1 | M123: North West | N123: North West | P123: 0 | S123: 1 | X123: All - Housing | Y123: 1 | Z123: 1 | AA123: 1 | AB123: 1 | AC123: 1 | AD123: 1 | AE123: 1 | AF123: 1 | AG123: 1 | AH123: 1 | AI123: 1 | AJ123: 1 | AK123: 1 | AL123: 1 | AM123: 0 | AN123: 1 | AO123: 1 | AP123: 1 | AQ123: 1 | AR123: 1 | AS123: 1 | AT123: 1 | AU123: 1 | AV123: 1 | AW123: 1 | AX123: 1 | AY123: 1 | AZ123: 1 | BA123: 1 | BB123: 1 | BC123: 1 | BD123: 1 | BE123: 1 | BF123: 0 | BG123: 1
A124: M | B124: Calderdale | C124: E4702 | D124: Calderdale | E124: =IF(C124=$C$18,1,CHOOSE($E$34,IF(ISERROR(MATCH(C124,OFFSET(DB_NN!$A$19,MATCH($C$18,DB_NN!$A$20:$A$377,0),INDEX($E$61:$E$78,$C$34),1,INDEX($F$61:$F$78,$C$34)),0)),0,1),IF(ISERROR(MATCH(C124,$D$39:$D$58,0)),0,1),INDEX($H124:$U124,1,INDEX($E$61:$E$78,$C$34)),IF(AND(INDEX(H124:U124,INDEX($E$61:$E$78,$C$34))<>"",INDEX(H124:U124,INDEX($E$61:$E$78,$C$34))=VLOOKUP($C$18,$C$83:$U$422,INDEX($E$61:$E$78,$C$34)+5,FALSE)),1,0))) -> 0 | F124: =--(E124<>0)+(E124<>0)*MAX($F$83:F123) -> 0 | H124: 1 | I124: 0 | J124: 0 | K124: 1 | L124: 1 | M124: Yorkshire & Humber | N124: Yorkshire & Humber | P124: 0 | S124: 1 | X124: All - WD | Y124: 1 | Z124: 1 | AA124: 1 | AB124: 1 | AC124: 1 | AD124: 1 | AE124: 1 | AF124: 1 | AG124: 1 | AH124: 1 | AI124: 1 | AJ124: 1 | AK124: 1 | AL124: 1 | AM124: 0 | AN124: 1 | AO124: 1 | AP124: 1 | AQ124: 1 | AR124: 1 | AS124: 1 | AT124: 1 | AU124: 1 | AV124: 1 | AW124: 1 | AX124: 1 | AY124: 0 | AZ124: 1 | BA124: 1 | BB124: 1 | BC124: 1 | BD124: 1 | BE124: 1 | BF124: 1 | BG124: 1
A125: NM | B125: Cambridge | C125: E0531 | D125: Cambridge | E125: =IF(C125=$C$18,1,CHOOSE($E$34,IF(ISERROR(MATCH(C125,OFFSET(DB_NN!$A$19,MATCH($C$18,DB_NN!$A$20:$A$377,0),INDEX($E$61:$E$78,$C$34),1,INDEX($F$61:$F$78,$C$34)),0)),0,1),IF(ISERROR(MATCH(C125,$D$39:$D$58,0)),0,1),INDEX($H125:$U125,1,INDEX($E$61:$E$78,$C$34)),IF(AND(INDEX(H125:U125,INDEX($E$61:$E$78,$C$34))<>"",INDEX(H125:U125,INDEX($E$61:$E$78,$C$34))=VLOOKUP($C$18,$C$83:$U$422,INDEX($E$61:$E$78,$C$34)+5,FALSE)),1,0))) -> 0 | F125: =--(E125<>0)+(E125<>0)*MAX($F$83:F124) -> 0 | H125: 1 | I125: 0 | J125: 1 | K125: 0 | L125: 1 | N125: Eastern | O125: Cambridgeshire | P125: 0 | X125: Lower - Housing | Y125: 0 | Z125: 0 | AA125: 0 | AB125: 0 | AC125: 0 | AD125: 0 | AE125: 0 | AF125: 0 | AG125: 0 | AH125: 1 | AI125: 1 | AJ125: 0 | AK125: 1 | AL125: 0 | AM125: 0 | AN125: 0 | AO125: 1 | AP125: 0 | AQ125: 0 | AR125: 1 | AS125: 0 | AT125: 1 | AU125: 0 | AV125: 0 | AW125: 0 | AX125: 0 | AY125: 1 | AZ125: 0 | BA125: 1 | BB125: 1 | BC125: 0 | BD125: 0 | BE125: 1 | BF125: 0 | BG125: 0
A126: C | B126: Cambridgeshire | C126: E0521 | D126: Cambridgeshire | E126: =IF(C126=$C$18,1,CHOOSE($E$34,IF(ISERROR(MATCH(C126,OFFSET(DB_NN!$A$19,MATCH($C$18,DB_NN!$A$20:$A$377,0),INDEX($E$61:$E$78,$C$34),1,INDEX($F$61:$F$78,$C$34)),0)),0,1),IF(ISERROR(MATCH(C126,$D$39:$D$58,0)),0,1),INDEX($H126:$U126,1,INDEX($E$61:$E$78,$C$34)),IF(AND(INDEX(H126:U126,INDEX($E$61:$E$78,$C$34))<>"",INDEX(H126:U126,INDEX($E$61:$E$78,$C$34))=VLOOKUP($C$18,$C$83:$U$422,INDEX($E$61:$E$78,$C$34)+5,FALSE)),1,0))) -> 0 | F126: =--(E126<>0)+(E126<>0)*MAX($F$83:F125) -> 0 | H126: 1 | I126: 1 | J126: 0 | K126: 1 | L126: 0 | M126: Eastern | P126: 0 | X126: Upper | Y126: 1 | Z126: 1 | AA126: 1 | AB126: 1 | AC126: 1 | AD126: 1 | AE126: 1 | AF126: 1 | AG126: 1 | AH126: 0 | AI126: 0 | AJ126: 1 | AK126: 1 | AL126: 1 | AM126: 0 | AN126: 1 | AO126: 0 | AP126: 1 | AQ126: 1 | AR126: 0 | AS126: 1 | AT126: 0 | AU126: 1 | AV126: 1 | AW126: 1 | AX126: 1 | AY126: 0 | AZ126: 1 | BA126: 0 | BB126: 0 | BC126: 1 | BD126: 1 | BE126: 0 | BF126: 1 | BG126: 1
A127: IL | B127: Camden | C127: E5011 | D127: Camden | E127: =IF(C127=$C$18,1,CHOOSE($E$34,IF(ISERROR(MATCH(C127,OFFSET(DB_NN!$A$19,MATCH($C$18,DB_NN!$A$20:$A$377,0),INDEX($E$61:$E$78,$C$34),1,INDEX($F$61:$F$78,$C$34)),0)),0,1),IF(ISERROR(MATCH(C127,$D$39:$D$58,0)),0,1),INDEX($H127:$U127,1,INDEX($E$61:$E$78,$C$34)),IF(AND(INDEX(H127:U127,INDEX($E$61:$E$78,$C$34))<>"",INDEX(H127:U127,INDEX($E$61:$E$78,$C$34))=VLOOKUP($C$18,$C$83:$U$422,INDEX($E$61:$E$78,$C$34)+5,FALSE)),1,0))) -> 0 | F127: =--(E127<>0)+(E127<>0)*MAX($F$83:F126) -> 0 | H127: 1 | I127: 0 | J127: 0 | K127: 1 | L127: 1 | M127: London | N127: London | P127: 1 | Q127: Inner London | X127: All - Housing | Y127: 1 | Z127: 1 | AA127: 1 | AB127: 1 | AC127: 1 | AD127: 1 | AE127: 1 | AF127: 1 | AG127: 1 | AH127: 1 | AI127: 1 | AJ127: 1 | AK127: 1 | AL127: 1 | AM127: 0 | AN127: 1 | AO127: 1 | AP127: 1 | AQ127: 1 | AR127: 1 | AS127: 1 | AT127: 1 | AU127: 1 | AV127: 1 | AW127: 1 | AX127: 1 | AY127: 1 | AZ127: 1 | BA127: 1 | BB127: 1 | BC127: 1 | BD127: 1 | BE127: 1 | BF127: 0 | BG127: 1
A128: NM | B128: Cannock Chase | C128: E3431 | D128: Cannock Chase | E128: =IF(C128=$C$18,1,CHOOSE($E$34,IF(ISERROR(MATCH(C128,OFFSET(DB_NN!$A$19,MATCH($C$18,DB_NN!$A$20:$A$377,0),INDEX($E$61:$E$78,$C$34),1,INDEX($F$61:$F$78,$C$34)),0)),0,1),IF(ISERROR(MATCH(C128,$D$39:$D$58,0)),0,1),INDEX($H128:$U128,1,INDEX($E$61:$E$78,$C$34)),IF(AND(INDEX(H128:U128,INDEX($E$61:$E$78,$C$34))<>"",INDEX(H128:U128,INDEX($E$61:$E$78,$C$34))=VLOOKUP($C$18,$C$83:$U$422,INDEX($E$61:$E$78,$C$34)+5,FALSE)),1,0))) -> 0 | F128: =--(E128<>0)+(E128<>0)*MAX($F$83:F127) -> 0 | H128: 1 | I128: 0 | J128: 1 | K128: 0 | L128: 1 | N128: West Midlands | O128: Staffordshire | P128: 0 | X128: Lower - Housing | Y128: 0 | Z128: 0 | AA128: 0 | AB128: 0 | AC128: 0 | AD128: 0 | AE128: 0 | AF128: 0 | AG128: 0 | AH128: 1 | AI128: 1 | AJ128: 0 | AK128: 1 | AL128: 0 | AM128: 0 | AN128: 0 | AO128: 1 | AP128: 0 | AQ128: 0 | AR128: 1 | AS128: 0 | AT128: 1 | AU128: 0 | AV128: 0 | AW128: 0 | AX128: 0 | AY128: 1 | AZ128: 0 | BA128: 1 | BB128: 1 | BC128: 0 | BD128: 0 | BE128: 1 | BF128: 0 | BG128: 0
A129: NM | B129: Canterbury | C129: E2232 | D129: Canterbury | E129: =IF(C129=$C$18,1,CHOOSE($E$34,IF(ISERROR(MATCH(C129,OFFSET(DB_NN!$A$19,MATCH($C$18,DB_NN!$A$20:$A$377,0),INDEX($E$61:$E$78,$C$34),1,INDEX($F$61:$F$78,$C$34)),0)),0,1),IF(ISERROR(MATCH(C129,$D$39:$D$58,0)),0,1),INDEX($H129:$U129,1,INDEX($E$61:$E$78,$C$34)),IF(AND(INDEX(H129:U129,INDEX($E$61:$E$78,$C$34))<>"",INDEX(H129:U129,INDEX($E$61:$E$78,$C$34))=VLOOKUP($C$18,$C$83:$U$422,INDEX($E$61:$E$78,$C$34)+5,FALSE)),1,0))) -> 0 | F129: =--(E129<>0)+(E129<>0)*MAX($F$83:F128) -> 0 | H129: 1 | I129: 0 | J129: 1 | K129: 0 | L129: 1 | N129: South East | O129: Kent | P129: 0 | X129: Lower - Housing | Y129: 0 | Z129: 0 | AA129: 0 | AB129: 0 | AC129: 0 | AD129: 0 | AE129: 0 | AF129: 0 | AG129: 0 | AH129: 1 | AI129: 1 | AJ129: 0 | AK129: 1 | AL129: 0 | AM129: 0 | AN129: 0 | AO129: 1 | AP129: 0 | AQ129: 0 | AR129: 1 | AS129: 0 | AT129: 1 | AU129: 0 | AV129: 0 | AW129: 0 | AX129: 0 | AY129: 1 | AZ129: 0 | BA129: 1 | BB129: 1 | BC129: 0 | BD129: 0 | BE129: 1 | BF129: 0 | BG129: 0
A130: NM | B130: Carlisle | C130: E0933 | D130: Carlisle | E130: =IF(C130=$C$18,1,CHOOSE($E$34,IF(ISERROR(MATCH(C130,OFFSET(DB_NN!$A$19,MATCH($C$18,DB_NN!$A$20:$A$377,0),INDEX($E$61:$E$78,$C$34),1,INDEX($F$61:$F$78,$C$34)),0)),0,1),IF(ISERROR(MATCH(C130,$D$39:$D$58,0)),0,1),INDEX($H130:$U130,1,INDEX($E$61:$E$78,$C$34)),IF(AND(INDEX(H130:U130,INDEX($E$61:$E$78,$C$34))<>"",INDEX(H130:U130,INDEX($E$61:$E$78,$C$34))=VLOOKUP($C$18,$C$83:$U$422,INDEX($E$61:$E$78,$C$34)+5,FALSE)),1,0))) -> 0 | F130: =--(E130<>0)+(E130<>0)*MAX($F$83:F129) -> 0 | H130: 1 | I130: 0 | J130: 1 | K130: 0 | L130: 1 | N130: North West | O130: Cumbria | P130: 0 | X130: Lower | Y130: 0 | Z130: 0 | AA130: 0 | AB130: 0 | AC130: 0 | AD130: 0 | AE130: 0 | AF130: 0 | AG130: 0 | AH130: 1 | AI130: 1 | AJ130: 0 | AK130: 1 | AL130: 0 | AM130: 0 | AN130: 0 | AO130: 1 | AP130: 0 | AQ130: 0 | AR130: 1 | AS130: 0 | AT130: 1 | AU130: 0 | AV130: 0 | AW130: 0 | AX130: 0 | AY130: 0 | AZ130: 0 | BA130: 1 | BB130: 1 | BC130: 0 | BD130: 0 | BE130: 1 | BF130: 0 | BG130: 0
A131: NM | B131: Castle Point | C131: E1534 | D131: Castle Point | E131: =IF(C131=$C$18,1,CHOOSE($E$34,IF(ISERROR(MATCH(C131,OFFSET(DB_NN!$A$19,MATCH($C$18,DB_NN!$A$20:$A$377,0),INDEX($E$61:$E$78,$C$34),1,INDEX($F$61:$F$78,$C$34)),0)),0,1),IF(ISERROR(MATCH(C131,$D$39:$D$58,0)),0,1),INDEX($H131:$U131,1,INDEX($E$61:$E$78,$C$34)),IF(AND(INDEX(H131:U131,INDEX($E$61:$E$78,$C$34))<>"",INDEX(H131:U131,INDEX($E$61:$E$78,$C$34))=VLOOKUP($C$18,$C$83:$U$422,INDEX($E$61:$E$78,$C$34)+5,FALSE)),1,0))) -> 0 | F131: =--(E131<>0)+(E131<>0)*MAX($F$83:F130) -> 0 | H131: 1 | I131: 0 | J131: 1 | K131: 0 | L131: 1 | N131: Eastern | O131: Essex | P131: 0 | X131: Lower - Housing | Y131: 0 | Z131: 0 | AA131: 0 | AB131: 0 | AC131: 0 | AD131: 0 | AE131: 0 | AF131: 0 | AG131: 0 | AH131: 1 | AI131: 1 | AJ131: 0 | AK131: 1 | AL131: 0 | AM131: 0 | AN131: 0 | AO131: 1 | AP131: 0 | AQ131: 0 | AR131: 1 | AS131: 0 | AT131: 1 | AU131: 0 | AV131: 0 | AW131: 0 | AX131: 0 | AY131: 1 | AZ131: 0 | BA131: 1 | BB131: 1 | BC131: 0 | BD131: 0 | BE131: 1 | BF131: 0 | BG131: 0
A132: U | B132: Central Bedfordshire | C132: E0203 | D132: Central Bedfordshire | E132: =IF(C132=$C$18,1,CHOOSE($E$34,IF(ISERROR(MATCH(C132,OFFSET(DB_NN!$A$19,MATCH($C$18,DB_NN!$A$20:$A$377,0),INDEX($E$61:$E$78,$C$34),1,INDEX($F$61:$F$78,$C$34)),0)),0,1),IF(ISERROR(MATCH(C132,$D$39:$D$58,0)),0,1),INDEX($H132:$U132,1,INDEX($E$61:$E$78,$C$34)),IF(AND(INDEX(H132:U132,INDEX($E$61:$E$78,$C$34))<>"",INDEX(H132:U132,INDEX($E$61:$E$78,$C$34))=VLOOKUP($C$18,$C$83:$U$422,INDEX($E$61:$E$78,$C$34)+5,FALSE)),1,0))) -> 0 | F132: =--(E132<>0)+(E132<>0)*MAX($F$83:F131) -> 0 | H132: 1 | I132: 0 | J132: 0 | K132: 1 | L132: 1 | M132: Eastern | N132: Eastern | P132: 0 | T132: 1 | X132: All - Housing and WD | Y132: 1 | Z132: 1 | AA132: 1 | AB132: 1 | AC132: 1 | AD132: 1 | AE132: 1 | AF132: 1 | AG132: 1 | AH132: 1 | AI132: 1 | AJ132: 1 | AK132: 1 | AL132: 1 | AM132: 0 | AN132: 1 | AO132: 1 | AP132: 1 | AQ132: 1 | AR132: 1 | AS132: 1 | AT132: 1 | AU132: 1 | AV132: 1 | AW132: 1 | AX132: 1 | AY132: 1 | AZ132: 1 | BA132: 1 | BB132: 1 | BC132: 1 | BD132: 1 | BE132: 1 | BF132: 1 | BG132: 1
A133: NM | B133: Charnwood | C133: E2432 | D133: Charnwood | E133: =IF(C133=$C$18,1,CHOOSE($E$34,IF(ISERROR(MATCH(C133,OFFSET(DB_NN!$A$19,MATCH($C$18,DB_NN!$A$20:$A$377,0),INDEX($E$61:$E$78,$C$34),1,INDEX($F$61:$F$78,$C$34)),0)),0,1),IF(ISERROR(MATCH(C133,$D$39:$D$58,0)),0,1),INDEX($H133:$U133,1,INDEX($E$61:$E$78,$C$34)),IF(AND(INDEX(H133:U133,INDEX($E$61:$E$78,$C$34))<>"",INDEX(H133:U133,INDEX($E$61:$E$78,$C$34))=VLOOKUP($C$18,$C$83:$U$422,INDEX($E$61:$E$78,$C$34)+5,FALSE)),1,0))) -> 0 | F133: =--(E133<>0)+(E133<>0)*MAX($F$83:F132) -> 0 | H133: 1 | I133: 0 | J133: 1 | K133: 0 | L133: 1 | N133: East Midlands | O133: Leicestershire | P133: 0 | X133: Lower - Housing | Y133: 0 | Z133: 0 | AA133: 0 | AB133: 0 | AC133: 0 | AD133: 0 | AE133: 0 | AF133: 0 | AG133: 0 | AH133: 1 | AI133: 1 | AJ133: 0 | AK133: 1 | AL133: 0 | AM133: 0 | AN133: 0 | AO133: 1 | AP133: 0 | AQ133: 0 | AR133: 1 | AS133: 0 | AT133: 1 | AU133: 0 | AV133: 0 | AW133: 0 | AX133: 0 | AY133: 1 | AZ133: 0 | BA133: 1 | BB133: 1 | BC133: 0 | BD133: 0 | BE133: 1 | BF133: 0 | BG133: 0
A134: NM | B134: Chelmsford | C134: E1535 | D134: Chelmsford | E134: =IF(C134=$C$18,1,CHOOSE($E$34,IF(ISERROR(MATCH(C134,OFFSET(DB_NN!$A$19,MATCH($C$18,DB_NN!$A$20:$A$377,0),INDEX($E$61:$E$78,$C$34),1,INDEX($F$61:$F$78,$C$34)),0)),0,1),IF(ISERROR(MATCH(C134,$D$39:$D$58,0)),0,1),INDEX($H134:$U134,1,INDEX($E$61:$E$78,$C$34)),IF(AND(INDEX(H134:U134,INDEX($E$61:$E$78,$C$34))<>"",INDEX(H134:U134,INDEX($E$61:$E$78,$C$34))=VLOOKUP($C$18,$C$83:$U$422,INDEX($E$61:$E$78,$C$34)+5,FALSE)),1,0))) -> 0 | F134: =--(E134<>0)+(E134<>0)*MAX($F$83:F133) -> 0 | H134: 1 | I134: 0 | J134: 1 | K134: 0 | L134: 1 | N134: Eastern | O134: Essex | P134: 0 | X134: Lower | Y134: 0 | Z134: 0 | AA134: 0 | AB134: 0 | AC134: 0 | AD134: 0 | AE134: 0 | AF134: 0 | AG134: 0 | AH134: 1 | AI134: 1 | AJ134: 0 | AK134: 1 | AL134: 0 | AM134: 0 | AN134: 0 | AO134: 1 | AP134: 0 | AQ134: 0 | AR134: 1 | AS134: 0 | AT134: 1 | AU134: 0 | AV134: 0 | AW134: 0 | AX134: 0 | AY134: 0 | AZ134: 0 | BA134: 1 | BB134: 1 | BC134: 0 | BD134: 0 | BE134: 1 | BF134: 0 | BG134: 0
A135: NM | B135: Cheltenham | C135: E1631 | D135: Cheltenham | E135: =IF(C135=$C$18,1,CHOOSE($E$34,IF(ISERROR(MATCH(C135,OFFSET(DB_NN!$A$19,MATCH($C$18,DB_NN!$A$20:$A$377,0),INDEX($E$61:$E$78,$C$34),1,INDEX($F$61:$F$78,$C$34)),0)),0,1),IF(ISERROR(MATCH(C135,$D$39:$D$58,0)),0,1),INDEX($H135:$U135,1,INDEX($E$61:$E$78,$C$34)),IF(AND(INDEX(H135:U135,INDEX($E$61:$E$78,$C$34))<>"",INDEX(H135:U135,INDEX($E$61:$E$78,$C$34))=VLOOKUP($C$18,$C$83:$U$422,INDEX($E$61:$E$78,$C$34)+5,FALSE)),1,0))) -> 0 | F135: =--(E135<>0)+(E135<>0)*MAX($F$83:F134) -> 0 | H135: 1 | I135: 0 | J135: 1 | K135: 0 | L135: 1 | N135: South West | O135: Gloucestershire | P135: 0 | X135: Lower - Housing | Y135: 0 | Z135: 0 | AA135: 0 | AB135: 0 | AC135: 0 | AD135: 0 | AE135: 0 | AF135: 0 | AG135: 0 | AH135: 1 | AI135: 1 | AJ135: 0 | AK135: 1 | AL135: 0 | AM135: 0 | AN135: 0 | AO135: 1 | AP135: 0 | AQ135: 0 | AR135: 1 | AS135: 0 | AT135: 1 | AU135: 0 | AV135: 0 | AW135: 0 | AX135: 0 | AY135: 1 | AZ135: 0 | BA135: 1 | BB135: 1 | BC135: 0 | BD135: 0 | BE135: 1 | BF135: 0 | BG135: 0
A136: NM | B136: Cherwell | C136: E3131 | D136: Cherwell | E136: =IF(C136=$C$18,1,CHOOSE($E$34,IF(ISERROR(MATCH(C136,OFFSET(DB_NN!$A$19,MATCH($C$18,DB_NN!$A$20:$A$377,0),INDEX($E$61:$E$78,$C$34),1,INDEX($F$61:$F$78,$C$34)),0)),0,1),IF(ISERROR(MATCH(C136,$D$39:$D$58,0)),0,1),INDEX($H136:$U136,1,INDEX($E$61:$E$78,$C$34)),IF(AND(INDEX(H136:U136,INDEX($E$61:$E$78,$C$34))<>"",INDEX(H136:U136,INDEX($E$61:$E$78,$C$34))=VLOOKUP($C$18,$C$83:$U$422,INDEX($E$61:$E$78,$C$34)+5,FALSE)),1,0))) -> 0 | F136: =--(E136<>0)+(E136<>0)*MAX($F$83:F135) -> 0 | H136: 1 | I136: 0 | J136: 1 | K136: 0 | L136: 1 | N136: South East | O136: Oxfordshire | P136: 0 | X136: Lower | Y136: 0 | Z136: 0 | AA136: 0 | AB136: 0 | AC136: 0 | AD136: 0 | AE136: 0 | AF136: 0 | AG136: 0 | AH136: 1 | AI136: 1 | AJ136: 0 | AK136: 1 | AL136: 0 | AM136: 0 | AN136: 0 | AO136: 1 | AP136: 0 | AQ136: 0 | AR136: 1 | AS136: 0 | AT136: 1 | AU136: 0 | AV136: 0 | AW136: 0 | AX136: 0 | AY136: 0 | AZ136: 0 | BA136: 1 | BB136: 1 | BC136: 0 | BD136: 0 | BE136: 1 | BF136: 0 | BG136: 0
A137: U | B137: Cheshire East | C137: E0603 | D137: Cheshire East | E137: =IF(C137=$C$18,1,CHOOSE($E$34,IF(ISERROR(MATCH(C137,OFFSET(DB_NN!$A$19,MATCH($C$18,DB_NN!$A$20:$A$377,0),INDEX($E$61:$E$78,$C$34),1,INDEX($F$61:$F$78,$C$34)),0)),0,1),IF(ISERROR(MATCH(C137,$D$39:$D$58,0)),0,1),INDEX($H137:$U137,1,INDEX($E$61:$E$78,$C$34)),IF(AND(INDEX(H137:U137,INDEX($E$61:$E$78,$C$34))<>"",INDEX(H137:U137,INDEX($E$61:$E$78,$C$34))=VLOOKUP($C$18,$C$83:$U$422,INDEX($E$61:$E$78,$C$34)+5,FALSE)),1,0))) -> 0 | F137: =--(E137<>0)+(E137<>0)*MAX($F$83:F136) -> 0 | H137: 1 | I137: 0 | J137: 0 | K137: 1 | L137: 1 | M137: North West | N137: North West | P137: 0 | T137: 1 | X137: All - WD | Y137: 1 | Z137: 1 | AA137: 1 | AB137: 1 | AC137: 1 | AD137: 1 | AE137: 1 | AF137: 1 | AG137: 1 | AH137: 1 | AI137: 1 | AJ137: 1 | AK137: 1 | AL137: 1 | AM137: 0 | AN137: 1 | AO137: 1 | AP137: 1 | AQ137: 1 | AR137: 1 | AS137: 1 | AT137: 1 | AU137: 1 | AV137: 1 | AW137: 1 | AX137: 1 | AY137: 0 | AZ137: 1 | BA137: 1 | BB137: 1 | BC137: 1 | BD137: 1 | BE137: 1 | BF137: 1 | BG137: 1
A138: U | B138: Cheshire West and Chester | C138: E0604 | D138: Cheshire West and Chester | E138: =IF(C138=$C$18,1,CHOOSE($E$34,IF(ISERROR(MATCH(C138,OFFSET(DB_NN!$A$19,MATCH($C$18,DB_NN!$A$20:$A$377,0),INDEX($E$61:$E$78,$C$34),1,INDEX($F$61:$F$78,$C$34)),0)),0,1),IF(ISERROR(MATCH(C138,$D$39:$D$58,0)),0,1),INDEX($H138:$U138,1,INDEX($E$61:$E$78,$C$34)),IF(AND(INDEX(H138:U138,INDEX($E$61:$E$78,$C$34))<>"",INDEX(H138:U138,INDEX($E$61:$E$78,$C$34))=VLOOKUP($C$18,$C$83:$U$422,INDEX($E$61:$E$78,$C$34)+5,FALSE)),1,0))) -> 0 | F138: =--(E138<>0)+(E138<>0)*MAX($F$83:F137) -> 0 | H138: 1 | I138: 0 | J138: 0 | K138: 1 | L138: 1 | M138: North West | N138: North West | P138: 0 | T138: 1 | X138: All - Housing and WD | Y138: 1 | Z138: 1 | AA138: 1 | AB138: 1 | AC138: 1 | AD138: 1 | AE138: 1 | AF138: 1 | AG138: 1 | AH138: 1 | AI138: 1 | AJ138: 1 | AK138: 1 | AL138: 1 | AM138: 0 | AN138: 1 | AO138: 1 | AP138: 1 | AQ138: 1 | AR138: 1 | AS138: 1 | AT138: 1 | AU138: 1 | AV138: 1 | AW138: 1 | AX138: 1 | AY138: 1 | AZ138: 1 | BA138: 1 | BB138: 1 | BC138: 1 | BD138: 1 | BE138: 1 | BF138: 1 | BG138: 1
A139: NM | B139: Chesterfield | C139: E1033 | D139: Chesterfield | E139: =IF(C139=$C$18,1,CHOOSE($E$34,IF(ISERROR(MATCH(C139,OFFSET(DB_NN!$A$19,MATCH($C$18,DB_NN!$A$20:$A$377,0),INDEX($E$61:$E$78,$C$34),1,INDEX($F$61:$F$78,$C$34)),0)),0,1),IF(ISERROR(MATCH(C139,$D$39:$D$58,0)),0,1),INDEX($H139:$U139,1,INDEX($E$61:$E$78,$C$34)),IF(AND(INDEX(H139:U139,INDEX($E$61:$E$78,$C$34))<>"",INDEX(H139:U139,INDEX($E$61:$E$78,$C$34))=VLOOKUP($C$18,$C$83:$U$422,INDEX($E$61:$E$78,$C$34)+5,FALSE)),1,0))) -> 0 | F139: =--(E139<>0)+(E139<>0)*MAX($F$83:F138) -> 0 | H139: 1 | I139: 0 | J139: 1 | K139: 0 | L139: 1 | N139: East Midlands | O139: Derbyshire | P139: 0 | X139: Lower - Housing | Y139: 0 | Z139: 0 | AA139: 0 | AB139: 0 | AC139: 0 | AD139: 0 | AE139: 0 | AF139: 0 | AG139: 0 | AH139: 1 | AI139: 1 | AJ139: 0 | AK139: 1 | AL139: 0 | AM139: 0 | AN139: 0 | AO139: 1 | AP139: 0 | AQ139: 0 | AR139: 1 | AS139: 0 | AT139: 1 | AU139: 0 | AV139: 0 | AW139: 0 | AX139: 0 | AY139: 1 | AZ139: 0 | BA139: 1 | BB139: 1 | BC139: 0 | BD139: 0 | BE139: 1 | BF139: 0 | BG139: 0
A140: NM | B140: Chichester | C140: E3833 | D140: Chichester | E140: =IF(C140=$C$18,1,CHOOSE($E$34,IF(ISERROR(MATCH(C140,OFFSET(DB_NN!$A$19,MATCH($C$18,DB_NN!$A$20:$A$377,0),INDEX($E$61:$E$78,$C$34),1,INDEX($F$61:$F$78,$C$34)),0)),0,1),IF(ISERROR(MATCH(C140,$D$39:$D$58,0)),0,1),INDEX($H140:$U140,1,INDEX($E$61:$E$78,$C$34)),IF(AND(INDEX(H140:U140,INDEX($E$61:$E$78,$C$34))<>"",INDEX(H140:U140,INDEX($E$61:$E$78,$C$34))=VLOOKUP($C$18,$C$83:$U$422,INDEX($E$61:$E$78,$C$34)+5,FALSE)),1,0))) -> 0 | F140: =--(E140<>0)+(E140<>0)*MAX($F$83:F139) -> 0 | H140: 1 | I140: 0 | J140: 1 | K140: 0 | L140: 1 | N140: South East | O140: West Sussex | P140: 0 | X140: Lower | Y140: 0 | Z140: 0 | AA140: 0 | AB140: 0 | AC140: 0 | AD140: 0 | AE140: 0 | AF140: 0 | AG140: 0 | AH140: 1 | AI140: 1 | AJ140: 0 | AK140: 1 | AL140: 0 | AM140: 0 | AN140: 0 | AO140: 1 | AP140: 0 | AQ140: 0 | AR140: 1 | AS140: 0 | AT140: 1 | AU140: 0 | AV140: 0 | AW140: 0 | AX140: 0 | AY140: 0 | AZ140: 0 | BA140: 1 | BB140: 1 | BC140: 0 | BD140: 0 | BE140: 1 | BF140: 0 | BG140: 0
A141: NM | B141: Chorley | C141: E2334 | D141: Chorley | E141: =IF(C141=$C$18,1,CHOOSE($E$34,IF(ISERROR(MATCH(C141,OFFSET(DB_NN!$A$19,MATCH($C$18,DB_NN!$A$20:$A$377,0),INDEX($E$61:$E$78,$C$34),1,INDEX($F$61:$F$78,$C$34)),0)),0,1),IF(ISERROR(MATCH(C141,$D$39:$D$58,0)),0,1),INDEX($H141:$U141,1,INDEX($E$61:$E$78,$C$34)),IF(AND(INDEX(H141:U141,INDEX($E$61:$E$78,$C$34))<>"",INDEX(H141:U141,INDEX($E$61:$E$78,$C$34))=VLOOKUP($C$18,$C$83:$U$422,INDEX($E$61:$E$78,$C$34)+5,FALSE)),1,0))) -> 0 | F141: =--(E141<>0)+(E141<>0)*MAX($F$83:F140) -> 0 | H141: 1 | I141: 0 | J141: 1 | K141: 0 | L141: 1 | N141: North West | O141: Lancashire | P141: 0 | X141: Lower | Y141: 0 | Z141: 0 | AA141: 0 | AB141: 0 | AC141: 0 | AD141: 0 | AE141: 0 | AF141: 0 | AG141: 0 | AH141: 1 | AI141: 1 | AJ141: 0 | AK141: 1 | AL141: 0 | AM141: 0 | AN141: 0 | AO141: 1 | AP141: 0 | AQ141: 0 | AR141: 1 | AS141: 0 | AT141: 1 | AU141: 0 | AV141: 0 | AW141: 0 | AX141: 0 | AY141: 0 | AZ141: 0 | BA141: 1 | BB141: 1 | BC141: 0 | BD141: 0 | BE141: 1 | BF141: 0 | BG141: 0
A142: IL | B142: City of London | C142: E5010 | D142: City of London | E142: =IF(C142=$C$18,1,CHOOSE($E$34,IF(ISERROR(MATCH(C142,OFFSET(DB_NN!$A$19,MATCH($C$18,DB_NN!$A$20:$A$377,0),INDEX($E$61:$E$78,$C$34),1,INDEX($F$61:$F$78,$C$34)),0)),0,1),IF(ISERROR(MATCH(C142,$D$39:$D$58,0)),0,1),INDEX($H142:$U142,1,INDEX($E$61:$E$78,$C$34)),IF(AND(INDEX(H142:U142,INDEX($E$61:$E$78,$C$34))<>"",INDEX(H142:U142,INDEX($E$61:$E$78,$C$34))=VLOOKUP($C$18,$C$83:$U$422,INDEX($E$61:$E$78,$C$34)+5,FALSE)),1,0))) -> 0 | F142: =--(E142<>0)+(E142<>0)*MAX($F$83:F141) -> 0 | H142: 1 | I142: 0 | J142: 0 | K142: 1 | L142: 1 | M142: London | N142: London | P142: 1 | Q142: Inner London | X142: All | Y142: 1 | Z142: 1 | AA142: 1 | AB142: 1 | AC142: 1 | AD142: 1 | AE142: 1 | AF142: 1 | AG142: 1 | AH142: 1 | AI142: 1 | AJ142: 1 | AK142: 1 | AL142: 1 | AM142: 0 | AN142: 1 | AO142: 1 | AP142: 1 | AQ142: 1 | AR142: 1 | AS142: 1 | AT142: 1 | AU142: 1 | AV142: 1 | AW142: 1 | AX142: 1 | AY142: 1 | AZ142: 1 | BA142: 1 | BB142: 1 | BC142: 1 | BD142: 1 | BE142: 1 | BF142: 1 | BG142: 1
A143: NM | B143: Colchester | C143: E1536 | D143: Colchester | E143: =IF(C143=$C$18,1,CHOOSE($E$34,IF(ISERROR(MATCH(C143,OFFSET(DB_NN!$A$19,MATCH($C$18,DB_NN!$A$20:$A$377,0),INDEX($E$61:$E$78,$C$34),1,INDEX($F$61:$F$78,$C$34)),0)),0,1),IF(ISERROR(MATCH(C143,$D$39:$D$58,0)),0,1),INDEX($H143:$U143,1,INDEX($E$61:$E$78,$C$34)),IF(AND(INDEX(H143:U143,INDEX($E$61:$E$78,$C$34))<>"",INDEX(H143:U143,INDEX($E$61:$E$78,$C$34))=VLOOKUP($C$18,$C$83:$U$422,INDEX($E$61:$E$78,$C$34)+5,FALSE)),1,0))) -> 0 | F143: =--(E143<>0)+(E143<>0)*MAX($F$83:F142) -> 0 | H143: 1 | I143: 0 | J143: 1 | K143: 0 | L143: 1 | N143: Eastern | O143: Essex | P143: 0 | X143: Lower - Housing | Y143: 0 | Z143: 0 | AA143: 0 | AB143: 0 | AC143: 0 | AD143: 0 | AE143: 0 | AF143: 0 | AG143: 0 | AH143: 1 | AI143: 1 | AJ143: 0 | AK143: 1 | AL143: 0 | AM143: 0 | AN143: 0 | AO143: 1 | AP143: 0 | AQ143: 0 | AR143: 1 | AS143: 0 | AT143: 1 | AU143: 0 | AV143: 0 | AW143: 0 | AX143: 0 | AY143: 1 | AZ143: 0 | BA143: 1 | BB143: 1 | BC143: 0 | BD143: 0 | BE143: 1 | BF143: 0 | BG143: 0
A144: NM | B144: Copeland | C144: E0934 | D144: Copeland | E144: =IF(C144=$C$18,1,CHOOSE($E$34,IF(ISERROR(MATCH(C144,OFFSET(DB_NN!$A$19,MATCH($C$18,DB_NN!$A$20:$A$377,0),INDEX($E$61:$E$78,$C$34),1,INDEX($F$61:$F$78,$C$34)),0)),0,1),IF(ISERROR(MATCH(C144,$D$39:$D$58,0)),0,1),INDEX($H144:$U144,1,INDEX($E$61:$E$78,$C$34)),IF(AND(INDEX(H144:U144,INDEX($E$61:$E$78,$C$34))<>"",INDEX(H144:U144,INDEX($E$61:$E$78,$C$34))=VLOOKUP($C$18,$C$83:$U$422,INDEX($E$61:$E$78,$C$34)+5,FALSE)),1,0))) -> 0 | F144: =--(E144<>0)+(E144<>0)*MAX($F$83:F143) -> 0 | H144: 1 | I144: 0 | J144: 1 | K144: 0 | L144: 1 | N144: North West | O144: Cumbria | P144: 0 | X144: Lower | Y144: 0 | Z144: 0 | AA144: 0 | AB144: 0 | AC144: 0 | AD144: 0 | AE144: 0 | AF144: 0 | AG144: 0 | AH144: 1 | AI144: 1 | AJ144: 0 | AK144: 1 | AL144: 0 | AM144: 0 | AN144: 0 | AO144: 1 | AP144: 0 | AQ144: 0 | AR144: 1 | AS144: 0 | AT144: 1 | AU144: 0 | AV144: 0 | AW144: 0 | AX144: 0 | AY144: 0 | AZ144: 0 | BA144: 1 | BB144: 1 | BC144: 0 | BD144: 0 | BE144: 1 | BF144: 0 | BG144: 0
A145: NM | B145: Corby | C145: E2831 | D145: Corby | E145: =IF(C145=$C$18,1,CHOOSE($E$34,IF(ISERROR(MATCH(C145,OFFSET(DB_NN!$A$19,MATCH($C$18,DB_NN!$A$20:$A$377,0),INDEX($E$61:$E$78,$C$34),1,INDEX($F$61:$F$78,$C$34)),0)),0,1),IF(ISERROR(MATCH(C145,$D$39:$D$58,0)),0,1),INDEX($H145:$U145,1,INDEX($E$61:$E$78,$C$34)),IF(AND(INDEX(H145:U145,INDEX($E$61:$E$78,$C$34))<>"",INDEX(H145:U145,INDEX($E$61:$E$78,$C$34))=VLOOKUP($C$18,$C$83:$U$422,INDEX($E$61:$E$78,$C$34)+5,FALSE)),1,0))) -> 0 | F145: =--(E145<>0)+(E145<>0)*MAX($F$83:F144) -> 0 | H145: 1 | I145: 0 | J145: 1 | K145: 0 | L145: 1 | N145: East Midlands | O145: Northamptonshire | P145: 0 | X145: Lower - Housing | Y145: 0 | Z145: 0 | AA145: 0 | AB145: 0 | AC145: 0 | AD145: 0 | AE145: 0 | AF145: 0 | AG145: 0 | AH145: 1 | AI145: 1 | AJ145: 0 | AK145: 1 | AL145: 0 | AM145: 0 | AN145: 0 | AO145: 1 | AP145: 0 | AQ145: 0 | AR145: 1 | AS145: 0 | AT145: 1 | AU145: 0 | AV145: 0 | AW145: 0 | AX145: 0 | AY145: 1 | AZ145: 0 | BA145: 1 | BB145: 1 | BC145: 0 | BD145: 0 | BE145: 1 | BF145: 0 | BG145: 0
A146: U | B146: Cornwall | C146: E0801 | D146: Cornwall | E146: =IF(C146=$C$18,1,CHOOSE($E$34,IF(ISERROR(MATCH(C146,OFFSET(DB_NN!$A$19,MATCH($C$18,DB_NN!$A$20:$A$377,0),INDEX($E$61:$E$78,$C$34),1,INDEX($F$61:$F$78,$C$34)),0)),0,1),IF(ISERROR(MATCH(C146,$D$39:$D$58,0)),0,1),INDEX($H146:$U146,1,INDEX($E$61:$E$78,$C$34)),IF(AND(INDEX(H146:U146,INDEX($E$61:$E$78,$C$34))<>"",INDEX(H146:U146,INDEX($E$61:$E$78,$C$34))=VLOOKUP($C$18,$C$83:$U$422,INDEX($E$61:$E$78,$C$34)+5,FALSE)),1,0))) -> 0 | F146: =--(E146<>0)+(E146<>0)*MAX($F$83:F145) -> 0 | H146: 1 | I146: 0 | J146: 0 | K146: 1 | L146: 1 | M146: South East | N146: South East | P146: 0 | T146: 1 | U146: 1 | X146: All - Housing and Fire and WD | Y146: 1 | Z146: 1 | AA146: 1 | AB146: 1 | AC146: 1 | AD146: 1 | AE146: 1 | AF146: 1 | AG146: 1 | AH146: 1 | AI146: 1 | AJ146: 1 | AK146: 1 | AL146: 1 | AM146: 1 | AN146: 1 | AO146: 1 | AP146: 1 | AQ146: 1 | AR146: 1 | AS146: 1 | AT146: 1 | AU146: 1 | AV146: 1 | AW146: 1 | AX146: 1 | AY146: 1 | AZ146: 1 | BA146: 1 | BB146: 1 | BC146: 1 | BD146: 1 | BE146: 1 | BF146: 1 | BG146: 1
A147: NM | B147: Cotswold | C147: E1632 | D147: Cotswold | E147: =IF(C147=$C$18,1,CHOOSE($E$34,IF(ISERROR(MATCH(C147,OFFSET(DB_NN!$A$19,MATCH($C$18,DB_NN!$A$20:$A$377,0),INDEX($E$61:$E$78,$C$34),1,INDEX($F$61:$F$78,$C$34)),0)),0,1),IF(ISERROR(MATCH(C147,$D$39:$D$58,0)),0,1),INDEX($H147:$U147,1,INDEX($E$61:$E$78,$C$34)),IF(AND(INDEX(H147:U147,INDEX($E$61:$E$78,$C$34))<>"",INDEX(H147:U147,INDEX($E$61:$E$78,$C$34))=VLOOKUP($C$18,$C$83:$U$422,INDEX($E$61:$E$78,$C$34)+5,FALSE)),1,0))) -> 0 | F147: =--(E147<>0)+(E147<>0)*MAX($F$83:F146) -> 0 | H147: 1 | I147: 0 | J147: 1 | K147: 0 | L147: 1 | N147: South West | O147: Gloucestershire | P147: 0 | X147: Lower | Y147: 0 | Z147: 0 | AA147: 0 | AB147: 0 | AC147: 0 | AD147: 0 | AE147: 0 | AF147: 0 | AG147: 0 | AH147: 1 | AI147: 1 | AJ147: 0 | AK147: 1 | AL147: 0 | AM147: 0 | AN147: 0 | AO147: 1 | AP147: 0 | AQ147: 0 | AR147: 1 | AS147: 0 | AT147: 1 | AU147: 0 | AV147: 0 | AW147: 0 | AX147: 0 | AY147: 0 | AZ147: 0 | BA147: 1 | BB147: 1 | BC147: 0 | BD147: 0 | BE147: 1 | BF147: 0 | BG147: 0
A148: M | B148: Coventry | C148: E4602 | D148: Coventry | E148: =IF(C148=$C$18,1,CHOOSE($E$34,IF(ISERROR(MATCH(C148,OFFSET(DB_NN!$A$19,MATCH($C$18,DB_NN!$A$20:$A$377,0),INDEX($E$61:$E$78,$C$34),1,INDEX($F$61:$F$78,$C$34)),0)),0,1),IF(ISERROR(MATCH(C148,$D$39:$D$58,0)),0,1),INDEX($H148:$U148,1,INDEX($E$61:$E$78,$C$34)),IF(AND(INDEX(H148:U148,INDEX($E$61:$E$78,$C$34))<>"",INDEX(H148:U148,INDEX($E$61:$E$78,$C$34))=VLOOKUP($C$18,$C$83:$U$422,INDEX($E$61:$E$78,$C$34)+5,FALSE)),1,0))) -> 0 | F148: =--(E148<>0)+(E148<>0)*MAX($F$83:F147) -> 0 | H148: 1 | I148: 0 | J148: 0 | K148: 1 | L148: 1 | M148: West Midlands | N148: West Midlands | P148: 0 | S148: 1 | X148: All - WD | Y148: 1 | Z148: 1 | AA148: 1 | AB148: 1 | AC148: 1 | AD148: 1 | AE148: 1 | AF148: 1 | AG148: 1 | AH148: 1 | AI148: 1 | AJ148: 1 | AK148: 1 | AL148: 1 | AM148: 0 | AN148: 1 | AO148: 1 | AP148: 1 | AQ148: 1 | AR148: 1 | AS148: 1 | AT148: 1 | AU148: 1 | AV148: 1 | AW148: 1 | AX148: 1 | AY148: 0 | AZ148: 1 | BA148: 1 | BB148: 1 | BC148: 1 | BD148: 1 | BE148: 1 | BF148: 1 | BG148: 1
A149: NM | B149: Craven | C149: E2731 | D149: Craven | E149: =IF(C149=$C$18,1,CHOOSE($E$34,IF(ISERROR(MATCH(C149,OFFSET(DB_NN!$A$19,MATCH($C$18,DB_NN!$A$20:$A$377,0),INDEX($E$61:$E$78,$C$34),1,INDEX($F$61:$F$78,$C$34)),0)),0,1),IF(ISERROR(MATCH(C149,$D$39:$D$58,0)),0,1),INDEX($H149:$U149,1,INDEX($E$61:$E$78,$C$34)),IF(AND(INDEX(H149:U149,INDEX($E$61:$E$78,$C$34))<>"",INDEX(H149:U149,INDEX($E$61:$E$78,$C$34))=VLOOKUP($C$18,$C$83:$U$422,INDEX($E$61:$E$78,$C$34)+5,FALSE)),1,0))) -> 0 | F149: =--(E149<>0)+(E149<>0)*MAX($F$83:F148) -> 0 | H149: 1 | I149: 0 | J149: 1 | K149: 0 | L149: 1 | N149: Yorkshire & Humber | O149: North Yorkshire | P149: 0 | X149: Lower | Y149: 0 | Z149: 0 | AA149: 0 | AB149: 0 | AC149: 0 | AD149: 0 | AE149: 0 | AF149: 0 | AG149: 0 | AH149: 1 | AI149: 1 | AJ149: 0 | AK149: 1 | AL149: 0 | AM149: 0 | AN149: 0 | AO149: 1 | AP149: 0 | AQ149: 0 | AR149: 1 | AS149: 0 | AT149: 1 | AU149: 0 | AV149: 0 | AW149: 0 | AX149: 0 | AY149: 0 | AZ149: 0 | BA149: 1 | BB149: 1 | BC149: 0 | BD149: 0 | BE149: 1 | BF149: 0 | BG149: 0
A150: NM | B150: Crawley | C150: E3834 | D150: Crawley | E150: =IF(C150=$C$18,1,CHOOSE($E$34,IF(ISERROR(MATCH(C150,OFFSET(DB_NN!$A$19,MATCH($C$18,DB_NN!$A$20:$A$377,0),INDEX($E$61:$E$78,$C$34),1,INDEX($F$61:$F$78,$C$34)),0)),0,1),IF(ISERROR(MATCH(C150,$D$39:$D$58,0)),0,1),INDEX($H150:$U150,1,INDEX($E$61:$E$78,$C$34)),IF(AND(INDEX(H150:U150,INDEX($E$61:$E$78,$C$34))<>"",INDEX(H150:U150,INDEX($E$61:$E$78,$C$34))=VLOOKUP($C$18,$C$83:$U$422,INDEX($E$61:$E$78,$C$34)+5,FALSE)),1,0))) -> 0 | F150: =--(E150<>0)+(E150<>0)*MAX($F$83:F149) -> 0 | H150: 1 | I150: 0 | J150: 1 | K150: 0 | L150: 1 | N150: South East | O150: West Sussex | P150: 0 | X150: Lower - Housing | Y150: 0 | Z150: 0 | AA150: 0 | AB150: 0 | AC150: 0 | AD150: 0 | AE150: 0 | AF150: 0 | AG150: 0 | AH150: 1 | AI150: 1 | AJ150: 0 | AK150: 1 | AL150: 0 | AM150: 0 | AN150: 0 | AO150: 1 | AP150: 0 | AQ150: 0 | AR150: 1 | AS150: 0 | AT150: 1 | AU150: 0 | AV150: 0 | AW150: 0 | AX150: 0 | AY150: 1 | AZ150: 0 | BA150: 1 | BB150: 1 | BC150: 0 | BD150: 0 | BE150: 1 | BF150: 0 | BG150: 0
A151: OL | B151: Croydon | C151: E5035 | D151: Croydon | E151: =IF(C151=$C$18,1,CHOOSE($E$34,IF(ISERROR(MATCH(C151,OFFSET(DB_NN!$A$19,MATCH($C$18,DB_NN!$A$20:$A$377,0),INDEX($E$61:$E$78,$C$34),1,INDEX($F$61:$F$78,$C$34)),0)),0,1),IF(ISERROR(MATCH(C151,$D$39:$D$58,0)),0,1),INDEX($H151:$U151,1,INDEX($E$61:$E$78,$C$34)),IF(AND(INDEX(H151:U151,INDEX($E$61:$E$78,$C$34))<>"",INDEX(H151:U151,INDEX($E$61:$E$78,$C$34))=VLOOKUP($C$18,$C$83:$U$422,INDEX($E$61:$E$78,$C$34)+5,FALSE)),1,0))) -> 0 | F151: =--(E151<>0)+(E151<>0)*MAX($F$83:F150) -> 0 | H151: 1 | I151: 0 | J151: 0 | K151: 1 | L151: 1 | M151: London | N151: London | P151: 1 | Q151: Outer London | X151: All - Housing and WD | Y151: 1 | Z151: 1 | AA151: 1 | AB151: 1 | AC151: 1 | AD151: 1 | AE151: 1 | AF151: 1 | AG151: 1 | AH151: 1 | AI151: 1 | AJ151: 1 | AK151: 1 | AL151: 1 | AM151: 0 | AN151: 1 | AO151: 1 | AP151: 1 | AQ151: 1 | AR151: 1 | AS151: 1 | AT151: 1 | AU151: 1 | AV151: 1 | AW151: 1 | AX151: 1 | AY151: 1 | AZ151: 1 | BA151: 1 | BB151: 1 | BC151: 1 | BD151: 1 | BE151: 1 | BF151: 1 | BG151: 1
A152: C | B152: Cumbria | C152: E0920 | D152: Cumbria | E152: =IF(C152=$C$18,1,CHOOSE($E$34,IF(ISERROR(MATCH(C152,OFFSET(DB_NN!$A$19,MATCH($C$18,DB_NN!$A$20:$A$377,0),INDEX($E$61:$E$78,$C$34),1,INDEX($F$61:$F$78,$C$34)),0)),0,1),IF(ISERROR(MATCH(C152,$D$39:$D$58,0)),0,1),INDEX($H152:$U152,1,INDEX($E$61:$E$78,$C$34)),IF(AND(INDEX(H152:U152,INDEX($E$61:$E$78,$C$34))<>"",INDEX(H152:U152,INDEX($E$61:$E$78,$C$34))=VLOOKUP($C$18,$C$83:$U$422,INDEX($E$61:$E$78,$C$34)+5,FALSE)),1,0))) -> 0 | F152: =--(E152<>0)+(E152<>0)*MAX($F$83:F151) -> 0 | H152: 1 | I152: 1 | J152: 0 | K152: 1 | L152: 0 | M152: North West | P152: 0 | U152: 1 | X152: Upper - Fire | Y152: 1 | Z152: 1 | AA152: 1 | AB152: 1 | AC152: 1 | AD152: 1 | AE152: 1 | AF152: 1 | AG152: 1 | AH152: 0 | AI152: 0 | AJ152: 1 | AK152: 0 | AL152: 1 | AM152: 1 | AN152: 1 | AO152: 0 | AP152: 1 | AQ152: 1 | AR152: 0 | AS152: 1 | AT152: 0 | AU152: 1 | AV152: 1 | AW152: 1 | AX152: 1 | AY152: 0 | AZ152: 1 | BA152: 0 | BB152: 0 | BC152: 1 | BD152: 1 | BE152: 0 | BF152: 1 | BG152: 1
A153: NM | B153: Dacorum | C153: E1932 | D153: Dacorum | E153: =IF(C153=$C$18,1,CHOOSE($E$34,IF(ISERROR(MATCH(C153,OFFSET(DB_NN!$A$19,MATCH($C$18,DB_NN!$A$20:$A$377,0),INDEX($E$61:$E$78,$C$34),1,INDEX($F$61:$F$78,$C$34)),0)),0,1),IF(ISERROR(MATCH(C153,$D$39:$D$58,0)),0,1),INDEX($H153:$U153,1,INDEX($E$61:$E$78,$C$34)),IF(AND(INDEX(H153:U153,INDEX($E$61:$E$78,$C$34))<>"",INDEX(H153:U153,INDEX($E$61:$E$78,$C$34))=VLOOKUP($C$18,$C$83:$U$422,INDEX($E$61:$E$78,$C$34)+5,FALSE)),1,0))) -> 0 | F153: =--(E153<>0)+(E153<>0)*MAX($F$83:F152) -> 0 | H153: 1 | I153: 0 | J153: 1 | K153: 0 | L153: 1 | N153: Eastern | O153: Hertfordshire | P153: 0 | X153: Lower - Housing | Y153: 0 | Z153: 0 | AA153: 0 | AB153: 0 | AC153: 0 | AD153: 0 | AE153: 0 | AF153: 0 | AG153: 0 | AH153: 1 | AI153: 1 | AJ153: 0 | AK153: 1 | AL153: 0 | AM153: 0 | AN153: 0 | AO153: 1 | AP153: 0 | AQ153: 0 | AR153: 1 | AS153: 0 | AT153: 1 | AU153: 0 | AV153: 0 | AW153: 0 | AX153: 0 | AY153: 1 | AZ153: 0 | BA153: 1 | BB153: 1 | BC153: 0 | BD153: 0 | BE153: 1 | BF153: 0 | BG153: 0
A154: U | B154: Darlington | C154: E1301 | D154: Darlington | E154: =IF(C154=$C$18,1,CHOOSE($E$34,IF(ISERROR(MATCH(C154,OFFSET(DB_NN!$A$19,MATCH($C$18,DB_NN!$A$20:$A$377,0),INDEX($E$61:$E$78,$C$34),1,INDEX($F$61:$F$78,$C$34)),0)),0,1),IF(ISERROR(MATCH(C154,$D$39:$D$58,0)),0,1),INDEX($H154:$U154,1,INDEX($E$61:$E$78,$C$34)),IF(AND(INDEX(H154:U154,INDEX($E$61:$E$78,$C$34))<>"",INDEX(H154:U154,INDEX($E$61:$E$78,$C$34))=VLOOKUP($C$18,$C$83:$U$422,INDEX($E$61:$E$78,$C$34)+5,FALSE)),1,0))) -> 0 | F154: =--(E154<>0)+(E154<>0)*MAX($F$83:F153) -> 0 | H154: 1 | I154: 0 | J154: 0 | K154: 1 | L154: 1 | M154: North East | N154: North East | P154: 0 | T154: 1 | X154: All - Housing and WD | Y154: 1 | Z154: 1 | AA154: 1 | AB154: 1 | AC154: 1 | AD154: 1 | AE154: 1 | AF154: 1 | AG154: 1 | AH154: 1 | AI154: 1 | AJ154: 1 | AK154: 1 | AL154: 1 | AM154: 0 | AN154: 1 | AO154: 1 | AP154: 1 | AQ154: 1 | AR154: 1 | AS154: 1 | AT154: 1 | AU154: 1 | AV154: 1 | AW154: 1 | AX154: 1 | AY154: 1 | AZ154: 1 | BA154: 1 | BB154: 1 | BC154: 1 | BD154: 1 | BE154: 1 | BF154: 1 | BG154: 1
A155: NM | B155: Dartford | C155: E2233 | D155: Dartford | E155: =IF(C155=$C$18,1,CHOOSE($E$34,IF(ISERROR(MATCH(C155,OFFSET(DB_NN!$A$19,MATCH($C$18,DB_NN!$A$20:$A$377,0),INDEX($E$61:$E$78,$C$34),1,INDEX($F$61:$F$78,$C$34)),0)),0,1),IF(ISERROR(MATCH(C155,$D$39:$D$58,0)),0,1),INDEX($H155:$U155,1,INDEX($E$61:$E$78,$C$34)),IF(AND(INDEX(H155:U155,INDEX($E$61:$E$78,$C$34))<>"",INDEX(H155:U155,INDEX($E$61:$E$78,$C$34))=VLOOKUP($C$18,$C$83:$U$422,INDEX($E$61:$E$78,$C$34)+5,FALSE)),1,0))) -> 0 | F155: =--(E155<>0)+(E155<>0)*MAX($F$83:F154) -> 0 | H155: 1 | I155: 0 | J155: 1 | K155: 0 | L155: 1 | N155: South East | O155: Kent | P155: 0 | X155: Lower - Housing | Y155: 0 | Z155: 0 | AA155: 0 | AB155: 0 | AC155: 0 | AD155: 0 | AE155: 0 | AF155: 0 | AG155: 0 | AH155: 1 | AI155: 1 | AJ155: 0 | AK155: 1 | AL155: 0 | AM155: 0 | AN155: 0 | AO155: 1 | AP155: 0 | AQ155: 0 | AR155: 1 | AS155: 0 | AT155: 1 | AU155: 0 | AV155: 0 | AW155: 0 | AX155: 0 | AY155: 1 | AZ155: 0 | BA155: 1 | BB155: 1 | BC155: 0 | BD155: 0 | BE155: 1 | BF155: 0 | BG155: 0
A156: NM | B156: Daventry | C156: E2832 | D156: Daventry | E156: =IF(C156=$C$18,1,CHOOSE($E$34,IF(ISERROR(MATCH(C156,OFFSET(DB_NN!$A$19,MATCH($C$18,DB_NN!$A$20:$A$377,0),INDEX($E$61:$E$78,$C$34),1,INDEX($F$61:$F$78,$C$34)),0)),0,1),IF(ISERROR(MATCH(C156,$D$39:$D$58,0)),0,1),INDEX($H156:$U156,1,INDEX($E$61:$E$78,$C$34)),IF(AND(INDEX(H156:U156,INDEX($E$61:$E$78,$C$34))<>"",INDEX(H156:U156,INDEX($E$61:$E$78,$C$34))=VLOOKUP($C$18,$C$83:$U$422,INDEX($E$61:$E$78,$C$34)+5,FALSE)),1,0))) -> 0 | F156: =--(E156<>0)+(E156<>0)*MAX($F$83:F155) -> 0 | H156: 1 | I156: 0 | J156: 1 | K156: 0 | L156: 1 | N156: East Midlands | O156: Northamptonshire | P156: 0 | X156: Lower | Y156: 0 | Z156: 0 | AA156: 0 | AB156: 0 | AC156: 0 | AD156: 0 | AE156: 0 | AF156: 0 | AG156: 0 | AH156: 1 | AI156: 1 | AJ156: 0 | AK156: 1 | AL156: 0 | AM156: 0 | AN156: 0 | AO156: 1 | AP156: 0 | AQ156: 0 | AR156: 1 | AS156: 0 | AT156: 1 | AU156: 0 | AV156: 0 | AW156: 0 | AX156: 0 | AY156: 0 | AZ156: 0 | BA156: 1 | BB156: 1 | BC156: 0 | BD156: 0 | BE156: 1 | BF156: 0 | BG156: 0
A157: U | B157: Derby | C157: E1001 | D157: Derby | E157: =IF(C157=$C$18,1,CHOOSE($E$34,IF(ISERROR(MATCH(C157,OFFSET(DB_NN!$A$19,MATCH($C$18,DB_NN!$A$20:$A$377,0),INDEX($E$61:$E$78,$C$34),1,INDEX($F$61:$F$78,$C$34)),0)),0,1),IF(ISERROR(MATCH(C157,$D$39:$D$58,0)),0,1),INDEX($H157:$U157,1,INDEX($E$61:$E$78,$C$34)),IF(AND(INDEX(H157:U157,INDEX($E$61:$E$78,$C$34))<>"",INDEX(H157:U157,INDEX($E$61:$E$78,$C$34))=VLOOKUP($C$18,$C$83:$U$422,INDEX($E$61:$E$78,$C$34)+5,FALSE)),1,0))) -> 0 | F157: =--(E157<>0)+(E157<>0)*MAX($F$83:F156) -> 0 | H157: 1 | I157: 0 | J157: 0 | K157: 1 | L157: 1 | M157: East Midlands | N157: East Midlands | P157: 0 | T157: 1 | X157: All - Housing and WD | Y157: 1 | Z157: 1 | AA157: 1 | AB157: 1 | AC157: 1 | AD157: 1 | AE157: 1 | AF157: 1 | AG157: 1 | AH157: 1 | AI157: 1 | AJ157: 1 | AK157: 1 | AL157: 1 | AM157: 0 | AN157: 1 | AO157: 1 | AP157: 1 | AQ157: 1 | AR157: 1 | AS157: 1 | AT157: 1 | AU157: 1 | AV157: 1 | AW157: 1 | AX157: 1 | AY157: 1 | AZ157: 1 | BA157: 1 | BB157: 1 | BC157: 1 | BD157: 1 | BE157: 1 | BF157: 1 | BG157: 1
A158: C | B158: Derbyshire | C158: E1021 | D158: Derbyshire | E158: =IF(C158=$C$18,1,CHOOSE($E$34,IF(ISERROR(MATCH(C158,OFFSET(DB_NN!$A$19,MATCH($C$18,DB_NN!$A$20:$A$377,0),INDEX($E$61:$E$78,$C$34),1,INDEX($F$61:$F$78,$C$34)),0)),0,1),IF(ISERROR(MATCH(C158,$D$39:$D$58,0)),0,1),INDEX($H158:$U158,1,INDEX($E$61:$E$78,$C$34)),IF(AND(INDEX(H158:U158,INDEX($E$61:$E$78,$C$34))<>"",INDEX(H158:U158,INDEX($E$61:$E$78,$C$34))=VLOOKUP($C$18,$C$83:$U$422,INDEX($E$61:$E$78,$C$34)+5,FALSE)),1,0))) -> 0 | F158: =--(E158<>0)+(E158<>0)*MAX($F$83:F157) -> 0 | H158: 1 | I158: 1 | J158: 0 | K158: 1 | L158: 0 | M158: East Midlands | P158: 0 | X158: Upper | Y158: 1 | Z158: 1 | AA158: 1 | AB158: 1 | AC158: 1 | AD158: 1 | AE158: 1 | AF158: 1 | AG158: 1 | AH158: 0 | AI158: 0 | AJ158: 1 | AK158: 1 | AL158: 1 | AM158: 0 | AN158: 1 | AO158: 0 | AP158: 1 | AQ158: 1 | AR158: 0 | AS158: 1 | AT158: 0 | AU158: 1 | AV158: 1 | AW158: 1 | AX158: 1 | AY158: 0 | AZ158: 1 | BA158: 0 | BB158: 0 | BC158: 1 | BD158: 1 | BE158: 0 | BF158: 1 | BG158: 1
A159: NM | B159: Derbyshire Dales | C159: E1035 | D159: Derbyshire Dales | E159: =IF(C159=$C$18,1,CHOOSE($E$34,IF(ISERROR(MATCH(C159,OFFSET(DB_NN!$A$19,MATCH($C$18,DB_NN!$A$20:$A$377,0),INDEX($E$61:$E$78,$C$34),1,INDEX($F$61:$F$78,$C$34)),0)),0,1),IF(ISERROR(MATCH(C159,$D$39:$D$58,0)),0,1),INDEX($H159:$U159,1,INDEX($E$61:$E$78,$C$34)),IF(AND(INDEX(H159:U159,INDEX($E$61:$E$78,$C$34))<>"",INDEX(H159:U159,INDEX($E$61:$E$78,$C$34))=VLOOKUP($C$18,$C$83:$U$422,INDEX($E$61:$E$78,$C$34)+5,FALSE)),1,0))) -> 0 | F159: =--(E159<>0)+(E159<>0)*MAX($F$83:F158) -> 0 | H159: 1 | I159: 0 | J159: 1 | K159: 0 | L159: 1 | N159: East Midlands | O159: Derbyshire | P159: 0 | X159: Lower | Y159: 0 | Z159: 0 | AA159: 0 | AB159: 0 | AC159: 0 | AD159: 0 | AE159: 0 | AF159: 0 | AG159: 0 | AH159: 1 | AI159: 1 | AJ159: 0 | AK159: 1 | AL159: 0 | AM159: 0 | AN159: 0 | AO159: 1 | AP159: 0 | AQ159: 0 | AR159: 1 | AS159: 0 | AT159: 1 | AU159: 0 | AV159: 0 | AW159: 0 | AX159: 0 | AY159: 0 | AZ159: 0 | BA159: 1 | BB159: 1 | BC159: 0 | BD159: 0 | BE159: 1 | BF159: 0 | BG159: 0
A160: C | B160: Devon | C160: E1121 | D160: Devon | E160: =IF(C160=$C$18,1,CHOOSE($E$34,IF(ISERROR(MATCH(C160,OFFSET(DB_NN!$A$19,MATCH($C$18,DB_NN!$A$20:$A$377,0),INDEX($E$61:$E$78,$C$34),1,INDEX($F$61:$F$78,$C$34)),0)),0,1),IF(ISERROR(MATCH(C160,$D$39:$D$58,0)),0,1),INDEX($H160:$U160,1,INDEX($E$61:$E$78,$C$34)),IF(AND(INDEX(H160:U160,INDEX($E$61:$E$78,$C$34))<>"",INDEX(H160:U160,INDEX($E$61:$E$78,$C$34))=VLOOKUP($C$18,$C$83:$U$422,INDEX($E$61:$E$78,$C$34)+5,FALSE)),1,0))) -> 0 | F160: =--(E160<>0)+(E160<>0)*MAX($F$83:F159) -> 0 | H160: 1 | I160: 1 | J160: 0 | K160: 1 | L160: 0 | M160: South West | P160: 0 | X160: Upper | Y160: 1 | Z160: 1 | AA160: 1 | AB160: 1 | AC160: 1 | AD160: 1 | AE160: 1 | AF160: 1 | AG160: 1 | AH160: 0 | AI160: 0 | AJ160: 1 | AK160: 1 | AL160: 1 | AM160: 0 | AN160: 1 | AO160: 0 | AP160: 1 | AQ160: 1 | AR160: 0 | AS160: 1 | AT160: 0 | AU160: 1 | AV160: 1 | AW160: 1 | AX160: 1 | AY160: 0 | AZ160: 1 | BA160: 0 | BB160: 0 | BC160: 1 | BD160: 1 | BE160: 0 | BF160: 1 | BG160: 1
A161: M | B161: Doncaster | C161: E4402 | D161: Doncaster | E161: =IF(C161=$C$18,1,CHOOSE($E$34,IF(ISERROR(MATCH(C161,OFFSET(DB_NN!$A$19,MATCH($C$18,DB_NN!$A$20:$A$377,0),INDEX($E$61:$E$78,$C$34),1,INDEX($F$61:$F$78,$C$34)),0)),0,1),IF(ISERROR(MATCH(C161,$D$39:$D$58,0)),0,1),INDEX($H161:$U161,1,INDEX($E$61:$E$78,$C$34)),IF(AND(INDEX(H161:U161,INDEX($E$61:$E$78,$C$34))<>"",INDEX(H161:U161,INDEX($E$61:$E$78,$C$34))=VLOOKUP($C$18,$C$83:$U$422,INDEX($E$61:$E$78,$C$34)+5,FALSE)),1,0))) -> 0 | F161: =--(E161<>0)+(E161<>0)*MAX($F$83:F160) -> 0 | H161: 1 | I161: 0 | J161: 0 | K161: 1 | L161: 1 | M161: Yorkshire & Humber | N161: Yorkshire & Humber | P161: 0 | S161: 1 | X161: All - Housing and WD | Y161: 1 | Z161: 1 | AA161: 1 | AB161: 1 | AC161: 1 | AD161: 1 | AE161: 1 | AF161: 1 | AG161: 1 | AH161: 1 | AI161: 1 | AJ161: 1 | AK161: 1 | AL161: 1 | AM161: 0 | AN161: 1 | AO161: 1 | AP161: 1 | AQ161: 1 | AR161: 1 | AS161: 1 | AT161: 1 | AU161: 1 | AV161: 1 | AW161: 1 | AX161: 1 | AY161: 1 | AZ161: 1 | BA161: 1 | BB161: 1 | BC161: 1 | BD161: 1 | BE161: 1 | BF161: 1 | BG161: 1
A162: U | B162: Dorset UA | C162: E1203 | D162: Dorset UA | E162: =IF(C162=$C$18,1,CHOOSE($E$34,IF(ISERROR(MATCH(C162,OFFSET(DB_NN!$A$19,MATCH($C$18,DB_NN!$A$20:$A$377,0),INDEX($E$61:$E$78,$C$34),1,INDEX($F$61:$F$78,$C$34)),0)),0,1),IF(ISERROR(MATCH(C162,$D$39:$D$58,0)),0,1),INDEX($H162:$U162,1,INDEX($E$61:$E$78,$C$34)),IF(AND(INDEX(H162:U162,INDEX($E$61:$E$78,$C$34))<>"",INDEX(H162:U162,INDEX($E$61:$E$78,$C$34))=VLOOKUP($C$18,$C$83:$U$422,INDEX($E$61:$E$78,$C$34)+5,FALSE)),1,0))) -> 0 | F162: =--(E162<>0)+(E162<>0)*MAX($F$83:F161) -> 0 | H162: 1 | I162: 0 | J162: 0 | K162: 1 | L162: 1 | M162: South West | N162: South West | P162: 0 | T162: 1 | X162: Upper | Y162: 1 | Z162: 1 | AA162: 1 | AB162: 1 | AC162: 1 | AD162: 1 | AE162: 1 | AF162: 1 | AG162: 1 | AH162: 1 | AI162: 1 | AJ162: 1 | AK162: 1 | AL162: 1 | AM162: 0 | AN162: 1 | AO162: 1 | AP162: 1 | AQ162: 1 | AR162: 1 | AS162: 1 | AT162: 1 | AU162: 1 | AV162: 1 | AW162: 1 | AX162: 1 | AY162: 1 | AZ162: 1 | BA162: 1 | BB162: 1 | BC162: 1 | BD162: 1 | BE162: 1 | BF162: 1 | BG162: 1
A163: NM | B163: Dover | C163: E2234 | D163: Dover | E163: =IF(C163=$C$18,1,CHOOSE($E$34,IF(ISERROR(MATCH(C163,OFFSET(DB_NN!$A$19,MATCH($C$18,DB_NN!$A$20:$A$377,0),INDEX($E$61:$E$78,$C$34),1,INDEX($F$61:$F$78,$C$34)),0)),0,1),IF(ISERROR(MATCH(C163,$D$39:$D$58,0)),0,1),INDEX($H163:$U163,1,INDEX($E$61:$E$78,$C$34)),IF(AND(INDEX(H163:U163,INDEX($E$61:$E$78,$C$34))<>"",INDEX(H163:U163,INDEX($E$61:$E$78,$C$34))=VLOOKUP($C$18,$C$83:$U$422,INDEX($E$61:$E$78,$C$34)+5,FALSE)),1,0))) -> 0 | F163: =--(E163<>0)+(E163<>0)*MAX($F$83:F162) -> 0 | H163: 1 | I163: 0 | J163: 1 | K163: 0 | L163: 1 | N163: South East | O163: Kent | P163: 0 | X163: Lower - Housing | Y163: 0 | Z163: 0 | AA163: 0 | AB163: 0 | AC163: 0 | AD163: 0 | AE163: 0 | AF163: 0 | AG163: 0 | AH163: 1 | AI163: 1 | AJ163: 0 | AK163: 1 | AL163: 0 | AM163: 0 | AN163: 0 | AO163: 1 | AP163: 0 | AQ163: 0 | AR163: 1 | AS163: 0 | AT163: 1 | AU163: 0 | AV163: 0 | AW163: 0 | AX163: 0 | AY163: 1 | AZ163: 0 | BA163: 1 | BB163: 1 | BC163: 0 | BD163: 0 | BE163: 1 | BF163: 0 | BG163: 0
A164: M | B164: Dudley | C164: E4603 | D164: Dudley | E164: =IF(C164=$C$18,1,CHOOSE($E$34,IF(ISERROR(MATCH(C164,OFFSET(DB_NN!$A$19,MATCH($C$18,DB_NN!$A$20:$A$377,0),INDEX($E$61:$E$78,$C$34),1,INDEX($F$61:$F$78,$C$34)),0)),0,1),IF(ISERROR(MATCH(C164,$D$39:$D$58,0)),0,1),INDEX($H164:$U164,1,INDEX($E$61:$E$78,$C$34)),IF(AND(INDEX(H164:U164,INDEX($E$61:$E$78,$C$34))<>"",INDEX(H164:U164,INDEX($E$61:$E$78,$C$34))=VLOOKUP($C$18,$C$83:$U$422,INDEX($E$61:$E$78,$C$34)+5,FALSE)),1,0))) -> 0 | F164: =--(E164<>0)+(E164<>0)*MAX($F$83:F163) -> 0 | H164: 1 | I164: 0 | J164: 0 | K164: 1 | L164: 1 | M164: West Midlands | N164: West Midlands | P164: 0 | S164: 1 | X164: All - Housing and WD | Y164: 1 | Z164: 1 | AA164: 1 | AB164: 1 | AC164: 1 | AD164: 1 | AE164: 1 | AF164: 1 | AG164: 1 | AH164: 1 | AI164: 1 | AJ164: 1 | AK164: 1 | AL164: 1 | AM164: 0 | AN164: 1 | AO164: 1 | AP164: 1 | AQ164: 1 | AR164: 1 | AS164: 1 | AT164: 1 | AU164: 1 | AV164: 1 | AW164: 1 | AX164: 1 | AY164: 1 | AZ164: 1 | BA164: 1 | BB164: 1 | BC164: 1 | BD164: 1 | BE164: 1 | BF164: 1 | BG164: 1
A165: U | B165: Durham | C165: E1302 | D165: Durham | E165: =IF(C165=$C$18,1,CHOOSE($E$34,IF(ISERROR(MATCH(C165,OFFSET(DB_NN!$A$19,MATCH($C$18,DB_NN!$A$20:$A$377,0),INDEX($E$61:$E$78,$C$34),1,INDEX($F$61:$F$78,$C$34)),0)),0,1),IF(ISERROR(MATCH(C165,$D$39:$D$58,0)),0,1),INDEX($H165:$U165,1,INDEX($E$61:$E$78,$C$34)),IF(AND(INDEX(H165:U165,INDEX($E$61:$E$78,$C$34))<>"",INDEX(H165:U165,INDEX($E$61:$E$78,$C$34))=VLOOKUP($C$18,$C$83:$U$422,INDEX($E$61:$E$78,$C$34)+5,FALSE)),1,0))) -> 0 | F165: =--(E165<>0)+(E165<>0)*MAX($F$83:F164) -> 0 | H165: 1 | I165: 0 | J165: 0 | K165: 1 | L165: 1 | M165: North East | N165: North East | P165: 0 | T165: 1 | X165: All - Housing and WD | Y165: 1 | Z165: 1 | AA165: 1 | AB165: 1 | AC165: 1 | AD165: 1 | AE165: 1 | AF165: 1 | AG165: 1 | AH165: 1 | AI165: 1 | AJ165: 1 | AK165: 1 | AL165: 1 | AM165: 0 | AN165: 1 | AO165: 1 | AP165: 1 | AQ165: 1 | AR165: 1 | AS165: 1 | AT165: 1 | AU165: 1 | AV165: 1 | AW165: 1 | AX165: 1 | AY165: 1 | AZ165: 1 | BA165: 1 | BB165: 1 | BC165: 1 | BD165: 1 | BE165: 1 | BF165: 1 | BG165: 1
A166: OL | B166: Ealing | C166: E5036 | D166: Ealing | E166: =IF(C166=$C$18,1,CHOOSE($E$34,IF(ISERROR(MATCH(C166,OFFSET(DB_NN!$A$19,MATCH($C$18,DB_NN!$A$20:$A$377,0),INDEX($E$61:$E$78,$C$34),1,INDEX($F$61:$F$78,$C$34)),0)),0,1),IF(ISERROR(MATCH(C166,$D$39:$D$58,0)),0,1),INDEX($H166:$U166,1,INDEX($E$61:$E$78,$C$34)),IF(AND(INDEX(H166:U166,INDEX($E$61:$E$78,$C$34))<>"",INDEX(H166:U166,INDEX($E$61:$E$78,$C$34))=VLOOKUP($C$18,$C$83:$U$422,INDEX($E$61:$E$78,$C$34)+5,FALSE)),1,0))) -> 0 | F166: =--(E166<>0)+(E166<>0)*MAX($F$83:F165) -> 0 | H166: 1 | I166: 0 | J166: 0 | K166: 1 | L166: 1 | M166: London | N166: London | P166: 1 | Q166: Outer London | X166: All - Housing | Y166: 1 | Z166: 1 | AA166: 1 | AB166: 1 | AC166: 1 | AD166: 1 | AE166: 1 | AF166: 1 | AG166: 1 | AH166: 1 | AI166: 1 | AJ166: 1 | AK166: 1 | AL166: 1 | AM166: 0 | AN166: 1 | AO166: 1 | AP166: 1 | AQ166: 1 | AR166: 1 | AS166: 1 | AT166: 1 | AU166: 1 | AV166: 1 | AW166: 1 | AX166: 1 | AY166: 1 | AZ166: 1 | BA166: 1 | BB166: 1 | BC166: 1 | BD166: 1 | BE166: 1 | BF166: 0 | BG166: 1
A167: NM | B167: East Cambridgeshire | C167: E0532 | D167: East Cambridgeshire | E167: =IF(C167=$C$18,1,CHOOSE($E$34,IF(ISERROR(MATCH(C167,OFFSET(DB_NN!$A$19,MATCH($C$18,DB_NN!$A$20:$A$377,0),INDEX($E$61:$E$78,$C$34),1,INDEX($F$61:$F$78,$C$34)),0)),0,1),IF(ISERROR(MATCH(C167,$D$39:$D$58,0)),0,1),INDEX($H167:$U167,1,INDEX($E$61:$E$78,$C$34)),IF(AND(INDEX(H167:U167,INDEX($E$61:$E$78,$C$34))<>"",INDEX(H167:U167,INDEX($E$61:$E$78,$C$34))=VLOOKUP($C$18,$C$83:$U$422,INDEX($E$61:$E$78,$C$34)+5,FALSE)),1,0))) -> 0 | F167: =--(E167<>0)+(E167<>0)*MAX($F$83:F166) -> 0 | H167: 1 | I167: 0 | J167: 1 | K167: 0 | L167: 1 | N167: Eastern | O167: Cambridgeshire | P167: 0 | X167: Lower | Y167: 0 | Z167: 0 | AA167: 0 | AB167: 0 | AC167: 0 | AD167: 0 | AE167: 0 | AF167: 0 | AG167: 0 | AH167: 1 | AI167: 1 | AJ167: 0 | AK167: 1 | AL167: 0 | AM167: 0 | AN167: 0 | AO167: 1 | AP167: 0 | AQ167: 0 | AR167: 1 | AS167: 0 | AT167: 1 | AU167: 0 | AV167: 0 | AW167: 0 | AX167: 0 | AY167: 0 | AZ167: 0 | BA167: 1 | BB167: 1 | BC167: 0 | BD167: 0 | BE167: 1 | BF167: 0 | BG167: 0
A168: NM | B168: East Devon | C168: E1131 | D168: East Devon | E168: =IF(C168=$C$18,1,CHOOSE($E$34,IF(ISERROR(MATCH(C168,OFFSET(DB_NN!$A$19,MATCH($C$18,DB_NN!$A$20:$A$377,0),INDEX($E$61:$E$78,$C$34),1,INDEX($F$61:$F$78,$C$34)),0)),0,1),IF(ISERROR(MATCH(C168,$D$39:$D$58,0)),0,1),INDEX($H168:$U168,1,INDEX($E$61:$E$78,$C$34)),IF(AND(INDEX(H168:U168,INDEX($E$61:$E$78,$C$34))<>"",INDEX(H168:U168,INDEX($E$61:$E$78,$C$34))=VLOOKUP($C$18,$C$83:$U$422,INDEX($E$61:$E$78,$C$34)+5,FALSE)),1,0))) -> 0 | F168: =--(E168<>0)+(E168<>0)*MAX($F$83:F167) -> 0 | H168: 1 | I168: 0 | J168: 1 | K168: 0 | L168: 1 | N168: South West | O168: Devon | P168: 0 | X168: Lower - Housing | Y168: 0 | Z168: 0 | AA168: 0 | AB168: 0 | AC168: 0 | AD168: 0 | AE168: 0 | AF168: 0 | AG168: 0 | AH168: 1 | AI168: 1 | AJ168: 0 | AK168: 1 | AL168: 0 | AM168: 0 | AN168: 0 | AO168: 1 | AP168: 0 | AQ168: 0 | AR168: 1 | AS168: 0 | AT168: 1 | AU168: 0 | AV168: 0 | AW168: 0 | AX168: 0 | AY168: 1 | AZ168: 0 | BA168: 1 | BB168: 1 | BC168: 0 | BD168: 0 | BE168: 1 | BF168: 0 | BG168: 0
A169: NM | B169: East Hampshire | C169: E1732 | D169: East Hampshire | E169: =IF(C169=$C$18,1,CHOOSE($E$34,IF(ISERROR(MATCH(C169,OFFSET(DB_NN!$A$19,MATCH($C$18,DB_NN!$A$20:$A$377,0),INDEX($E$61:$E$78,$C$34),1,INDEX($F$61:$F$78,$C$34)),0)),0,1),IF(ISERROR(MATCH(C169,$D$39:$D$58,0)),0,1),INDEX($H169:$U169,1,INDEX($E$61:$E$78,$C$34)),IF(AND(INDEX(H169:U169,INDEX($E$61:$E$78,$C$34))<>"",INDEX(H169:U169,INDEX($E$61:$E$78,$C$34))=VLOOKUP($C$18,$C$83:$U$422,INDEX($E$61:$E$78,$C$34)+5,FALSE)),1,0))) -> 0 | F169: =--(E169<>0)+(E169<>0)*MAX($F$83:F168) -> 0 | H169: 1 | I169: 0 | J169: 1 | K169: 0 | L169: 1 | N169: South East | O169: Hampshire | P169: 0 | X169: Lower | Y169: 0 | Z169: 0 | AA169: 0 | AB169: 0 | AC169: 0 | AD169: 0 | AE169: 0 | AF169: 0 | AG169: 0 | AH169: 1 | AI169: 1 | AJ169: 0 | AK169: 1 | AL169: 0 | AM169: 0 | AN169: 0 | AO169: 1 | AP169: 0 | AQ169: 0 | AR169: 1 | AS169: 0 | AT169: 1 | AU169: 0 | AV169: 0 | AW169: 0 | AX169: 0 | AY169: 0 | AZ169: 0 | BA169: 1 | BB169: 1 | BC169: 0 | BD169: 0 | BE169: 1 | BF169: 0 | BG169: 0
A170: NM | B170: East Hertfordshire | C170: E1933 | D170: East Hertfordshire | E170: =IF(C170=$C$18,1,CHOOSE($E$34,IF(ISERROR(MATCH(C170,OFFSET(DB_NN!$A$19,MATCH($C$18,DB_NN!$A$20:$A$377,0),INDEX($E$61:$E$78,$C$34),1,INDEX($F$61:$F$78,$C$34)),0)),0,1),IF(ISERROR(MATCH(C170,$D$39:$D$58,0)),0,1),INDEX($H170:$U170,1,INDEX($E$61:$E$78,$C$34)),IF(AND(INDEX(H170:U170,INDEX($E$61:$E$78,$C$34))<>"",INDEX(H170:U170,INDEX($E$61:$E$78,$C$34))=VLOOKUP($C$18,$C$83:$U$422,INDEX($E$61:$E$78,$C$34)+5,FALSE)),1,0))) -> 0 | F170: =--(E170<>0)+(E170<>0)*MAX($F$83:F169) -> 0 | H170: 1 | I170: 0 | J170: 1 | K170: 0 | L170: 1 | N170: Eastern | O170: Hertfordshire | P170: 0 | X170: Lower | Y170: 0 | Z170: 0 | AA170: 0 | AB170: 0 | AC170: 0 | AD170: 0 | AE170: 0 | AF170: 0 | AG170: 0 | AH170: 1 | AI170: 1 | AJ170: 0 | AK170: 1 | AL170: 0 | AM170: 0 | AN170: 0 | AO170: 1 | AP170: 0 | AQ170: 0 | AR170: 1 | AS170: 0 | AT170: 1 | AU170: 0 | AV170: 0 | AW170: 0 | AX170: 0 | AY170: 0 | AZ170: 0 | BA170: 1 | BB170: 1 | BC170: 0 | BD170: 0 | BE170: 1 | BF170: 0 | BG170: 0
A171: NM | B171: East Lindsey | C171: E2532 | D171: East Lindsey | E171: =IF(C171=$C$18,1,CHOOSE($E$34,IF(ISERROR(MATCH(C171,OFFSET(DB_NN!$A$19,MATCH($C$18,DB_NN!$A$20:$A$377,0),INDEX($E$61:$E$78,$C$34),1,INDEX($F$61:$F$78,$C$34)),0)),0,1),IF(ISERROR(MATCH(C171,$D$39:$D$58,0)),0,1),INDEX($H171:$U171,1,INDEX($E$61:$E$78,$C$34)),IF(AND(INDEX(H171:U171,INDEX($E$61:$E$78,$C$34))<>"",INDEX(H171:U171,INDEX($E$61:$E$78,$C$34))=VLOOKUP($C$18,$C$83:$U$422,INDEX($E$61:$E$78,$C$34)+5,FALSE)),1,0))) -> 0 | F171: =--(E171<>0)+(E171<>0)*MAX($F$83:F170) -> 0 | H171: 1 | I171: 0 | J171: 1 | K171: 0 | L171: 1 | N171: East Midlands | O171: Lincolnshire | P171: 0 | X171: Lower | Y171: 0 | Z171: 0 | AA171: 0 | AB171: 0 | AC171: 0 | AD171: 0 | AE171: 0 | AF171: 0 | AG171: 0 | AH171: 1 | AI171: 1 | AJ171: 0 | AK171: 1 | AL171: 0 | AM171: 0 | AN171: 0 | AO171: 1 | AP171: 0 | AQ171: 0 | AR171: 1 | AS171: 0 | AT171: 1 | AU171: 0 | AV171: 0 | AW171: 0 | AX171: 0 | AY171: 0 | AZ171: 0 | BA171: 1 | BB171: 1 | BC171: 0 | BD171: 0 | BE171: 1 | BF171: 0 | BG171: 0
A172: NM | B172: East Northamptonshire | C172: E2833 | D172: East Northamptonshire | E172: =IF(C172=$C$18,1,CHOOSE($E$34,IF(ISERROR(MATCH(C172,OFFSET(DB_NN!$A$19,MATCH($C$18,DB_NN!$A$20:$A$377,0),INDEX($E$61:$E$78,$C$34),1,INDEX($F$61:$F$78,$C$34)),0)),0,1),IF(ISERROR(MATCH(C172,$D$39:$D$58,0)),0,1),INDEX($H172:$U172,1,INDEX($E$61:$E$78,$C$34)),IF(AND(INDEX(H172:U172,INDEX($E$61:$E$78,$C$34))<>"",INDEX(H172:U172,INDEX($E$61:$E$78,$C$34))=VLOOKUP($C$18,$C$83:$U$422,INDEX($E$61:$E$78,$C$34)+5,FALSE)),1,0))) -> 0 | F172: =--(E172<>0)+(E172<>0)*MAX($F$83:F171) -> 0 | H172: 1 | I172: 0 | J172: 1 | K172: 0 | L172: 1 | N172: East Midlands | O172: Northamptonshire | P172: 0 | X172: Lower | Y172: 0 | Z172: 0 | AA172: 0 | AB172: 0 | AC172: 0 | AD172: 0 | AE172: 0 | AF172: 0 | AG172: 0 | AH172: 1 | AI172: 1 | AJ172: 0 | AK172: 1 | AL172: 0 | AM172: 0 | AN172: 0 | AO172: 1 | AP172: 0 | AQ172: 0 | AR172: 1 | AS172: 0 | AT172: 1 | AU172: 0 | AV172: 0 | AW172: 0 | AX172: 0 | AY172: 0 | AZ172: 0 | BA172: 1 | BB172: 1 | BC172: 0 | BD172: 0 | BE172: 1 | BF172: 0 | BG172: 0
A173: U | B173: East Riding of Yorkshire | C173: E2001 | D173: East Riding of Yorkshire | E173: =IF(C173=$C$18,1,CHOOSE($E$34,IF(ISERROR(MATCH(C173,OFFSET(DB_NN!$A$19,MATCH($C$18,DB_NN!$A$20:$A$377,0),INDEX($E$61:$E$78,$C$34),1,INDEX($F$61:$F$78,$C$34)),0)),0,1),IF(ISERROR(MATCH(C173,$D$39:$D$58,0)),0,1),INDEX($H173:$U173,1,INDEX($E$61:$E$78,$C$34)),IF(AND(INDEX(H173:U173,INDEX($E$61:$E$78,$C$34))<>"",INDEX(H173:U173,INDEX($E$61:$E$78,$C$34))=VLOOKUP($C$18,$C$83:$U$422,INDEX($E$61:$E$78,$C$34)+5,FALSE)),1,0))) -> 0 | F173: =--(E173<>0)+(E173<>0)*MAX($F$83:F172) -> 0 | H173: 1 | I173: 0 | J173: 0 | K173: 1 | L173: 1 | M173: Yorkshire & Humber | N173: Yorkshire & Humber | P173: 0 | T173: 1 | X173: All - Housing and WD | Y173: 1 | Z173: 1 | AA173: 1 | AB173: 1 | AC173: 1 | AD173: 1 | AE173: 1 | AF173: 1 | AG173: 1 | AH173: 1 | AI173: 1 | AJ173: 1 | AK173: 1 | AL173: 1 | AM173: 0 | AN173: 1 | AO173: 1 | AP173: 1 | AQ173: 1 | AR173: 1 | AS173: 1 | AT173: 1 | AU173: 1 | AV173: 1 | AW173: 1 | AX173: 1 | AY173: 1 | AZ173: 1 | BA173: 1 | BB173: 1 | BC173: 1 | BD173: 1 | BE173: 1 | BF173: 1 | BG173: 1
A174: NM | B174: East Staffordshire | C174: E3432 | D174: East Staffordshire | E174: =IF(C174=$C$18,1,CHOOSE($E$34,IF(ISERROR(MATCH(C174,OFFSET(DB_NN!$A$19,MATCH($C$18,DB_NN!$A$20:$A$377,0),INDEX($E$61:$E$78,$C$34),1,INDEX($F$61:$F$78,$C$34)),0)),0,1),IF(ISERROR(MATCH(C174,$D$39:$D$58,0)),0,1),INDEX($H174:$U174,1,INDEX($E$61:$E$78,$C$34)),IF(AND(INDEX(H174:U174,INDEX($E$61:$E$78,$C$34))<>"",INDEX(H174:U174,INDEX($E$61:$E$78,$C$34))=VLOOKUP($C$18,$C$83:$U$422,INDEX($E$61:$E$78,$C$34)+5,FALSE)),1,0))) -> 0 | F174: =--(E174<>0)+(E174<>0)*MAX($F$83:F173) -> 0 | H174: 1 | I174: 0 | J174: 1 | K174: 0 | L174: 1 | N174: West Midlands | O174: Staffordshire | P174: 0 | X174: Lower | Y174: 0 | Z174: 0 | AA174: 0 | AB174: 0 | AC174: 0 | AD174: 0 | AE174: 0 | AF174: 0 | AG174: 0 | AH174: 1 | AI174: 1 | AJ174: 0 | AK174: 1 | AL174: 0 | AM174: 0 | AN174: 0 | AO174: 1 | AP174: 0 | AQ174: 0 | AR174: 1 | AS174: 0 | AT174: 1 | AU174: 0 | AV174: 0 | AW174: 0 | AX174: 0 | AY174: 0 | AZ174: 0 | BA174: 1 | BB174: 1 | BC174: 0 | BD174: 0 | BE174: 1 | BF174: 0 | BG174: 0
A175: NM | B175: East Suffolk | C175: E3538 | D175: East Suffolk | E175: =IF(C175=$C$18,1,CHOOSE($E$34,IF(ISERROR(MATCH(C175,OFFSET(DB_NN!$A$19,MATCH($C$18,DB_NN!$A$20:$A$377,0),INDEX($E$61:$E$78,$C$34),1,INDEX($F$61:$F$78,$C$34)),0)),0,1),IF(ISERROR(MATCH(C175,$D$39:$D$58,0)),0,1),INDEX($H175:$U175,1,INDEX($E$61:$E$78,$C$34)),IF(AND(INDEX(H175:U175,INDEX($E$61:$E$78,$C$34))<>"",INDEX(H175:U175,INDEX($E$61:$E$78,$C$34))=VLOOKUP($C$18,$C$83:$U$422,INDEX($E$61:$E$78,$C$34)+5,FALSE)),1,0))) -> 0 | F175: =--(E175<>0)+(E175<>0)*MAX($F$83:F174) -> 0 | X175: Lower | Y175: 0 | Z175: 0 | AA175: 0 | AB175: 0 | AC175: 0 | AD175: 0 | AE175: 0 | AF175: 0 | AG175: 0 | AH175: 1 | AI175: 1 | AJ175: 0 | AK175: 1 | AL175: 0 | AM175: 0 | AN175: 0 | AO175: 1 | AP175: 0 | AQ175: 0 | AR175: 1 | AS175: 0 | AT175: 1 | AU175: 0 | AV175: 0 | AW175: 0 | AX175: 0 | AY175: 0 | AZ175: 0 | BA175: 1 | BB175: 1 | BC175: 0 | BD175: 0 | BE175: 1 | BF175: 0 | BG175: 0
A176: C | B176: East Sussex | C176: E1421 | D176: East Sussex | E176: =IF(C176=$C$18,1,CHOOSE($E$34,IF(ISERROR(MATCH(C176,OFFSET(DB_NN!$A$19,MATCH($C$18,DB_NN!$A$20:$A$377,0),INDEX($E$61:$E$78,$C$34),1,INDEX($F$61:$F$78,$C$34)),0)),0,1),IF(ISERROR(MATCH(C176,$D$39:$D$58,0)),0,1),INDEX($H176:$U176,1,INDEX($E$61:$E$78,$C$34)),IF(AND(INDEX(H176:U176,INDEX($E$61:$E$78,$C$34))<>"",INDEX(H176:U176,INDEX($E$61:$E$78,$C$34))=VLOOKUP($C$18,$C$83:$U$422,INDEX($E$61:$E$78,$C$34)+5,FALSE)),1,0))) -> 0 | F176: =--(E176<>0)+(E176<>0)*MAX($F$83:F175) -> 0 | H176: 1 | I176: 1 | J176: 0 | K176: 1 | L176: 0 | M176: South East | P176: 0 | X176: Upper | Y176: 1 | Z176: 1 | AA176: 1 | AB176: 1 | AC176: 1 | AD176: 1 | AE176: 1 | AF176: 1 | AG176: 1 | AH176: 0 | AI176: 0 | AJ176: 1 | AK176: 1 | AL176: 1 | AM176: 0 | AN176: 1 | AO176: 0 | AP176: 1 | AQ176: 1 | AR176: 0 | AS176: 1 | AT176: 0 | AU176: 1 | AV176: 1 | AW176: 1 | AX176: 1 | AY176: 0 | AZ176: 1 | BA176: 0 | BB176: 0 | BC176: 1 | BD176: 1 | BE176: 0 | BF176: 1 | BG176: 1
A177: NM | B177: Eastbourne | C177: E1432 | D177: Eastbourne | E177: =IF(C177=$C$18,1,CHOOSE($E$34,IF(ISERROR(MATCH(C177,OFFSET(DB_NN!$A$19,MATCH($C$18,DB_NN!$A$20:$A$377,0),INDEX($E$61:$E$78,$C$34),1,INDEX($F$61:$F$78,$C$34)),0)),0,1),IF(ISERROR(MATCH(C177,$D$39:$D$58,0)),0,1),INDEX($H177:$U177,1,INDEX($E$61:$E$78,$C$34)),IF(AND(INDEX(H177:U177,INDEX($E$61:$E$78,$C$34))<>"",INDEX(H177:U177,INDEX($E$61:$E$78,$C$34))=VLOOKUP($C$18,$C$83:$U$422,INDEX($E$61:$E$78,$C$34)+5,FALSE)),1,0))) -> 0 | F177: =--(E177<>0)+(E177<>0)*MAX($F$83:F176) -> 0 | H177: 1 | I177: 0 | J177: 1 | K177: 0 | L177: 1 | N177: South East | O177: East Sussex | P177: 0 | X177: Lower - Housing | Y177: 0 | Z177: 0 | AA177: 0 | AB177: 0 | AC177: 0 | AD177: 0 | AE177: 0 | AF177: 0 | AG177: 0 | AH177: 1 | AI177: 1 | AJ177: 0 | AK177: 1 | AL177: 0 | AM177: 0 | AN177: 0 | AO177: 1 | AP177: 0 | AQ177: 0 | AR177: 1 | AS177: 0 | AT177: 1 | AU177: 0 | AV177: 0 | AW177: 0 | AX177: 0 | AY177: 1 | AZ177: 0 | BA177: 1 | BB177: 1 | BC177: 0 | BD177: 0 | BE177: 1 | BF177: 0 | BG177: 0
A178: NM | B178: Eastleigh | C178: E1733 | D178: Eastleigh | E178: =IF(C178=$C$18,1,CHOOSE($E$34,IF(ISERROR(MATCH(C178,OFFSET(DB_NN!$A$19,MATCH($C$18,DB_NN!$A$20:$A$377,0),INDEX($E$61:$E$78,$C$34),1,INDEX($F$61:$F$78,$C$34)),0)),0,1),IF(ISERROR(MATCH(C178,$D$39:$D$58,0)),0,1),INDEX($H178:$U178,1,INDEX($E$61:$E$78,$C$34)),IF(AND(INDEX(H178:U178,INDEX($E$61:$E$78,$C$34))<>"",INDEX(H178:U178,INDEX($E$61:$E$78,$C$34))=VLOOKUP($C$18,$C$83:$U$422,INDEX($E$61:$E$78,$C$34)+5,FALSE)),1,0))) -> 1 | F178: =--(E178<>0)+(E178<>0)*MAX($F$83:F177) -> 2 | H178: 1 | I178: 0 | J178: 1 | K178: 0 | L178: 1 | N178: South East | O178: Hampshire | P178: 0 | X178: Lower | Y178: 0 | Z178: 0 | AA178: 0 | AB178: 0 | AC178: 0 | AD178: 0 | AE178: 0 | AF178: 0 | AG178: 0 | AH178: 1 | AI178: 1 | AJ178: 0 | AK178: 1 | AL178: 0 | AM178: 0 | AN178: 0 | AO178: 1 | AP178: 0 | AQ178: 0 | AR178: 1 | AS178: 0 | AT178: 1 | AU178: 0 | AV178: 0 | AW178: 0 | AX178: 0 | AY178: 0 | AZ178: 0 | BA178: 1 | BB178: 1 | BC178: 0 | BD178: 0 | BE178: 1 | BF178: 0 | BG178: 0
A179: NM | B179: Eden | C179: E0935 | D179: Eden | E179: =IF(C179=$C$18,1,CHOOSE($E$34,IF(ISERROR(MATCH(C179,OFFSET(DB_NN!$A$19,MATCH($C$18,DB_NN!$A$20:$A$377,0),INDEX($E$61:$E$78,$C$34),1,INDEX($F$61:$F$78,$C$34)),0)),0,1),IF(ISERROR(MATCH(C179,$D$39:$D$58,0)),0,1),INDEX($H179:$U179,1,INDEX($E$61:$E$78,$C$34)),IF(AND(INDEX(H179:U179,INDEX($E$61:$E$78,$C$34))<>"",INDEX(H179:U179,INDEX($E$61:$E$78,$C$34))=VLOOKUP($C$18,$C$83:$U$422,INDEX($E$61:$E$78,$C$34)+5,FALSE)),1,0))) -> 0 | F179: =--(E179<>0)+(E179<>0)*MAX($F$83:F178) -> 0 | H179: 1 | I179: 0 | J179: 1 | K179: 0 | L179: 1 | N179: North West | O179: Cumbria | P179: 0 | X179: Lower | Y179: 0 | Z179: 0 | AA179: 0 | AB179: 0 | AC179: 0 | AD179: 0 | AE179: 0 | AF179: 0 | AG179: 0 | AH179: 1 | AI179: 1 | AJ179: 0 | AK179: 1 | AL179: 0 | AM179: 0 | AN179: 0 | AO179: 1 | AP179: 0 | AQ179: 0 | AR179: 1 | AS179: 0 | AT179: 1 | AU179: 0 | AV179: 0 | AW179: 0 | AX179: 0 | AY179: 0 | AZ179: 0 | BA179: 1 | BB179: 1 | BC179: 0 | BD179: 0 | BE179: 1 | BF179: 0 | BG179: 0
A180: NM | B180: Elmbridge | C180: E3631 | D180: Elmbridge | E180: =IF(C180=$C$18,1,CHOOSE($E$34,IF(ISERROR(MATCH(C180,OFFSET(DB_NN!$A$19,MATCH($C$18,DB_NN!$A$20:$A$377,0),INDEX($E$61:$E$78,$C$34),1,INDEX($F$61:$F$78,$C$34)),0)),0,1),IF(ISERROR(MATCH(C180,$D$39:$D$58,0)),0,1),INDEX($H180:$U180,1,INDEX($E$61:$E$78,$C$34)),IF(AND(INDEX(H180:U180,INDEX($E$61:$E$78,$C$34))<>"",INDEX(H180:U180,INDEX($E$61:$E$78,$C$34))=VLOOKUP($C$18,$C$83:$U$422,INDEX($E$61:$E$78,$C$34)+5,FALSE)),1,0))) -> 0 | F180: =--(E180<>0)+(E180<>0)*MAX($F$83:F179) -> 0 | H180: 1 | I180: 0 | J180: 1 | K180: 0 | L180: 1 | N180: South East | O180: Surrey | P180: 0 | X180: Lower | Y180: 0 | Z180: 0 | AA180: 0 | AB180: 0 | AC180: 0 | AD180: 0 | AE180: 0 | AF180: 0 | AG180: 0 | AH180: 1 | AI180: 1 | AJ180: 0 | AK180: 1 | AL180: 0 | AM180: 0 | AN180: 0 | AO180: 1 | AP180: 0 | AQ180: 0 | AR180: 1 | AS180: 0 | AT180: 1 | AU180: 0 | AV180: 0 | AW180: 0 | AX180: 0 | AY180: 0 | AZ180: 0 | BA180: 1 | BB180: 1 | BC180: 0 | BD180: 0 | BE180: 1 | BF180: 0 | BG180: 0
A181: OL | B181: Enfield | C181: E5037 | D181: Enfield | E181: =IF(C181=$C$18,1,CHOOSE($E$34,IF(ISERROR(MATCH(C181,OFFSET(DB_NN!$A$19,MATCH($C$18,DB_NN!$A$20:$A$377,0),INDEX($E$61:$E$78,$C$34),1,INDEX($F$61:$F$78,$C$34)),0)),0,1),IF(ISERROR(MATCH(C181,$D$39:$D$58,0)),0,1),INDEX($H181:$U181,1,INDEX($E$61:$E$78,$C$34)),IF(AND(INDEX(H181:U181,INDEX($E$61:$E$78,$C$34))<>"",INDEX(H181:U181,INDEX($E$61:$E$78,$C$34))=VLOOKUP($C$18,$C$83:$U$422,INDEX($E$61:$E$78,$C$34)+5,FALSE)),1,0))) -> 0 | F181: =--(E181<>0)+(E181<>0)*MAX($F$83:F180) -> 0 | H181: 1 | I181: 0 | J181: 0 | K181: 1 | L181: 1 | M181: London | N181: London | P181: 1 | Q181: Outer London | X181: All - Housing | Y181: 1 | Z181: 1 | AA181: 1 | AB181: 1 | AC181: 1 | AD181: 1 | AE181: 1 | AF181: 1 | AG181: 1 | AH181: 1 | AI181: 1 | AJ181: 1 | AK181: 1 | AL181: 1 | AM181: 0 | AN181: 1 | AO181: 1 | AP181: 1 | AQ181: 1 | AR181: 1 | AS181: 1 | AT181: 1 | AU181: 1 | AV181: 1 | AW181: 1 | AX181: 1 | AY181: 1 | AZ181: 1 | BA181: 1 | BB181: 1 | BC181: 1 | BD181: 1 | BE181: 1 | BF181: 0 | BG181: 1
A182: NM | B182: Epping Forest | C182: E1537 | D182: Epping Forest | E182: =IF(C182=$C$18,1,CHOOSE($E$34,IF(ISERROR(MATCH(C182,OFFSET(DB_NN!$A$19,MATCH($C$18,DB_NN!$A$20:$A$377,0),INDEX($E$61:$E$78,$C$34),1,INDEX($F$61:$F$78,$C$34)),0)),0,1),IF(ISERROR(MATCH(C182,$D$39:$D$58,0)),0,1),INDEX($H182:$U182,1,INDEX($E$61:$E$78,$C$34)),IF(AND(INDEX(H182:U182,INDEX($E$61:$E$78,$C$34))<>"",INDEX(H182:U182,INDEX($E$61:$E$78,$C$34))=VLOOKUP($C$18,$C$83:$U$422,INDEX($E$61:$E$78,$C$34)+5,FALSE)),1,0))) -> 0 | F182: =--(E182<>0)+(E182<>0)*MAX($F$83:F181) -> 0 | H182: 1 | I182: 0 | J182: 1 | K182: 0 | L182: 1 | N182: Eastern | O182: Essex | P182: 0 | X182: Lower - Housing | Y182: 0 | Z182: 0 | AA182: 0 | AB182: 0 | AC182: 0 | AD182: 0 | AE182: 0 | AF182: 0 | AG182: 0 | AH182: 1 | AI182: 1 | AJ182: 0 | AK182: 1 | AL182: 0 | AM182: 0 | AN182: 0 | AO182: 1 | AP182: 0 | AQ182: 0 | AR182: 1 | AS182: 0 | AT182: 1 | AU182: 0 | AV182: 0 | AW182: 0 | AX182: 0 | AY182: 1 | AZ182: 0 | BA182: 1 | BB182: 1 | BC182: 0 | BD182: 0 | BE182: 1 | BF182: 0 | BG182: 0
A183: NM | B183: Epsom & Ewell | C183: E3632 | D183: Epsom & Ewell | E183: =IF(C183=$C$18,1,CHOOSE($E$34,IF(ISERROR(MATCH(C183,OFFSET(DB_NN!$A$19,MATCH($C$18,DB_NN!$A$20:$A$377,0),INDEX($E$61:$E$78,$C$34),1,INDEX($F$61:$F$78,$C$34)),0)),0,1),IF(ISERROR(MATCH(C183,$D$39:$D$58,0)),0,1),INDEX($H183:$U183,1,INDEX($E$61:$E$78,$C$34)),IF(AND(INDEX(H183:U183,INDEX($E$61:$E$78,$C$34))<>"",INDEX(H183:U183,INDEX($E$61:$E$78,$C$34))=VLOOKUP($C$18,$C$83:$U$422,INDEX($E$61:$E$78,$C$34)+5,FALSE)),1,0))) -> 0 | F183: =--(E183<>0)+(E183<>0)*MAX($F$83:F182) -> 0 | H183: 1 | I183: 0 | J183: 1 | K183: 0 | L183: 1 | N183: South East | O183: Surrey | P183: 0 | X183: Lower | Y183: 0 | Z183: 0 | AA183: 0 | AB183: 0 | AC183: 0 | AD183: 0 | AE183: 0 | AF183: 0 | AG183: 0 | AH183: 1 | AI183: 1 | AJ183: 0 | AK183: 1 | AL183: 0 | AM183: 0 | AN183: 0 | AO183: 1 | AP183: 0 | AQ183: 0 | AR183: 1 | AS183: 0 | AT183: 1 | AU183: 0 | AV183: 0 | AW183: 0 | AX183: 0 | AY183: 0 | AZ183: 0 | BA183: 1 | BB183: 1 | BC183: 0 | BD183: 0 | BE183: 1 | BF183: 0 | BG183: 0
A184: NM | B184: Erewash | C184: E1036 | D184: Erewash | E184: =IF(C184=$C$18,1,CHOOSE($E$34,IF(ISERROR(MATCH(C184,OFFSET(DB_NN!$A$19,MATCH($C$18,DB_NN!$A$20:$A$377,0),INDEX($E$61:$E$78,$C$34),1,INDEX($F$61:$F$78,$C$34)),0)),0,1),IF(ISERROR(MATCH(C184,$D$39:$D$58,0)),0,1),INDEX($H184:$U184,1,INDEX($E$61:$E$78,$C$34)),IF(AND(INDEX(H184:U184,INDEX($E$61:$E$78,$C$34))<>"",INDEX(H184:U184,INDEX($E$61:$E$78,$C$34))=VLOOKUP($C$18,$C$83:$U$422,INDEX($E$61:$E$78,$C$34)+5,FALSE)),1,0))) -> 0 | F184: =--(E184<>0)+(E184<>0)*MAX($F$83:F183) -> 0 | H184: 1 | I184: 0 | J184: 1 | K184: 0 | L184: 1 | N184: East Midlands | O184: Derbyshire | P184: 0 | X184: Lower | Y184: 0 | Z184: 0 | AA184: 0 | AB184: 0 | AC184: 0 | AD184: 0 | AE184: 0 | AF184: 0 | AG184: 0 | AH184: 1 | AI184: 1 | AJ184: 0 | AK184: 1 | AL184: 0 | AM184: 0 | AN184: 0 | AO184: 1 | AP184: 0 | AQ184: 0 | AR184: 1 | AS184: 0 | AT184: 1 | AU184: 0 | AV184: 0 | AW184: 0 | AX184: 0 | AY184: 0 | AZ184: 0 | BA184: 1 | BB184: 1 | BC184: 0 | BD184: 0 | BE184: 1 | BF184: 0 | BG184: 0
A185: C | B185: Essex | C185: E1521 | D185: Essex | E185: =IF(C185=$C$18,1,CHOOSE($E$34,IF(ISERROR(MATCH(C185,OFFSET(DB_NN!$A$19,MATCH($C$18,DB_NN!$A$20:$A$377,0),INDEX($E$61:$E$78,$C$34),1,INDEX($F$61:$F$78,$C$34)),0)),0,1),IF(ISERROR(MATCH(C185,$D$39:$D$58,0)),0,1),INDEX($H185:$U185,1,INDEX($E$61:$E$78,$C$34)),IF(AND(INDEX(H185:U185,INDEX($E$61:$E$78,$C$34))<>"",INDEX(H185:U185,INDEX($E$61:$E$78,$C$34))=VLOOKUP($C$18,$C$83:$U$422,INDEX($E$61:$E$78,$C$34)+5,FALSE)),1,0))) -> 0 | F185: =--(E185<>0)+(E185<>0)*MAX($F$83:F184) -> 0 | H185: 1 | I185: 1 | J185: 0 | K185: 1 | L185: 0 | M185: Eastern | P185: 0 | X185: Upper | Y185: 1 | Z185: 1 | AA185: 1 | AB185: 1 | AC185: 1 | AD185: 1 | AE185: 1 | AF185: 1 | AG185: 1 | AH185: 0 | AI185: 0 | AJ185: 1 | AK185: 1 | AL185: 1 | AM185: 0 | AN185: 1 | AO185: 0 | AP185: 1 | AQ185: 1 | AR185: 0 | AS185: 1 | AT185: 0 | AU185: 1 | AV185: 1 | AW185: 1 | AX185: 1 | AY185: 0 | AZ185: 1 | BA185: 0 | BB185: 0 | BC185: 1 | BD185: 1 | BE185: 0 | BF185: 1 | BG185: 1
A186: NM | B186: Exeter | C186: E1132 | D186: Exeter | E186: =IF(C186=$C$18,1,CHOOSE($E$34,IF(ISERROR(MATCH(C186,OFFSET(DB_NN!$A$19,MATCH($C$18,DB_NN!$A$20:$A$377,0),INDEX($E$61:$E$78,$C$34),1,INDEX($F$61:$F$78,$C$34)),0)),0,1),IF(ISERROR(MATCH(C186,$D$39:$D$58,0)),0,1),INDEX($H186:$U186,1,INDEX($E$61:$E$78,$C$34)),IF(AND(INDEX(H186:U186,INDEX($E$61:$E$78,$C$34))<>"",INDEX(H186:U186,INDEX($E$61:$E$78,$C$34))=VLOOKUP($C$18,$C$83:$U$422,INDEX($E$61:$E$78,$C$34)+5,FALSE)),1,0))) -> 0 | F186: =--(E186<>0)+(E186<>0)*MAX($F$83:F185) -> 0 | H186: 1 | I186: 0 | J186: 1 | K186: 0 | L186: 1 | N186: South West | O186: Devon | P186: 0 | X186: Lower - Housing | Y186: 0 | Z186: 0 | AA186: 0 | AB186: 0 | AC186: 0 | AD186: 0 | AE186: 0 | AF186: 0 | AG186: 0 | AH186: 1 | AI186: 1 | AJ186: 0 | AK186: 1 | AL186: 0 | AM186: 0 | AN186: 0 | AO186: 1 | AP186: 0 | AQ186: 0 | AR186: 1 | AS186: 0 | AT186: 1 | AU186: 0 | AV186: 0 | AW186: 0 | AX186: 0 | AY186: 1 | AZ186: 0 | BA186: 1 | BB186: 1 | BC186: 0 | BD186: 0 | BE186: 1 | BF186: 0 | BG186: 0
A187: NM | B187: Fareham | C187: E1734 | D187: Fareham | E187: =IF(C187=$C$18,1,CHOOSE($E$34,IF(ISERROR(MATCH(C187,OFFSET(DB_NN!$A$19,MATCH($C$18,DB_NN!$A$20:$A$377,0),INDEX($E$61:$E$78,$C$34),1,INDEX($F$61:$F$78,$C$34)),0)),0,1),IF(ISERROR(MATCH(C187,$D$39:$D$58,0)),0,1),INDEX($H187:$U187,1,INDEX($E$61:$E$78,$C$34)),IF(AND(INDEX(H187:U187,INDEX($E$61:$E$78,$C$34))<>"",INDEX(H187:U187,INDEX($E$61:$E$78,$C$34))=VLOOKUP($C$18,$C$83:$U$422,INDEX($E$61:$E$78,$C$34)+5,FALSE)),1,0))) -> 0 | F187: =--(E187<>0)+(E187<>0)*MAX($F$83:F186) -> 0 | H187: 1 | I187: 0 | J187: 1 | K187: 0 | L187: 1 | N187: South East | O187: Hampshire | P187: 0 | X187: Lower - Housing | Y187: 0 | Z187: 0 | AA187: 0 | AB187: 0 | AC187: 0 | AD187: 0 | AE187: 0 | AF187: 0 | AG187: 0 | AH187: 1 | AI187: 1 | AJ187: 0 | AK187: 1 | AL187: 0 | AM187: 0 | AN187: 0 | AO187: 1 | AP187: 0 | AQ187: 0 | AR187: 1 | AS187: 0 | AT187: 1 | AU187: 0 | AV187: 0 | AW187: 0 | AX187: 0 | AY187: 1 | AZ187: 0 | BA187: 1 | BB187: 1 | BC187: 0 | BD187: 0 | BE187: 1 | BF187: 0 | BG187: 0
A188: NM | B188: Fenland | C188: E0533 | D188: Fenland | E188: =IF(C188=$C$18,1,CHOOSE($E$34,IF(ISERROR(MATCH(C188,OFFSET(DB_NN!$A$19,MATCH($C$18,DB_NN!$A$20:$A$377,0),INDEX($E$61:$E$78,$C$34),1,INDEX($F$61:$F$78,$C$34)),0)),0,1),IF(ISERROR(MATCH(C188,$D$39:$D$58,0)),0,1),INDEX($H188:$U188,1,INDEX($E$61:$E$78,$C$34)),IF(AND(INDEX(H188:U188,INDEX($E$61:$E$78,$C$34))<>"",INDEX(H188:U188,INDEX($E$61:$E$78,$C$34))=VLOOKUP($C$18,$C$83:$U$422,INDEX($E$61:$E$78,$C$34)+5,FALSE)),1,0))) -> 0 | F188: =--(E188<>0)+(E188<>0)*MAX($F$83:F187) -> 0 | H188: 1 | I188: 0 | J188: 1 | K188: 0 | L188: 1 | N188: Eastern | O188: Cambridgeshire | P188: 0 | X188: Lower | Y188: 0 | Z188: 0 | AA188: 0 | AB188: 0 | AC188: 0 | AD188: 0 | AE188: 0 | AF188: 0 | AG188: 0 | AH188: 1 | AI188: 1 | AJ188: 0 | AK188: 1 | AL188: 0 | AM188: 0 | AN188: 0 | AO188: 1 | AP188: 0 | AQ188: 0 | AR188: 1 | AS188: 0 | AT188: 1 | AU188: 0 | AV188: 0 | AW188: 0 | AX188: 0 | AY188: 0 | AZ188: 0 | BA188: 1 | BB188: 1 | BC188: 0 | BD188: 0 | BE188: 1 | BF188: 0 | BG188: 0
A189: NM | B189: Folkestone and Hythe | C189: E2240 | D189: Folkestone and Hythe | E189: =IF(C189=$C$18,1,CHOOSE($E$34,IF(ISERROR(MATCH(C189,OFFSET(DB_NN!$A$19,MATCH($C$18,DB_NN!$A$20:$A$377,0),INDEX($E$61:$E$78,$C$34),1,INDEX($F$61:$F$78,$C$34)),0)),0,1),IF(ISERROR(MATCH(C189,$D$39:$D$58,0)),0,1),INDEX($H189:$U189,1,INDEX($E$61:$E$78,$C$34)),IF(AND(INDEX(H189:U189,INDEX($E$61:$E$78,$C$34))<>"",INDEX(H189:U189,INDEX($E$61:$E$78,$C$34))=VLOOKUP($C$18,$C$83:$U$422,INDEX($E$61:$E$78,$C$34)+5,FALSE)),1,0))) -> 0 | F189: =--(E189<>0)+(E189<>0)*MAX($F$83:F188) -> 0 | H189: 1 | I189: 0 | J189: 1 | K189: 0 | L189: 1 | P189: 0 | X189: Lower
A190: NM | B190: Forest of Dean | C190: E1633 | D190: Forest of Dean | E190: =IF(C190=$C$18,1,CHOOSE($E$34,IF(ISERROR(MATCH(C190,OFFSET(DB_NN!$A$19,MATCH($C$18,DB_NN!$A$20:$A$377,0),INDEX($E$61:$E$78,$C$34),1,INDEX($F$61:$F$78,$C$34)),0)),0,1),IF(ISERROR(MATCH(C190,$D$39:$D$58,0)),0,1),INDEX($H190:$U190,1,INDEX($E$61:$E$78,$C$34)),IF(AND(INDEX(H190:U190,INDEX($E$61:$E$78,$C$34))<>"",INDEX(H190:U190,INDEX($E$61:$E$78,$C$34))=VLOOKUP($C$18,$C$83:$U$422,INDEX($E$61:$E$78,$C$34)+5,FALSE)),1,0))) -> 0 | F190: =--(E190<>0)+(E190<>0)*MAX($F$83:F188) -> 0 | H190: 1 | I190: 0 | J190: 1 | K190: 0 | L190: 1 | N190: South West | O190: Gloucestershire | P190: 0 | X190: Lower | Y190: 0 | Z190: 0 | AA190: 0 | AB190: 0 | AC190: 0 | AD190: 0 | AE190: 0 | AF190: 0 | AG190: 0 | AH190: 1 | AI190: 1 | AJ190: 0 | AK190: 1 | AL190: 0 | AM190: 0 | AN190: 0 | AO190: 1 | AP190: 0 | AQ190: 0 | AR190: 1 | AS190: 0 | AT190: 1 | AU190: 0 | AV190: 0 | AW190: 0 | AX190: 0 | AY190: 0 | AZ190: 0 | BA190: 1 | BB190: 1 | BC190: 0 | BD190: 0 | BE190: 1 | BF190: 0 | BG190: 0
A191: NM | B191: Fylde | C191: E2335 | D191: Fylde | E191: =IF(C191=$C$18,1,CHOOSE($E$34,IF(ISERROR(MATCH(C191,OFFSET(DB_NN!$A$19,MATCH($C$18,DB_NN!$A$20:$A$377,0),INDEX($E$61:$E$78,$C$34),1,INDEX($F$61:$F$78,$C$34)),0)),0,1),IF(ISERROR(MATCH(C191,$D$39:$D$58,0)),0,1),INDEX($H191:$U191,1,INDEX($E$61:$E$78,$C$34)),IF(AND(INDEX(H191:U191,INDEX($E$61:$E$78,$C$34))<>"",INDEX(H191:U191,INDEX($E$61:$E$78,$C$34))=VLOOKUP($C$18,$C$83:$U$422,INDEX($E$61:$E$78,$C$34)+5,FALSE)),1,0))) -> 1 | F191: =--(E191<>0)+(E191<>0)*MAX($F$83:F190) -> 3 | H191: 1 | I191: 0 | J191: 1 | K191: 0 | L191: 1 | N191: North West | O191: Lancashire | P191: 0 | X191: Lower | Y191: 0 | Z191: 0 | AA191: 0 | AB191: 0 | AC191: 0 | AD191: 0 | AE191: 0 | AF191: 0 | AG191: 0 | AH191: 1 | AI191: 1 | AJ191: 0 | AK191: 1 | AL191: 0 | AM191: 0 | AN191: 0 | AO191: 1 | AP191: 0 | AQ191: 0 | AR191: 1 | AS191: 0 | AT191: 1 | AU191: 0 | AV191: 0 | AW191: 0 | AX191: 0 | AY191: 0 | AZ191: 0 | BA191: 1 | BB191: 1 | BC191: 0 | BD191: 0 | BE191: 1 | BF191: 0 | BG191: 0
A192: M | B192: Gateshead | C192: E4501 | D192: Gateshead | E192: =IF(C192=$C$18,1,CHOOSE($E$34,IF(ISERROR(MATCH(C192,OFFSET(DB_NN!$A$19,MATCH($C$18,DB_NN!$A$20:$A$377,0),INDEX($E$61:$E$78,$C$34),1,INDEX($F$61:$F$78,$C$34)),0)),0,1),IF(ISERROR(MATCH(C192,$D$39:$D$58,0)),0,1),INDEX($H192:$U192,1,INDEX($E$61:$E$78,$C$34)),IF(AND(INDEX(H192:U192,INDEX($E$61:$E$78,$C$34))<>"",INDEX(H192:U192,INDEX($E$61:$E$78,$C$34))=VLOOKUP($C$18,$C$83:$U$422,INDEX($E$61:$E$78,$C$34)+5,FALSE)),1,0))) -> 0 | F192: =--(E192<>0)+(E192<>0)*MAX($F$83:F191) -> 0 | H192: 1 | I192: 0 | J192: 0 | K192: 1 | L192: 1 | M192: North East | N192: North East | P192: 0 | S192: 1 | X192: All - Housing and WD | Y192: 1 | Z192: 1 | AA192: 1 | AB192: 1 | AC192: 1 | AD192: 1 | AE192: 1 | AF192: 1 | AG192: 1 | AH192: 1 | AI192: 1 | AJ192: 1 | AK192: 1 | AL192: 1 | AM192: 0 | AN192: 1 | AO192: 1 | AP192: 1 | AQ192: 1 | AR192: 1 | AS192: 1 | AT192: 1 | AU192: 1 | AV192: 1 | AW192: 1 | AX192: 1 | AY192: 1 | AZ192: 1 | BA192: 1 | BB192: 1 | BC192: 1 | BD192: 1 | BE192: 1 | BF192: 1 | BG192: 1
A193: NM | B193: Gedling | C193: E3034 | D193: Gedling | E193: =IF(C193=$C$18,1,CHOOSE($E$34,IF(ISERROR(MATCH(C193,OFFSET(DB_NN!$A$19,MATCH($C$18,DB_NN!$A$20:$A$377,0),INDEX($E$61:$E$78,$C$34),1,INDEX($F$61:$F$78,$C$34)),0)),0,1),IF(ISERROR(MATCH(C193,$D$39:$D$58,0)),0,1),INDEX($H193:$U193,1,INDEX($E$61:$E$78,$C$34)),IF(AND(INDEX(H193:U193,INDEX($E$61:$E$78,$C$34))<>"",INDEX(H193:U193,INDEX($E$61:$E$78,$C$34))=VLOOKUP($C$18,$C$83:$U$422,INDEX($E$61:$E$78,$C$34)+5,FALSE)),1,0))) -> 1 | F193: =--(E193<>0)+(E193<>0)*MAX($F$83:F192) -> 4 | H193: 1 | I193: 0 | J193: 1 | K193: 0 | L193: 1 | N193: East Midlands | O193: Nottinghamshire | P193: 0 | X193: Lower - Housing | Y193: 0 | Z193: 0 | AA193: 0 | AB193: 0 | AC193: 0 | AD193: 0 | AE193: 0 | AF193: 0 | AG193: 0 | AH193: 1 | AI193: 1 | AJ193: 0 | AK193: 1 | AL193: 0 | AM193: 0 | AN193: 0 | AO193: 1 | AP193: 0 | AQ193: 0 | AR193: 1 | AS193: 0 | AT193: 1 | AU193: 0 | AV193: 0 | AW193: 0 | AX193: 0 | AY193: 1 | AZ193: 0 | BA193: 1 | BB193: 1 | BC193: 0 | BD193: 0 | BE193: 1 | BF193: 0 | BG193: 0
A194: NM | B194: Gloucester | C194: E1634 | D194: Gloucester | E194: =IF(C194=$C$18,1,CHOOSE($E$34,IF(ISERROR(MATCH(C194,OFFSET(DB_NN!$A$19,MATCH($C$18,DB_NN!$A$20:$A$377,0),INDEX($E$61:$E$78,$C$34),1,INDEX($F$61:$F$78,$C$34)),0)),0,1),IF(ISERROR(MATCH(C194,$D$39:$D$58,0)),0,1),INDEX($H194:$U194,1,INDEX($E$61:$E$78,$C$34)),IF(AND(INDEX(H194:U194,INDEX($E$61:$E$78,$C$34))<>"",INDEX(H194:U194,INDEX($E$61:$E$78,$C$34))=VLOOKUP($C$18,$C$83:$U$422,INDEX($E$61:$E$78,$C$34)+5,FALSE)),1,0))) -> 0 | F194: =--(E194<>0)+(E194<>0)*MAX($F$83:F193) -> 0 | H194: 1 | I194: 0 | J194: 1 | K194: 0 | L194: 1 | N194: South West | O194: Gloucestershire | P194: 0 | X194: Lower - Housing | Y194: 0 | Z194: 0 | AA194: 0 | AB194: 0 | AC194: 0 | AD194: 0 | AE194: 0 | AF194: 0 | AG194: 0 | AH194: 1 | AI194: 1 | AJ194: 0 | AK194: 1 | AL194: 0 | AM194: 0 | AN194: 0 | AO194: 1 | AP194: 0 | AQ194: 0 | AR194: 1 | AS194: 0 | AT194: 1 | AU194: 0 | AV194: 0 | AW194: 0 | AX194: 0 | AY194: 1 | AZ194: 0 | BA194: 1 | BB194: 1 | BC194: 0 | BD194: 0 | BE194: 1 | BF194: 0 | BG194: 0
A195: C | B195: Gloucestershire | C195: E1620 | D195: Gloucestershire | E195: =IF(C195=$C$18,1,CHOOSE($E$34,IF(ISERROR(MATCH(C195,OFFSET(DB_NN!$A$19,MATCH($C$18,DB_NN!$A$20:$A$377,0),INDEX($E$61:$E$78,$C$34),1,INDEX($F$61:$F$78,$C$34)),0)),0,1),IF(ISERROR(MATCH(C195,$D$39:$D$58,0)),0,1),INDEX($H195:$U195,1,INDEX($E$61:$E$78,$C$34)),IF(AND(INDEX(H195:U195,INDEX($E$61:$E$78,$C$34))<>"",INDEX(H195:U195,INDEX($E$61:$E$78,$C$34))=VLOOKUP($C$18,$C$83:$U$422,INDEX($E$61:$E$78,$C$34)+5,FALSE)),1,0))) -> 0 | F195: =--(E195<>0)+(E195<>0)*MAX($F$83:F194) -> 0 | H195: 1 | I195: 1 | J195: 0 | K195: 1 | L195: 0 | M195: South West | P195: 0 | U195: 1 | X195: Upper | Y195: 1 | Z195: 1 | AA195: 1 | AB195: 1 | AC195: 1 | AD195: 1 | AE195: 1 | AF195: 1 | AG195: 1 | AH195: 0 | AI195: 0 | AJ195: 1 | AK195: 1 | AL195: 1 | AM195: 1 | AN195: 1 | AO195: 0 | AP195: 1 | AQ195: 1 | AR195: 0 | AS195: 1 | AT195: 0 | AU195: 1 | AV195: 1 | AW195: 1 | AX195: 1 | AY195: 0 | AZ195: 1 | BA195: 0 | BB195: 0 | BC195: 1 | BD195: 1 | BE195: 0 | BF195: 1 | BG195: 1
A196: NM | B196: Gosport | C196: E1735 | D196: Gosport | E196: =IF(C196=$C$18,1,CHOOSE($E$34,IF(ISERROR(MATCH(C196,OFFSET(DB_NN!$A$19,MATCH($C$18,DB_NN!$A$20:$A$377,0),INDEX($E$61:$E$78,$C$34),1,INDEX($F$61:$F$78,$C$34)),0)),0,1),IF(ISERROR(MATCH(C196,$D$39:$D$58,0)),0,1),INDEX($H196:$U196,1,INDEX($E$61:$E$78,$C$34)),IF(AND(INDEX(H196:U196,INDEX($E$61:$E$78,$C$34))<>"",INDEX(H196:U196,INDEX($E$61:$E$78,$C$34))=VLOOKUP($C$18,$C$83:$U$422,INDEX($E$61:$E$78,$C$34)+5,FALSE)),1,0))) -> 1 | F196: =--(E196<>0)+(E196<>0)*MAX($F$83:F195) -> 5 | H196: 1 | I196: 0 | J196: 1 | K196: 0 | L196: 1 | N196: South East | O196: Hampshire | P196: 0 | X196: Lower - Housing | Y196: 0 | Z196: 0 | AA196: 0 | AB196: 0 | AC196: 0 | AD196: 0 | AE196: 0 | AF196: 0 | AG196: 0 | AH196: 1 | AI196: 1 | AJ196: 0 | AK196: 1 | AL196: 0 | AM196: 0 | AN196: 0 | AO196: 1 | AP196: 0 | AQ196: 0 | AR196: 1 | AS196: 0 | AT196: 1 | AU196: 0 | AV196: 0 | AW196: 0 | AX196: 0 | AY196: 1 | AZ196: 0 | BA196: 1 | BB196: 1 | BC196: 0 | BD196: 0 | BE196: 1 | BF196: 0 | BG196: 0
A197: NM | B197: Gravesham | C197: E2236 | D197: Gravesham | E197: =IF(C197=$C$18,1,CHOOSE($E$34,IF(ISERROR(MATCH(C197,OFFSET(DB_NN!$A$19,MATCH($C$18,DB_NN!$A$20:$A$377,0),INDEX($E$61:$E$78,$C$34),1,INDEX($F$61:$F$78,$C$34)),0)),0,1),IF(ISERROR(MATCH(C197,$D$39:$D$58,0)),0,1),INDEX($H197:$U197,1,INDEX($E$61:$E$78,$C$34)),IF(AND(INDEX(H197:U197,INDEX($E$61:$E$78,$C$34))<>"",INDEX(H197:U197,INDEX($E$61:$E$78,$C$34))=VLOOKUP($C$18,$C$83:$U$422,INDEX($E$61:$E$78,$C$34)+5,FALSE)),1,0))) -> 0 | F197: =--(E197<>0)+(E197<>0)*MAX($F$83:F196) -> 0 | H197: 1 | I197: 0 | J197: 1 | K197: 0 | L197: 1 | N197: South East | O197: Kent | P197: 0 | X197: Lower - Housing | Y197: 0 | Z197: 0 | AA197: 0 | AB197: 0 | AC197: 0 | AD197: 0 | AE197: 0 | AF197: 0 | AG197: 0 | AH197: 1 | AI197: 1 | AJ197: 0 | AK197: 1 | AL197: 0 | AM197: 0 | AN197: 0 | AO197: 1 | AP197: 0 | AQ197: 0 | AR197: 1 | AS197: 0 | AT197: 1 | AU197: 0 | AV197: 0 | AW197: 0 | AX197: 0 | AY197: 1 | AZ197: 0 | BA197: 1 | BB197: 1 | BC197: 0 | BD197: 0 | BE197: 1 | BF197: 0 | BG197: 0
A198: NM | B198: Great Yarmouth | C198: E2633 | D198: Great Yarmouth | E198: =IF(C198=$C$18,1,CHOOSE($E$34,IF(ISERROR(MATCH(C198,OFFSET(DB_NN!$A$19,MATCH($C$18,DB_NN!$A$20:$A$377,0),INDEX($E$61:$E$78,$C$34),1,INDEX($F$61:$F$78,$C$34)),0)),0,1),IF(ISERROR(MATCH(C198,$D$39:$D$58,0)),0,1),INDEX($H198:$U198,1,INDEX($E$61:$E$78,$C$34)),IF(AND(INDEX(H198:U198,INDEX($E$61:$E$78,$C$34))<>"",INDEX(H198:U198,INDEX($E$61:$E$78,$C$34))=VLOOKUP($C$18,$C$83:$U$422,INDEX($E$61:$E$78,$C$34)+5,FALSE)),1,0))) -> 0 | F198: =--(E198<>0)+(E198<>0)*MAX($F$83:F197) -> 0 | H198: 1 | I198: 0 | J198: 1 | K198: 0 | L198: 1 | N198: Eastern | O198: Norfolk | P198: 0 | X198: Lower - Housing | Y198: 0 | Z198: 0 | AA198: 0 | AB198: 0 | AC198: 0 | AD198: 0 | AE198: 0 | AF198: 0 | AG198: 0 | AH198: 1 | AI198: 1 | AJ198: 0 | AK198: 1 | AL198: 0 | AM198: 0 | AN198: 0 | AO198: 1 | AP198: 0 | AQ198: 0 | AR198: 1 | AS198: 0 | AT198: 1 | AU198: 0 | AV198: 0 | AW198: 0 | AX198: 0 | AY198: 1 | AZ198: 0 | BA198: 1 | BB198: 1 | BC198: 0 | BD198: 0 | BE198: 1 | BF198: 0 | BG198: 0
A199: IL | B199: Greenwich | C199: E5012 | D199: Greenwich | E199: =IF(C199=$C$18,1,CHOOSE($E$34,IF(ISERROR(MATCH(C199,OFFSET(DB_NN!$A$19,MATCH($C$18,DB_NN!$A$20:$A$377,0),INDEX($E$61:$E$78,$C$34),1,INDEX($F$61:$F$78,$C$34)),0)),0,1),IF(ISERROR(MATCH(C199,$D$39:$D$58,0)),0,1),INDEX($H199:$U199,1,INDEX($E$61:$E$78,$C$34)),IF(AND(INDEX(H199:U199,INDEX($E$61:$E$78,$C$34))<>"",INDEX(H199:U199,INDEX($E$61:$E$78,$C$34))=VLOOKUP($C$18,$C$83:$U$422,INDEX($E$61:$E$78,$C$34)+5,FALSE)),1,0))) -> 0 | F199: =--(E199<>0)+(E199<>0)*MAX($F$83:F198) -> 0 | H199: 1 | I199: 0 | J199: 0 | K199: 1 | L199: 1 | M199: London | N199: London | P199: 1 | Q199: Inner London | X199: All - Housing and WD | Y199: 1 | Z199: 1 | AA199: 1 | AB199: 1 | AC199: 1 | AD199: 1 | AE199: 1 | AF199: 1 | AG199: 1 | AH199: 1 | AI199: 1 | AJ199: 1 | AK199: 1 | AL199: 1 | AM199: 0 | AN199: 1 | AO199: 1 | AP199: 1 | AQ199: 1 | AR199: 1 | AS199: 1 | AT199: 1 | AU199: 1 | AV199: 1 | AW199: 1 | AX199: 1 | AY199: 1 | AZ199: 1 | BA199: 1 | BB199: 1 | BC199: 1 | BD199: 1 | BE199: 1 | BF199: 1 | BG199: 1
A200: NM | B200: Guildford | C200: E3633 | D200: Guildford | E200: =IF(C200=$C$18,1,CHOOSE($E$34,IF(ISERROR(MATCH(C200,OFFSET(DB_NN!$A$19,MATCH($C$18,DB_NN!$A$20:$A$377,0),INDEX($E$61:$E$78,$C$34),1,INDEX($F$61:$F$78,$C$34)),0)),0,1),IF(ISERROR(MATCH(C200,$D$39:$D$58,0)),0,1),INDEX($H200:$U200,1,INDEX($E$61:$E$78,$C$34)),IF(AND(INDEX(H200:U200,INDEX($E$61:$E$78,$C$34))<>"",INDEX(H200:U200,INDEX($E$61:$E$78,$C$34))=VLOOKUP($C$18,$C$83:$U$422,INDEX($E$61:$E$78,$C$34)+5,FALSE)),1,0))) -> 0 | F200: =--(E200<>0)+(E200<>0)*MAX($F$83:F199) -> 0 | H200: 1 | I200: 0 | J200: 1 | K200: 0 | L200: 1 | N200: South East | O200: Surrey | P200: 0 | X200: Lower - Housing | Y200: 0 | Z200: 0 | AA200: 0 | AB200: 0 | AC200: 0 | AD200: 0 | AE200: 0 | AF200: 0 | AG200: 0 | AH200: 1 | AI200: 1 | AJ200: 0 | AK200: 1 | AL200: 0 | AM200: 0 | AN200: 0 | AO200: 1 | AP200: 0 | AQ200: 0 | AR200: 1 | AS200: 0 | AT200: 1 | AU200: 0 | AV200: 0 | AW200: 0 | AX200: 0 | AY200: 1 | AZ200: 0 | BA200: 1 | BB200: 1 | BC200: 0 | BD200: 0 | BE200: 1 | BF200: 0 | BG200: 0
A201: IL | B201: Hackney | C201: E5013 | D201: Hackney | E201: =IF(C201=$C$18,1,CHOOSE($E$34,IF(ISERROR(MATCH(C201,OFFSET(DB_NN!$A$19,MATCH($C$18,DB_NN!$A$20:$A$377,0),INDEX($E$61:$E$78,$C$34),1,INDEX($F$61:$F$78,$C$34)),0)),0,1),IF(ISERROR(MATCH(C201,$D$39:$D$58,0)),0,1),INDEX($H201:$U201,1,INDEX($E$61:$E$78,$C$34)),IF(AND(INDEX(H201:U201,INDEX($E$61:$E$78,$C$34))<>"",INDEX(H201:U201,INDEX($E$61:$E$78,$C$34))=VLOOKUP($C$18,$C$83:$U$422,INDEX($E$61:$E$78,$C$34)+5,FALSE)),1,0))) -> 0 | F201: =--(E201<>0)+(E201<>0)*MAX($F$83:F200) -> 0 | H201: 1 | I201: 0 | J201: 0 | K201: 1 | L201: 1 | M201: London | N201: London | P201: 1 | Q201: Inner London | X201: All - Housing | Y201: 1 | Z201: 1 | AA201: 1 | AB201: 1 | AC201: 1 | AD201: 1 | AE201: 1 | AF201: 1 | AG201: 1 | AH201: 1 | AI201: 1 | AJ201: 1 | AK201: 1 | AL201: 1 | AM201: 0 | AN201: 1 | AO201: 1 | AP201: 1 | AQ201: 1 | AR201: 1 | AS201: 1 | AT201: 1 | AU201: 1 | AV201: 1 | AW201: 1 | AX201: 1 | AY201: 1 | AZ201: 1 | BA201: 1 | BB201: 1 | BC201: 1 | BD201: 1 | BE201: 1 | BF201: 0 | BG201: 1
A202: U | B202: Halton | C202: E0601 | D202: Halton | E202: =IF(C202=$C$18,1,CHOOSE($E$34,IF(ISERROR(MATCH(C202,OFFSET(DB_NN!$A$19,MATCH($C$18,DB_NN!$A$20:$A$377,0),INDEX($E$61:$E$78,$C$34),1,INDEX($F$61:$F$78,$C$34)),0)),0,1),IF(ISERROR(MATCH(C202,$D$39:$D$58,0)),0,1),INDEX($H202:$U202,1,INDEX($E$61:$E$78,$C$34)),IF(AND(INDEX(H202:U202,INDEX($E$61:$E$78,$C$34))<>"",INDEX(H202:U202,INDEX($E$61:$E$78,$C$34))=VLOOKUP($C$18,$C$83:$U$422,INDEX($E$61:$E$78,$C$34)+5,FALSE)),1,0))) -> 0 | F202: =--(E202<>0)+(E202<>0)*MAX($F$83:F201) -> 0 | H202: 1 | I202: 0 | J202: 0 | K202: 1 | L202: 1 | M202: North West | N202: North West | P202: 0 | T202: 1 | X202: All - WD | Y202: 1 | Z202: 1 | AA202: 1 | AB202: 1 | AC202: 1 | AD202: 1 | AE202: 1 | AF202: 1 | AG202: 1 | AH202: 1 | AI202: 1 | AJ202: 1 | AK202: 1 | AL202: 1 | AM202: 0 | AN202: 1 | AO202: 1 | AP202: 1 | AQ202: 1 | AR202: 1 | AS202: 1 | AT202: 1 | AU202: 1 | AV202: 1 | AW202: 1 | AX202: 1 | AY202: 0 | AZ202: 1 | BA202: 1 | BB202: 1 | BC202: 1 | BD202: 1 | BE202: 1 | BF202: 1 | BG202: 1
A203: NM | B203: Hambleton | C203: E2732 | D203: Hambleton | E203: =IF(C203=$C$18,1,CHOOSE($E$34,IF(ISERROR(MATCH(C203,OFFSET(DB_NN!$A$19,MATCH($C$18,DB_NN!$A$20:$A$377,0),INDEX($E$61:$E$78,$C$34),1,INDEX($F$61:$F$78,$C$34)),0)),0,1),IF(ISERROR(MATCH(C203,$D$39:$D$58,0)),0,1),INDEX($H203:$U203,1,INDEX($E$61:$E$78,$C$34)),IF(AND(INDEX(H203:U203,INDEX($E$61:$E$78,$C$34))<>"",INDEX(H203:U203,INDEX($E$61:$E$78,$C$34))=VLOOKUP($C$18,$C$83:$U$422,INDEX($E$61:$E$78,$C$34)+5,FALSE)),1,0))) -> 0 | F203: =--(E203<>0)+(E203<>0)*MAX($F$83:F202) -> 0 | H203: 1 | I203: 0 | J203: 1 | K203: 0 | L203: 1 | N203: Yorkshire & Humber | O203: North Yorkshire | P203: 0 | X203: Lower | Y203: 0 | Z203: 0 | AA203: 0 | AB203: 0 | AC203: 0 | AD203: 0 | AE203: 0 | AF203: 0 | AG203: 0 | AH203: 1 | AI203: 1 | AJ203: 0 | AK203: 1 | AL203: 0 | AM203: 0 | AN203: 0 | AO203: 1 | AP203: 0 | AQ203: 0 | AR203: 1 | AS203: 0 | AT203: 1 | AU203: 0 | AV203: 0 | AW203: 0 | AX203: 0 | AY203: 0 | AZ203: 0 | BA203: 1 | BB203: 1 | BC203: 0 | BD203: 0 | BE203: 1 | BF203: 0 | BG203: 0
A204: IL | B204: Hammersmith & Fulham | C204: E5014 | D204: Hammersmith & Fulham | E204: =IF(C204=$C$18,1,CHOOSE($E$34,IF(ISERROR(MATCH(C204,OFFSET(DB_NN!$A$19,MATCH($C$18,DB_NN!$A$20:$A$377,0),INDEX($E$61:$E$78,$C$34),1,INDEX($F$61:$F$78,$C$34)),0)),0,1),IF(ISERROR(MATCH(C204,$D$39:$D$58,0)),0,1),INDEX($H204:$U204,1,INDEX($E$61:$E$78,$C$34)),IF(AND(INDEX(H204:U204,INDEX($E$61:$E$78,$C$34))<>"",INDEX(H204:U204,INDEX($E$61:$E$78,$C$34))=VLOOKUP($C$18,$C$83:$U$422,INDEX($E$61:$E$78,$C$34)+5,FALSE)),1,0))) -> 0 | F204: =--(E204<>0)+(E204<>0)*MAX($F$83:F203) -> 0 | H204: 1 | I204: 0 | J204: 0 | K204: 1 | L204: 1 | M204: London | N204: London | P204: 1 | Q204: Inner London | X204: All - Housing | Y204: 1 | Z204: 1 | AA204: 1 | AB204: 1 | AC204: 1 | AD204: 1 | AE204: 1 | AF204: 1 | AG204: 1 | AH204: 1 | AI204: 1 | AJ204: 1 | AK204: 1 | AL204: 1 | AM204: 0 | AN204: 1 | AO204: 1 | AP204: 1 | AQ204: 1 | AR204: 1 | AS204: 1 | AT204: 1 | AU204: 1 | AV204: 1 | AW204: 1 | AX204: 1 | AY204: 1 | AZ204: 1 | BA204: 1 | BB204: 1 | BC204: 1 | BD204: 1 | BE204: 1 | BF204: 0 | BG204: 1
A205: C | B205: Hampshire | C205: E1721 | D205: Hampshire | E205: =IF(C205=$C$18,1,CHOOSE($E$34,IF(ISERROR(MATCH(C205,OFFSET(DB_NN!$A$19,MATCH($C$18,DB_NN!$A$20:$A$377,0),INDEX($E$61:$E$78,$C$34),1,INDEX($F$61:$F$78,$C$34)),0)),0,1),IF(ISERROR(MATCH(C205,$D$39:$D$58,0)),0,1),INDEX($H205:$U205,1,INDEX($E$61:$E$78,$C$34)),IF(AND(INDEX(H205:U205,INDEX($E$61:$E$78,$C$34))<>"",INDEX(H205:U205,INDEX($E$61:$E$78,$C$34))=VLOOKUP($C$18,$C$83:$U$422,INDEX($E$61:$E$78,$C$34)+5,FALSE)),1,0))) -> 0 | F205: =--(E205<>0)+(E205<>0)*MAX($F$83:F204) -> 0 | H205: 1 | I205: 1 | J205: 0 | K205: 1 | L205: 0 | M205: South East | P205: 0 | X205: Upper | Y205: 1 | Z205: 1 | AA205: 1 | AB205: 1 | AC205: 1 | AD205: 1 | AE205: 1 | AF205: 1 | AG205: 1 | AH205: 0 | AI205: 0 | AJ205: 1 | AK205: 1 | AL205: 1 | AM205: 0 | AN205: 1 | AO205: 0 | AP205: 1 | AQ205: 1 | AR205: 0 | AS205: 1 | AT205: 0 | AU205: 1 | AV205: 1 | AW205: 1 | AX205: 1 | AY205: 0 | AZ205: 1 | BA205: 0 | BB205: 0 | BC205: 1 | BD205: 1 | BE205: 0 | BF205: 1 | BG205: 1
A206: NM | B206: Harborough | C206: E2433 | D206: Harborough | E206: =IF(C206=$C$18,1,CHOOSE($E$34,IF(ISERROR(MATCH(C206,OFFSET(DB_NN!$A$19,MATCH($C$18,DB_NN!$A$20:$A$377,0),INDEX($E$61:$E$78,$C$34),1,INDEX($F$61:$F$78,$C$34)),0)),0,1),IF(ISERROR(MATCH(C206,$D$39:$D$58,0)),0,1),INDEX($H206:$U206,1,INDEX($E$61:$E$78,$C$34)),IF(AND(INDEX(H206:U206,INDEX($E$61:$E$78,$C$34))<>"",INDEX(H206:U206,INDEX($E$61:$E$78,$C$34))=VLOOKUP($C$18,$C$83:$U$422,INDEX($E$61:$E$78,$C$34)+5,FALSE)),1,0))) -> 0 | F206: =--(E206<>0)+(E206<>0)*MAX($F$83:F205) -> 0 | H206: 1 | I206: 0 | J206: 1 | K206: 0 | L206: 1 | N206: East Midlands | O206: Leicestershire | P206: 0 | X206: Lower | Y206: 0 | Z206: 0 | AA206: 0 | AB206: 0 | AC206: 0 | AD206: 0 | AE206: 0 | AF206: 0 | AG206: 0 | AH206: 1 | AI206: 1 | AJ206: 0 | AK206: 1 | AL206: 0 | AM206: 0 | AN206: 0 | AO206: 1 | AP206: 0 | AQ206: 0 | AR206: 1 | AS206: 0 | AT206: 1 | AU206: 0 | AV206: 0 | AW206: 0 | AX206: 0 | AY206: 0 | AZ206: 0 | BA206: 1 | BB206: 1 | BC206: 0 | BD206: 0 | BE206: 1 | BF206: 0 | BG206: 0
A207: OL | B207: Haringey | C207: E5038 | D207: Haringey | E207: =IF(C207=$C$18,1,CHOOSE($E$34,IF(ISERROR(MATCH(C207,OFFSET(DB_NN!$A$19,MATCH($C$18,DB_NN!$A$20:$A$377,0),INDEX($E$61:$E$78,$C$34),1,INDEX($F$61:$F$78,$C$34)),0)),0,1),IF(ISERROR(MATCH(C207,$D$39:$D$58,0)),0,1),INDEX($H207:$U207,1,INDEX($E$61:$E$78,$C$34)),IF(AND(INDEX(H207:U207,INDEX($E$61:$E$78,$C$34))<>"",INDEX(H207:U207,INDEX($E$61:$E$78,$C$34))=VLOOKUP($C$18,$C$83:$U$422,INDEX($E$61:$E$78,$C$34)+5,FALSE)),1,0))) -> 0 | F207: =--(E207<>0)+(E207<>0)*MAX($F$83:F206) -> 0 | H207: 1 | I207: 0 | J207: 0 | K207: 1 | L207: 1 | M207: London | N207: London | P207: 1 | Q207: Outer London | X207: All - Housing | Y207: 1 | Z207: 1 | AA207: 1 | AB207: 1 | AC207: 1 | AD207: 1 | AE207: 1 | AF207: 1 | AG207: 1 | AH207: 1 | AI207: 1 | AJ207: 1 | AK207: 1 | AL207: 1 | AM207: 0 | AN207: 1 | AO207: 1 | AP207: 1 | AQ207: 1 | AR207: 1 | AS207: 1 | AT207: 1 | AU207: 1 | AV207: 1 | AW207: 1 | AX207: 1 | AY207: 1 | AZ207: 1 | BA207: 1 | BB207: 1 | BC207: 1 | BD207: 1 | BE207: 1 | BF207: 0 | BG207: 1
A208: NM | B208: Harlow | C208: E1538 | D208: Harlow | E208: =IF(C208=$C$18,1,CHOOSE($E$34,IF(ISERROR(MATCH(C208,OFFSET(DB_NN!$A$19,MATCH($C$18,DB_NN!$A$20:$A$377,0),INDEX($E$61:$E$78,$C$34),1,INDEX($F$61:$F$78,$C$34)),0)),0,1),IF(ISERROR(MATCH(C208,$D$39:$D$58,0)),0,1),INDEX($H208:$U208,1,INDEX($E$61:$E$78,$C$34)),IF(AND(INDEX(H208:U208,INDEX($E$61:$E$78,$C$34))<>"",INDEX(H208:U208,INDEX($E$61:$E$78,$C$34))=VLOOKUP($C$18,$C$83:$U$422,INDEX($E$61:$E$78,$C$34)+5,FALSE)),1,0))) -> 0 | F208: =--(E208<>0)+(E208<>0)*MAX($F$83:F207) -> 0 | H208: 1 | I208: 0 | J208: 1 | K208: 0 | L208: 1 | N208: Eastern | O208: Essex | P208: 0 | X208: Lower - Housing | Y208: 0 | Z208: 0 | AA208: 0 | AB208: 0 | AC208: 0 | AD208: 0 | AE208: 0 | AF208: 0 | AG208: 0 | AH208: 1 | AI208: 1 | AJ208: 0 | AK208: 1 | AL208: 0 | AM208: 0 | AN208: 0 | AO208: 1 | AP208: 0 | AQ208: 0 | AR208: 1 | AS208: 0 | AT208: 1 | AU208: 0 | AV208: 0 | AW208: 0 | AX208: 0 | AY208: 1 | AZ208: 0 | BA208: 1 | BB208: 1 | BC208: 0 | BD208: 0 | BE208: 1 | BF208: 0 | BG208: 0
A209: NM | B209: Harrogate | C209: E2753 | D209: Harrogate | E209: =IF(C209=$C$18,1,CHOOSE($E$34,IF(ISERROR(MATCH(C209,OFFSET(DB_NN!$A$19,MATCH($C$18,DB_NN!$A$20:$A$377,0),INDEX($E$61:$E$78,$C$34),1,INDEX($F$61:$F$78,$C$34)),0)),0,1),IF(ISERROR(MATCH(C209,$D$39:$D$58,0)),0,1),INDEX($H209:$U209,1,INDEX($E$61:$E$78,$C$34)),IF(AND(INDEX(H209:U209,INDEX($E$61:$E$78,$C$34))<>"",INDEX(H209:U209,INDEX($E$61:$E$78,$C$34))=VLOOKUP($C$18,$C$83:$U$422,INDEX($E$61:$E$78,$C$34)+5,FALSE)),1,0))) -> 0 | F209: =--(E209<>0)+(E209<>0)*MAX($F$83:F208) -> 0 | H209: 1 | I209: 0 | J209: 1 | K209: 0 | L209: 1 | N209: Yorkshire & Humber | O209: North Yorkshire | P209: 0 | X209: Lower - Housing | Y209: 0 | Z209: 0 | AA209: 0 | AB209: 0 | AC209: 0 | AD209: 0 | AE209: 0 | AF209: 0 | AG209: 0 | AH209: 1 | AI209: 1 | AJ209: 0 | AK209: 1 | AL209: 0 | AM209: 0 | AN209: 0 | AO209: 1 | AP209: 0 | AQ209: 0 | AR209: 1 | AS209: 0 | AT209: 1 | AU209: 0 | AV209: 0 | AW209: 0 | AX209: 0 | AY209: 1 | AZ209: 0 | BA209: 1 | BB209: 1 | BC209: 0 | BD209: 0 | BE209: 1 | BF209: 0 | BG209: 0
A210: OL | B210: Harrow | C210: E5039 | D210: Harrow | E210: =IF(C210=$C$18,1,CHOOSE($E$34,IF(ISERROR(MATCH(C210,OFFSET(DB_NN!$A$19,MATCH($C$18,DB_NN!$A$20:$A$377,0),INDEX($E$61:$E$78,$C$34),1,INDEX($F$61:$F$78,$C$34)),0)),0,1),IF(ISERROR(MATCH(C210,$D$39:$D$58,0)),0,1),INDEX($H210:$U210,1,INDEX($E$61:$E$78,$C$34)),IF(AND(INDEX(H210:U210,INDEX($E$61:$E$78,$C$34))<>"",INDEX(H210:U210,INDEX($E$61:$E$78,$C$34))=VLOOKUP($C$18,$C$83:$U$422,INDEX($E$61:$E$78,$C$34)+5,FALSE)),1,0))) -> 0 | F210: =--(E210<>0)+(E210<>0)*MAX($F$83:F209) -> 0 | H210: 1 | I210: 0 | J210: 0 | K210: 1 | L210: 1 | M210: London | N210: London | P210: 1 | Q210: Outer London | X210: All - Housing | Y210: 1 | Z210: 1 | AA210: 1 | AB210: 1 | AC210: 1 | AD210: 1 | AE210: 1 | AF210: 1 | AG210: 1 | AH210: 1 | AI210: 1 | AJ210: 1 | AK210: 1 | AL210: 1 | AM210: 0 | AN210: 1 | AO210: 1 | AP210: 1 | AQ210: 1 | AR210: 1 | AS210: 1 | AT210: 1 | AU210: 1 | AV210: 1 | AW210: 1 | AX210: 1 | AY210: 1 | AZ210: 1 | BA210: 1 | BB210: 1 | BC210: 1 | BD210: 1 | BE210: 1 | BF210: 0 | BG210: 1
A211: NM | B211: Hart | C211: E1736 | D211: Hart | E211: =IF(C211=$C$18,1,CHOOSE($E$34,IF(ISERROR(MATCH(C211,OFFSET(DB_NN!$A$19,MATCH($C$18,DB_NN!$A$20:$A$377,0),INDEX($E$61:$E$78,$C$34),1,INDEX($F$61:$F$78,$C$34)),0)),0,1),IF(ISERROR(MATCH(C211,$D$39:$D$58,0)),0,1),INDEX($H211:$U211,1,INDEX($E$61:$E$78,$C$34)),IF(AND(INDEX(H211:U211,INDEX($E$61:$E$78,$C$34))<>"",INDEX(H211:U211,INDEX($E$61:$E$78,$C$34))=VLOOKUP($C$18,$C$83:$U$422,INDEX($E$61:$E$78,$C$34)+5,FALSE)),1,0))) -> 0 | F211: =--(E211<>0)+(E211<>0)*MAX($F$83:F210) -> 0 | H211: 1 | I211: 0 | J211: 1 | K211: 0 | L211: 1 | N211: South East | O211: Hampshire | P211: 0 | X211: Lower | Y211: 0 | Z211: 0 | AA211: 0 | AB211: 0 | AC211: 0 | AD211: 0 | AE211: 0 | AF211: 0 | AG211: 0 | AH211: 1 | AI211: 1 | AJ211: 0 | AK211: 1 | AL211: 0 | AM211: 0 | AN211: 0 | AO211: 1 | AP211: 0 | AQ211: 0 | AR211: 1 | AS211: 0 | AT211: 1 | AU211: 0 | AV211: 0 | AW211: 0 | AX211: 0 | AY211: 0 | AZ211: 0 | BA211: 1 | BB211: 1 | BC211: 0 | BD211: 0 | BE211: 1 | BF211: 0 | BG211: 0
... 537 more rows

Sheet T1_Calc (hidden)
E3: Cost | F3: Performance
B4: None selected | D4: Labels | E4: Score | F4: Score
A5: 1 | B5: Addiction | C5: A | D5: =CHOOSE($B$43,B5,C5,"") -> Addiction | E5: =OFFSET(T1_Cost,0,((ROW()-5)*9)+((T2_RankType-1)*3)) -> -100 | F5: =OFFSET(T1_Performance,0,((ROW()-5)*37)+((T2_RankType-1)*2)) -> -100 | G5: =IF(E5>-10,E5,"na") -> na | H5: =IF(F5>-10,F5,"na") -> na
A6: 2 | B6: Adult Education | C6: B | D6: Adult Education | E6: -100 | F6: 0.4285714286 | G6: =IF(E6>-10,E6,"na") -> na | H6: =IF(F6>-10,F6,"na") -> 0.4285714286
A7: 3 | B7: Adults<65 with LD | C7: C | D7: Adults<65 with LD | E7: -100 | F7: -100 | G7: na | H7: na
A8: 4 | B8: Adults<65 with MHNs | C8: D | D8: Adults<65 with MHNs | E8: -100 | F8: -100 | G8: na | H8: na
A9: 5 | B9: Adult Social Care | C9: E | D9: Adult Social Care | E9: -100 | F9: -100 | G9: na | H9: na
A10: 6 | B10: BS, Welfare & Incl | C10: F | D10: BS, Welfare & Incl | E10: -100 | F10: 0.8666666667 | G10: na | H10: 0.8666666667
A11: 7 | B11: Carers | C11: G | D11: Carers | E11: -100 | F11: -100 | G11: =IF(E11>-10,E11,"na") -> na | H11: =IF(F11>-10,F11,"na") -> na
A12: 8 | B12: Children's Social Care | C12: H | D12: Children's Social Care | E12: -100 | F12: -100 | G12: na | H12: na
A13: 9 | B13: Community Safety | C13: I | D13: Community Safety | E13: -100 | F13: -100 | G13: na | H13: na
A14: 10 | B14: Council Tax and Housing Benefits | C14: J | D14: Council Tax and Housing Benefits | E14: 1 | F14: 0.6 | G14: 1 | H14: 0.6
A15: 11 | B15: Council Tax and NNDR collection | C15: K | D15: Council Tax and NNDR collection | E15: 0.948251921 | F15: 0.6785714286 | G15: 0.948251921 | H15: 0.6785714286
A16: 12 | B16: Early Years | C16: L | D16: Early Years | E16: -100 | F16: -100 | G16: na | H16: na
A17: 13 | B17: Economic Development | C17: M | D17: Economic Development | E17: 0.4007425148 | F17: 0.8214285714 | G17: 0.4007425148 | H17: 0.8214285714
A18: 14 | B18: Excess Weight | C18: N | D18: Excess Weight | E18: -100 | F18: -100 | G18: na | H18: na
A19: 15 | B19: Fire | C19: O | D19: Fire | E19: -100 | F19: -100 | G19: na | H19: na
A20: 16 | B20: Highways Maintenance | C20: P | D20: Highways Maintenance | E20: -100 | F20: -100 | G20: na | H20: na
A21: 17 | B21: Homelessness | C21: Q | D21: Homelessness | E21: -100 | F21: 0.2733333333 | G21: na | H21: 0.2733333333
A22: 18 | B22: Libraries | C22: R | D22: Libraries | E22: -100 | F22: -100 | G22: na | H22: na
A23: 19 | B23: Older People's Social Care | C23: S | D23: Older People's Social Care | E23: -100 | F23: -100 | G23: na | H23: na
A24: 20 | B24: Planning | C24: T | D24: Planning | E24: 1 | F24: 0.3774834437 | G24: 1 | H24: 0.3774834437
A25: 21 | B25: Public Transport | C25: U | D25: Public Transport | E25: -100 | F25: -100 | G25: na | H25: na
A26: 22 | B26: Recycling | C26: V | D26: Recycling | E26: 0.8278767612 | F26: 0.2857142857 | G26: 0.8278767612 | H26: 0.2857142857
A27: 23 | B27: Road Safety | C27: W | D27: Road Safety | E27: -100 | F27: -100 | G27: na | H27: na | J27: Section 3: Median Lines for the chart
A28: 24 | B28: School Improvement | C28: X | D28: School Improvement | E28: -100 | F28: -100 | G28: na | H28: na
A29: 25 | B29: School Planning & Admissions | C29: Y | D29: School Planning & Admissions | E29: -100 | F29: -100 | G29: =IF(E29>-10,E29,"na") -> na | H29: =IF(F29>-10,F29,"na") -> na | K29: Cost: | M29: Pis:
A30: 26 | B30: Sexual Health | C30: Z | D30: Sexual Health | E30: -100 | F30: -100 | G30: na | H30: na
A31: 27 | B31: Social Housing | C31: a | D31: Social Housing | E31: -100 | F31: 1 | G31: na | H31: 1
A32: 28 | B32: Special Educational Needs | C32: b | D32: Special Educational Needs | E32: -100 | F32: -100 | G32: na | H32: na | K32: x | L32: y | M32: x | N32: y
A33: 29 | B33: Sport | C33: c | D33: Sport | E33: 1 | F33: 0.8805970149 | G33: 1 | H33: 0.8805970149 | K33: 0.5 | L33: 0 | M33: 0 | N33: 0.5
A34: 30 | B34: Street Cleansing | C34: d | D34: Street Cleansing | E34: 1 | F34: 0.8 | G34: 1 | H34: 0.8 | K34: 0.5 | L34: 1 | M34: 1 | N34: 0.5
A35: 31 | B35: Street Lighting | C35: e | D35: Street Lighting | E35: -100 | F35: -100 | G35: na | H35: na
A36: 32 | B36: Trading Standards | C36: f | D36: Trading Standards | E36: -100 | F36: -100 | G36: na | H36: na
A37: 33 | B37: Waste Collection | C37: g | D37: Waste Collection | E37: 1 | F37: 0.5909090909 | G37: 1 | H37: 0.5909090909
A38: 34 | B38: Waste Disposal | C38: h | D38: Waste Disposal | E38: -100 | F38: 0.2857142857 | G38: na | H38: 0.2857142857
A39: 35 | B39: Wellbeing | C39: i | D39: Wellbeing | E39: -100 | F39: -100 | G39: =IF(E39>-10,E39,"na") -> na | H39: na
